Workbook

Sheet Table 1 - Imputed Data
A1: Supplementary Table 1 - Total Imputed Dataset
A2: Imputed LC-MS dataset of proteins present in plaques and neighboring non-plaque tissue in Down Syndrome (DS) and early onset AD (EOAD). Data shows Log2 transformed LFQ intensities with missing values imputed from normal distribution. Columns labelled “In at least 3 cases/group” indicate proteins included after filtering in statistical analyses. To be included a protein had to be present in at least 3 cases in either plaque or non-plaque group within a particular subtype of AD. pValue: determined using a paired t-test comparing plaque and non-plaque intensities. Fold change: shows ratio of plaque: non-plaque fold change. Significant: indicates proteins that had a p<0.05 and fold change >1.5 in plaques vs non-plaques. Significantly enriched in plaques: indicates proteins that were significantly increased in plaques. Comparison with previous datasets indicates proteins that were enriched in sporadic late-onset AD (LOAD) plaques in comparison to surrounding non-plaque tissue in Xiong et al., (2019), preclinical AD (PCL) plaques in comparison to non-plaque tissue in Xiong et al., (2019) or correlated with Aβ levels throughout the progression of AD in Bai et al., (2020).
F4: Down Syndrome Plaque vs Non-Plaque | X4: EOAD Plaque vs Non-Plaque | AP4: Comparison with Previous datasets
A5: Uniprot ID | B5: Majority Gene ID | C5: All Gene IDs | D5: Name | E5: Peptides | F5: DS_np_01 | G5: DS_np_02 | H5: DS_np_03 | I5: DS_np_04 | J5: DS_np_05 | K5: Average intensity in DS_NP | L5: DS_p_01 | M5: DS_p_02 | N5: DS_p_03 | O5: DS_p_04 | P5: DS_p_05 | Q5: Average intensity in DS_P | R5: In at least 3 cases/group | S5: pValue_DS | T5: Difference_DS | U5: Fold change_DS | V5: Significant_DS | W5: Significantly enriched in DS plaques | X5: eoAD_np_01 | Y5: eoAD_np_02 | Z5: eoAD_np_03 | AA5: eoAD_np_04 | AB5: eoAD_np_05 | AC5: Average intensity in EOAD_NP | AD5: eoAD_p_01 | AE5: eoAD_p_02 | AF5: eoAD_p_03 | AG5: eoAD_p_04 | AH5: eoAD_p_05 | AI5: Average intensity in EOAD_P | AJ5: In at least 3 cases/group | AK5: pValue_eoAD | AL5: Difference_eoAD | AM5: Fold change_EOAD | AN5: Significant_eoAD | AO5: Significantly enriched in EOAD plaques | AP5: Enriched in LOAD plaques vs non-plaques (Xiong 2019) | AQ5: Enriched in PCL plaques vs non-plaques (Xiong 2019) | AR5: Correlated with Aβ (Bai 2020)
A6: Q9BXS0 | B6: COL25A1 | C6: COL25A1 | D6: Collagen alpha-1(XXV) chain (Alzheimer disease amyloid-associated protein) (AMY) (CLAC-P) [Cleaved into: Collagen-like Alzheimer amyloid plaque component (CLAC)] | E6: 2 | F6: 20.30 | G6: 19.02 | H6: 20.18 | I6: 19.95 | J6: 19.83 | K6: =AVERAGE(F6:J6) -> 19.86 | L6: 26.15 | M6: 26.86 | N6: 27.28 | O6: 26.87 | P6: 26.23 | Q6: =AVERAGE(L6:P6) -> 26.68 | R6: TRUE | S6: 0.0000 | T6: 6.82 | U6: =2^T6 -> 113.07 | V6: TRUE | W6: TRUE | X6: 19.74 | Y6: 17.35 | Z6: 19.88 | AA6: 17.22 | AB6: 17.89 | AC6: =AVERAGE(X6:AB6) -> 18.42 | AD6: 25.36 | AE6: 25.13 | AF6: 25.34 | AG6: 25.13 | AH6: 24.64 | AI6: =AVERAGE(AD6:AH6) -> 25.12 | AJ6: TRUE | AK6: 0.0002 | AL6: 6.70 | AM6: =2^AL6 -> 104.28 | AN6: TRUE | AO6: TRUE | AP6: TRUE | AR6: TRUE
A7: P21741 | B7: MDK | C7: MDK MK1 NEGF2 | D7: Midkine (MK) (Amphiregulin-associated protein) (ARAP) (Midgestation and kidney protein) (Neurite outgrowth-promoting factor 2) (Neurite outgrowth-promoting protein) | E7: 7 | F7: 18.86 | G7: 20.65 | H7: 18.78 | I7: 20.62 | J7: 17.97 | K7: 19.38 | L7: 26.33 | M7: 25.80 | N7: 26.23 | O7: 25.89 | P7: 23.31 | Q7: 25.51 | R7: TRUE | S7: 0.0003 | T7: 6.14 | U7: 70.40 | V7: TRUE | W7: TRUE | X7: 17.96 | Y7: 17.99 | Z7: 19.31 | AA7: 18.26 | AB7: 18.38 | AC7: 18.38 | AD7: 23.83 | AE7: 22.71 | AF7: 24.04 | AG7: 22.79 | AH7: 23.40 | AI7: 23.35 | AJ7: TRUE | AK7: 0.0000 | AL7: 4.97 | AM7: 31.41 | AN7: TRUE | AO7: TRUE | AP7: TRUE | AQ7: TRUE | AR7: TRUE
A8: Q9H4F8 | B8: SMOC1 | C8: SMOC1 | D8: SPARC-related modular calcium-binding protein 1 (Secreted modular calcium-binding protein 1) (SMOC-1) | E8: 16 | F8: 21.60 | G8: 19.70 | H8: 19.19 | I8: 21.03 | J8: 21.01 | K8: 20.51 | L8: 27.43 | M8: 25.85 | N8: 26.66 | O8: 26.66 | P8: 25.33 | Q8: 26.38 | R8: TRUE | S8: 0.0003 | T8: 5.88 | U8: 58.75 | V8: TRUE | W8: TRUE | X8: 20.72 | Y8: 21.12 | Z8: 19.73 | AA8: 21.54 | AB8: 20.88 | AC8: 20.80 | AD8: 25.37 | AE8: 24.12 | AF8: 24.23 | AG8: 24.01 | AH8: 24.72 | AI8: 24.49 | AJ8: TRUE | AK8: 0.0009 | AL8: 3.69 | AM8: 12.95 | AN8: TRUE | AO8: TRUE | AP8: TRUE | AQ8: TRUE | AR8: TRUE
A9: O95631 | B9: NTN1 | C9: NTN1 NTN1L | D9: Netrin-1 (Epididymis tissue protein Li 131P) | E9: 13 | F9: 19.33 | G9: 19.20 | H9: 19.10 | I9: 19.01 | J9: 19.31 | K9: 19.19 | L9: 26.21 | M9: 24.55 | N9: 25.65 | O9: 26.23 | P9: 22.68 | Q9: 25.07 | R9: TRUE | S9: 0.0011 | T9: 5.88 | U9: 58.74 | V9: TRUE | W9: TRUE | X9: 17.92 | Y9: 17.44 | Z9: 18.34 | AA9: 18.07 | AB9: 17.56 | AC9: 17.87 | AD9: 24.04 | AE9: 23.33 | AF9: 23.34 | AG9: 21.94 | AH9: 22.32 | AI9: 22.99 | AJ9: TRUE | AK9: 0.0002 | AL9: 5.12 | AM9: 34.88 | AN9: TRUE | AO9: TRUE | AP9: TRUE | AQ9: TRUE | AR9: TRUE
A10: Q92743 | B10: HTRA1 | C10: HTRA1 HTRA PRSS11 | D10: Serine protease HTRA1 (EC 3.4.21.-) (High-temperature requirement A serine peptidase 1) (L56) (Serine protease 11) | E10: 15 | F10: 20.44 | G10: 19.75 | H10: 19.10 | I10: 19.77 | J10: 19.92 | K10: 19.80 | L10: 25.27 | M10: 25.12 | N10: 25.43 | O10: 25.09 | P10: 25.17 | Q10: 25.21 | R10: TRUE | S10: 0.0000 | T10: 5.42 | U10: 42.76 | V10: TRUE | W10: TRUE | X10: 18.88 | Y10: 16.93 | Z10: 19.62 | AA10: 18.98 | AB10: 19.49 | AC10: 18.78 | AD10: 24.29 | AE10: 22.29 | AF10: 24.53 | AG10: 21.95 | AH10: 22.07 | AI10: 23.03 | AJ10: TRUE | AK10: 0.0022 | AL10: 4.25 | AM10: 18.99 | AN10: TRUE | AO10: TRUE | AP10: TRUE | AQ10: TRUE | AR10: TRUE
A11: Q9NRN5 | B11: OLFML3 | C11: OLFML3 PSEC0035 PSEC0173 PSEC0244 UNQ663/PRO1294 | D11: Olfactomedin-like protein 3 (HNOEL-iso) (hOLF44) | E11: 10 | F11: 19.18 | G11: 19.45 | H11: 19.64 | I11: 20.29 | J11: 19.66 | K11: 19.64 | L11: 24.32 | M11: 23.89 | N11: 24.20 | O11: 24.23 | P11: 22.76 | Q11: 23.88 | R11: TRUE | S11: 0.0002 | T11: 4.24 | U11: 18.85 | V11: TRUE | W11: TRUE | X11: 17.37 | Y11: 18.35 | Z11: 18.51 | AA11: 17.90 | AB11: 17.36 | AC11: 17.90 | AD11: 22.54 | AE11: 21.56 | AF11: 22.64 | AG11: 22.02 | AH11: 22.05 | AI11: 22.16 | AJ11: TRUE | AK11: 0.0002 | AL11: 4.26 | AM11: 19.20 | AN11: TRUE | AO11: TRUE | AP11: TRUE | AQ11: TRUE | AR11: TRUE
A12: Q14956 | B12: GPNMB | C12: GPNMB HGFIN NMB UNQ1725/PRO9925 | D12: Transmembrane glycoprotein NMB (Hematopoietic growth factor inducible neurokinin-1 type) | E12: 2 | F12: 19.55 | G12: 18.55 | H12: 19.08 | I12: 19.00 | J12: 19.54 | K12: 19.14 | L12: 24.74 | M12: 23.82 | N12: 20.46 | O12: 23.99 | P12: 23.45 | Q12: 23.29 | R12: TRUE | S12: 0.0048 | T12: 4.15 | U12: 17.77 | V12: TRUE | W12: TRUE | X12: 18.61 | Y12: 19.56 | Z12: 18.95 | AA12: 18.69 | AB12: 19.06 | AC12: 18.97 | AD12: 23.33 | AE12: 23.19 | AF12: 21.28 | AG12: 19.36 | AH12: 22.55 | AI12: 21.94 | AJ12: TRUE | AK12: 0.0126 | AL12: 2.97 | AM12: 7.81 | AN12: TRUE | AO12: TRUE | AP12: TRUE | AQ12: TRUE | AR12: TRUE
A13: P02649 | B13: APOE | C13: APOE | D13: Apolipoprotein E (Apo-E) | E13: 25 | F13: 26.81 | G13: 27.49 | H13: 26.47 | I13: 26.98 | J13: 26.18 | K13: 26.79 | L13: 29.87 | M13: 31.54 | N13: 31.49 | O13: 31.01 | P13: 30.54 | Q13: 30.89 | R13: TRUE | S13: 0.0002 | T13: 4.10 | U13: 17.18 | V13: TRUE | W13: TRUE | X13: 24.39 | Y13: 25.01 | Z13: 24.78 | AA13: 24.40 | AB13: 25.12 | AC13: 24.74 | AD13: 28.47 | AE13: 27.86 | AF13: 28.52 | AG13: 28.25 | AH13: 27.53 | AI13: 28.12 | AJ13: TRUE | AK13: 0.0005 | AL13: 3.38 | AM13: 10.44 | AN13: TRUE | AO13: TRUE | AP13: TRUE | AQ13: TRUE
A14: Q9HCB6 | B14: SPON1 | C14: SPON1 KIAA0762 VSGP | D14: Spondin-1 (F-spondin) (Vascular smooth muscle cell growth-promoting factor) | E14: 15 | F14: 21.47 | G14: 20.91 | H14: 21.12 | I14: 21.57 | J14: 20.38 | K14: 21.09 | L14: 26.00 | M14: 24.81 | N14: 24.89 | O14: 25.89 | P14: 24.08 | Q14: 25.13 | R14: TRUE | S14: 0.0000 | T14: 4.05 | U14: 16.52 | V14: TRUE | W14: TRUE | X14: 17.90 | Y14: 20.34 | Z14: 19.03 | AA14: 18.26 | AB14: 21.13 | AC14: 19.33 | AD14: 23.12 | AE14: 21.44 | AF14: 22.30 | AG14: 21.46 | AH14: 22.24 | AI14: 22.11 | AJ14: TRUE | AK14: 0.0229 | AL14: 2.78 | AM14: 6.88 | AN14: TRUE | AO14: TRUE | AP14: TRUE | AQ14: TRUE
A15: P02743 | B15: APCS | C15: APCS PTX2 | D15: Serum amyloid P-component (SAP) (9.5S alpha-1-glycoprotein) [Cleaved into: Serum amyloid P-component(1-203)] | E15: 6 | F15: 18.36 | G15: 20.83 | H15: 18.26 | I15: 19.43 | J15: 19.56 | K15: 19.29 | L15: 23.12 | M15: 22.71 | N15: 23.38 | O15: 22.34 | P15: 22.06 | Q15: 22.72 | R15: TRUE | S15: 0.0057 | T15: 3.44 | U15: 10.84 | V15: TRUE | W15: TRUE | X15: 19.50 | Y15: 17.87 | Z15: 18.09 | AA15: 19.14 | AB15: 19.12 | AC15: 18.75 | AD15: 21.43 | AE15: 21.49 | AF15: 20.80 | AG15: 20.88 | AH15: 20.66 | AI15: 21.05 | AJ15: TRUE | AK15: 0.0038 | AL15: 2.31 | AM15: 4.94 | AN15: TRUE | AO15: TRUE | AP15: TRUE | AQ15: TRUE | AR15: TRUE
A16: P0C0L4 | B16: C4A | C16: C4A CO4 CPAMD2 | D16: Complement C4-A (Acidic complement C4) (C3 and PZP-like alpha-2-macroglobulin domain-containing protein 2) [Cleaved into: Complement C4 beta chain; Complement C4-A alpha chain; C4a anaphylatoxin; C4b-A; C4d-A; Complement C4 gamma chain] | E16: 45 | F16: 24.83 | G16: 25.75 | H16: 24.67 | I16: 25.14 | J16: 21.40 | K16: 24.36 | L16: 27.64 | M16: 28.39 | N16: 28.40 | O16: 27.47 | P16: 26.53 | Q16: 27.69 | R16: TRUE | S16: 0.0028 | T16: 3.33 | U16: 10.05 | V16: TRUE | W16: TRUE | X16: 22.22 | Y16: 24.90 | Z16: 22.97 | AA16: 20.91 | AB16: 24.18 | AC16: 23.03 | AD16: 25.74 | AE16: 26.96 | AF16: 25.62 | AG16: 24.93 | AH16: 26.49 | AI16: 25.95 | AJ16: TRUE | AK16: 0.0014 | AL16: 2.91 | AM16: 7.53 | AN16: TRUE | AO16: TRUE | AP16: TRUE | AQ16: TRUE
A17: P51797 | B17: CLCN6 | C17: CLCN6 KIAA0046 | D17: Chloride transport protein 6 (Chloride channel protein 6) (ClC-6) | E17: 7 | F17: 18.95 | G17: 19.65 | H17: 18.88 | I17: 20.15 | J17: 20.12 | K17: 19.55 | L17: 22.79 | M17: 22.80 | N17: 22.65 | O17: 23.17 | P17: 22.72 | Q17: 22.82 | R17: TRUE | S17: 0.0002 | T17: 3.27 | U17: 9.67 | V17: TRUE | W17: TRUE | X17: 18.99 | Y17: 18.45 | Z17: 18.63 | AA17: 19.55 | AB17: 18.81 | AC17: 18.89 | AD17: 21.66 | AE17: 20.71 | AF17: 18.42 | AG17: 20.78 | AH17: 20.30 | AI17: 20.37 | AJ17: TRUE | AK17: 0.0400 | AL17: 1.49 | AM17: 2.80 | AN17: TRUE | AO17: TRUE | AQ17: TRUE
A18: P35052 | B18: GPC1 | C18: GPC1 | D18: Glypican-1 [Cleaved into: Secreted glypican-1] | E18: 13 | F18: 21.15 | G18: 21.15 | H18: 20.43 | I18: 21.22 | J18: 19.03 | K18: 20.60 | L18: 23.55 | M18: 24.05 | N18: 23.61 | O18: 23.49 | P18: 23.75 | Q18: 23.69 | R18: TRUE | S18: 0.0021 | T18: 3.09 | U18: 8.53 | V18: TRUE | W18: TRUE | X18: 20.36 | Y18: 20.30 | Z18: 17.59 | AA18: 20.40 | AB18: 20.65 | AC18: 19.86 | AD18: 23.34 | AE18: 22.12 | AF18: 22.81 | AG18: 23.34 | AH18: 22.21 | AI18: 22.76 | AJ18: TRUE | AK18: 0.0109 | AL18: 2.90 | AM18: 7.47 | AN18: TRUE | AO18: TRUE | AP18: TRUE | AQ18: TRUE
A19: P02747 | B19: C1QC | C19: C1QC C1QG | D19: Complement C1q subcomponent subunit C | E19: 4 | F19: 22.53 | G19: 19.17 | H19: 23.43 | I19: 23.35 | J19: 19.24 | K19: 21.55 | L19: 23.96 | M19: 24.78 | N19: 26.00 | O19: 24.70 | P19: 23.62 | Q19: 24.61 | R19: TRUE | S19: 0.0217 | T19: 3.07 | U19: 8.38 | V19: TRUE | W19: TRUE | X19: 20.79 | Y19: 22.61 | Z19: 21.05 | AA19: 21.43 | AB19: 21.60 | AC19: 21.50 | AD19: 22.76 | AE19: 23.61 | AF19: 22.90 | AG19: 22.94 | AH19: 22.39 | AI19: 22.92 | AJ19: TRUE | AK19: 0.0036 | AL19: 1.42 | AM19: 2.68 | AN19: TRUE | AO19: TRUE | AP19: TRUE
A20: O94985 | B20: CLSTN1 | C20: CLSTN1 CS1 KIAA0911 | D20: Calsyntenin-1 (Alcadein-alpha) (Alc-alpha) (Alzheimer-related cadherin-like protein) (Non-classical cadherin XB31alpha) [Cleaved into: Soluble Alc-alpha (SAlc-alpha); CTF1-alpha (C-terminal fragment 1-alpha)] | E20: 12 | F20: 22.34 | G20: 22.75 | H20: 19.80 | I20: 18.51 | J20: 23.49 | K20: 21.38 | L20: 24.48 | M20: 24.45 | N20: 24.02 | O20: 24.78 | P20: 24.26 | Q20: 24.40 | R20: TRUE | S20: 0.0378 | T20: 3.02 | U20: 8.12 | V20: TRUE | W20: TRUE | X20: 21.70 | Y20: 20.48 | Z20: 21.24 | AA20: 20.24 | AB20: 21.27 | AC20: 20.99 | AD20: 23.76 | AE20: 21.54 | AF20: 23.92 | AG20: 24.49 | AH20: 23.32 | AI20: 23.41 | AJ20: TRUE | AK20: 0.0100 | AL20: 2.42 | AM20: 5.35 | AN20: TRUE | AO20: TRUE | AP20: TRUE | AQ20: TRUE
B21: ABETA | C21: ABETA | D21: Amyloid Beta | E21: 1 | F21: 22.52 | G21: 21.93 | H21: 22.48 | I21: 22.92 | J21: 22.78 | K21: 22.52 | L21: 27.37 | M21: 26.45 | N21: 22.88 | O21: 25.68 | P21: 24.23 | Q21: 25.32 | R21: TRUE | S21: 0.0310 | T21: 2.80 | U21: 6.96 | V21: TRUE | W21: TRUE | X21: 22.46 | Y21: 23.46 | Z21: 23.78 | AA21: 21.67 | AB21: 22.83 | AC21: 22.84 | AD21: 26.60 | AE21: 26.65 | AF21: 24.97 | AG21: 27.07 | AH21: 26.81 | AI21: 26.42 | AJ21: TRUE | AK21: 0.0068 | AL21: 3.58 | AM21: 11.92 | AN21: TRUE | AO21: TRUE
A22: Q9UIK5 | B22: TMEFF2 | C22: TMEFF2 HPP1 TENB2 TPEF UNQ178/PRO204 | D22: Tomoregulin-2 (TR-2) (Hyperplastic polyposis protein 1) (Transmembrane protein with EGF-like and two follistatin-like domains) | E22: 2 | F22: 19.02 | G22: 18.41 | H22: 20.39 | I22: 19.38 | J22: 19.75 | K22: 19.39 | L22: 22.46 | M22: 21.77 | N22: 22.14 | O22: 22.46 | P22: 22.05 | Q22: 22.18 | R22: TRUE | S22: 0.0011 | T22: 2.78 | U22: 6.89 | V22: TRUE | W22: TRUE | X22: 17.78 | Y22: 18.11 | Z22: 17.45 | AA22: 18.83 | AB22: 18.74 | AC22: 18.18 | AD22: 21.22 | AE22: 19.83 | AF22: 20.66 | AG22: 20.22 | AH22: 20.30 | AI22: 20.45 | AJ22: TRUE | AK22: 0.0066 | AL22: 2.27 | AM22: 4.81 | AN22: TRUE | AO22: TRUE | AP22: TRUE | AQ22: TRUE
A23: P0C0L5 | B23: C4B | C23: C4B CO4 CPAMD3; C4B_2 | D23: Complement C4-B (Basic complement C4) (C3 and PZP-like alpha-2-macroglobulin domain-containing protein 3) [Cleaved into: Complement C4 beta chain; Complement C4-B alpha chain; C4a anaphylatoxin; C4b-B; C4d-B; Complement C4 gamma chain] | E23: 45 | F23: 19.66 | G23: 21.98 | H23: 19.43 | I23: 19.75 | J23: 20.54 | K23: 20.27 | L23: 23.31 | M23: 25.36 | N23: 23.75 | O23: 23.24 | P23: 19.62 | Q23: 23.06 | R23: TRUE | S23: 0.0416 | T23: 2.78 | U23: 6.88 | V23: TRUE | W23: TRUE | X23: 18.26 | Y23: 17.64 | Z23: 19.09 | AA23: 18.55 | AB23: 17.82 | AC23: 18.27 | AD23: 20.86 | AE23: 18.54 | AF23: 17.89 | AG23: 18.53 | AH23: 17.82 | AI23: 18.73 | AK23: 0.5089 | AL23: 0.46 | AM23: 1.37 | AP23: TRUE | AQ23: TRUE | AR23: TRUE
A24: Q15582 | B24: TGFBI | C24: TGFBI BIGH3 | D24: Transforming growth factor-beta-induced protein ig-h3 (Beta ig-h3) (Kerato-epithelin) (RGD-containing collagen-associated protein) (RGD-CAP) | E24: 5 | F24: 19.28 | G24: 18.86 | H24: 20.60 | I24: 20.30 | J24: 20.18 | K24: 19.84 | L24: 22.00 | M24: 22.73 | N24: 23.14 | O24: 22.96 | P24: 21.84 | Q24: 22.53 | R24: TRUE | S24: 0.0016 | T24: 2.69 | U24: 6.46 | V24: TRUE | W24: TRUE | X24: 17.80 | Y24: 20.01 | Z24: 19.28 | AA24: 18.68 | AB24: 17.79 | AC24: 18.71 | AD24: 17.33 | AE24: 20.80 | AF24: 20.25 | AG24: 20.62 | AH24: 20.34 | AI24: 19.87 | AJ24: TRUE | AK24: 0.0896 | AL24: 1.16 | AM24: 2.23
A25: Q9BXY4 | B25: RSPO3 | C25: RSPO3 PWTSR THSD2 | D25: R-spondin-3 (Protein with TSP type-1 repeat) (hPWTSR) (Roof plate-specific spondin-3) (hRspo3) (Thrombospondin type-1 domain-containing protein 2) | E25: 2 | F25: 18.05 | G25: 19.79 | H25: 19.24 | I25: 20.71 | J25: 19.13 | K25: 19.38 | L25: 22.37 | M25: 21.70 | N25: 22.58 | O25: 22.57 | P25: 21.13 | Q25: 22.07 | R25: TRUE | S25: 0.0055 | T25: 2.69 | U25: 6.44 | V25: TRUE | W25: TRUE | X25: 18.06 | Y25: 18.73 | Z25: 19.20 | AA25: 17.35 | AB25: 18.28 | AC25: 18.32 | AD25: 21.54 | AE25: 19.93 | AF25: 17.11 | AG25: 19.07 | AH25: 18.62 | AI25: 19.25 | AJ25: TRUE | AK25: 0.3662 | AL25: 0.93 | AM25: 1.91
A26: P05067 | B26: APP | C26: APP A4 AD1 | D26: Amyloid-beta precursor protein (APP) (ABPP) (APPI) (Alzheimer disease amyloid protein) (Amyloid precursor protein) (Amyloid-beta A4 protein) (Cerebral vascular amyloid peptide) (CVAP) (PreA4) (Protease nexin-II) (PN-II) [Cleaved into: N-APP; Soluble APP-alpha (S-APP-alpha); Soluble APP-beta (S-APP-beta); C99 (Beta-secretase C-terminal fragment) (Beta-CTF); Amyloid-beta protein 42 (Abeta42) (Beta-APP42); Amyloid-beta protein 40 (Abeta40) (Beta-APP40); C83 (Alpha-secretase C-terminal fragment) (Alpha-CTF); P3(42); P3(40); C80; Gamma-secretase C-terminal fragment 59 (Amyloid intracellular domain 59) (AICD-59) (AID(59)) (Gamma-CTF(59)); Gamma-secretase C-terminal fragment 57 (Amyloid intracellular domain 57) (AICD-57) (AID(57)) (Gamma-CTF(57)); Gamma-secretase C-terminal fragment 50 (Amyloid intracellular domain 50) (AICD-50) (AID(50)) (Gamma-CTF(50)); C31] | E26: 16 | F26: 26.99 | G26: 27.32 | H26: 25.14 | I26: 27.50 | J26: 27.17 | K26: 26.82 | L26: 29.43 | M26: 29.19 | N26: 28.97 | O26: 29.65 | P26: 29.70 | Q26: 29.39 | R26: TRUE | S26: 0.0016 | T26: 2.56 | U26: 5.90 | V26: TRUE | W26: TRUE | X26: 27.39 | Y26: 26.89 | Z26: 27.20 | AA26: 26.02 | AB26: 27.17 | AC26: 26.93 | AD26: 29.31 | AE26: 27.87 | AF26: 28.57 | AG26: 28.27 | AH26: 28.01 | AI26: 28.40 | AJ26: TRUE | AK26: 0.0055 | AL26: 1.47 | AM26: 2.78 | AN26: TRUE | AO26: TRUE | AP26: TRUE | AQ26: TRUE
A27: Q59EK9 | B27: RUNDC3A | C27: RUNDC3A RAP2IP RPIP8 | D27: RUN domain-containing protein 3A (Rap2-interacting protein 8) (RPIP-8) | E27: 4 | F27: 19.26 | G27: 19.13 | H27: 18.67 | I27: 19.19 | J27: 19.11 | K27: 19.07 | L27: 22.14 | M27: 21.91 | N27: 20.94 | O27: 21.66 | P27: 21.14 | Q27: 21.56 | R27: TRUE | S27: 0.0001 | T27: 2.49 | U27: 5.61 | V27: TRUE | W27: TRUE | X27: 18.52 | Y27: 18.48 | Z27: 18.36 | AA27: 18.44 | AB27: 18.46 | AC27: 18.45 | AD27: 20.48 | AE27: 19.32 | AF27: 19.85 | AG27: 19.28 | AH27: 19.17 | AI27: 19.62 | AJ27: TRUE | AK27: 0.0084 | AL27: 1.17 | AM27: 2.25 | AN27: TRUE | AO27: TRUE
A28: Q5TH69 | B28: ARFGEF3 | C28: ARFGEF3 BIG3 C6orf92 KIAA1244 | D28: Brefeldin A-inhibited guanine nucleotide-exchange protein 3 (ARFGEF family member 3) | E28: 20 | F28: 22.15 | G28: 22.15 | H28: 21.56 | I28: 21.88 | J28: 21.65 | K28: 21.88 | L28: 24.43 | M28: 24.19 | N28: 24.20 | O28: 24.76 | P28: 23.71 | Q28: 24.26 | R28: TRUE | S28: 0.0001 | T28: 2.38 | U28: 5.21 | V28: TRUE | W28: TRUE | X28: 20.51 | Y28: 20.53 | Z28: 20.98 | AA28: 20.78 | AB28: 21.24 | AC28: 20.81 | AD28: 23.20 | AE28: 22.23 | AF28: 22.10 | AG28: 22.32 | AH28: 22.48 | AI28: 22.47 | AJ28: TRUE | AK28: 0.0040 | AL28: 1.66 | AM28: 3.16 | AN28: TRUE | AO28: TRUE
A29: Q8N8S7 | B29: ENAH | C29: ENAH MENA | D29: Protein enabled homolog | E29: 6 | F29: 22.60 | G29: 22.44 | H29: 19.87 | I29: 22.58 | J29: 18.60 | K29: 21.22 | L29: 23.70 | M29: 23.71 | N29: 23.61 | O29: 23.61 | P29: 23.09 | Q29: 23.54 | R29: TRUE | S29: 0.0347 | T29: 2.33 | U29: 5.01 | V29: TRUE | W29: TRUE | X29: 17.90 | Y29: 21.46 | Z29: 20.50 | AA29: 20.10 | AB29: 21.21 | AC29: 20.23 | AD29: 22.60 | AE29: 22.83 | AF29: 20.70 | AG29: 20.39 | AH29: 21.22 | AI29: 21.55 | AJ29: TRUE | AK29: 0.2100 | AL29: 1.31 | AM29: 2.49
A30: Q00604 | B30: NDP | C30: NDP EVR2 | D30: Norrin (Norrie disease protein) (X-linked exudative vitreoretinopathy 2 protein) | E30: 2 | F30: 19.30 | G30: 19.05 | H30: 18.86 | I30: 19.89 | J30: 19.59 | K30: 19.34 | L30: 21.23 | M30: 21.79 | N30: 22.09 | O30: 21.87 | P30: 20.78 | Q30: 21.55 | R30: TRUE | S30: 0.0033 | T30: 2.21 | U30: 4.63 | V30: TRUE | W30: TRUE | X30: 18.86 | Y30: 18.31 | Z30: 19.48 | AA30: 18.50 | AB30: 19.40 | AC30: 18.91 | AD30: 20.94 | AE30: 19.90 | AF30: 21.24 | AG30: 19.54 | AH30: 20.67 | AI30: 20.46 | AJ30: TRUE | AK30: 0.0010 | AL30: 1.55 | AM30: 2.93 | AN30: TRUE | AO30: TRUE
A31: P51693 | B31: APLP1 | C31: APLP1 | D31: Amyloid-like protein 1 (APLP) (APLP-1) [Cleaved into: C30] | E31: 7 | F31: 19.68 | G31: 20.00 | H31: 21.35 | I31: 21.10 | J31: 21.05 | K31: 20.64 | L31: 23.68 | M31: 22.03 | N31: 22.38 | O31: 23.38 | P31: 22.73 | Q31: 22.84 | R31: TRUE | S31: 0.0112 | T31: 2.20 | U31: 4.60 | V31: TRUE | W31: TRUE | X31: 18.45 | Y31: 18.86 | Z31: 18.76 | AA31: 19.91 | AB31: 19.36 | AC31: 19.07 | AD31: 17.53 | AE31: 18.68 | AF31: 21.09 | AG31: 20.20 | AH31: 17.58 | AI31: 19.02 | AK31: 0.9447 | AL31: -0.05 | AM31: 0.97
A32: Q7Z3C6 | B32: ATG9A | C32: ATG9A APG9L1 | D32: Autophagy-related protein 9A (APG9-like 1) (mATG9) | E32: 6 | F32: 20.41 | G32: 21.00 | H32: 18.71 | I32: 21.19 | J32: 20.88 | K32: 20.44 | L32: 22.82 | M32: 22.36 | N32: 22.23 | O32: 23.01 | P32: 22.68 | Q32: 22.62 | R32: TRUE | S32: 0.0043 | T32: 2.18 | U32: 4.54 | V32: TRUE | W32: TRUE | X32: 19.10 | Y32: 18.37 | Z32: 18.07 | AA32: 18.92 | AB32: 19.57 | AC32: 18.80 | AD32: 20.54 | AE32: 18.80 | AF32: 19.36 | AG32: 19.24 | AH32: 19.65 | AI32: 19.52 | AJ32: TRUE | AK32: 0.0601 | AL32: 0.71 | AM32: 1.64
A33: P13760 | B33: NA | C33: NA | D33: NA | E33: 7 | F33: 21.56 | G33: 21.82 | H33: 21.54 | I33: 21.80 | J33: 20.05 | K33: 21.35 | L33: 23.73 | M33: 23.69 | N33: 22.94 | O33: 24.50 | P33: 22.80 | Q33: 23.53 | R33: TRUE | S33: 0.0010 | T33: 2.18 | U33: 4.53 | V33: TRUE | W33: TRUE | X33: 18.50 | Y33: 18.59 | Z33: 19.21 | AA33: 18.25 | AB33: 17.86 | AC33: 18.48 | AD33: 18.03 | AE33: 21.02 | AF33: 20.87 | AG33: 18.28 | AH33: 20.91 | AI33: 19.82 | AJ33: TRUE | AK33: 0.1191 | AL33: 1.34 | AM33: 2.53
A34: P02746 | B34: C1QB | C34: C1QB | D34: Complement C1q subcomponent subunit B | E34: 6 | F34: 21.30 | G34: 22.23 | H34: 22.79 | I34: 21.44 | J34: 21.05 | K34: 21.76 | L34: 23.86 | M34: 24.06 | N34: 25.76 | O34: 23.29 | P34: 22.44 | Q34: 23.88 | R34: TRUE | S34: 0.0017 | T34: 2.12 | U34: 4.34 | V34: TRUE | W34: TRUE | X34: 20.26 | Y34: 21.45 | Z34: 17.90 | AA34: 19.65 | AB34: 20.47 | AC34: 19.95 | AD34: 21.53 | AE34: 22.39 | AF34: 21.22 | AG34: 21.88 | AH34: 21.30 | AI34: 21.67 | AJ34: TRUE | AK34: 0.0217 | AL34: 1.72 | AM34: 3.30 | AN34: TRUE | AO34: TRUE
A35: P11117 | B35: ACP2 | C35: ACP2 | D35: Lysosomal acid phosphatase (LAP) (EC 3.1.3.2) | E35: 4 | F35: 20.03 | G35: 19.97 | H35: 19.56 | I35: 19.13 | J35: 19.87 | K35: 19.71 | L35: 22.25 | M35: 21.80 | N35: 21.49 | O35: 22.25 | P35: 21.34 | Q35: 21.83 | R35: TRUE | S35: 0.0016 | T35: 2.12 | U35: 4.33 | V35: TRUE | W35: TRUE | X35: 19.10 | Y35: 18.19 | Z35: 18.99 | AA35: 18.69 | AB35: 19.69 | AC35: 18.93 | AD35: 18.17 | AE35: 17.78 | AF35: 18.36 | AG35: 19.15 | AH35: 19.36 | AI35: 18.57 | AK35: 0.1871 | AL35: -0.37 | AM35: 0.78
A36: P07093 | B36: SERPINE2 | C36: SERPINE2 PI7 PN1 | D36: Glia-derived nexin (GDN) (Peptidase inhibitor 7) (PI-7) (Protease nexin 1) (PN-1) (Protease nexin I) (Serpin E2) | E36: 4 | F36: 19.63 | G36: 20.69 | H36: 19.75 | I36: 19.58 | J36: 20.74 | K36: 20.08 | L36: 22.12 | M36: 22.25 | N36: 21.98 | O36: 22.14 | P36: 22.36 | Q36: 22.17 | R36: TRUE | S36: 0.0006 | T36: 2.09 | U36: 4.26 | V36: TRUE | W36: TRUE | X36: 17.90 | Y36: 19.00 | Z36: 20.13 | AA36: 19.06 | AB36: 18.94 | AC36: 19.00 | AD36: 20.30 | AE36: 19.25 | AF36: 20.90 | AG36: 20.33 | AH36: 19.61 | AI36: 20.08 | AJ36: TRUE | AK36: 0.0444 | AL36: 1.07 | AM36: 2.10 | AN36: TRUE | AO36: TRUE | AP36: TRUE
A37: P05107 | B37: ITGB2 | C37: ITGB2 CD18 MFI7 | D37: Integrin beta-2 (Cell surface adhesion glycoproteins LFA-1/CR3/p150,95 subunit beta) (Complement receptor C3 subunit beta) (CD antigen CD18) | E37: 5 | F37: 20.01 | G37: 20.18 | H37: 20.15 | I37: 20.59 | J37: 19.80 | K37: 20.15 | L37: 22.50 | M37: 22.49 | N37: 23.01 | O37: 23.11 | P37: 19.99 | Q37: 22.22 | R37: TRUE | S37: 0.0126 | T37: 2.07 | U37: 4.21 | V37: TRUE | W37: TRUE | X37: 17.66 | Y37: 19.26 | Z37: 18.12 | AA37: 18.21 | AB37: 18.72 | AC37: 18.39 | AD37: 19.59 | AE37: 18.95 | AF37: 18.08 | AG37: 18.24 | AH37: 17.68 | AI37: 18.51 | AK37: 0.8300 | AL37: 0.11 | AM37: 1.08 | AP37: TRUE | AQ37: TRUE
A38: Q06481 | B38: APLP2 | C38: APLP2 APPL2 | D38: Amyloid-like protein 2 (APLP-2) (APPH) (Amyloid protein homolog) (CDEI box-binding protein) (CDEBP) | E38: 4 | F38: 19.66 | G38: 19.53 | H38: 19.04 | I38: 19.61 | J38: 19.28 | K38: 19.42 | L38: 21.69 | M38: 21.62 | N38: 21.15 | O38: 22.01 | P38: 20.90 | Q38: 21.48 | R38: TRUE | S38: 0.0001 | T38: 2.05 | U38: 4.15 | V38: TRUE | W38: TRUE | X38: 17.95 | Y38: 18.32 | Z38: 17.91 | AA38: 18.71 | AB38: 19.39 | AC38: 18.46 | AD38: 18.54 | AE38: 18.99 | AF38: 19.76 | AG38: 18.75 | AH38: 18.41 | AI38: 18.89 | AK38: 0.4000 | AL38: 0.43 | AM38: 1.35
A39: Q9UEU0 | B39: VTI1B | C39: VTI1B VTI1 VTI1L VTI1L1 VTI2 | D39: Vesicle transport through interaction with t-SNAREs homolog 1B (Vesicle transport v-SNARE protein Vti1-like 1) (Vti1-rp1) | E39: 7 | F39: 21.32 | G39: 21.40 | H39: 19.16 | I39: 21.98 | J39: 19.63 | K39: 20.70 | L39: 22.98 | M39: 22.81 | N39: 22.32 | O39: 23.52 | P39: 22.09 | Q39: 22.74 | R39: TRUE | S39: 0.0036 | T39: 2.04 | U39: 4.12 | V39: TRUE | W39: TRUE | X39: 20.39 | Y39: 17.79 | Z39: 20.46 | AA39: 20.72 | AB39: 18.91 | AC39: 19.65 | AD39: 20.93 | AE39: 20.03 | AF39: 20.88 | AG39: 20.87 | AH39: 20.50 | AI39: 20.64 | AJ39: TRUE | AK39: 0.0670 | AL39: 0.99 | AM39: 1.98
A40: P51809 | B40: VAMP7 | C40: VAMP7 SYBL1 | D40: Vesicle-associated membrane protein 7 (VAMP-7) (Synaptobrevin-like protein 1) (Tetanus-insensitive VAMP) (Ti-VAMP) | E40: 3 | F40: 20.87 | G40: 19.26 | H40: 20.77 | I40: 21.03 | J40: 18.56 | K40: 20.10 | L40: 21.96 | M40: 22.01 | N40: 22.20 | O40: 22.42 | P40: 21.85 | Q40: 22.09 | R40: TRUE | S40: 0.0100 | T40: 1.99 | U40: 3.97 | V40: TRUE | W40: TRUE | X40: 18.85 | Y40: 19.56 | Z40: 18.95 | AA40: 17.81 | AB40: 18.02 | AC40: 18.64 | AD40: 20.76 | AE40: 19.96 | AF40: 20.54 | AG40: 20.01 | AH40: 19.84 | AI40: 20.22 | AJ40: TRUE | AK40: 0.0070 | AL40: 1.59 | AM40: 3.00 | AN40: TRUE | AO40: TRUE
A41: P10909 | B41: CLU | C41: CLU APOJ CLI KUB1 AAG4 | D41: Clusterin (Aging-associated gene 4 protein) (Apolipoprotein J) (Apo-J) (Complement cytolysis inhibitor) (CLI) (Complement-associated protein SP-40,40) (Ku70-binding protein 1) (NA1/NA2) (Sulfated glycoprotein 2) (SGP-2) (Testosterone-repressed prostate message 2) (TRPM-2) [Cleaved into: Clusterin beta chain (ApoJalpha) (Complement cytolysis inhibitor a chain); Clusterin alpha chain (ApoJbeta) (Complement cytolysis inhibitor b chain)] | E41: 16 | F41: 26.13 | G41: 25.86 | H41: 25.55 | I41: 25.74 | J41: 26.12 | K41: 25.88 | L41: 27.79 | M41: 27.72 | N41: 28.00 | O41: 27.70 | P41: 28.15 | Q41: 27.87 | R41: TRUE | S41: 0.0001 | T41: 1.99 | U41: 3.97 | V41: TRUE | W41: TRUE | X41: 24.78 | Y41: 24.76 | Z41: 24.84 | AA41: 24.30 | AB41: 24.94 | AC41: 24.72 | AD41: 26.80 | AE41: 25.63 | AF41: 27.11 | AG41: 25.97 | AH41: 26.38 | AI41: 26.38 | AJ41: TRUE | AK41: 0.0024 | AL41: 1.66 | AM41: 3.15 | AN41: TRUE | AO41: TRUE | AR41: TRUE
A42: Q99435 | B42: NELL2 | C42: NELL2 NRP2 | D42: Protein kinase C-binding protein NELL2 (NEL-like protein 2) (Nel-related protein 2) | E42: 6 | F42: 21.73 | G42: 18.65 | H42: 20.43 | I42: 20.32 | J42: 20.04 | K42: 20.23 | L42: 21.77 | M42: 22.25 | N42: 22.25 | O42: 22.63 | P42: 22.00 | Q42: 22.18 | R42: TRUE | S42: 0.0269 | T42: 1.95 | U42: 3.85 | V42: TRUE | W42: TRUE | X42: 19.72 | Y42: 19.53 | Z42: 18.49 | AA42: 19.17 | AB42: 19.40 | AC42: 19.26 | AD42: 21.41 | AE42: 19.88 | AF42: 19.93 | AG42: 19.69 | AH42: 19.76 | AI42: 20.14 | AJ42: TRUE | AK42: 0.0385 | AL42: 0.87 | AM42: 1.83 | AN42: TRUE | AO42: TRUE
A43: Q7L523 | B43: RRAGA | C43: RRAGA | D43: Ras-related GTP-binding protein A (Rag A) (RagA) (Adenovirus E3 14.7 kDa-interacting protein 1) (FIP-1) | E43: 3 | F43: 19.17 | G43: 20.50 | H43: 20.00 | I43: 21.05 | J43: 21.19 | K43: 20.38 | L43: 22.07 | M43: 22.17 | N43: 22.04 | O43: 22.85 | P43: 22.17 | Q43: 22.26 | R43: TRUE | S43: 0.0038 | T43: 1.87 | U43: 3.67 | V43: TRUE | W43: TRUE | X43: 18.06 | Y43: 20.00 | Z43: 19.18 | AA43: 19.31 | AB43: 19.05 | AC43: 19.12 | AD43: 20.81 | AE43: 19.97 | AF43: 19.54 | AG43: 17.65 | AH43: 18.37 | AI43: 19.27 | AK43: 0.8512 | AL43: 0.15 | AM43: 1.11
A44: P08603 | B44: CFH | C44: CFH HF HF1 HF2 | D44: Complement factor H (H factor 1) | E44: 4 | F44: 19.69 | G44: 21.00 | H44: 19.87 | I44: 18.84 | J44: 19.29 | K44: 19.74 | L44: 21.35 | M44: 21.38 | N44: 23.02 | O44: 21.06 | P44: 20.96 | Q44: 21.55 | R44: TRUE | S44: 0.0158 | T44: 1.81 | U44: 3.52 | V44: TRUE | W44: TRUE | X44: 20.35 | Y44: 19.81 | Z44: 17.74 | AA44: 17.82 | AB44: 18.03 | AC44: 18.75 | AD44: 18.52 | AE44: 18.06 | AF44: 18.28 | AG44: 17.34 | AH44: 20.75 | AI44: 18.59 | AK44: 0.8575 | AL44: -0.16 | AM44: 0.89
A45: Q9BT88 | B45: SYT11 | C45: SYT11 KIAA0080 | D45: Synaptotagmin-11 (Synaptotagmin XI) (SytXI) | E45: 4 | F45: 19.43 | G45: 20.02 | H45: 20.10 | I45: 19.79 | J45: 20.28 | K45: 19.92 | L45: 21.48 | M45: 21.99 | N45: 21.55 | O45: 21.76 | P45: 21.76 | Q45: 21.71 | R45: TRUE | S45: 0.0002 | T45: 1.79 | U45: 3.45 | V45: TRUE | W45: TRUE | X45: 19.20 | Y45: 17.66 | Z45: 18.20 | AA45: 17.65 | AB45: 18.57 | AC45: 18.26 | AD45: 18.56 | AE45: 17.76 | AF45: 20.36 | AG45: 18.55 | AH45: 18.34 | AI45: 18.72 | AK45: 0.4048 | AL45: 0.46 | AM45: 1.38 | AP45: TRUE | AQ45: TRUE
A46: P51798 | B46: CLCN7 | C46: CLCN7 | D46: H(+)/Cl(-) exchange transporter 7 (Chloride channel 7 alpha subunit) (Chloride channel protein 7) (ClC-7) | E46: 6 | F46: 20.26 | G46: 20.92 | H46: 21.08 | I46: 20.72 | J46: 21.02 | K46: 20.80 | L46: 22.71 | M46: 22.40 | N46: 22.36 | O46: 23.68 | P46: 21.61 | Q46: 22.55 | R46: TRUE | S46: 0.0145 | T46: 1.75 | U46: 3.36 | V46: TRUE | W46: TRUE | X46: 18.66 | Y46: 17.91 | Z46: 18.75 | AA46: 17.52 | AB46: 19.01 | AC46: 18.37 | AD46: 17.53 | AE46: 18.36 | AF46: 21.05 | AG46: 17.62 | AH46: 18.68 | AI46: 18.65 | AK46: 0.6538 | AL46: 0.28 | AM46: 1.21
A47: Q9Y6U3 | B47: SCIN | C47: SCIN KIAA1905 | D47: Adseverin (Scinderin) | E47: 10 | F47: 19.55 | G47: 21.61 | H47: 21.94 | I47: 21.63 | J47: 18.90 | K47: 20.73 | L47: 21.93 | M47: 23.44 | N47: 24.29 | O47: 24.23 | P47: 18.48 | Q47: 22.47 | R47: TRUE | S47: 0.0347 | T47: 1.75 | U47: 3.36 | V47: TRUE | W47: TRUE | X47: 18.52 | Y47: 21.07 | Z47: 18.20 | AA47: 17.81 | AB47: 18.23 | AC47: 18.77 | AD47: 20.78 | AE47: 21.09 | AF47: 18.85 | AG47: 18.70 | AH47: 17.62 | AI47: 19.41 | AK47: 0.2548 | AL47: 0.64 | AM47: 1.56 | AP47: TRUE | AQ47: TRUE | AR47: TRUE
A48: Q9Y3Z3 | B48: SAMHD1 | C48: SAMHD1 MOP5 | D48: Deoxynucleoside triphosphate triphosphohydrolase SAMHD1 (dNTPase) (EC 3.1.5.-) (Dendritic cell-derived IFNG-induced protein) (DCIP) (Monocyte protein 5) (MOP-5) (SAM domain and HD domain-containing protein 1) (hSAMHD1) | E48: 4 | F48: 18.10 | G48: 20.88 | H48: 20.42 | I48: 20.88 | J48: 18.99 | K48: 19.85 | L48: 21.68 | M48: 22.00 | N48: 22.31 | O48: 22.23 | P48: 19.52 | Q48: 21.55 | R48: TRUE | S48: 0.0310 | T48: 1.69 | U48: 3.23 | V48: TRUE | W48: TRUE | X48: 17.70 | Y48: 19.76 | Z48: 19.27 | AA48: 18.56 | AB48: 17.78 | AC48: 18.62 | AD48: 20.01 | AE48: 20.42 | AF48: 19.74 | AG48: 18.55 | AH48: 18.38 | AI48: 19.42 | AJ48: TRUE | AK48: 0.1105 | AL48: 0.80 | AM48: 1.75
A49: P12111 | B49: COL6A3 | C49: COL6A3 | D49: Collagen alpha-3(VI) chain | E49: 7 | F49: 19.25 | G49: 19.92 | H49: 21.78 | I49: 19.74 | J49: 19.32 | K49: 20.00 | L49: 21.45 | M49: 21.99 | N49: 22.03 | O49: 22.20 | P49: 20.44 | Q49: 21.62 | R49: TRUE | S49: 0.0167 | T49: 1.62 | U49: 3.07 | V49: TRUE | W49: TRUE | X49: 21.00 | Y49: 20.75 | Z49: 21.01 | AA49: 21.23 | AB49: 19.08 | AC49: 20.61 | AD49: 18.83 | AE49: 21.12 | AF49: 18.59 | AG49: 21.36 | AH49: 20.69 | AI49: 20.12 | AJ49: TRUE | AK49: 0.5572 | AL49: -0.50 | AM49: 0.71
A50: O00182 | B50: LGALS9 | C50: LGALS9 | D50: Galectin-9 (Gal-9) (Ecalectin) (Tumor antigen HOM-HD-21) | E50: 3 | F50: 19.48 | G50: 20.58 | H50: 20.06 | I50: 19.85 | J50: 18.47 | K50: 19.69 | L50: 21.38 | M50: 21.68 | N50: 21.69 | O50: 22.22 | P50: 19.44 | Q50: 21.28 | R50: TRUE | S50: 0.0035 | T50: 1.59 | U50: 3.02 | V50: TRUE | W50: TRUE | X50: 20.02 | Y50: 18.99 | Z50: 19.10 | AA50: 17.75 | AB50: 17.78 | AC50: 18.73 | AD50: 17.73 | AE50: 17.87 | AF50: 19.39 | AG50: 18.83 | AH50: 19.60 | AI50: 18.69 | AK50: 0.9573 | AL50: -0.04 | AM50: 0.97
A51: P41222 | B51: PTGDS | C51: PTGDS PDS | D51: Prostaglandin-H2 D-isomerase (EC 5.3.99.2) (Beta-trace protein) (Cerebrin-28) (Glutathione-independent PGD synthase) (Lipocalin-type prostaglandin-D synthase) (Prostaglandin-D2 synthase) (PGD2 synthase) (PGDS) (PGDS2) | E51: 3 | F51: 22.84 | G51: 23.05 | H51: 23.00 | I51: 23.57 | J51: 23.01 | K51: 23.10 | L51: 24.45 | M51: 24.79 | N51: 25.29 | O51: 24.87 | P51: 23.98 | Q51: 24.68 | R51: TRUE | S51: 0.0021 | T51: 1.58 | U51: 2.99 | V51: TRUE | W51: TRUE | X51: 22.22 | Y51: 22.50 | Z51: 22.39 | AA51: 22.02 | AB51: 21.95 | AC51: 22.22 | AD51: 23.68 | AE51: 23.14 | AF51: 23.74 | AG51: 23.04 | AH51: 23.22 | AI51: 23.36 | AJ51: TRUE | AK51: 0.0014 | AL51: 1.15 | AM51: 2.21 | AN51: TRUE | AO51: TRUE
A52: Q9NVJ2 | B52: ARL8B | C52: ARL8B ARL10C GIE1 | D52: ADP-ribosylation factor-like protein 8B (ADP-ribosylation factor-like protein 10C) (Novel small G protein indispensable for equal chromosome segregation 1) | E52: 6 | F52: 23.34 | G52: 24.33 | H52: 23.39 | I52: 24.02 | J52: 24.18 | K52: 23.85 | L52: 25.46 | M52: 25.28 | N52: 25.38 | O52: 25.46 | P52: 25.44 | Q52: 25.41 | R52: TRUE | S52: 0.0021 | T52: 1.55 | U52: 2.94 | V52: TRUE | W52: TRUE | X52: 22.75 | Y52: 22.49 | Z52: 22.48 | AA52: 22.60 | AB52: 22.62 | AC52: 22.59 | AD52: 24.10 | AE52: 23.62 | AF52: 23.77 | AG52: 23.54 | AH52: 23.62 | AI52: 23.73 | AJ52: TRUE | AK52: 0.0001 | AL52: 1.14 | AM52: 2.21 | AN52: TRUE | AO52: TRUE | AQ52: TRUE
A53: P01024 | B53: C3 | C53: C3 CPAMD1 | D53: Complement C3 (C3 and PZP-like alpha-2-macroglobulin domain-containing protein 1) [Cleaved into: Complement C3 beta chain; C3-beta-c (C3bc); Complement C3 alpha chain; C3a anaphylatoxin; Acylation stimulating protein (ASP) (C3adesArg); Complement C3b alpha' chain; Complement C3c alpha' chain fragment 1; Complement C3dg fragment; Complement C3g fragment; Complement C3d fragment; Complement C3f fragment; Complement C3c alpha' chain fragment 2] | E53: 56 | F53: 26.01 | G53: 26.33 | H53: 25.88 | I53: 26.33 | J53: 25.92 | K53: 26.09 | L53: 27.45 | M53: 27.73 | N53: 27.98 | O53: 27.62 | P53: 27.46 | Q53: 27.65 | R53: TRUE | S53: 0.0004 | T53: 1.55 | U53: 2.94 | V53: TRUE | W53: TRUE | X53: 25.01 | Y53: 25.37 | Z53: 24.72 | AA53: 24.79 | AB53: 25.22 | AC53: 25.02 | AD53: 26.87 | AE53: 26.35 | AF53: 26.32 | AG53: 25.75 | AH53: 26.37 | AI53: 26.33 | AJ53: TRUE | AK53: 0.0019 | AL53: 1.31 | AM53: 2.48 | AN53: TRUE | AO53: TRUE
A54: O00468 | B54: AGRN | C54: AGRN AGRIN | D54: Agrin [Cleaved into: Agrin N-terminal 110 kDa subunit; Agrin C-terminal 110 kDa subunit; Agrin C-terminal 90 kDa fragment (C90); Agrin C-terminal 22 kDa fragment (C22)] | E54: 16 | F54: 22.84 | G54: 22.75 | H54: 22.28 | I54: 22.72 | J54: 22.67 | K54: 22.65 | L54: 24.17 | M54: 23.99 | N54: 24.30 | O54: 24.03 | P54: 24.51 | Q54: 24.20 | R54: TRUE | S54: 0.0006 | T54: 1.55 | U54: 2.93 | V54: TRUE | W54: TRUE | X54: 21.96 | Y54: 21.72 | Z54: 22.37 | AA54: 21.88 | AB54: 21.03 | AC54: 21.79 | AD54: 22.86 | AE54: 22.41 | AF54: 22.93 | AG54: 22.83 | AH54: 22.42 | AI54: 22.69 | AJ54: TRUE | AK54: 0.0031 | AL54: 0.90 | AM54: 1.86 | AN54: TRUE | AO54: TRUE
A55: Q6IAA8 | B55: LAMTOR1 | C55: LAMTOR1 C11orf59 PDRO PP7157 | D55: Ragulator complex protein LAMTOR1 (Late endosomal/lysosomal adaptor and MAPK and MTOR activator 1) (Lipid raft adaptor protein p18) (Protein associated with DRMs and endosomes) (p27Kip1-releasing factor from RhoA) (p27RF-Rho) | E55: 4 | F55: 20.79 | G55: 19.63 | H55: 20.35 | I55: 20.56 | J55: 20.31 | K55: 20.33 | L55: 22.46 | M55: 21.35 | N55: 21.24 | O55: 22.41 | P55: 21.73 | Q55: 21.84 | R55: TRUE | S55: 0.0009 | T55: 1.51 | U55: 2.85 | V55: TRUE | W55: TRUE | X55: 18.64 | Y55: 19.19 | Z55: 18.73 | AA55: 18.93 | AB55: 19.15 | AC55: 18.93 | AD55: 21.01 | AE55: 20.65 | AF55: 20.28 | AG55: 19.53 | AH55: 20.18 | AI55: 20.33 | AJ55: TRUE | AK55: 0.0089 | AL55: 1.40 | AM55: 2.64 | AN55: TRUE | AO55: TRUE
A56: Q9NQX7 | B56: ITM2C | C56: ITM2C BRI3 hucep-14 NPD018 PSEC0047 | D56: Integral membrane protein 2C (Cerebral protein 14) (Transmembrane protein BRI3) [Cleaved into: CT-BRI3] | E56: 4 | F56: 21.14 | G56: 18.60 | H56: 20.55 | I56: 19.56 | J56: 18.47 | K56: 19.67 | L56: 22.02 | M56: 21.41 | N56: 21.33 | O56: 22.01 | P56: 19.09 | Q56: 21.17 | R56: TRUE | S56: 0.0315 | T56: 1.51 | U56: 2.84 | V56: TRUE | W56: TRUE | X56: 18.32 | Y56: 17.11 | Z56: 18.89 | AA56: 18.44 | AB56: 18.84 | AC56: 18.32 | AD56: 18.37 | AE56: 17.27 | AF56: 17.25 | AG56: 18.34 | AH56: 19.49 | AI56: 18.14 | AK56: 0.6734 | AL56: -0.18 | AM56: 0.89
A57: Q9ULB1 | B57: NRXN1 | C57: NRXN1 KIAA0578 | D57: Neurexin-1 (Neurexin I-alpha) (Neurexin-1-alpha) | E57: 17 | F57: 23.37 | G57: 23.48 | H57: 22.74 | I57: 23.67 | J57: 23.94 | K57: 23.44 | L57: 25.18 | M57: 24.69 | N57: 24.87 | O57: 24.63 | P57: 25.22 | Q57: 24.92 | R57: TRUE | S57: 0.0023 | T57: 1.48 | U57: 2.78 | V57: TRUE | W57: TRUE | X57: 22.64 | Y57: 21.81 | Z57: 22.79 | AA57: 23.08 | AB57: 22.58 | AC57: 22.58 | AD57: 24.48 | AE57: 23.12 | AF57: 24.51 | AG57: 24.46 | AH57: 24.10 | AI57: 24.13 | AJ57: TRUE | AK57: 0.0001 | AL57: 1.55 | AM57: 2.94 | AN57: TRUE | AO57: TRUE | AP57: TRUE | AQ57: TRUE
A58: Q9BQT9 | B58: CLSTN3 | C58: CLSTN3 CS3 KIAA0726 | D58: Calsyntenin-3 (Alcadein-beta) (Alc-beta) | E58: 6 | F58: 18.91 | G58: 19.68 | H58: 20.06 | I58: 19.81 | J58: 18.85 | K58: 19.46 | L58: 21.52 | M58: 20.73 | N58: 20.48 | O58: 22.12 | P58: 19.61 | Q58: 20.89 | R58: TRUE | S58: 0.0304 | T58: 1.43 | U58: 2.69 | V58: TRUE | W58: TRUE | X58: 16.40 | Y58: 19.30 | Z58: 17.59 | AA58: 18.92 | AB58: 19.02 | AC58: 18.24 | AD58: 19.55 | AE58: 17.16 | AF58: 16.96 | AG58: 18.49 | AH58: 18.72 | AI58: 18.18 | AK58: 0.9423 | AL58: -0.07 | AM58: 0.95 | AQ58: TRUE
A59: Q15631 | B59: TSN | C59: TSN | D59: Translin (EC 3.1.-.-) (Component 3 of promoter of RISC) (C3PO) | E59: 3 | F59: 18.31 | G59: 20.71 | H59: 19.27 | I59: 21.01 | J59: 20.60 | K59: 19.98 | L59: 21.30 | M59: 21.82 | N59: 21.18 | O59: 21.21 | P59: 21.44 | Q59: 21.39 | R59: TRUE | S59: 0.0428 | T59: 1.41 | U59: 2.66 | V59: TRUE | W59: TRUE | X59: 20.39 | Y59: 21.55 | Z59: 20.58 | AA59: 20.63 | AB59: 20.36 | AC59: 20.70 | AD59: 21.13 | AE59: 20.88 | AF59: 21.09 | AG59: 20.53 | AH59: 20.21 | AI59: 20.77 | AJ59: TRUE | AK59: 0.8125 | AL59: 0.06 | AM59: 1.05
A60: P15311 | B60: EZR | C60: EZR VIL2 | D60: Ezrin (Cytovillin) (Villin-2) (p81) | E60: 27 | F60: 25.22 | G60: 24.73 | H60: 25.20 | I60: 25.53 | J60: 24.48 | K60: 25.03 | L60: 26.73 | M60: 26.96 | N60: 26.10 | O60: 27.12 | P60: 25.19 | Q60: 26.42 | R60: TRUE | S60: 0.0069 | T60: 1.39 | U60: 2.62 | V60: TRUE | W60: TRUE | X60: 24.00 | Y60: 24.97 | Z60: 23.67 | AA60: 23.56 | AB60: 24.50 | AC60: 24.14 | AD60: 25.05 | AE60: 25.70 | AF60: 24.54 | AG60: 24.49 | AH60: 24.56 | AI60: 24.87 | AJ60: TRUE | AK60: 0.0143 | AL60: 0.73 | AM60: 1.66 | AN60: TRUE | AO60: TRUE
A61: P26038 | B61: MSN | C61: MSN | D61: Moesin (Membrane-organizing extension spike protein) | E61: 41 | F61: 26.28 | G61: 26.40 | H61: 26.34 | I61: 26.30 | J61: 25.82 | K61: 26.23 | L61: 27.87 | M61: 27.57 | N61: 28.20 | O61: 27.90 | P61: 26.50 | Q61: 27.61 | R61: TRUE | S61: 0.0026 | T61: 1.38 | U61: 2.60 | V61: TRUE | W61: TRUE | X61: 24.99 | Y61: 26.24 | Z61: 24.91 | AA61: 24.42 | AB61: 25.29 | AC61: 25.17 | AD61: 26.66 | AE61: 27.88 | AF61: 25.83 | AG61: 25.30 | AH61: 25.61 | AI61: 26.26 | AJ61: TRUE | AK61: 0.0132 | AL61: 1.09 | AM61: 2.12 | AN61: TRUE | AO61: TRUE
A62: P50897 | B62: PPT1 | C62: PPT1 CLN1 PPT | D62: Palmitoyl-protein thioesterase 1 (PPT-1) (EC 3.1.2.22) (Palmitoyl-protein hydrolase 1) | E62: 5 | F62: 21.71 | G62: 21.60 | H62: 21.36 | I62: 22.22 | J62: 21.74 | K62: 21.72 | L62: 23.34 | M62: 23.40 | N62: 23.23 | O62: 23.33 | P62: 22.20 | Q62: 23.10 | R62: TRUE | S62: 0.0065 | T62: 1.38 | U62: 2.59 | V62: TRUE | W62: TRUE | X62: 21.58 | Y62: 22.18 | Z62: 21.37 | AA62: 21.79 | AB62: 21.21 | AC62: 21.63 | AD62: 22.50 | AE62: 22.23 | AF62: 22.51 | AG62: 21.94 | AH62: 21.74 | AI62: 22.19 | AJ62: TRUE | AK62: 0.0580 | AL62: 0.56 | AM62: 1.47
A63: Q9NRX5 | B63: SERINC1 | C63: SERINC1 KIAA1253 TDE1L TDE2 UNQ396/PRO732 | D63: Serine incorporator 1 (Tumor differentially expressed protein 1-like) (Tumor differentially expressed protein 2) | E63: 2 | F63: 19.74 | G63: 20.94 | H63: 18.61 | I63: 18.92 | J63: 19.86 | K63: 19.61 | L63: 20.98 | M63: 21.06 | N63: 20.83 | O63: 21.39 | P63: 20.60 | Q63: 20.97 | R63: TRUE | S63: 0.0369 | T63: 1.36 | U63: 2.57 | V63: TRUE | W63: TRUE | X63: 17.50 | Y63: 18.29 | Z63: 19.52 | AA63: 19.38 | AB63: 17.33 | AC63: 18.40 | AD63: 17.91 | AE63: 18.72 | AF63: 18.65 | AG63: 17.47 | AH63: 18.92 | AI63: 18.33 | AK63: 0.9155 | AL63: -0.07 | AM63: 0.95
A64: Q86T03 | B64: PIP4P1 | C64: PIP4P1 C14orf9 TMEM55B | D64: Type 1 phosphatidylinositol 4,5-bisphosphate 4-phosphatase (Type 1 PtdIns-4,5-P2 4-Ptase) (EC 3.1.3.78) (PtdIns-4,5-P2 4-Ptase I) (Transmembrane protein 55B) | E64: 3 | F64: 20.16 | G64: 20.02 | H64: 18.84 | I64: 20.24 | J64: 19.77 | K64: 19.81 | L64: 21.33 | M64: 20.98 | N64: 21.21 | O64: 21.45 | P64: 20.84 | Q64: 21.16 | R64: TRUE | S64: 0.0062 | T64: 1.36 | U64: 2.56 | V64: TRUE | W64: TRUE | X64: 18.24 | Y64: 18.34 | Z64: 19.25 | AA64: 17.65 | AB64: 18.85 | AC64: 18.47 | AD64: 19.90 | AE64: 18.66 | AF64: 17.58 | AG64: 18.61 | AH64: 18.74 | AI64: 18.70 | AK64: 0.7023 | AL64: 0.23 | AM64: 1.17
A65: Q9P2S2 | B65: NRXN2 | C65: NRXN2 KIAA0921 | D65: Neurexin-2 (Neurexin II-alpha) (Neurexin-2-alpha) | E65: 7 | F65: 19.91 | G65: 18.98 | H65: 20.14 | I65: 20.48 | J65: 21.28 | K65: 20.16 | L65: 21.55 | M65: 21.37 | N65: 21.12 | O65: 21.54 | P65: 21.83 | Q65: 21.48 | R65: TRUE | S65: 0.0142 | T65: 1.32 | U65: 2.50 | V65: TRUE | W65: TRUE | X65: 19.92 | Y65: 19.58 | Z65: 19.08 | AA65: 19.86 | AB65: 19.38 | AC65: 19.56 | AD65: 20.70 | AE65: 19.55 | AF65: 20.43 | AG65: 21.27 | AH65: 20.60 | AI65: 20.51 | AJ65: TRUE | AK65: 0.0237 | AL65: 0.95 | AM65: 1.93 | AN65: TRUE | AO65: TRUE
A66: Q92581 | B66: SLC9A6 | C66: SLC9A6 KIAA0267 NHE6 | D66: Sodium/hydrogen exchanger 6 (Na(+)/H(+) exchanger 6) (NHE-6) (Solute carrier family 9 member 6) | E66: 5 | F66: 21.23 | G66: 22.24 | H66: 20.98 | I66: 22.07 | J66: 20.78 | K66: 21.46 | L66: 22.86 | M66: 22.74 | N66: 22.33 | O66: 23.10 | P66: 22.71 | Q66: 22.75 | R66: TRUE | S66: 0.0065 | T66: 1.29 | U66: 2.44 | V66: TRUE | W66: TRUE | X66: 20.51 | Y66: 20.23 | Z66: 20.25 | AA66: 20.29 | AB66: 20.74 | AC66: 20.40 | AD66: 20.96 | AE66: 20.95 | AF66: 20.87 | AG66: 20.86 | AH66: 20.95 | AI66: 20.92 | AJ66: TRUE | AK66: 0.0041 | AL66: 0.51 | AM66: 1.43
A67: Q9UNK0 | B67: STX8 | C67: STX8 | D67: Syntaxin-8 | E67: 5 | F67: 20.54 | G67: 19.54 | H67: 20.26 | I67: 20.80 | J67: 19.98 | K67: 20.22 | L67: 22.00 | M67: 21.58 | N67: 20.96 | O67: 21.85 | P67: 21.00 | Q67: 21.48 | R67: TRUE | S67: 0.0055 | T67: 1.25 | U67: 2.38 | V67: TRUE | W67: TRUE | X67: 17.52 | Y67: 17.43 | Z67: 17.41 | AA67: 19.00 | AB67: 17.85 | AC67: 17.84 | AD67: 19.84 | AE67: 19.28 | AF67: 19.56 | AG67: 19.59 | AH67: 19.26 | AI67: 19.51 | AJ67: TRUE | AK67: 0.0057 | AL67: 1.66 | AM67: 3.17 | AN67: TRUE | AO67: TRUE
A68: Q9H3N1 | B68: TMX1 | C68: TMX1 TMX TXNDC TXNDC1 PSEC0085 UNQ235/PRO268 | D68: Thioredoxin-related transmembrane protein 1 (Thioredoxin domain-containing protein 1) (Transmembrane Trx-related protein) | E68: 2 | F68: 18.82 | G68: 19.53 | H68: 19.80 | I68: 21.46 | J68: 18.35 | K68: 19.59 | L68: 19.10 | M68: 21.49 | N68: 21.53 | O68: 21.77 | P68: 20.16 | Q68: 20.81 | R68: TRUE | S68: 0.0323 | T68: 1.22 | U68: 2.33 | V68: TRUE | W68: TRUE | X68: 19.95 | Y68: 20.10 | Z68: 18.73 | AA68: 18.84 | AB68: 19.78 | AC68: 19.48 | AD68: 19.89 | AE68: 20.38 | AF68: 18.45 | AG68: 18.95 | AH68: 18.46 | AI68: 19.23 | AJ68: TRUE | AK68: 0.4179 | AL68: -0.25 | AM68: 0.84
A69: Q86UX7 | B69: FERMT3 | C69: FERMT3 KIND3 MIG2B URP2 | D69: Fermitin family homolog 3 (Kindlin-3) (MIG2-like protein) (Unc-112-related protein 2) | E69: 3 | F69: 19.25 | G69: 20.22 | H69: 20.67 | I69: 19.76 | J69: 19.64 | K69: 19.91 | L69: 20.70 | M69: 20.82 | N69: 21.41 | O69: 21.86 | P69: 20.73 | Q69: 21.10 | R69: TRUE | S69: 0.0116 | T69: 1.19 | U69: 2.29 | V69: TRUE | W69: TRUE | X69: 17.94 | Y69: 18.70 | Z69: 18.22 | AA69: 18.56 | AB69: 18.58 | AC69: 18.40 | AD69: 18.65 | AE69: 18.08 | AF69: 19.39 | AG69: 19.34 | AH69: 18.80 | AI69: 18.85 | AK69: 0.2123 | AL69: 0.45 | AM69: 1.37
A70: O75110 | B70: ATP9A | C70: ATP9A ATPIIA KIAA0611 | D70: Probable phospholipid-transporting ATPase IIA (EC 7.6.2.1) (ATPase class II type 9A) | E70: 10 | F70: 23.23 | G70: 23.20 | H70: 22.39 | I70: 23.09 | J70: 23.23 | K70: =AVERAGE(F70:J70) -> 23.03 | L70: 24.34 | M70: 24.19 | N70: 24.10 | O70: 24.55 | P70: 23.89 | Q70: =AVERAGE(L70:P70) -> 24.21 | R70: TRUE | S70: 0.0029 | T70: 1.18 | U70: =2^T70 -> 2.27 | V70: TRUE | W70: TRUE | X70: 21.86 | Y70: 21.57 | Z70: 21.69 | AA70: 21.88 | AB70: 21.95 | AC70: =AVERAGE(X70:AB70) -> 21.79 | AD70: 22.95 | AE70: 22.43 | AF70: 22.68 | AG70: 22.29 | AH70: 22.63 | AI70: =AVERAGE(AD70:AH70) -> 22.60 | AJ70: TRUE | AK70: 0.0026 | AL70: 0.81 | AM70: =2^AL70 -> 1.75 | AN70: TRUE | AO70: TRUE
A71: P07602 | B71: PSAP | C71: PSAP GLBA SAP1 | D71: Prosaposin (Proactivator polypeptide) [Cleaved into: Saposin-A (Protein A); Saposin-B-Val; Saposin-B (Cerebroside sulfate activator) (CSAct) (Dispersin) (Sphingolipid activator protein 1) (SAP-1) (Sulfatide/GM1 activator); Saposin-C (A1 activator) (Co-beta-glucosidase) (Glucosylceramidase activator) (Sphingolipid activator protein 2) (SAP-2); Saposin-D (Component C) (Protein C)] | E71: 8 | F71: 24.31 | G71: 25.02 | H71: 24.71 | I71: 24.58 | J71: 24.15 | K71: 24.55 | L71: 25.81 | M71: 25.63 | N71: 25.64 | O71: 25.77 | P71: 25.70 | Q71: 25.71 | R71: TRUE | S71: 0.0028 | T71: 1.16 | U71: 2.23 | V71: TRUE | W71: TRUE | X71: 24.04 | Y71: 24.38 | Z71: 24.17 | AA71: 23.90 | AB71: 22.22 | AC71: 23.74 | AD71: 25.12 | AE71: 24.57 | AF71: 24.54 | AG71: 24.26 | AH71: 24.06 | AI71: 24.51 | AJ71: TRUE | AK71: 0.0660 | AL71: 0.77 | AM71: 1.71
A72: P39060 | B72: COL18A1 | C72: COL18A1 | D72: Collagen alpha-1(XVIII) chain [Cleaved into: Endostatin; Non-collagenous domain 1 (NC1)] | E72: 6 | F72: 21.43 | G72: 20.98 | H72: 21.47 | I72: 20.88 | J72: 21.26 | K72: 21.20 | L72: 22.13 | M72: 22.35 | N72: 23.06 | O72: 21.97 | P72: 22.20 | Q72: 22.34 | R72: TRUE | S72: 0.0020 | T72: 1.14 | U72: 2.20 | V72: TRUE | W72: TRUE | X72: 19.61 | Y72: 20.42 | Z72: 17.89 | AA72: 19.81 | AB72: 19.23 | AC72: 19.39 | AD72: 18.27 | AE72: 20.22 | AF72: 19.85 | AG72: 20.47 | AH72: 19.63 | AI72: 19.69 | AJ72: TRUE | AK72: 0.6113 | AL72: 0.30 | AM72: 1.23
A73: Q9HB90 | B73: RRAGC | C73: RRAGC | D73: Ras-related GTP-binding protein C (Rag C) (RagC) (GTPase-interacting protein 2) (TIB929) | E73: 3 | F73: 19.89 | G73: 19.58 | H73: 19.53 | I73: 19.74 | J73: 19.96 | K73: 19.74 | L73: 21.15 | M73: 20.61 | N73: 20.52 | O73: 20.79 | P73: 21.25 | Q73: 20.87 | R73: TRUE | S73: 0.0001 | T73: 1.13 | U73: 2.18 | V73: TRUE | W73: TRUE | X73: 18.76 | Y73: 18.79 | Z73: 18.75 | AA73: 18.89 | AB73: 18.55 | AC73: 18.75 | AD73: 19.84 | AE73: 19.35 | AF73: 19.74 | AG73: 19.91 | AH73: 19.49 | AI73: 19.67 | AJ73: TRUE | AK73: 0.0005 | AL73: 0.92 | AM73: 1.89 | AN73: TRUE | AO73: TRUE
A74: Q9NQ79 | B74: CRTAC1 | C74: CRTAC1 ASPIC1 CEP68 | D74: Cartilage acidic protein 1 (68 kDa chondrocyte-expressed protein) (CEP-68) (ASPIC) | E74: 6 | F74: 21.41 | G74: 21.23 | H74: 21.00 | I74: 21.23 | J74: 21.66 | K74: 21.31 | L74: 21.97 | M74: 21.94 | N74: 23.07 | O74: 22.19 | P74: 22.96 | Q74: 22.42 | R74: TRUE | S74: 0.0143 | T74: 1.12 | U74: 2.17 | V74: TRUE | W74: TRUE | X74: 21.00 | Y74: 18.63 | Z74: 21.91 | AA74: 21.04 | AB74: 20.77 | AC74: 20.67 | AD74: 22.05 | AE74: 20.88 | AF74: 22.47 | AG74: 21.81 | AH74: 21.37 | AI74: 21.72 | AJ74: TRUE | AK74: 0.0283 | AL74: 1.05 | AM74: 2.06 | AN74: TRUE | AO74: TRUE
A75: Q9BTU6 | B75: PI4K2A | C75: PI4K2A | D75: Phosphatidylinositol 4-kinase type 2-alpha (EC 2.7.1.67) (Phosphatidylinositol 4-kinase type II-alpha) | E75: 5 | F75: 19.69 | G75: 19.71 | H75: 20.13 | I75: 19.65 | J75: 20.17 | K75: 19.87 | L75: 21.51 | M75: 20.48 | N75: 20.54 | O75: 21.37 | P75: 20.90 | Q75: 20.96 | R75: TRUE | S75: 0.0191 | T75: 1.09 | U75: 2.12 | V75: TRUE | W75: TRUE | X75: 19.02 | Y75: 18.27 | Z75: 19.05 | AA75: 17.87 | AB75: 18.97 | AC75: 18.64 | AD75: 19.05 | AE75: 19.23 | AF75: 17.99 | AG75: 18.38 | AH75: 19.35 | AI75: 18.80 | AK75: 0.6555 | AL75: 0.16 | AM75: 1.12
A76: Q07954 | B76: LRP1 | C76: LRP1 A2MR APR | D76: Prolow-density lipoprotein receptor-related protein 1 (LRP-1) (Alpha-2-macroglobulin receptor) (A2MR) (Apolipoprotein E receptor) (APOER) (CD antigen CD91) [Cleaved into: Low-density lipoprotein receptor-related protein 1 85 kDa subunit (LRP-85); Low-density lipoprotein receptor-related protein 1 515 kDa subunit (LRP-515); Low-density lipoprotein receptor-related protein 1 intracellular domain (LRPICD)] | E76: 42 | F76: 24.41 | G76: 24.58 | H76: 23.97 | I76: 24.27 | J76: 23.99 | K76: 24.24 | L76: 25.17 | M76: 25.24 | N76: 25.60 | O76: 25.84 | P76: 24.66 | Q76: 25.30 | R76: TRUE | S76: 0.0089 | T76: 1.06 | U76: 2.08 | V76: TRUE | W76: TRUE | X76: 22.81 | Y76: 22.91 | Z76: 23.25 | AA76: 23.29 | AB76: 23.23 | AC76: 23.10 | AD76: 24.05 | AE76: 23.62 | AF76: 24.04 | AG76: 23.72 | AH76: 24.14 | AI76: 23.91 | AJ76: TRUE | AK76: 0.0035 | AL76: 0.81 | AM76: 1.76 | AN76: TRUE | AO76: TRUE
A77: P16870 | B77: CPE | C77: CPE | D77: Carboxypeptidase E (CPE) (EC 3.4.17.10) (Carboxypeptidase H) (CPH) (Enkephalin convertase) (Prohormone-processing carboxypeptidase) | E77: 11 | F77: 23.96 | G77: 24.46 | H77: 22.62 | I77: 24.66 | J77: 24.07 | K77: 23.96 | L77: 24.94 | M77: 25.04 | N77: 25.00 | O77: 25.58 | P77: 24.48 | Q77: 25.01 | R77: TRUE | S77: 0.0388 | T77: 1.05 | U77: 2.07 | V77: TRUE | W77: TRUE | X77: 22.73 | Y77: 22.35 | Z77: 22.38 | AA77: 22.40 | AB77: 22.94 | AC77: 22.56 | AD77: 23.66 | AE77: 23.03 | AF77: 23.22 | AG77: 23.10 | AH77: 23.20 | AI77: 23.24 | AJ77: TRUE | AK77: 0.0041 | AL77: 0.68 | AM77: 1.60 | AN77: TRUE | AO77: TRUE
A78: O14773 | B78: TPP1 | C78: TPP1 CLN2 GIG1 UNQ267/PRO304 | D78: Tripeptidyl-peptidase 1 (TPP-1) (EC 3.4.14.9) (Cell growth-inhibiting gene 1 protein) (Lysosomal pepstatin-insensitive protease) (LPIC) (Tripeptidyl aminopeptidase) (Tripeptidyl-peptidase I) (TPP-I) | E78: 4 | F78: 23.33 | G78: 22.52 | H78: 24.39 | I78: 22.84 | J78: 22.57 | K78: 23.13 | L78: 24.51 | M78: 24.43 | N78: 24.40 | O78: 24.03 | P78: 23.47 | Q78: 24.17 | R78: TRUE | S78: 0.0271 | T78: 1.04 | U78: 2.06 | V78: TRUE | W78: TRUE | X78: 22.46 | Y78: 23.51 | Z78: 22.63 | AA78: 22.17 | AB78: 22.09 | AC78: 22.57 | AD78: 23.46 | AE78: 23.55 | AF78: 23.30 | AG78: 22.93 | AH78: 22.78 | AI78: 23.21 | AJ78: TRUE | AK78: 0.0165 | AL78: 0.63 | AM78: 1.55 | AN78: TRUE | AO78: TRUE
A79: Q96BM9 | B79: ARL8A | C79: ARL8A ARL10B GIE2 | D79: ADP-ribosylation factor-like protein 8A (ADP-ribosylation factor-like protein 10B) (Novel small G protein indispensable for equal chromosome segregation 2) | E79: 6 | F79: 22.18 | G79: 22.32 | H79: 21.87 | I79: 22.29 | J79: 22.75 | K79: 22.28 | L79: 23.66 | M79: 23.35 | N79: 23.25 | O79: 23.31 | P79: 23.02 | Q79: 23.32 | R79: TRUE | S79: 0.0085 | T79: 1.04 | U79: 2.05 | V79: TRUE | W79: TRUE | X79: 21.18 | Y79: 21.34 | Z79: 21.25 | AA79: 20.86 | AB79: 21.29 | AC79: 21.19 | AD79: 21.53 | AE79: 21.87 | AF79: 21.69 | AG79: 21.27 | AH79: 21.68 | AI79: 21.61 | AJ79: TRUE | AK79: 0.0002 | AL79: 0.42 | AM79: 1.34
A80: Q9NUM4 | B80: TMEM106B | C80: TMEM106B | D80: Transmembrane protein 106B | E80: 2 | F80: 18.88 | G80: 20.10 | H80: 19.45 | I80: 19.09 | J80: 18.59 | K80: 19.22 | L80: 20.05 | M80: 20.68 | N80: 19.58 | O80: 20.39 | P80: 20.44 | Q80: 20.23 | R80: TRUE | S80: 0.0278 | T80: 1.01 | U80: 2.01 | V80: TRUE | W80: TRUE | X80: 18.14 | Y80: 18.07 | Z80: 19.60 | AA80: 17.87 | AB80: 18.86 | AC80: 18.51 | AD80: 18.19 | AE80: 17.57 | AF80: 18.21 | AG80: 18.49 | AH80: 19.61 | AI80: 18.41 | AK80: 0.8198 | AL80: -0.10 | AM80: 0.94
A81: P02647 | B81: APOA1 | C81: APOA1 | D81: Apolipoprotein A-I (Apo-AI) (ApoA-I) (Apolipoprotein A1) [Cleaved into: Proapolipoprotein A-I (ProapoA-I); Truncated apolipoprotein A-I (Apolipoprotein A-I(1-242))] | E81: 8 | F81: 21.38 | G81: 20.98 | H81: 20.75 | I81: 21.79 | J81: 20.02 | K81: 20.98 | L81: 22.96 | M81: 21.15 | N81: 22.52 | O81: 22.51 | P81: 20.68 | Q81: 21.97 | R81: TRUE | S81: 0.0314 | T81: 0.98 | U81: 1.98 | V81: TRUE | W81: TRUE | X81: 20.57 | Y81: 17.24 | Z81: 20.46 | AA81: 20.29 | AB81: 20.49 | AC81: 19.81 | AD81: 18.42 | AE81: 17.42 | AF81: 20.66 | AG81: 20.15 | AH81: 20.43 | AI81: 19.41 | AJ81: TRUE | AK81: 0.4228 | AL81: -0.40 | AM81: 0.76
A82: Q8IV08 | B82: PLD3 | C82: PLD3 | D82: 5'-3' exonuclease PLD3 (EC 3.1.16.1) (Choline phosphatase 3) (HindIII K4L homolog) (Hu-K4) (Phosphatidylcholine-hydrolyzing phospholipase D3) (Phospholipase D3) (PLD 3) | E82: 6 | F82: 22.11 | G82: 22.13 | H82: 22.47 | I82: 21.87 | J82: 21.49 | K82: 22.02 | L82: 23.69 | M82: 23.06 | N82: 22.75 | O82: 23.21 | P82: 22.29 | Q82: 23.00 | R82: TRUE | S82: 0.0124 | T82: 0.98 | U82: 1.97 | V82: TRUE | W82: TRUE | X82: 20.58 | Y82: 20.46 | Z82: 20.78 | AA82: 20.93 | AB82: 20.74 | AC82: 20.70 | AD82: 22.02 | AE82: 21.54 | AF82: 21.41 | AG82: 21.63 | AH82: 21.77 | AI82: 21.67 | AJ82: TRUE | AK82: 0.0026 | AL82: 0.98 | AM82: 1.97 | AN82: TRUE | AO82: TRUE
A83: Q86Y82 | B83: STX12 | C83: STX12 | D83: Syntaxin-12 | E83: 10 | F83: 23.69 | G83: 23.20 | H83: 23.65 | I83: 23.80 | J83: 23.54 | K83: 23.57 | L83: 24.80 | M83: 24.64 | N83: 24.39 | O83: 24.78 | P83: 24.15 | Q83: 24.55 | R83: TRUE | S83: 0.0026 | T83: 0.98 | U83: 1.97 | V83: TRUE | W83: TRUE | X83: 22.16 | Y83: 22.29 | Z83: 22.12 | AA83: 22.44 | AB83: 22.56 | AC83: 22.31 | AD83: 23.18 | AE83: 22.52 | AF83: 23.10 | AG83: 22.86 | AH83: 22.84 | AI83: 22.90 | AJ83: TRUE | AK83: 0.0269 | AL83: 0.59 | AM83: 1.51 | AN83: TRUE | AO83: TRUE
A84: O15240 | B84: VGF | C84: VGF | D84: Neurosecretory protein VGF [Cleaved into: Neuroendocrine regulatory peptide-1 (NERP-1); Neuroendocrine regulatory peptide-2 (NERP-2); VGF-derived peptide TLQP-21; VGF-derived peptide TLQP-62; Antimicrobial peptide VGF[554-577]] | E84: 12 | F84: 24.25 | G84: 23.58 | H84: 23.06 | I84: 24.20 | J84: 22.73 | K84: 23.56 | L84: 25.27 | M84: 23.94 | N84: 24.47 | O84: 25.26 | P84: 23.72 | Q84: 24.53 | R84: TRUE | S84: 0.0048 | T84: 0.97 | U84: 1.96 | V84: TRUE | W84: TRUE | X84: 21.59 | Y84: 21.06 | Z84: 18.13 | AA84: 22.82 | AB84: 21.89 | AC84: 21.10 | AD84: 22.89 | AE84: 22.10 | AF84: 21.65 | AG84: 22.95 | AH84: 22.45 | AI84: 22.41 | AJ84: TRUE | AK84: 0.0894 | AL84: 1.31 | AM84: 2.48
A85: P40121 | B85: CAPG | C85: CAPG AFCP MCP | D85: Macrophage-capping protein (Actin regulatory protein CAP-G) | E85: 9 | F85: 22.98 | G85: 23.65 | H85: 24.28 | I85: 23.22 | J85: 21.83 | K85: 23.20 | L85: 24.08 | M85: 24.80 | N85: 25.06 | O85: 24.54 | P85: 22.14 | Q85: 24.13 | R85: TRUE | S85: 0.0065 | T85: 0.93 | U85: 1.91 | V85: TRUE | W85: TRUE | X85: 21.25 | Y85: 23.35 | Z85: 20.87 | AA85: 20.37 | AB85: 21.59 | AC85: 21.48 | AD85: 23.32 | AE85: 23.51 | AF85: 22.65 | AG85: 21.36 | AH85: 22.35 | AI85: 22.64 | AJ85: TRUE | AK85: 0.0290 | AL85: 1.16 | AM85: 2.23 | AN85: TRUE | AO85: TRUE
A86: O15061 | B86: SYNM | C86: SYNM DMN KIAA0353 SYN | D86: Synemin (Desmuslin) | E86: 12 | F86: 22.29 | G86: 22.47 | H86: 22.65 | I86: 22.09 | J86: 19.79 | K86: 21.86 | L86: 23.08 | M86: 22.67 | N86: 23.52 | O86: 23.24 | P86: 21.44 | Q86: 22.79 | R86: TRUE | S86: 0.0173 | T86: 0.93 | U86: 1.91 | V86: TRUE | W86: TRUE | X86: 19.92 | Y86: 22.45 | Z86: 19.36 | AA86: 19.56 | AB86: 19.64 | AC86: 20.19 | AD86: 20.96 | AE86: 22.31 | AF86: 20.99 | AG86: 19.62 | AH86: 19.53 | AI86: 20.68 | AJ86: TRUE | AK86: 0.2373 | AL86: 0.50 | AM86: 1.41
A87: P06703 | B87: S100A6 | C87: S100A6 CACY | D87: Protein S100-A6 (Calcyclin) (Growth factor-inducible protein 2A9) (MLN 4) (Prolactin receptor-associated protein) (PRA) (S100 calcium-binding protein A6) | E87: 3 | F87: 24.89 | G87: 25.08 | H87: 24.65 | I87: 24.51 | J87: 18.30 | K87: 23.49 | L87: 25.44 | M87: 25.22 | N87: 25.84 | O87: 25.32 | P87: 20.28 | Q87: 24.42 | R87: TRUE | S87: 0.0410 | T87: 0.93 | U87: 1.91 | V87: TRUE | W87: TRUE | X87: 24.06 | Y87: 24.86 | Z87: 22.47 | AA87: 21.59 | AB87: 20.23 | AC87: 22.64 | AD87: 24.05 | AE87: 24.91 | AF87: 23.22 | AG87: 19.68 | AH87: 23.31 | AI87: 23.03 | AJ87: TRUE | AK87: 0.6502 | AL87: 0.39 | AM87: 1.31
A88: Q14108 | B88: SCARB2 | C88: SCARB2 CD36L2 LIMP2 LIMPII | D88: Lysosome membrane protein 2 (85 kDa lysosomal membrane sialoglycoprotein) (LGP85) (CD36 antigen-like 2) (Lysosome membrane protein II) (LIMP II) (Scavenger receptor class B member 2) (CD antigen CD36) | E88: 6 | F88: 22.27 | G88: 22.05 | H88: 22.71 | I88: 22.51 | J88: 22.32 | K88: 22.37 | L88: 23.34 | M88: 22.98 | N88: 23.23 | O88: 23.61 | P88: 23.23 | Q88: 23.28 | R88: TRUE | S88: 0.0009 | T88: 0.91 | U88: 1.88 | V88: TRUE | W88: TRUE | X88: 21.64 | Y88: 21.89 | Z88: 22.25 | AA88: 21.93 | AB88: 21.27 | AC88: 21.80 | AD88: 22.08 | AE88: 21.80 | AF88: 22.80 | AG88: 22.45 | AH88: 21.62 | AI88: 22.15 | AJ88: TRUE | AK88: 0.0385 | AL88: 0.35 | AM88: 1.28
A89: Q9Y6W5 | B89: WASF2 | C89: WASF2 WAVE2 | D89: Wiskott-Aldrich syndrome protein family member 2 (WASP family protein member 2) (Protein WAVE-2) (Verprolin homology domain-containing protein 2) | E89: 2 | F89: 19.95 | G89: 20.54 | H89: 19.24 | I89: 20.13 | J89: 18.80 | K89: 19.73 | L89: 21.17 | M89: 20.37 | N89: 20.27 | O89: 21.37 | P89: 19.83 | Q89: 20.60 | R89: TRUE | S89: 0.0300 | T89: 0.87 | U89: 1.83 | V89: TRUE | W89: TRUE | X89: 18.00 | Y89: 18.08 | Z89: 18.16 | AA89: 19.06 | AB89: 18.35 | AC89: 18.33 | AD89: 18.69 | AE89: 18.55 | AF89: 18.39 | AG89: 17.99 | AH89: 18.10 | AI89: 18.35 | AJ89: TRUE | AK89: 0.9641 | AL89: 0.01 | AM89: 1.01
A90: P17948 | B90: FLT1 | C90: FLT1 FLT FRT VEGFR1 | D90: Vascular endothelial growth factor receptor 1 (VEGFR-1) (EC 2.7.10.1) (Fms-like tyrosine kinase 1) (FLT-1) (Tyrosine-protein kinase FRT) (Tyrosine-protein kinase receptor FLT) (FLT) (Vascular permeability factor receptor) | E90: 4 | F90: 20.42 | G90: 19.60 | H90: 19.68 | I90: 19.14 | J90: 20.52 | K90: 19.87 | L90: 21.25 | M90: 20.21 | N90: 21.05 | O90: 20.75 | P90: 20.44 | Q90: 20.74 | R90: TRUE | S90: 0.0432 | T90: 0.87 | U90: 1.83 | V90: TRUE | W90: TRUE | X90: 18.93 | Y90: 19.15 | Z90: 18.92 | AA90: 19.01 | AB90: 18.51 | AC90: 18.90 | AD90: 18.09 | AE90: 19.28 | AF90: 18.74 | AG90: 18.89 | AH90: 19.08 | AI90: 18.81 | AJ90: TRUE | AK90: 0.7207 | AL90: -0.09 | AM90: 0.94 | AP90: TRUE | AQ90: TRUE | AR90: TRUE
A91: P35241 | B91: RDX | C91: RDX | D91: Radixin | E91: 29 | F91: 23.87 | G91: 23.62 | H91: 23.54 | I91: 23.74 | J91: 23.38 | K91: 23.63 | L91: 24.77 | M91: 24.42 | N91: 24.88 | O91: 24.49 | P91: 23.89 | Q91: 24.49 | R91: TRUE | S91: 0.0032 | T91: 0.86 | U91: 1.82 | V91: TRUE | W91: TRUE | X91: 22.79 | Y91: 23.56 | Z91: 22.96 | AA91: 22.06 | AB91: 22.50 | AC91: 22.77 | AD91: 23.88 | AE91: 25.13 | AF91: 22.48 | AG91: 22.53 | AH91: 22.42 | AI91: 23.29 | AJ91: TRUE | AK91: 0.2407 | AL91: 0.52 | AM91: 1.43
A92: Q9UBP4 | B92: DKK3 | C92: DKK3 REIC UNQ258/PRO295 | D92: Dickkopf-related protein 3 (Dickkopf-3) (Dkk-3) (hDkk-3) | E92: 11 | F92: 23.63 | G92: 23.78 | H92: 23.01 | I92: 24.08 | J92: 23.39 | K92: 23.58 | L92: 24.82 | M92: 24.36 | N92: 24.25 | O92: 24.56 | P92: 24.17 | Q92: 24.43 | R92: TRUE | S92: 0.0052 | T92: 0.86 | U92: 1.81 | V92: TRUE | W92: TRUE | X92: 22.22 | Y92: 22.30 | Z92: 21.89 | AA92: 21.49 | AB92: 22.23 | AC92: 22.03 | AD92: 23.73 | AE92: 22.60 | AF92: 23.08 | AG92: 22.93 | AH92: 23.11 | AI92: 23.09 | AJ92: TRUE | AK92: 0.0084 | AL92: 1.06 | AM92: 2.09 | AN92: TRUE | AO92: TRUE
A93: P08670 | B93: VIM | C93: VIM | D93: Vimentin | E93: 53 | F93: 29.47 | G93: 28.96 | H93: 29.67 | I93: 29.19 | J93: 27.28 | K93: 28.91 | L93: 30.49 | M93: 29.62 | N93: 30.45 | O93: 30.45 | P93: 27.77 | Q93: 29.76 | R93: TRUE | S93: 0.0034 | T93: 0.84 | U93: 1.80 | V93: TRUE | W93: TRUE | X93: 26.95 | Y93: 28.74 | Z93: 27.34 | AA93: 26.70 | AB93: 27.01 | AC93: 27.35 | AD93: 28.10 | AE93: 29.15 | AF93: 27.89 | AG93: 27.40 | AH93: 27.87 | AI93: 28.08 | AJ93: TRUE | AK93: 0.0044 | AL93: 0.73 | AM93: 1.66 | AN93: TRUE | AO93: TRUE | AQ93: TRUE
A94: Q96DA2 | B94: RAB39B | C94: RAB39B | D94: Ras-related protein Rab-39B | E94: 4 | F94: 21.52 | G94: 21.30 | H94: 20.80 | I94: 21.99 | J94: 21.85 | K94: 21.49 | L94: 22.05 | M94: 22.05 | N94: 22.30 | O94: 22.61 | P94: 22.61 | Q94: 22.32 | R94: TRUE | S94: 0.0082 | T94: 0.83 | U94: 1.78 | V94: TRUE | W94: TRUE | X94: 20.48 | Y94: 18.93 | Z94: 20.76 | AA94: 20.52 | AB94: 20.65 | AC94: 20.27 | AD94: 21.54 | AE94: 20.81 | AF94: 21.35 | AG94: 20.72 | AH94: 20.51 | AI94: 20.99 | AJ94: TRUE | AK94: 0.1115 | AL94: 0.72 | AM94: 1.64
A95: O60784 | B95: TOM1 | C95: TOM1 | D95: Target of Myb protein 1 | E95: 8 | F95: 23.03 | G95: 23.10 | H95: 22.66 | I95: 23.56 | J95: 23.39 | K95: 23.15 | L95: 23.77 | M95: 23.96 | N95: 23.79 | O95: 24.07 | P95: 24.16 | Q95: 23.95 | R95: TRUE | S95: 0.0013 | T95: 0.80 | U95: 1.74 | V95: TRUE | W95: TRUE | X95: 21.99 | Y95: 21.50 | Z95: 21.90 | AA95: 22.15 | AB95: 22.07 | AC95: 21.92 | AD95: 22.47 | AE95: 21.88 | AF95: 22.64 | AG95: 22.07 | AH95: 22.45 | AI95: 22.30 | AJ95: TRUE | AK95: 0.0466 | AL95: 0.38 | AM95: 1.30
A96: Q15818 | B96: NPTX1 | C96: NPTX1 | D96: Neuronal pentraxin-1 (NP1) (Neuronal pentraxin I) (NP-I) | E96: 14 | F96: 25.11 | G96: 25.15 | H96: 24.29 | I96: 25.41 | J96: 23.99 | K96: 24.79 | L96: 25.63 | M96: 25.42 | N96: 25.66 | O96: 26.09 | P96: 24.95 | Q96: 25.55 | R96: TRUE | S96: 0.0163 | T96: 0.76 | U96: 1.69 | V96: TRUE | W96: TRUE | X96: 23.35 | Y96: 22.67 | Z96: 22.85 | AA96: 23.35 | AB96: 23.64 | AC96: 23.17 | AD96: 23.91 | AE96: 23.54 | AF96: 23.61 | AG96: 23.69 | AH96: 24.35 | AI96: 23.82 | AJ96: TRUE | AK96: 0.0022 | AL96: 0.65 | AM96: 1.57 | AN96: TRUE | AO96: TRUE
A97: O00299 | B97: CLIC1 | C97: CLIC1 G6 NCC27 | D97: Chloride intracellular channel protein 1 (Chloride channel ABP) (Nuclear chloride ion channel 27) (NCC27) (Regulatory nuclear chloride ion channel protein) (hRNCC) | E97: 7 | F97: 21.23 | G97: 21.39 | H97: 22.96 | I97: 20.86 | J97: 20.56 | K97: 21.40 | L97: 22.47 | M97: 22.23 | N97: 22.93 | O97: 21.82 | P97: 21.33 | Q97: 22.15 | R97: TRUE | S97: 0.0236 | T97: 0.75 | U97: 1.69 | V97: TRUE | W97: TRUE | X97: 20.08 | Y97: 21.48 | Z97: 19.97 | AA97: 19.28 | AB97: 19.53 | AC97: 20.07 | AD97: 21.38 | AE97: 21.69 | AF97: 20.67 | AG97: 19.61 | AH97: 20.32 | AI97: 20.73 | AJ97: TRUE | AK97: 0.0258 | AL97: 0.67 | AM97: 1.59 | AN97: TRUE | AO97: TRUE
A98: O94806 | B98: PRKD3 | C98: PRKD3 EPK2 PRKCN | D98: Serine/threonine-protein kinase D3 (EC 2.7.11.13) (Protein kinase C nu type) (Protein kinase EPK2) (nPKC-nu) | E98: 2 | F98: 23.25 | G98: 22.43 | H98: 22.57 | I98: 22.88 | J98: 22.63 | K98: 22.75 | L98: 23.45 | M98: 23.22 | N98: 23.85 | O98: 23.85 | P98: 23.06 | Q98: 23.49 | R98: TRUE | S98: 0.0181 | T98: 0.74 | U98: 1.66 | V98: TRUE | W98: TRUE | X98: 22.01 | Y98: 22.42 | Z98: 22.46 | AA98: 22.11 | AB98: 22.47 | AC98: 22.29 | AD98: 23.05 | AE98: 22.47 | AF98: 22.57 | AG98: 22.47 | AH98: 22.08 | AI98: 22.53 | AJ98: TRUE | AK98: 0.3762 | AL98: 0.23 | AM98: 1.18
A99: P05230 | B99: FGF1 | C99: FGF1 FGFA | D99: Fibroblast growth factor 1 (FGF-1) (Acidic fibroblast growth factor) (aFGF) (Endothelial cell growth factor) (ECGF) (Heparin-binding growth factor 1) (HBGF-1) | E99: 4 | F99: 21.81 | G99: 21.14 | H99: 21.49 | I99: 20.71 | J99: 21.64 | K99: 21.36 | L99: 22.12 | M99: 21.68 | N99: 22.05 | O99: 21.65 | P99: 22.95 | Q99: 22.09 | R99: TRUE | S99: 0.0143 | T99: 0.73 | U99: 1.66 | V99: TRUE | W99: TRUE | X99: 20.03 | Y99: 21.73 | Z99: 20.23 | AA99: 19.14 | AB99: 17.81 | AC99: 19.79 | AD99: 21.70 | AE99: 21.78 | AF99: 22.01 | AG99: 18.63 | AH99: 20.08 | AI99: 20.84 | AJ99: TRUE | AK99: 0.1234 | AL99: 1.05 | AM99: 2.07
A100: Q9P253 | B100: VPS18 | C100: VPS18 KIAA1475 | D100: Vacuolar protein sorting-associated protein 18 homolog (hVPS18) | E100: 9 | F100: 21.53 | G100: 21.23 | H100: 21.14 | I100: 21.56 | J100: 21.29 | K100: 21.35 | L100: 21.91 | M100: 22.05 | N100: 21.92 | O100: 22.41 | P100: 22.00 | Q100: 22.06 | R100: TRUE | S100: 0.0011 | T100: 0.71 | U100: 1.63 | V100: TRUE | W100: TRUE | X100: 20.24 | Y100: 20.35 | Z100: 20.10 | AA100: 20.52 | AB100: 19.96 | AC100: 20.23 | AD100: 20.63 | AE100: 20.59 | AF100: 20.42 | AG100: 20.70 | AH100: 20.51 | AI100: 20.57 | AJ100: TRUE | AK100: 0.0061 | AL100: 0.33 | AM100: 1.26
A101: Q13938 | B101: CAPS | C101: CAPS | D101: Calcyphosin (Calcyphosine) | E101: 7 | F101: 22.03 | G101: 21.71 | H101: 23.40 | I101: 22.18 | J101: 20.41 | K101: 21.95 | L101: 22.67 | M101: 22.09 | N101: 23.85 | O101: 23.28 | P101: 21.37 | Q101: 22.65 | R101: TRUE | S101: 0.0074 | T101: 0.71 | U101: 1.63 | V101: TRUE | W101: TRUE | X101: 20.16 | Y101: 23.87 | Z101: 19.17 | AA101: 17.42 | AB101: 19.17 | AC101: 19.96 | AD101: 20.96 | AE101: 23.36 | AF101: 19.80 | AG101: 19.97 | AH101: 19.53 | AI101: 20.72 | AJ101: TRUE | AK101: 0.2001 | AL101: 0.77 | AM101: 1.70
A102: P16144 | B102: ITGB4 | C102: ITGB4 | D102: Integrin beta-4 (GP150) (CD antigen CD104) | E102: 10 | F102: 20.58 | G102: 20.51 | H102: 20.78 | I102: 20.64 | J102: 18.81 | K102: 20.26 | L102: 21.05 | M102: 20.72 | N102: 21.74 | O102: 21.67 | P102: 19.59 | Q102: 20.96 | R102: TRUE | S102: 0.0107 | T102: 0.69 | U102: 1.61 | V102: TRUE | W102: TRUE | X102: 18.49 | Y102: 21.11 | Z102: 18.49 | AA102: 18.25 | AB102: 18.51 | AC102: 18.97 | AD102: 19.21 | AE102: 20.90 | AF102: 18.81 | AG102: 18.40 | AH102: 18.68 | AI102: 19.20 | AJ102: TRUE | AK102: 0.2025 | AL102: 0.23 | AM102: 1.17
A103: Q9H0E2 | B103: TOLLIP | C103: TOLLIP | D103: Toll-interacting protein | E103: 13 | F103: 24.19 | G103: 23.87 | H103: 24.17 | I103: 23.69 | J103: 23.93 | K103: 23.97 | L103: 24.83 | M103: 24.86 | N103: 24.24 | O103: 24.94 | P103: 24.39 | Q103: 24.66 | R103: TRUE | S103: 0.0289 | T103: 0.68 | U103: 1.61 | V103: TRUE | W103: TRUE | X103: 22.68 | Y103: 21.93 | Z103: 22.79 | AA103: 23.55 | AB103: 23.22 | AC103: 22.83 | AD103: 23.42 | AE103: 22.92 | AF103: 23.73 | AG103: 23.58 | AH103: 23.24 | AI103: 23.38 | AJ103: TRUE | AK103: 0.0673 | AL103: 0.54 | AM103: 1.46
A104: Q9UBI6 | B104: GNG12 | C104: GNG12 | D104: Guanine nucleotide-binding protein G(I)/G(S)/G(O) subunit gamma-12 | E104: 5 | F104: 23.40 | G104: 22.75 | H104: 23.49 | I104: 23.08 | J104: 22.27 | K104: 23.00 | L104: 24.29 | M104: 23.47 | N104: 24.17 | O104: 23.85 | P104: 22.56 | Q104: 23.67 | R104: TRUE | S104: 0.0026 | T104: 0.67 | U104: 1.59 | V104: TRUE | W104: TRUE | X104: 21.12 | Y104: 23.28 | Z104: 20.64 | AA104: 20.40 | AB104: 21.72 | AC104: 21.43 | AD104: 21.49 | AE104: 23.13 | AF104: 21.36 | AG104: 21.17 | AH104: 21.67 | AI104: 21.76 | AJ104: TRUE | AK104: 0.1581 | AL104: 0.33 | AM104: 1.26
A105: Q9Y2J8 | B105: PADI2 | C105: PADI2 KIAA0994 PAD2 PDI2 | D105: Protein-arginine deiminase type-2 (EC 3.5.3.15) (PAD-H19) (Peptidylarginine deiminase II) (Protein-arginine deiminase type II) | E105: 14 | F105: 24.62 | G105: 24.41 | H105: 24.92 | I105: 24.52 | J105: 23.67 | K105: 24.43 | L105: 25.26 | M105: 25.14 | N105: 25.56 | O105: 25.32 | P105: 24.18 | Q105: 25.09 | R105: TRUE | S105: 0.0002 | T105: 0.67 | U105: 1.59 | V105: TRUE | W105: TRUE | X105: 23.48 | Y105: 25.04 | Z105: 23.43 | AA105: 22.77 | AB105: 23.51 | AC105: 23.65 | AD105: 24.23 | AE105: 25.05 | AF105: 23.78 | AG105: 23.70 | AH105: 23.96 | AI105: 24.15 | AJ105: TRUE | AK105: 0.0361 | AL105: 0.50 | AM105: 1.41
A106: P51178 | B106: PLCD1 | C106: PLCD1 | D106: 1-phosphatidylinositol 4,5-bisphosphate phosphodiesterase delta-1 (EC 3.1.4.11) (Phosphoinositide phospholipase C-delta-1) (Phospholipase C-III) (PLC-III) (Phospholipase C-delta-1) (PLC-delta-1) | E106: 18 | F106: 23.96 | G106: 23.52 | H106: 23.70 | I106: 23.20 | J106: 21.87 | K106: 23.25 | L106: 24.58 | M106: 23.94 | N106: 24.28 | O106: 24.52 | P106: 22.24 | Q106: 23.91 | R106: TRUE | S106: 0.0177 | T106: 0.66 | U106: 1.58 | V106: TRUE | W106: TRUE | X106: 21.97 | Y106: 23.64 | Z106: 22.06 | AA106: 21.65 | AB106: 22.49 | AC106: 22.36 | AD106: 22.81 | AE106: 23.41 | AF106: 22.45 | AG106: 22.07 | AH106: 22.53 | AI106: 22.66 | AJ106: TRUE | AK106: 0.1831 | AL106: 0.29 | AM106: 1.23
A107: Q9Y4C0 | B107: NRXN3 | C107: NRXN3 C14orf60 KIAA0743 | D107: Neurexin-3 (Neurexin III-alpha) (Neurexin-3-alpha) | E107: 15 | F107: 22.07 | G107: 22.11 | H107: 21.46 | I107: 22.53 | J107: 22.57 | K107: 22.15 | L107: 23.17 | M107: 22.72 | N107: 22.33 | O107: 22.53 | P107: 23.23 | Q107: 22.80 | R107: TRUE | S107: 0.0233 | T107: 0.65 | U107: 1.57 | V107: TRUE | W107: TRUE | X107: 21.04 | Y107: 21.30 | Z107: 21.32 | AA107: 21.25 | AB107: 21.46 | AC107: 21.27 | AD107: 22.56 | AE107: 20.84 | AF107: 22.20 | AG107: 22.55 | AH107: 21.79 | AI107: 21.99 | AJ107: TRUE | AK107: 0.1181 | AL107: 0.71 | AM107: 1.64
A108: Q9H270 | B108: VPS11 | C108: VPS11 RNF108 PP3476 | D108: Vacuolar protein sorting-associated protein 11 homolog (hVPS11) (RING finger protein 108) | E108: 4 | F108: 20.05 | G108: 20.65 | H108: 20.42 | I108: 21.04 | J108: 20.28 | K108: 20.49 | L108: 20.91 | M108: 21.34 | N108: 20.73 | O108: 21.74 | P108: 20.84 | Q108: 21.11 | R108: TRUE | S108: 0.0024 | T108: 0.62 | U108: 1.54 | V108: TRUE | W108: TRUE | X108: 19.28 | Y108: 19.42 | Z108: 19.48 | AA108: 19.64 | AB108: 19.43 | AC108: 19.45 | AD108: 19.71 | AE108: 19.76 | AF108: 20.24 | AG108: 19.82 | AH108: 19.34 | AI108: 19.77 | AJ108: TRUE | AK108: 0.0833 | AL108: 0.32 | AM108: 1.25
A109: O15400 | B109: STX7 | C109: STX7 | D109: Syntaxin-7 | E109: 9 | F109: 24.08 | G109: 24.79 | H109: 23.72 | I109: 24.68 | J109: 23.78 | K109: 24.21 | L109: 24.98 | M109: 25.11 | N109: 24.76 | O109: 25.09 | P109: 24.17 | Q109: 24.82 | R109: TRUE | S109: 0.0142 | T109: 0.62 | U109: 1.53 | V109: TRUE | W109: TRUE | X109: 22.84 | Y109: 22.12 | Z109: 22.14 | AA109: 22.92 | AB109: 23.01 | AC109: 22.61 | AD109: 22.93 | AE109: 22.96 | AF109: 22.76 | AG109: 23.22 | AH109: 22.99 | AI109: 22.97 | AJ109: TRUE | AK109: 0.0846 | AL109: 0.37 | AM109: 1.29
A110: P14136 | B110: GFAP | C110: GFAP | D110: Glial fibrillary acidic protein (GFAP) | E110: 65 | F110: 34.47 | G110: 34.02 | H110: 34.40 | I110: 34.18 | J110: 30.55 | K110: 33.52 | L110: 34.95 | M110: 34.61 | N110: 34.81 | O110: 35.33 | P110: 30.97 | Q110: 34.13 | R110: TRUE | S110: 0.0118 | T110: 0.61 | U110: 1.52 | V110: TRUE | W110: TRUE | X110: 31.75 | Y110: 34.56 | Z110: 31.34 | AA110: 30.12 | AB110: 32.47 | AC110: 32.05 | AD110: 32.63 | AE110: 33.97 | AF110: 32.37 | AG110: 31.06 | AH110: 31.94 | AI110: 32.39 | AJ110: TRUE | AK110: 0.4067 | AL110: 0.34 | AM110: 1.27 | AQ110: TRUE
A111: P15559 | B111: NQO1 | C111: NQO1 DIA4 NMOR1 | D111: NAD(P)H dehydrogenase [quinone] 1 (EC 1.6.5.2) (Azoreductase) (DT-diaphorase) (DTD) (Menadione reductase) (NAD(P)H:quinone oxidoreductase 1) (Phylloquinone reductase) (Quinone reductase 1) (QR1) | E111: 6 | F111: 23.74 | G111: 21.76 | H111: 21.88 | I111: 22.09 | J111: 22.47 | K111: 22.39 | L111: 24.00 | M111: 22.63 | N111: 22.78 | O111: 22.83 | P111: 22.74 | Q111: 23.00 | R111: TRUE | S111: 0.0128 | T111: 0.61 | U111: 1.52 | V111: TRUE | W111: TRUE | X111: 20.81 | Y111: 23.32 | Z111: 21.06 | AA111: 21.93 | AB111: 17.10 | AC111: 20.84 | AD111: 21.48 | AE111: 23.42 | AF111: 21.72 | AG111: 21.98 | AH111: 17.78 | AI111: 21.28 | AJ111: TRUE | AK111: 0.0423 | AL111: 0.43 | AM111: 1.35
A112: Q8TAT6 | B112: NPLOC4 | C112: NPLOC4 KIAA1499 NPL4 | D112: Nuclear protein localization protein 4 homolog (Protein NPL4) | E112: 3 | F112: 20.24 | G112: 20.24 | H112: 19.31 | I112: 19.65 | J112: 18.53 | K112: 19.59 | L112: 20.38 | M112: 20.45 | N112: 20.08 | O112: 20.40 | P112: 19.67 | Q112: 20.20 | R112: TRUE | S112: 0.0315 | T112: 0.60 | U112: 1.52 | V112: TRUE | W112: TRUE | X112: 18.96 | Y112: 17.81 | Z112: 19.16 | AA112: 19.64 | AB112: 19.89 | AC112: 19.09 | AD112: 19.96 | AE112: 16.52 | AF112: 18.36 | AG112: 19.75 | AH112: 19.85 | AI112: 18.89 | AK112: 0.6299 | AL112: -0.21 | AM112: 0.87
A113: Q99878 | B113: H2AC14 | C113: H2AC14 H2AFE HIST1H2AJ | D113: Histone H2A type 1-J (Histone H2A/e) | E113: 6 | F113: 24.20 | G113: 23.75 | H113: 24.37 | I113: 24.07 | J113: 22.96 | K113: 23.87 | L113: 25.01 | M113: 24.58 | N113: 24.83 | O113: 24.94 | P113: 22.94 | Q113: 24.46 | R113: TRUE | S113: 0.0250 | T113: 0.59 | U113: 1.51 | V113: TRUE | W113: TRUE | X113: 22.90 | Y113: 24.21 | Z113: 22.98 | AA113: 22.58 | AB113: 22.50 | AC113: 23.03 | AD113: 23.23 | AE113: 23.12 | AF113: 22.96 | AG113: 22.62 | AH113: 22.90 | AI113: 22.96 | AJ113: TRUE | AK113: 0.8085 | AL113: -0.07 | AM113: 0.95
A114: O00391 | B114: QSOX1 | C114: QSOX1 QSCN6 UNQ2520/PRO6013 | D114: Sulfhydryl oxidase 1 (hQSOX) (EC 1.8.3.2) (Quiescin Q6) | E114: 2 | F114: 21.23 | G114: 21.10 | H114: 21.92 | I114: 21.24 | J114: 21.23 | K114: =AVERAGE(F114:J114) -> 21.34 | L114: 21.54 | M114: 21.65 | N114: 22.09 | O114: 22.21 | P114: 22.14 | Q114: =AVERAGE(L114:P114) -> 21.93 | R114: TRUE | S114: 0.0214 | T114: 0.58 | U114: =2^T114 -> 1.50 | X114: 20.26 | Y114: 20.77 | Z114: 19.57 | AA114: 20.37 | AB114: 20.30 | AC114: =AVERAGE(X114:AB114) -> 20.26 | AD114: 18.01 | AE114: 18.52 | AF114: 19.22 | AG114: 20.33 | AH114: 20.39 | AI114: =AVERAGE(AD114:AH114) -> 19.29 | AJ114: TRUE | AK114: 0.1451 | AL114: -0.96 | AM114: =2^AL114 -> 0.51
A115: O00533 | B115: CHL1 | C115: CHL1 CALL | D115: Neural cell adhesion molecule L1-like protein (Close homolog of L1) [Cleaved into: Processed neural cell adhesion molecule L1-like protein] | E115: 9 | F115: 21.95 | G115: 21.29 | H115: 21.09 | I115: 21.50 | J115: 22.86 | K115: 21.74 | L115: 22.03 | M115: 22.13 | N115: 21.93 | O115: 22.33 | P115: 23.19 | Q115: 22.32 | R115: TRUE | S115: 0.0219 | T115: 0.58 | U115: 1.50 | X115: 21.78 | Y115: 21.38 | Z115: 21.55 | AA115: 21.85 | AB115: 21.54 | AC115: 21.62 | AD115: 22.07 | AE115: 21.43 | AF115: 21.94 | AG115: 21.82 | AH115: 21.75 | AI115: 21.80 | AJ115: TRUE | AK115: 0.0716 | AL115: 0.18 | AM115: 1.14
A116: Q92563 | B116: SPOCK2 | C116: SPOCK2 KIAA0275 TICN2 UNQ269/PRO306 | D116: Testican-2 (SPARC/osteonectin, CWCV, and Kazal-like domains proteoglycan 2) | E116: 4 | F116: 19.09 | G116: 18.92 | H116: 21.65 | I116: 20.54 | J116: 19.62 | K116: 19.96 | L116: 23.43 | M116: 23.72 | N116: 24.17 | O116: 18.69 | P116: 23.77 | Q116: 22.75 | R116: TRUE | S116: 0.0846 | T116: 2.79 | U116: 6.93 | X116: 17.56 | Y116: 18.02 | Z116: 18.35 | AA116: 20.57 | AB116: 18.69 | AC116: 18.64 | AD116: 22.84 | AE116: 21.47 | AF116: 23.17 | AG116: 21.30 | AH116: 21.76 | AI116: 22.11 | AJ116: TRUE | AK116: 0.0123 | AL116: 3.47 | AM116: 11.07 | AN116: TRUE | AO116: TRUE | AP116: TRUE | AQ116: TRUE
A117: P31947 | B117: SFN | C117: SFN HME1 | D117: 14-3-3 protein sigma (Epithelial cell marker protein 1) (Stratifin) | E117: 16 | F117: 28.00 | G117: 19.84 | H117: 27.84 | I117: 18.69 | J117: 27.01 | K117: 24.28 | L117: 26.36 | M117: 27.30 | N117: 27.08 | O117: 27.36 | P117: 27.03 | Q117: 27.03 | R117: TRUE | S117: 0.2785 | T117: 2.75 | U117: 6.72 | X117: 25.93 | Y117: 25.82 | Z117: 26.61 | AA117: 26.37 | AB117: 26.73 | AC117: 26.29 | AD117: 26.99 | AE117: 26.30 | AF117: 26.37 | AG117: 26.09 | AH117: 26.64 | AI117: 26.48 | AJ117: TRUE | AK117: 0.5128 | AL117: 0.19 | AM117: 1.14
A118: Q9UNS2 | B118: COPS3 | C118: COPS3 CSN3 | D118: COP9 signalosome complex subunit 3 (SGN3) (Signalosome subunit 3) (JAB1-containing signalosome subunit 3) | E118: 4 | F118: 18.11 | G118: 18.79 | H118: 19.50 | I118: 21.47 | J118: 18.30 | K118: 19.23 | L118: 21.80 | M118: 22.06 | N118: 21.29 | O118: 20.86 | P118: 22.69 | Q118: 21.74 | R118: TRUE | S118: 0.0476 | T118: 2.51 | U118: 5.69 | X118: 20.41 | Y118: 20.50 | Z118: 20.91 | AA118: 20.92 | AB118: 21.19 | AC118: 20.79 | AD118: 20.89 | AE118: 20.96 | AF118: 20.95 | AG118: 21.00 | AH118: 21.00 | AI118: 20.96 | AJ118: TRUE | AK118: 0.2444 | AL118: 0.17 | AM118: 1.13
A119: Q8N474 | B119: SFRP1 | C119: SFRP1 FRP FRP1 SARP2 | D119: Secreted frizzled-related protein 1 (FRP-1) (sFRP-1) (Secreted apoptosis-related protein 2) (SARP-2) | E119: 5 | F119: 18.25 | G119: 20.94 | H119: 20.79 | I119: 18.86 | J119: 19.26 | K119: 19.62 | L119: 24.34 | M119: 22.02 | N119: 22.13 | O119: 22.28 | P119: 19.36 | Q119: 22.03 | R119: TRUE | S119: 0.0875 | T119: 2.40 | U119: 5.29 | X119: 17.71 | Y119: 18.10 | Z119: 18.38 | AA119: 19.86 | AB119: 19.82 | AC119: 18.78 | AD119: 20.55 | AE119: 18.90 | AF119: 18.00 | AG119: 18.79 | AH119: 19.16 | AI119: 19.08 | AK119: 0.6909 | AL119: 0.30 | AM119: 1.23 | AR119: TRUE
A120: Q9H008 | B120: LHPP | C120: LHPP | D120: Phospholysine phosphohistidine inorganic pyrophosphate phosphatase (hLHPP) (EC 3.1.3.-) (EC 3.6.1.1) | E120: 5 | F120: 23.22 | G120: 23.40 | H120: 18.92 | I120: 22.84 | J120: 18.92 | K120: 21.46 | L120: 24.19 | M120: 24.16 | N120: 23.48 | O120: 23.82 | P120: 23.36 | Q120: 23.80 | R120: TRUE | S120: 0.0566 | T120: 2.34 | U120: 5.07 | X120: 22.30 | Y120: 23.05 | Z120: 18.67 | AA120: 20.84 | AB120: 18.28 | AC120: 20.63 | AD120: 22.74 | AE120: 23.01 | AF120: 23.50 | AG120: 21.51 | AH120: 22.10 | AI120: 22.57 | AJ120: TRUE | AK120: 0.1214 | AL120: 1.95 | AM120: 3.85
A121: P55058 | B121: PLTP | C121: PLTP | D121: Phospholipid transfer protein (Lipid transfer protein II) | E121: 2 | F121: 21.00 | G121: 19.39 | H121: 18.51 | I121: 18.72 | J121: 19.38 | K121: 19.40 | L121: 19.78 | M121: 21.95 | N121: 23.31 | O121: 23.62 | P121: 19.19 | Q121: 21.57 | R121: TRUE | S121: 0.1592 | T121: 2.17 | U121: 4.51 | X121: 18.14 | Y121: 17.74 | Z121: 19.17 | AA121: 18.62 | AB121: 20.93 | AC121: 18.92 | AD121: 18.48 | AE121: 20.89 | AF121: 21.36 | AG121: 20.96 | AH121: 19.15 | AI121: 20.17 | AJ121: TRUE | AK121: 0.2311 | AL121: 1.25 | AM121: 2.38
A122: Q5TZA2 | B122: CROCC | C122: CROCC KIAA0445 | D122: Rootletin (Ciliary rootlet coiled-coil protein) | E122: 4 | F122: 18.90 | G122: 24.47 | H122: 19.82 | I122: 19.64 | J122: 19.63 | K122: 20.49 | L122: 21.97 | M122: 18.99 | N122: 24.76 | O122: 24.99 | P122: 21.60 | Q122: 22.46 | R122: TRUE | S122: 0.3717 | T122: 1.97 | U122: 3.92 | X122: 21.38 | Y122: 23.36 | Z122: 22.36 | AA122: 18.71 | AB122: 22.40 | AC122: 21.64 | AD122: 18.51 | AE122: 23.52 | AF122: 19.31 | AG122: 18.16 | AH122: 19.08 | AI122: 19.72 | AJ122: TRUE | AK122: 0.0552 | AL122: -1.93 | AM122: 0.26
A123: Q9H299 | B123: SH3BGRL3 | C123: SH3BGRL3 P1725 | D123: SH3 domain-binding glutamic acid-rich-like protein 3 (SH3 domain-binding protein 1) (SH3BP-1) | E123: 3 | F123: 22.92 | G123: 19.21 | H123: 18.26 | I123: 21.85 | J123: 22.77 | K123: 21.00 | L123: 22.93 | M123: 22.68 | N123: 22.49 | O123: 23.46 | P123: 23.00 | Q123: 22.91 | R123: TRUE | S123: 0.0871 | T123: 1.91 | U123: 3.76 | X123: 22.09 | Y123: 22.15 | Z123: 21.60 | AA123: 22.11 | AB123: 21.91 | AC123: 21.97 | AD123: 22.83 | AE123: 21.67 | AF123: 21.46 | AG123: 21.14 | AH123: 22.01 | AI123: 21.82 | AJ123: TRUE | AK123: 0.6241 | AL123: -0.15 | AM123: 0.90
A124: P04004 | B124: VTN | C124: VTN | D124: Vitronectin (VN) (S-protein) (Serum-spreading factor) (V75) [Cleaved into: Vitronectin V65 subunit; Vitronectin V10 subunit; Somatomedin-B] | E124: 8 | F124: 24.14 | G124: 19.77 | H124: 23.55 | I124: 21.26 | J124: 23.75 | K124: 22.50 | L124: 24.56 | M124: 23.62 | N124: 24.20 | O124: 24.83 | P124: 24.64 | Q124: 24.37 | R124: TRUE | S124: 0.0674 | T124: 1.87 | U124: 3.67 | X124: 21.81 | Y124: 22.75 | Z124: 23.05 | AA124: 23.01 | AB124: 24.05 | AC124: 22.93 | AD124: 23.45 | AE124: 23.25 | AF124: 23.39 | AG124: 23.68 | AH124: 23.76 | AI124: 23.51 | AJ124: TRUE | AK124: 0.1402 | AL124: 0.57 | AM124: 1.49
A125: Q9UJY1 | B125: HSPB8 | C125: HSPB8 CRYAC E2IG1 HSP22 PP1629 | D125: Heat shock protein beta-8 (HspB8) (Alpha-crystallin C chain) (E2-induced gene 1 protein) (Protein kinase H11) (Small stress protein-like protein HSP22) | E125: 2 | F125: 19.23 | G125: 22.45 | H125: 18.41 | I125: 22.57 | J125: 19.72 | K125: 20.48 | L125: 23.08 | M125: 22.35 | N125: 22.60 | O125: 23.45 | P125: 20.04 | Q125: 22.31 | R125: TRUE | S125: 0.1148 | T125: 1.83 | U125: 3.56 | X125: 18.36 | Y125: 18.77 | Z125: 18.03 | AA125: 19.30 | AB125: 21.50 | AC125: 19.19 | AD125: 20.99 | AE125: 18.62 | AF125: 18.37 | AG125: 17.69 | AH125: 21.69 | AI125: 19.47 | AK125: 0.7030 | AL125: 0.28 | AM125: 1.21
A126: P49006 | B126: MARCKSL1 | C126: MARCKSL1 MLP MRP | D126: MARCKS-related protein (MARCKS-like protein 1) (Macrophage myristoylated alanine-rich C kinase substrate) (Mac-MARCKS) (MacMARCKS) | E126: 2 | F126: 19.15 | G126: 22.51 | H126: 19.43 | I126: 20.02 | J126: 20.05 | K126: 20.23 | L126: 22.98 | M126: 22.37 | N126: 22.43 | O126: 22.53 | P126: 19.86 | Q126: 22.04 | R126: TRUE | S126: 0.0955 | T126: 1.80 | U126: 3.49 | X126: 21.95 | Y126: 19.25 | Z126: 19.10 | AA126: 18.43 | AB126: 18.23 | AC126: 19.39 | AD126: 18.12 | AE126: 21.69 | AF126: 21.92 | AG126: 21.40 | AH126: 21.55 | AI126: 20.94 | AJ126: TRUE | AK126: 0.3175 | AL126: 1.54 | AM126: 2.91
A127: Q6UXX9 | B127: RSPO2 | C127: RSPO2 UNQ9384/PRO34209 | D127: R-spondin-2 (Roof plate-specific spondin-2) (hRspo2) | E127: 5 | F127: 19.46 | G127: 20.14 | H127: 20.39 | I127: 20.34 | J127: 19.50 | K127: 19.96 | L127: 23.31 | M127: 21.42 | N127: 22.24 | O127: 22.03 | P127: 19.42 | Q127: 21.69 | R127: TRUE | S127: 0.0527 | T127: 1.72 | U127: 3.30 | X127: 18.75 | Y127: 18.49 | Z127: 18.54 | AA127: 18.33 | AB127: 18.43 | AC127: 18.51 | AD127: 19.19 | AE127: 18.02 | AF127: 20.07 | AG127: 18.08 | AH127: 17.28 | AI127: 18.53 | AK127: 0.9664 | AL127: 0.02 | AM127: 1.01
A128: P02745 | B128: C1QA | C128: C1QA | D128: Complement C1q subcomponent subunit A | E128: 2 | F128: 20.18 | G128: 20.74 | H128: 21.16 | I128: 19.81 | J128: 20.02 | K128: 20.38 | L128: 21.44 | M128: 20.05 | N128: 25.07 | O128: 24.10 | P128: 19.61 | Q128: 22.06 | R128: TRUE | S128: 0.1850 | T128: 1.67 | U128: 3.19 | X128: 19.65 | Y128: 20.65 | Z128: 18.20 | AA128: 17.46 | AB128: 18.61 | AC128: 18.92 | AD128: 21.15 | AE128: 21.18 | AF128: 20.43 | AG128: 21.29 | AH128: 18.25 | AI128: 20.46 | AJ128: TRUE | AK128: 0.0985 | AL128: 1.55 | AM128: 2.92
A129: P17066 | B129: HSPA6 | C129: HSPA6 HSP70B' | D129: Heat shock 70 kDa protein 6 (Heat shock 70 kDa protein B') | E129: 12 | F129: 26.32 | G129: 19.36 | H129: 19.68 | I129: 19.52 | J129: 26.21 | K129: 22.22 | L129: 26.02 | M129: 26.61 | N129: 20.07 | O129: 19.83 | P129: 26.64 | Q129: 23.83 | R129: TRUE | S129: 0.3168 | T129: 1.62 | U129: 3.07 | X129: 25.95 | Y129: 17.81 | Z129: 25.16 | AA129: 18.45 | AB129: 25.44 | AC129: 22.56 | AD129: 25.29 | AE129: 25.45 | AF129: 18.26 | AG129: 25.35 | AH129: 25.28 | AI129: 23.93 | AJ129: TRUE | AK129: 0.6386 | AL129: 1.36 | AM129: 2.57
A130: P02792 | B130: FTL | C130: FTL | D130: Ferritin light chain (Ferritin L subunit) | E130: 6 | F130: 26.31 | G130: 21.78 | H130: 25.62 | I130: 23.93 | J130: 25.46 | K130: 24.62 | L130: 26.80 | M130: 26.18 | N130: 26.10 | O130: 26.28 | P130: 25.73 | Q130: 26.22 | R130: TRUE | S130: 0.1150 | T130: 1.60 | U130: 3.03 | X130: 24.25 | Y130: 25.63 | Z130: 25.30 | AA130: 24.54 | AB130: 24.51 | AC130: 24.85 | AD130: 26.69 | AE130: 26.44 | AF130: 26.30 | AG130: 25.15 | AH130: 26.00 | AI130: 26.12 | AJ130: TRUE | AK130: 0.0177 | AL130: 1.27 | AM130: 2.41 | AN130: TRUE | AO130: TRUE
A131: Q9UM22 | B131: EPDR1 | C131: EPDR1 MERP1 UCC1 | D131: Mammalian ependymin-related protein 1 (MERP-1) (Upregulated in colorectal cancer gene 1 protein) | E131: 3 | F131: 22.21 | G131: 19.09 | H131: 21.58 | I131: 22.79 | J131: 22.49 | K131: 21.63 | L131: 24.10 | M131: 22.50 | N131: 20.73 | O131: 23.57 | P131: 25.18 | Q131: 23.22 | R131: TRUE | S131: 0.1017 | T131: 1.58 | U131: 3.00 | X131: 22.16 | Y131: 21.29 | Z131: 22.09 | AA131: 18.07 | AB131: 18.86 | AC131: 20.50 | AD131: 23.78 | AE131: 22.56 | AF131: 23.31 | AG131: 22.48 | AH131: 22.57 | AI131: 22.94 | AJ131: TRUE | AK131: 0.0218 | AL131: 2.45 | AM131: 5.45 | AN131: TRUE | AO131: TRUE
A132: P35813 | B132: PPM1A | C132: PPM1A PPPM1A | D132: Protein phosphatase 1A (EC 3.1.3.16) (Protein phosphatase 2C isoform alpha) (PP2C-alpha) (Protein phosphatase IA) | E132: 5 | F132: 18.75 | G132: 19.88 | H132: 18.69 | I132: 20.48 | J132: 18.71 | K132: 19.30 | L132: 22.11 | M132: 20.00 | N132: 21.63 | O132: 19.10 | P132: 21.49 | Q132: 20.87 | R132: TRUE | S132: 0.1674 | T132: 1.57 | U132: 2.96 | X132: 20.87 | Y132: 20.85 | Z132: 20.87 | AA132: 21.33 | AB132: 20.62 | AC132: 20.91 | AD132: 20.65 | AE132: 20.86 | AF132: 21.05 | AG132: 21.05 | AH132: 20.93 | AI132: 20.91 | AJ132: TRUE | AK132: 0.9921 | AL132: -0.00 | AM132: 1.00
A133: Q9Y696 | B133: CLIC4 | C133: CLIC4 | D133: Chloride intracellular channel protein 4 (Intracellular chloride ion channel protein p64H1) | E133: 6 | F133: 19.37 | G133: 18.14 | H133: 19.25 | I133: 23.93 | J133: 19.50 | K133: 20.04 | L133: 22.81 | M133: 20.04 | N133: 23.19 | O133: 23.56 | P133: 18.35 | Q133: 21.59 | R133: TRUE | S133: 0.1990 | T133: 1.55 | U133: 2.93 | X133: 20.71 | Y133: 23.31 | Z133: 21.08 | AA133: 19.87 | AB133: 20.41 | AC133: 21.08 | AD133: 20.97 | AE133: 22.54 | AF133: 21.36 | AG133: 19.82 | AH133: 20.77 | AI133: 21.09 | AJ133: TRUE | AK133: 0.9416 | AL133: 0.02 | AM133: 1.01
A134: O94772 | B134: LY6H | C134: LY6H | D134: Lymphocyte antigen 6H (Ly-6H) | E134: 4 | F134: 20.19 | G134: 19.25 | H134: 19.36 | I134: 24.16 | J134: 24.11 | K134: 21.41 | L134: 19.25 | M134: 23.59 | N134: 23.89 | O134: 24.01 | P134: 23.94 | Q134: 22.94 | R134: TRUE | S134: 0.2722 | T134: 1.52 | U134: 2.88 | X134: 22.42 | Y134: 21.88 | Z134: 21.68 | AA134: 18.90 | AB134: 17.87 | AC134: 20.55 | AD134: 22.07 | AE134: 18.60 | AF134: 21.94 | AG134: 22.10 | AH134: 21.91 | AI134: 21.32 | AJ134: TRUE | AK134: 0.5870 | AL134: 0.78 | AM134: 1.71
A135: Q9Y5L3 | B135: ENTPD2 | C135: ENTPD2 CD39L1 | D135: Ectonucleoside triphosphate diphosphohydrolase 2 (NTPDase 2) (EC 3.6.1.-) (CD39 antigen-like 1) (Ecto-ATP diphosphohydrolase 2) (Ecto-ATPDase 2) (Ecto-ATPase 2) | E135: 7 | F135: 19.25 | G135: 19.27 | H135: 19.61 | I135: 19.47 | J135: 18.70 | K135: 19.26 | L135: 20.09 | M135: 21.83 | N135: 23.00 | O135: 19.30 | P135: 19.54 | Q135: 20.75 | S135: 0.0820 | T135: 1.49 | U135: 2.81 | X135: 20.18 | Y135: 23.27 | Z135: 20.51 | AA135: 19.41 | AB135: 19.68 | AC135: 20.61 | AD135: 21.32 | AE135: 22.44 | AF135: 20.34 | AG135: 19.45 | AH135: 19.58 | AI135: 20.62 | AJ135: TRUE | AK135: 0.9621 | AL135: 0.02 | AM135: 1.01
A136: Q96MC5 | B136: BMERB1 | C136: BMERB1 C16orf45 | D136: bMERB domain-containing protein 1 | E136: 2 | F136: 21.52 | G136: 21.65 | H136: 18.69 | I136: 19.51 | J136: 18.92 | K136: 20.06 | L136: 21.54 | M136: 21.58 | N136: 21.82 | O136: 22.54 | P136: 19.90 | Q136: 21.48 | R136: TRUE | S136: 0.1131 | T136: 1.42 | U136: 2.68 | X136: 18.90 | Y136: 18.71 | Z136: 19.03 | AA136: 17.94 | AB136: 17.54 | AC136: 18.43 | AD136: 18.03 | AE136: 18.02 | AF136: 17.46 | AG136: 18.59 | AH136: 18.74 | AI136: 18.17 | AK136: 0.6441 | AL136: -0.26 | AM136: 0.84
A137: Q9ULA0 | B137: DNPEP | C137: DNPEP ASPEP DAP | D137: Aspartyl aminopeptidase (EC 3.4.11.21) | E137: 6 | F137: 21.94 | G137: 22.91 | H137: 20.13 | I137: 18.59 | J137: 21.49 | K137: 21.01 | L137: 22.92 | M137: 22.58 | N137: 22.43 | O137: 22.21 | P137: 21.96 | Q137: 22.42 | R137: TRUE | S137: 0.1146 | T137: 1.41 | U137: 2.65 | X137: 20.61 | Y137: 20.98 | Z137: 20.75 | AA137: 20.30 | AB137: 20.58 | AC137: 20.64 | AD137: 20.90 | AE137: 20.95 | AF137: 19.58 | AG137: 20.19 | AH137: 21.19 | AI137: 20.56 | AJ137: TRUE | AK137: 0.7975 | AL137: -0.08 | AM137: 0.94
A138: P49674 | B138: CSNK1E | C138: CSNK1E | D138: Casein kinase I isoform epsilon (CKI-epsilon) (CKIe) (EC 2.7.11.1) | E138: 4 | F138: 21.71 | G138: 21.60 | H138: 18.30 | I138: 21.84 | J138: 21.83 | K138: 21.06 | L138: 22.19 | M138: 22.93 | N138: 22.93 | O138: 22.80 | P138: 21.45 | Q138: 22.46 | R138: TRUE | S138: 0.1773 | T138: 1.40 | U138: 2.64 | X138: 20.83 | Y138: 20.32 | Z138: 20.92 | AA138: 21.23 | AB138: 21.09 | AC138: 20.88 | AD138: 21.15 | AE138: 20.73 | AF138: 21.89 | AG138: 20.52 | AH138: 21.07 | AI138: 21.07 | AJ138: TRUE | AK138: 0.5190 | AL138: 0.19 | AM138: 1.14
A139: P11182 | B139: DBT | C139: DBT BCATE2 | D139: Lipoamide acyltransferase component of branched-chain alpha-keto acid dehydrogenase complex, mitochondrial (EC 2.3.1.168) (52 kDa mitochondrial autoantigen of primary biliary cirrhosis) (Branched chain 2-oxo-acid dehydrogenase complex component E2) (BCOADC-E2) (Branched-chain alpha-keto acid dehydrogenase complex component E2) (BCKAD-E2) (BCKADE2) (Dihydrolipoamide acetyltransferase component of branched-chain alpha-keto acid dehydrogenase complex) (Dihydrolipoamide branched chain transacylase) (Dihydrolipoyllysine-residue (2-methylpropanoyl)transferase) | E139: 5 | F139: 22.27 | G139: 18.99 | H139: 20.25 | I139: 18.74 | J139: 22.60 | K139: 20.57 | L139: 21.76 | M139: 21.85 | N139: 21.87 | O139: 21.87 | P139: 22.42 | Q139: 21.95 | R139: TRUE | S139: 0.1392 | T139: 1.39 | U139: 2.61 | X139: 21.70 | Y139: 18.77 | Z139: 18.53 | AA139: 21.53 | AB139: 18.27 | AC139: 19.76 | AD139: 21.60 | AE139: 20.72 | AF139: 21.61 | AG139: 18.36 | AH139: 21.07 | AI139: 20.67 | AJ139: TRUE | AK139: 0.4783 | AL139: 0.91 | AM139: 1.88
A140: Q9Y2E4 | B140: DIP2C | C140: DIP2C KIAA0934 | D140: Disco-interacting protein 2 homolog C (DIP2 homolog C) | E140: 6 | F140: 19.09 | G140: 19.97 | H140: 19.63 | I140: 18.63 | J140: 20.12 | K140: 19.49 | L140: 21.54 | M140: 21.51 | N140: 19.80 | O140: 21.17 | P140: 19.90 | Q140: 20.78 | S140: 0.0850 | T140: 1.30 | U140: 2.45 | X140: 20.24 | Y140: 20.75 | Z140: 20.07 | AA140: 20.19 | AB140: 20.42 | AC140: 20.34 | AD140: 20.36 | AE140: 20.17 | AF140: 20.28 | AG140: 20.69 | AH140: 20.71 | AI140: 20.44 | AJ140: TRUE | AK140: 0.5990 | AL140: 0.11 | AM140: 1.08
A141: Q4J6C6 | B141: PREPL | C141: PREPL KIAA0436 | D141: Prolyl endopeptidase-like (EC 3.4.21.-) (Prolylendopeptidase-like) | E141: 7 | F141: 22.15 | G141: 20.02 | H141: 21.89 | I141: 19.48 | J141: 21.63 | K141: 21.03 | L141: 23.05 | M141: 22.34 | N141: 21.97 | O141: 22.00 | P141: 22.27 | Q141: 22.33 | R141: TRUE | S141: 0.0542 | T141: 1.29 | U141: 2.45 | X141: 21.91 | Y141: 22.49 | Z141: 22.06 | AA141: 21.52 | AB141: 21.23 | AC141: 21.84 | AD141: 21.80 | AE141: 21.94 | AF141: 21.73 | AG141: 21.86 | AH141: 21.58 | AI141: 21.78 | AJ141: TRUE | AK141: 0.7607 | AL141: -0.06 | AM141: 0.96
A142: Q13510 | B142: ASAH1 | C142: ASAH1 ASAH HSD-33 HSD33 | D142: Acid ceramidase (AC) (ACDase) (Acid CDase) (EC 3.5.1.23) (Acylsphingosine deacylase) (N-acylethanolamine hydrolase ASAH1) (EC 3.5.1.-) (N-acylsphingosine amidohydrolase) (Putative 32 kDa heart protein) (PHP32) [Cleaved into: Acid ceramidase subunit alpha; Acid ceramidase subunit beta] | E142: 8 | F142: 21.57 | G142: 21.83 | H142: 24.26 | I142: 21.74 | J142: 21.84 | K142: 22.25 | L142: 24.11 | M142: 23.86 | N142: 22.82 | O142: 23.90 | P142: 22.94 | Q142: 23.53 | R142: TRUE | S142: 0.1510 | T142: 1.28 | U142: 2.42 | X142: 21.79 | Y142: 21.78 | Z142: 21.44 | AA142: 20.91 | AB142: 20.95 | AC142: 21.37 | AD142: 22.50 | AE142: 22.46 | AF142: 22.21 | AG142: 21.50 | AH142: 21.83 | AI142: 22.10 | AJ142: TRUE | AK142: 0.0001 | AL142: 0.73 | AM142: 1.66 | AN142: TRUE | AO142: TRUE | AQ142: TRUE
A143: P43003 | B143: SLC1A3 | C143: SLC1A3 EAAT1 GLAST GLAST1 | D143: Excitatory amino acid transporter 1 (Sodium-dependent glutamate/aspartate transporter 1) (GLAST-1) (Solute carrier family 1 member 3) | E143: 6 | F143: 26.37 | G143: 19.96 | H143: 25.50 | I143: 23.89 | J143: 25.86 | K143: 24.32 | L143: 25.89 | M143: 25.43 | N143: 24.46 | O143: 26.19 | P143: 25.96 | Q143: 25.59 | R143: TRUE | S143: 0.3466 | T143: 1.27 | U143: 2.42 | X143: 23.77 | Y143: 25.11 | Z143: 24.66 | AA143: 24.21 | AB143: 25.33 | AC143: 24.61 | AD143: 24.91 | AE143: 25.04 | AF143: 25.14 | AG143: 25.52 | AH143: 25.34 | AI143: 25.19 | AJ143: TRUE | AK143: 0.1117 | AL143: 0.58 | AM143: 1.49
A144: Q14498 | B144: RBM39 | C144: RBM39 HCC1 RNPC2 | D144: RNA-binding protein 39 (CAPER alpha) (Hepatocellular carcinoma protein 1) (RNA-binding motif protein 39) (RNA-binding region-containing protein 2) (Splicing factor HCC1) | E144: 4 | F144: 19.56 | G144: 17.05 | H144: 19.10 | I144: 19.33 | J144: 20.63 | K144: 19.13 | L144: 20.62 | M144: 20.64 | N144: 20.73 | O144: 18.83 | P144: 21.16 | Q144: 20.40 | R144: TRUE | S144: 0.1371 | T144: 1.26 | U144: 2.40 | X144: 19.76 | Y144: 19.56 | Z144: 20.37 | AA144: 19.55 | AB144: 19.02 | AC144: 19.65 | AD144: 18.93 | AE144: 19.26 | AF144: 19.86 | AG144: 19.61 | AH144: 19.09 | AI144: 19.35 | AJ144: TRUE | AK144: 0.1531 | AL144: -0.30 | AM144: 0.81
A145: Q16849 | B145: PTPRN | C145: PTPRN ICA3 ICA512 | D145: Receptor-type tyrosine-protein phosphatase-like N (R-PTP-N) (Islet cell antigen 512) (ICA 512) (Islet cell autoantigen 3) (PTP IA-2) [Cleaved into: ICA512-N-terminal fragment (ICA512-NTF); ICA512-transmembrane fragment (ICA512-TMF); ICA512-cleaved cytosolic fragment (ICA512-CCF)] | E145: 7 | F145: 21.76 | G145: 22.61 | H145: 19.92 | I145: 21.87 | J145: 21.58 | K145: 21.55 | L145: 22.93 | M145: 22.43 | N145: 22.57 | O145: 23.27 | P145: 22.85 | Q145: 22.81 | R145: TRUE | S145: 0.0484 | T145: 1.26 | U145: 2.40 | X145: 21.77 | Y145: 20.27 | Z145: 20.43 | AA145: 20.73 | AB145: 18.95 | AC145: 20.43 | AD145: 21.38 | AE145: 20.55 | AF145: 20.75 | AG145: 21.39 | AH145: 20.88 | AI145: 20.99 | AJ145: TRUE | AK145: 0.2183 | AL145: 0.56 | AM145: 1.47
A146: O94813 | B146: SLIT2 | C146: SLIT2 SLIL3 | D146: Slit homolog 2 protein (Slit-2) [Cleaved into: Slit homolog 2 protein N-product; Slit homolog 2 protein C-product] | E146: 7 | F146: 19.62 | G146: 20.52 | H146: 18.61 | I146: 20.82 | J146: 19.20 | K146: 19.76 | L146: 22.11 | M146: 17.75 | N146: 23.23 | O146: 22.22 | P146: 19.76 | Q146: 21.02 | R146: TRUE | S146: 0.3588 | T146: 1.26 | U146: 2.40 | X146: 17.89 | Y146: 17.97 | Z146: 19.33 | AA146: 18.74 | AB146: 18.19 | AC146: 18.42 | AD146: 19.90 | AE146: 18.28 | AF146: 20.60 | AG146: 18.37 | AH146: 19.32 | AI146: 19.29 | AJ146: TRUE | AK146: 0.1014 | AL146: 0.87 | AM146: 1.83 | AP146: TRUE | AQ146: TRUE | AR146: TRUE
A147: Q92696 | B147: RABGGTA | C147: RABGGTA | D147: Geranylgeranyl transferase type-2 subunit alpha (EC 2.5.1.60) (Geranylgeranyl transferase type II subunit alpha) (Rab geranyl-geranyltransferase subunit alpha) (Rab GG transferase alpha) (Rab GGTase alpha) (Rab geranylgeranyltransferase subunit alpha) | E147: 8 | F147: 19.15 | G147: 23.70 | H147: 23.56 | I147: 22.40 | J147: 20.21 | K147: 21.80 | L147: 22.35 | M147: 22.72 | N147: 23.49 | O147: 24.26 | P147: 22.43 | Q147: 23.05 | R147: TRUE | S147: 0.1809 | T147: 1.24 | U147: 2.37 | X147: 21.76 | Y147: 21.50 | Z147: 21.54 | AA147: 21.10 | AB147: 21.18 | AC147: 21.42 | AD147: 21.17 | AE147: 21.99 | AF147: 20.98 | AG147: 21.14 | AH147: 21.59 | AI147: 21.38 | AJ147: TRUE | AK147: 0.8700 | AL147: -0.04 | AM147: 0.97
A148: Q9NTI2 | B148: ATP8A2 | C148: ATP8A2 ATPIB | D148: Phospholipid-transporting ATPase IB (EC 7.6.2.1) (ATPase class I type 8A member 2) (ML-1) (P4-ATPase flippase complex alpha subunit ATP8A2) | E148: 5 | F148: 20.72 | G148: 18.60 | H148: 19.15 | I148: 19.32 | J148: 21.10 | K148: 19.78 | L148: 22.09 | M148: 21.27 | N148: 20.13 | O148: 21.60 | P148: 19.98 | Q148: 21.01 | R148: TRUE | S148: 0.1361 | T148: 1.24 | U148: 2.36 | X148: 18.88 | Y148: 18.00 | Z148: 17.47 | AA148: 18.14 | AB148: 17.63 | AC148: 18.02 | AD148: 18.91 | AE148: 18.33 | AF148: 18.43 | AG148: 19.03 | AH148: 19.09 | AI148: 18.76 | AK148: 0.0435 | AL148: 0.73 | AM148: 1.66
A149: Q8IYB5 | B149: SMAP1 | C149: SMAP1 | D149: Stromal membrane-associated protein 1 | E149: 4 | F149: 22.48 | G149: 19.56 | H149: 21.43 | I149: 20.57 | J149: 18.77 | K149: 20.56 | L149: 21.82 | M149: 22.13 | N149: 21.47 | O149: 22.10 | P149: 21.29 | Q149: 21.76 | R149: TRUE | S149: 0.1405 | T149: 1.20 | U149: 2.30 | X149: 20.95 | Y149: 20.75 | Z149: 20.76 | AA149: 21.27 | AB149: 21.15 | AC149: 20.98 | AD149: 17.66 | AE149: 20.75 | AF149: 20.94 | AG149: 20.93 | AH149: 20.64 | AI149: 20.18 | AJ149: TRUE | AK149: 0.2817 | AL149: -0.79 | AM149: 0.58
A150: Q8WXA3 | B150: RUFY2 | C150: RUFY2 KIAA1537 RABIP4R | D150: RUN and FYVE domain-containing protein 2 (Rab4-interacting protein related) | E150: 4 | F150: 21.04 | G150: 21.48 | H150: 19.20 | I150: 21.68 | J150: 19.52 | K150: 20.58 | L150: 22.25 | M150: 22.10 | N150: 22.07 | O150: 22.03 | P150: 20.39 | Q150: 21.77 | R150: TRUE | S150: 0.0565 | T150: 1.18 | U150: 2.27 | X150: 18.17 | Y150: 18.41 | Z150: 18.12 | AA150: 18.36 | AB150: 19.47 | AC150: 18.51 | AD150: 20.04 | AE150: 18.04 | AF150: 18.25 | AG150: 17.01 | AH150: 17.23 | AI150: 18.12 | AK150: 0.6069 | AL150: -0.39 | AM150: 0.76
A151: Q14019 | B151: COTL1 | C151: COTL1 CLP | D151: Coactosin-like protein | E151: 8 | F151: 22.93 | G151: 23.43 | H151: 19.28 | I151: 21.26 | J151: 23.95 | K151: 22.17 | L151: 23.54 | M151: 23.08 | N151: 23.60 | O151: 22.55 | P151: 23.90 | Q151: 23.33 | R151: TRUE | S151: 0.2366 | T151: 1.17 | U151: 2.24 | X151: 23.59 | Y151: 23.78 | Z151: 23.32 | AA151: 22.54 | AB151: 23.19 | AC151: 23.28 | AD151: 23.37 | AE151: 23.38 | AF151: 23.44 | AG151: 22.57 | AH151: 22.70 | AI151: 23.09 | AJ151: TRUE | AK151: 0.1874 | AL151: -0.19 | AM151: 0.88
A152: P19021 | B152: PAM | C152: PAM | D152: Peptidyl-glycine alpha-amidating monooxygenase (PAM) [Includes: Peptidylglycine alpha-hydroxylating monooxygenase (PHM) (EC 1.14.17.3); Peptidyl-alpha-hydroxyglycine alpha-amidating lyase (EC 4.3.2.5) (Peptidylamidoglycolate lyase) (PAL)] | E152: 4 | F152: 20.68 | G152: 19.34 | H152: 20.16 | I152: 19.41 | J152: 20.59 | K152: 20.04 | L152: 21.24 | M152: 21.24 | N152: 20.42 | O152: 21.98 | P152: 21.08 | Q152: 21.19 | R152: TRUE | S152: 0.0648 | T152: 1.15 | U152: 2.22 | X152: 18.88 | Y152: 18.87 | Z152: 18.94 | AA152: 19.78 | AB152: 19.09 | AC152: 19.11 | AD152: 19.68 | AE152: 18.94 | AF152: 19.06 | AG152: 19.26 | AH152: 19.90 | AI152: 19.37 | AJ152: TRUE | AK152: 0.3696 | AL152: 0.25 | AM152: 1.19
A153: Q9Y623 | B153: MYH4 | C153: MYH4 | D153: Myosin-4 (Myosin heavy chain 2b) (MyHC-2b) (Myosin heavy chain 4) (Myosin heavy chain IIb) (MyHC-IIb) (Myosin heavy chain, skeletal muscle, fetal) | E153: 2 | F153: 24.63 | G153: 25.48 | H153: 25.65 | I153: 25.48 | J153: 19.47 | K153: 24.14 | L153: 25.53 | M153: 25.24 | N153: 26.13 | O153: 26.71 | P153: 22.86 | Q153: 25.29 | R153: TRUE | S153: 0.1335 | T153: 1.15 | U153: 2.22 | X153: 22.17 | Y153: 25.21 | Z153: 22.52 | AA153: 21.29 | AB153: 22.95 | AC153: 22.83 | AD153: 22.55 | AE153: 25.13 | AF153: 23.44 | AG153: 23.09 | AH153: 23.63 | AI153: 23.57 | AJ153: TRUE | AK153: 0.0761 | AL153: 0.74 | AM153: 1.67
A154: Q9NRD5 | B154: PICK1 | C154: PICK1 PRKCABP | D154: PRKCA-binding protein (Protein interacting with C kinase 1) (Protein kinase C-alpha-binding protein) | E154: 4 | F154: 18.61 | G154: 20.22 | H154: 21.50 | I154: 21.03 | J154: 21.21 | K154: 20.52 | L154: 21.35 | M154: 21.46 | N154: 21.63 | O154: 21.54 | P154: 22.33 | Q154: 21.66 | R154: TRUE | S154: 0.0621 | T154: 1.15 | U154: 2.21 | X154: 17.87 | Y154: 19.49 | Z154: 20.10 | AA154: 20.56 | AB154: 20.33 | AC154: 19.67 | AD154: 20.11 | AE154: 18.91 | AF154: 20.67 | AG154: 21.11 | AH154: 19.83 | AI154: 20.13 | AJ154: TRUE | AK154: 0.4230 | AL154: 0.45 | AM154: 1.37
A155: P02788 | B155: LTF | C155: LTF GIG12 LF | D155: Lactotransferrin (Lactoferrin) (EC 3.4.21.-) (Growth-inhibiting protein 12) (Talalactoferrin) [Cleaved into: Lactoferricin-H (Lfcin-H); Kaliocin-1; Lactoferroxin-A; Lactoferroxin-B; Lactoferroxin-C] | E155: 15 | F155: 20.19 | G155: 20.24 | H155: 19.66 | I155: 21.01 | J155: 21.98 | K155: 20.62 | L155: 25.16 | M155: 20.48 | N155: 21.13 | O155: 22.14 | P155: 19.86 | Q155: 21.76 | R155: TRUE | S155: 0.3759 | T155: 1.14 | U155: 2.20 | X155: 21.80 | Y155: 20.21 | Z155: 20.38 | AA155: 21.13 | AB155: 20.54 | AC155: 20.81 | AD155: 22.20 | AE155: 20.94 | AF155: 20.03 | AG155: 21.61 | AH155: 21.26 | AI155: 21.21 | AJ155: TRUE | AK155: 0.1154 | AL155: 0.40 | AM155: 1.32 | AP155: TRUE
A156: Q9UHQ9 | B156: CYB5R1 | C156: CYB5R1 NQO3A2 UNQ3049/PRO9865 | D156: NADH-cytochrome b5 reductase 1 (b5R.1) (EC 1.6.2.2) (Humb5R2) (NAD(P)H:quinone oxidoreductase type 3 polypeptide A2) | E156: 2 | F156: 18.94 | G156: 22.80 | H156: 22.72 | I156: 18.79 | J156: 19.03 | K156: 20.46 | L156: 22.40 | M156: 22.56 | N156: 23.04 | O156: 19.90 | P156: 20.05 | Q156: 21.59 | R156: TRUE | S156: 0.1472 | T156: 1.14 | U156: 2.20 | X156: 22.03 | Y156: 17.24 | Z156: 21.59 | AA156: 21.59 | AB156: 21.26 | AC156: 20.74 | AD156: 21.45 | AE156: 19.46 | AF156: 21.69 | AG156: 21.27 | AH156: 17.84 | AI156: 20.34 | AJ156: TRUE | AK156: 0.6796 | AL156: -0.40 | AM156: 0.76
A157: O14558 | B157: HSPB6 | C157: HSPB6 | D157: Heat shock protein beta-6 (HspB6) (Heat shock 20 kDa-like protein p20) | E157: 4 | F157: 23.37 | G157: 21.63 | H157: 20.46 | I157: 23.42 | J157: 21.79 | K157: 22.13 | L157: 23.95 | M157: 22.65 | N157: 23.95 | O157: 24.04 | P157: 21.72 | Q157: 23.26 | R157: TRUE | S157: 0.1404 | T157: 1.13 | U157: 2.19 | X157: 20.69 | Y157: 21.79 | Z157: 21.50 | AA157: 17.51 | AB157: 21.16 | AC157: 20.53 | AD157: 21.52 | AE157: 22.31 | AF157: 21.50 | AG157: 20.60 | AH157: 22.03 | AI157: 21.59 | AJ157: TRUE | AK157: 0.1161 | AL157: 1.06 | AM157: 2.09
A158: O94905 | B158: ERLIN2 | C158: ERLIN2 C8orf2 SPFH2 UNQ2441/PRO5003/PRO9924 | D158: Erlin-2 (Endoplasmic reticulum lipid raft-associated protein 2) (Stomatin-prohibitin-flotillin-HflC/K domain-containing protein 2) (SPFH domain-containing protein 2) | E158: 4 | F158: 18.77 | G158: 20.05 | H158: 21.68 | I158: 17.99 | J158: 19.43 | K158: 19.58 | L158: 19.16 | M158: 19.51 | N158: 21.57 | O158: 21.78 | P158: 21.53 | Q158: 20.71 | S158: 0.2323 | T158: 1.13 | U158: 2.18 | X158: 20.62 | Y158: 21.49 | Z158: 20.28 | AA158: 18.98 | AB158: 20.13 | AC158: 20.30 | AD158: 20.45 | AE158: 20.75 | AF158: 20.36 | AG158: 18.31 | AH158: 17.89 | AI158: 19.55 | AJ158: TRUE | AK158: 0.1354 | AL158: -0.75 | AM158: 0.59
A159: P05362 | B159: ICAM1 | C159: ICAM1 | D159: Intercellular adhesion molecule 1 (ICAM-1) (Major group rhinovirus receptor) (CD antigen CD54) | E159: 4 | F159: 21.27 | G159: 21.20 | H159: 19.11 | I159: 20.51 | J159: 19.31 | K159: 20.28 | L159: 22.02 | M159: 21.17 | N159: 22.33 | O159: 21.29 | P159: 20.17 | Q159: 21.39 | R159: TRUE | S159: 0.1133 | T159: 1.12 | U159: 2.17 | X159: 17.72 | Y159: 19.64 | Z159: 19.07 | AA159: 16.97 | AB159: 19.13 | AC159: 18.51 | AD159: 20.00 | AE159: 19.83 | AF159: 18.09 | AG159: 19.40 | AH159: 19.82 | AI159: 19.43 | AJ159: TRUE | AK159: 0.2268 | AL159: 0.92 | AM159: 1.90 | AP159: TRUE | AQ159: TRUE | AR159: TRUE
A160: Q96QE2 | B160: SLC2A13 | C160: SLC2A13 | D160: Proton myo-inositol cotransporter (H(+)-myo-inositol cotransporter) (Hmit) (H(+)-myo-inositol symporter) (Solute carrier family 2 member 13) | E160: 4 | F160: 21.17 | G160: 21.79 | H160: 19.12 | I160: 21.72 | J160: 20.97 | K160: 20.95 | L160: 22.30 | M160: 22.46 | N160: 22.14 | O160: 21.87 | P160: 21.58 | Q160: 22.07 | R160: TRUE | S160: 0.0894 | T160: 1.11 | U160: 2.17 | X160: 19.89 | Y160: 19.59 | Z160: 19.19 | AA160: 18.59 | AB160: 19.79 | AC160: 19.41 | AD160: 20.48 | AE160: 20.70 | AF160: 20.70 | AG160: 20.21 | AH160: 19.85 | AI160: 20.39 | AJ160: TRUE | AK160: 0.0286 | AL160: 0.98 | AM160: 1.97 | AN160: TRUE | AO160: TRUE
A161: O95352 | B161: ATG7 | C161: ATG7 APG7L | D161: Ubiquitin-like modifier-activating enzyme ATG7 (ATG12-activating enzyme E1 ATG7) (Autophagy-related protein 7) (APG7-like) (hAGP7) (Ubiquitin-activating enzyme E1-like protein) | E161: 6 | F161: 23.37 | G161: 19.40 | H161: 19.78 | I161: 20.08 | J161: 18.72 | K161: 20.27 | L161: 24.02 | M161: 23.59 | N161: 20.07 | O161: 19.78 | P161: 19.46 | Q161: 21.38 | S161: 0.2309 | T161: 1.11 | U161: 2.16 | X161: 22.59 | Y161: 22.69 | Z161: 22.64 | AA161: 18.18 | AB161: 22.77 | AC161: 21.77 | AD161: 22.55 | AE161: 22.73 | AF161: 22.47 | AG161: 21.94 | AH161: 22.53 | AI161: 22.44 | AJ161: TRUE | AK161: 0.4364 | AL161: 0.67 | AM161: 1.59
A162: O60645 | B162: EXOC3 | C162: EXOC3 SEC6 SEC6L1 | D162: Exocyst complex component 3 (Exocyst complex component Sec6) | E162: 5 | F162: 19.60 | G162: 19.21 | H162: 19.30 | I162: 18.51 | J162: 19.39 | K162: 19.20 | L162: 22.00 | M162: 19.38 | N162: 19.88 | O162: 18.92 | P162: 21.37 | Q162: 20.31 | S162: 0.0708 | T162: 1.10 | U162: 2.15 | X162: 19.80 | Y162: 19.67 | Z162: 18.19 | AA162: 18.31 | AB162: 19.66 | AC162: 19.12 | AD162: 17.66 | AE162: 16.84 | AF162: 19.53 | AG162: 19.42 | AH162: 19.62 | AI162: 18.62 | AJ162: TRUE | AK162: 0.5795 | AL162: -0.51 | AM162: 0.70
A163: Q69YW2 | B163: STUM | C163: STUM C1orf95 | D163: Protein stum homolog | E163: 3 | F163: 18.74 | G163: 19.65 | H163: 20.39 | I163: 23.87 | J163: 23.65 | K163: 21.26 | L163: 22.03 | M163: 22.46 | N163: 23.66 | O163: 20.39 | P163: 23.25 | Q163: 22.36 | R163: TRUE | S163: 0.4581 | T163: 1.10 | U163: 2.14 | X163: 22.59 | Y163: 18.39 | Z163: 21.68 | AA163: 23.05 | AB163: 23.06 | AC163: 21.76 | AD163: 21.94 | AE163: 21.90 | AF163: 21.88 | AG163: 22.14 | AH163: 21.75 | AI163: 21.92 | AJ163: TRUE | AK163: 0.8571 | AL163: 0.17 | AM163: 1.12
A164: Q04637 | B164: EIF4G1 | C164: EIF4G1 EIF4F EIF4G EIF4GI | D164: Eukaryotic translation initiation factor 4 gamma 1 (eIF-4-gamma 1) (eIF-4G 1) (eIF-4G1) (p220) | E164: 3 | F164: 20.36 | G164: 22.19 | H164: 19.56 | I164: 19.41 | J164: 18.92 | K164: 20.09 | L164: 21.86 | M164: 22.06 | N164: 22.17 | O164: 19.45 | P164: 20.34 | Q164: 21.18 | R164: TRUE | S164: 0.0982 | T164: 1.09 | U164: 2.13 | X164: 18.43 | Y164: 18.57 | Z164: 18.00 | AA164: 18.91 | AB164: 17.85 | AC164: 18.35 | AD164: 17.79 | AE164: 20.02 | AF164: 18.90 | AG164: 18.21 | AH164: 18.06 | AI164: 18.60 | AK164: 0.5948 | AL164: 0.24 | AM164: 1.18
A165: Q9BRF8 | B165: CPPED1 | C165: CPPED1 CSTP1 | D165: Serine/threonine-protein phosphatase CPPED1 (EC 3.1.3.16) (Calcineurin-like phosphoesterase domain-containing protein 1) (Complete S-transactivated protein 1) | E165: 3 | F165: 19.24 | G165: 20.63 | H165: 19.75 | I165: 18.08 | J165: 18.09 | K165: 19.16 | L165: 20.07 | M165: 19.56 | N165: 19.35 | O165: 21.00 | P165: 21.21 | Q165: 20.24 | S165: 0.2735 | T165: 1.08 | U165: 2.11 | X165: 20.13 | Y165: 20.83 | Z165: 20.33 | AA165: 20.44 | AB165: 19.84 | AC165: 20.31 | AD165: 20.11 | AE165: 19.95 | AF165: 20.25 | AG165: 20.09 | AH165: 19.69 | AI165: 20.02 | AJ165: TRUE | AK165: 0.1280 | AL165: -0.30 | AM165: 0.81
A166: P01860 | B166: IGHG3 | C166: IGHG3 | D166: Immunoglobulin heavy constant gamma 3 (HDC) (Heavy chain disease protein) (Ig gamma-3 chain C region) | E166: 12 | F166: 20.74 | G166: 23.57 | H166: 24.43 | I166: 22.95 | J166: 20.85 | K166: 22.51 | L166: 23.19 | M166: 23.42 | N166: 24.69 | O166: 24.48 | P166: 22.15 | Q166: 23.58 | R166: TRUE | S166: 0.0809 | T166: 1.08 | U166: 2.11 | X166: 18.22 | Y166: 21.23 | Z166: 21.55 | AA166: 17.15 | AB166: 17.76 | AC166: 19.18 | AD166: 21.31 | AE166: 22.03 | AF166: 22.54 | AG166: 22.08 | AH166: 18.64 | AI166: 21.32 | AJ166: TRUE | AK166: 0.0589 | AL166: 2.14 | AM166: 4.40
A167: Q9Y296 | B167: TRAPPC4 | C167: TRAPPC4 SBDN CGI-104 HSPC172 PTD009 | D167: Trafficking protein particle complex subunit 4 (Hematopoietic stem/progenitor cell protein 172) (Synbindin) (TRS23 homolog) | E167: 3 | F167: 18.83 | G167: 18.54 | H167: 18.95 | I167: 21.31 | J167: 21.68 | K167: 19.86 | L167: 21.04 | M167: 21.37 | N167: 21.66 | O167: 19.06 | P167: 21.54 | Q167: 20.93 | R167: TRUE | S167: 0.3383 | T167: 1.07 | U167: 2.10 | X167: 18.73 | Y167: 16.94 | Z167: 18.35 | AA167: 20.99 | AB167: 20.89 | AC167: 19.18 | AD167: 18.74 | AE167: 21.15 | AF167: 18.26 | AG167: 20.77 | AH167: 20.65 | AI167: 19.91 | AJ167: TRUE | AK167: 0.4474 | AL167: 0.73 | AM167: 1.66
A168: Q9NUJ3 | B168: TCP11L1 | C168: TCP11L1 | D168: T-complex protein 11-like protein 1 | E168: 2 | F168: 19.10 | G168: 19.52 | H168: 18.98 | I168: 18.83 | J168: 19.41 | K168: 19.17 | L168: 20.46 | M168: 19.85 | N168: 20.21 | O168: 20.38 | P168: 20.27 | Q168: 20.24 | S168: 0.0077 | T168: 1.07 | U168: 2.10 | X168: 18.51 | Y168: 18.16 | Z168: 18.90 | AA168: 19.04 | AB168: 17.95 | AC168: 18.51 | AD168: 16.67 | AE168: 18.96 | AF168: 19.17 | AG168: 20.00 | AH168: 19.20 | AI168: 18.80 | AJ168: TRUE | AK168: 0.6298 | AL168: 0.29 | AM168: 1.22
A169: O95139 | B169: NDUFB6 | C169: NDUFB6 | D169: NADH dehydrogenase [ubiquinone] 1 beta subcomplex subunit 6 (Complex I-B17) (CI-B17) (NADH-ubiquinone oxidoreductase B17 subunit) | E169: 2 | F169: 19.75 | G169: 23.25 | H169: 18.80 | I169: 18.76 | J169: 23.81 | K169: 20.88 | L169: 19.95 | M169: 22.98 | N169: 19.72 | O169: 23.14 | P169: 23.92 | Q169: 21.94 | R169: TRUE | S169: 0.2783 | T169: 1.07 | U169: 2.09 | X169: 17.41 | Y169: 22.38 | Z169: 20.27 | AA169: 22.51 | AB169: 18.04 | AC169: 20.12 | AD169: 21.78 | AE169: 21.74 | AF169: 21.96 | AG169: 22.57 | AH169: 18.22 | AI169: 21.26 | AJ169: TRUE | AK169: 0.2724 | AL169: 1.14 | AM169: 2.20
A170: P13796 | B170: LCP1 | C170: LCP1 PLS2 | D170: Plastin-2 (L-plastin) (LC64P) (Lymphocyte cytosolic protein 1) (LCP-1) | E170: 7 | F170: 20.01 | G170: 19.36 | H170: 21.59 | I170: 20.30 | J170: 20.39 | K170: 20.33 | L170: 21.83 | M170: 21.20 | N170: 21.12 | O170: 21.37 | P170: 21.45 | Q170: 21.39 | R170: TRUE | S170: 0.0645 | T170: 1.07 | U170: 2.09 | X170: 18.67 | Y170: 19.67 | Z170: 18.55 | AA170: 19.03 | AB170: 19.34 | AC170: 19.05 | AD170: 19.91 | AE170: 19.98 | AF170: 20.47 | AG170: 19.81 | AH170: 20.10 | AI170: 20.05 | AJ170: TRUE | AK170: 0.0209 | AL170: 1.00 | AM170: 2.00 | AN170: TRUE | AO170: TRUE
A171: Q96Q05 | B171: TRAPPC9 | C171: TRAPPC9 KIAA1882 NIBP T1 | D171: Trafficking protein particle complex subunit 9 (NIK- and IKBKB-binding protein) (Tularik gene 1 protein) | E171: 3 | F171: 20.44 | G171: 19.93 | H171: 18.68 | I171: 21.35 | J171: 21.58 | K171: 20.40 | L171: 21.57 | M171: 22.14 | N171: 21.74 | O171: 20.64 | P171: 21.18 | Q171: 21.45 | R171: TRUE | S171: 0.2207 | T171: 1.05 | U171: 2.08 | X171: 18.32 | Y171: 18.19 | Z171: 17.76 | AA171: 17.61 | AB171: 20.00 | AC171: 18.38 | AD171: 17.77 | AE171: 19.03 | AF171: 19.37 | AG171: 18.76 | AH171: 18.36 | AI171: 18.66 | AK171: 0.6652 | AL171: 0.28 | AM171: 1.21
A172: Q9NXA8 | B172: SIRT5 | C172: SIRT5 SIR2L5 | D172: NAD-dependent protein deacylase sirtuin-5, mitochondrial (EC 2.3.1.-) (Regulatory protein SIR2 homolog 5) (SIR2-like protein 5) | E172: 3 | F172: 19.92 | G172: 18.86 | H172: 20.35 | I172: 18.63 | J172: 17.79 | K172: 19.11 | L172: 19.74 | M172: 19.34 | N172: 19.83 | O172: 20.93 | P172: 20.96 | Q172: 20.16 | S172: 0.2177 | T172: 1.05 | U172: 2.07 | X172: 19.84 | Y172: 20.30 | Z172: 17.27 | AA172: 19.67 | AB172: 19.48 | AC172: 19.31 | AD172: 19.35 | AE172: 19.66 | AF172: 18.06 | AG172: 18.37 | AH172: 18.59 | AI172: 18.81 | AJ172: TRUE | AK172: 0.2220 | AL172: -0.51 | AM172: 0.70
A173: O00560 | B173: SDCBP | C173: SDCBP MDA9 SYCL | D173: Syntenin-1 (Melanoma differentiation-associated protein 9) (MDA-9) (Pro-TGF-alpha cytoplasmic domain-interacting protein 18) (TACIP18) (Scaffold protein Pbp1) (Syndecan-binding protein 1) | E173: 6 | F173: 21.53 | G173: 21.27 | H173: 21.19 | I173: 21.64 | J173: 19.04 | K173: 20.93 | L173: 21.88 | M173: 21.98 | N173: 21.95 | O173: 22.38 | P173: 21.57 | Q173: 21.95 | R173: TRUE | S173: 0.0579 | T173: 1.02 | U173: 2.03 | X173: 20.21 | Y173: 20.20 | Z173: 19.27 | AA173: 19.89 | AB173: 20.11 | AC173: 19.94 | AD173: 20.31 | AE173: 20.17 | AF173: 19.26 | AG173: 20.32 | AH173: 20.58 | AI173: 20.13 | AJ173: TRUE | AK173: 0.1522 | AL173: 0.19 | AM173: 1.14
A174: Q15274 | B174: QPRT | C174: QPRT | D174: Nicotinate-nucleotide pyrophosphorylase [carboxylating] (EC 2.4.2.19) (Quinolinate phosphoribosyltransferase [decarboxylating]) (QAPRTase) (QPRTase) | E174: 2 | F174: 18.05 | G174: 19.27 | H174: 19.58 | I174: 20.58 | J174: 19.59 | K174: 19.41 | L174: 19.69 | M174: 18.59 | N174: 23.90 | O174: 19.95 | P174: 20.03 | Q174: 20.43 | S174: 0.3333 | T174: 1.02 | U174: 2.03 | X174: 17.46 | Y174: 21.93 | Z174: 20.97 | AA174: 20.39 | AB174: 20.10 | AC174: 20.17 | AD174: 21.23 | AE174: 18.69 | AF174: 21.80 | AG174: 17.55 | AH174: 20.54 | AI174: 19.96 | AJ174: TRUE | AK174: 0.8789 | AL174: -0.21 | AM174: 0.86
A175: Q92529 | B175: SHC3 | C175: SHC3 NSHC SHCC | D175: SHC-transforming protein 3 (Neuronal Shc) (N-Shc) (Protein Rai) (SHC-transforming protein C) (Src homology 2 domain-containing-transforming protein C3) (SH2 domain protein C3) | E175: 3 | F175: 18.56 | G175: 20.78 | H175: 18.61 | I175: 20.18 | J175: 18.62 | K175: 19.35 | L175: 20.18 | M175: 20.54 | N175: 20.44 | O175: 20.41 | P175: 20.26 | Q175: 20.37 | R175: TRUE | S175: 0.0756 | T175: 1.02 | U175: 2.02 | X175: 18.08 | Y175: 18.14 | Z175: 20.03 | AA175: 20.39 | AB175: 19.88 | AC175: 19.30 | AD175: 17.59 | AE175: 19.63 | AF175: 20.15 | AG175: 20.30 | AH175: 19.54 | AI175: 19.44 | AJ175: TRUE | AK175: 0.7151 | AL175: 0.14 | AM175: 1.10
A176: P01903 | B176: HLA-DRA | C176: HLA-DRA HLA-DRA1 | D176: HLA class II histocompatibility antigen, DR alpha chain (MHC class II antigen DRA) | E176: 3 | F176: 18.76 | G176: 20.25 | H176: 19.38 | I176: 18.89 | J176: 19.22 | K176: 19.30 | L176: 20.86 | M176: 20.57 | N176: 19.68 | O176: 20.98 | P176: 19.46 | Q176: 20.31 | R176: TRUE | S176: 0.0859 | T176: 1.01 | U176: 2.01 | X176: 17.61 | Y176: 18.30 | Z176: 18.42 | AA176: 18.73 | AB176: 18.46 | AC176: 18.31 | AD176: 19.13 | AE176: 18.64 | AF176: 18.97 | AG176: 19.76 | AH176: 19.06 | AI176: 19.11 | AJ176: TRUE | AK176: 0.0186 | AL176: 0.81 | AM176: 1.75 | AN176: TRUE | AO176: TRUE | AP176: TRUE | AQ176: TRUE | AR176: TRUE
A177: P17612 | B177: PRKACA | C177: PRKACA PKACA | D177: cAMP-dependent protein kinase catalytic subunit alpha (PKA C-alpha) (EC 2.7.11.11) | E177: 9 | F177: 21.05 | G177: 19.97 | H177: 18.40 | I177: 19.40 | J177: 20.57 | K177: 19.88 | L177: 21.65 | M177: 21.24 | N177: 20.96 | O177: 20.14 | P177: 20.34 | Q177: 20.87 | R177: TRUE | S177: 0.0987 | T177: 0.99 | U177: 1.98 | X177: 20.47 | Y177: 20.21 | Z177: 20.69 | AA177: 20.26 | AB177: 19.16 | AC177: 20.16 | AD177: 20.52 | AE177: 20.09 | AF177: 20.68 | AG177: 20.29 | AH177: 20.49 | AI177: 20.41 | AJ177: TRUE | AK177: 0.3965 | AL177: 0.26 | AM177: 1.19
A178: O15530 | B178: PDPK1 | C178: PDPK1 PDK1 | D178: 3-phosphoinositide-dependent protein kinase 1 (hPDK1) (EC 2.7.11.1) | E178: 4 | F178: 19.15 | G178: 18.89 | H178: 19.03 | I178: 19.57 | J178: 19.63 | K178: =AVERAGE(F178:J178) -> 19.25 | L178: 20.33 | M178: 20.84 | N178: 18.76 | O178: 20.50 | P178: 20.78 | Q178: =AVERAGE(L178:P178) -> 20.24 | R178: TRUE | S178: 0.0519 | T178: 0.99 | U178: =2^T178 -> 1.98 | X178: 19.22 | Y178: 19.07 | Z178: 19.27 | AA178: 19.44 | AB178: 19.52 | AC178: =AVERAGE(X178:AB178) -> 19.31 | AD178: 18.97 | AE178: 17.25 | AF178: 19.10 | AG178: 19.54 | AH178: 19.49 | AI178: =AVERAGE(AD178:AH178) -> 18.87 | AJ178: TRUE | AK178: 0.2819 | AL178: -0.44 | AM178: =2^AL178 -> 0.74
A179: Q14515 | B179: SPARCL1 | C179: SPARCL1 | D179: SPARC-like protein 1 (High endothelial venule protein) (Hevin) (MAST 9) | E179: 4 | F179: 21.68 | G179: 19.25 | H179: 20.27 | I179: 20.38 | J179: 21.10 | K179: 20.54 | L179: 22.64 | M179: 21.69 | N179: 19.76 | O179: 21.73 | P179: 21.72 | Q179: 21.51 | R179: TRUE | S179: 0.1136 | T179: 0.97 | U179: 1.96 | X179: 19.54 | Y179: 19.76 | Z179: 20.66 | AA179: 20.68 | AB179: 20.11 | AC179: 20.15 | AD179: 21.05 | AE179: 20.04 | AF179: 21.57 | AG179: 21.10 | AH179: 21.35 | AI179: 21.02 | AJ179: TRUE | AK179: 0.0199 | AL179: 0.87 | AM179: 1.83 | AN179: TRUE | AO179: TRUE
A180: Q969T9 | B180: WBP2 | C180: WBP2 | D180: WW domain-binding protein 2 (WBP-2) | E180: 2 | F180: 20.48 | G180: 22.09 | H180: 21.94 | I180: 22.01 | J180: 19.82 | K180: 21.27 | L180: 21.88 | M180: 22.08 | N180: 22.31 | O180: 22.35 | P180: 22.52 | Q180: 22.23 | R180: TRUE | S180: 0.1238 | T180: 0.96 | U180: 1.95 | X180: 20.44 | Y180: 20.37 | Z180: 20.22 | AA180: 21.46 | AB180: 20.89 | AC180: 20.68 | AD180: 20.85 | AE180: 20.65 | AF180: 21.19 | AG180: 21.24 | AH180: 20.52 | AI180: 20.89 | AJ180: TRUE | AK180: 0.4194 | AL180: 0.22 | AM180: 1.16
A181: P42330 | B181: AKR1C3 | C181: AKR1C3 DDH1 HSD17B5 KIAA0119 PGFS | D181: Aldo-keto reductase family 1 member C3 (EC 1.-.-.-) (17-beta-hydroxysteroid dehydrogenase type 5) (17-beta-HSD 5) (3-alpha-HSD type II, brain) (3-alpha-hydroxysteroid dehydrogenase type 2) (3-alpha-HSD type 2) (EC 1.1.1.357) (Chlordecone reductase homolog HAKRb) (Dihydrodiol dehydrogenase 3) (DD-3) (DD3) (Dihydrodiol dehydrogenase type I) (HA1753) (Indanol dehydrogenase) (EC 1.1.1.112) (Prostaglandin F synthase) (PGFS) (EC 1.1.1.188) (Testosterone 17-beta-dehydrogenase 5) (EC 1.1.1.239) (EC 1.1.1.64) (Trans-1,2-dihydrobenzene-1,2-diol dehydrogenase) (EC 1.3.1.20) | E181: 5 | F181: 19.98 | G181: 22.16 | H181: 22.23 | I181: 20.46 | J181: 19.23 | K181: 20.81 | L181: 22.19 | M181: 19.66 | N181: 23.17 | O181: 22.60 | P181: 21.23 | Q181: 21.77 | R181: TRUE | S181: 0.3430 | T181: 0.96 | U181: 1.95 | X181: 20.84 | Y181: 21.62 | Z181: 20.32 | AA181: 18.49 | AB181: 17.54 | AC181: 19.76 | AD181: 21.31 | AE181: 22.08 | AF181: 21.39 | AG181: 21.10 | AH181: 20.69 | AI181: 21.31 | AJ181: TRUE | AK181: 0.0501 | AL181: 1.55 | AM181: 2.93
A182: P07858 | B182: CTSB | C182: CTSB CPSB | D182: Cathepsin B (EC 3.4.22.1) (APP secretase) (APPS) (Cathepsin B1) [Cleaved into: Cathepsin B light chain; Cathepsin B heavy chain] | E182: 7 | F182: 21.41 | G182: 20.81 | H182: 25.43 | I182: 19.59 | J182: 21.87 | K182: 21.82 | L182: 22.76 | M182: 22.28 | N182: 23.33 | O182: 23.40 | P182: 22.14 | Q182: 22.78 | R182: TRUE | S182: 0.3745 | T182: 0.96 | U182: 1.94 | X182: 22.02 | Y182: 22.64 | Z182: 22.13 | AA182: 21.64 | AB182: 20.73 | AC182: 21.83 | AD182: 23.29 | AE182: 22.45 | AF182: 23.08 | AG182: 21.70 | AH182: 21.79 | AI182: 22.46 | AJ182: TRUE | AK182: 0.0955 | AL182: 0.63 | AM182: 1.55
A183: P07339 | B183: CTSD | C183: CTSD CPSD | D183: Cathepsin D (EC 3.4.23.5) [Cleaved into: Cathepsin D light chain; Cathepsin D heavy chain] | E183: 15 | F183: 25.45 | G183: 25.42 | H183: 27.84 | I183: 25.37 | J183: 25.38 | K183: 25.89 | L183: 27.15 | M183: 26.91 | N183: 26.76 | O183: 27.22 | P183: 26.20 | Q183: 26.85 | R183: TRUE | S183: 0.1506 | T183: 0.96 | U183: 1.94 | X183: 24.70 | Y183: 24.85 | Z183: 24.47 | AA183: 24.54 | AB183: 24.22 | AC183: 24.56 | AD183: 26.04 | AE183: 25.68 | AF183: 25.58 | AG183: 24.98 | AH183: 25.29 | AI183: 25.51 | AJ183: TRUE | AK183: 0.0033 | AL183: 0.96 | AM183: 1.94 | AN183: TRUE | AO183: TRUE
A184: Q9NZ72 | B184: STMN3 | C184: STMN3 SCLIP | D184: Stathmin-3 (SCG10-like protein) | E184: 5 | F184: 20.95 | G184: 21.43 | H184: 19.98 | I184: 20.79 | J184: 20.55 | K184: 20.74 | L184: 21.48 | M184: 21.22 | N184: 21.73 | O184: 21.57 | P184: 22.48 | Q184: 21.70 | R184: TRUE | S184: 0.0732 | T184: 0.95 | U184: 1.94 | X184: 18.33 | Y184: 18.58 | Z184: 19.36 | AA184: 17.91 | AB184: 19.05 | AC184: 18.65 | AD184: 20.40 | AE184: 18.76 | AF184: 18.11 | AG184: 18.95 | AH184: 18.57 | AI184: 18.96 | AK184: 0.6164 | AL184: 0.31 | AM184: 1.24
A185: P04271 | B185: S100B | C185: S100B | D185: Protein S100-B (S-100 protein beta chain) (S-100 protein subunit beta) (S100 calcium-binding protein B) | E185: 1 | F185: 24.49 | G185: 19.82 | H185: 23.96 | I185: 23.09 | J185: 23.34 | K185: 22.94 | L185: 24.72 | M185: 23.73 | N185: 23.39 | O185: 24.77 | P185: 22.85 | Q185: 23.89 | R185: TRUE | S185: 0.3215 | T185: 0.95 | U185: 1.93 | X185: 21.76 | Y185: 24.71 | Z185: 21.38 | AA185: 20.92 | AB185: 22.28 | AC185: 22.21 | AD185: 22.76 | AE185: 24.22 | AF185: 22.22 | AG185: 21.68 | AH185: 22.93 | AI185: 22.76 | AJ185: TRUE | AK185: 0.1075 | AL185: 0.55 | AM185: 1.46
A186: O95671 | B186: ASMTL | C186: ASMTL | D186: Probable bifunctional dTTP/UTP pyrophosphatase/methyltransferase protein [Includes: dTTP/UTP pyrophosphatase (dTTPase/UTPase) (EC 3.6.1.9) (Nucleoside triphosphate pyrophosphatase) (Nucleotide pyrophosphatase) (Nucleotide PPase); N-acetylserotonin O-methyltransferase-like protein (ASMTL) (EC 2.1.1.-)] | E186: 4 | F186: 19.00 | G186: 18.68 | H186: 21.98 | I186: 20.17 | J186: 21.16 | K186: 20.20 | L186: 19.74 | M186: 22.22 | N186: 22.58 | O186: 21.66 | P186: 19.54 | Q186: 21.14 | R186: TRUE | S186: 0.3171 | T186: 0.95 | U186: 1.93 | X186: 18.11 | Y186: 19.51 | Z186: 20.56 | AA186: 18.77 | AB186: 18.01 | AC186: 18.99 | AD186: 17.85 | AE186: 19.65 | AF186: 20.86 | AG186: 19.85 | AH186: 19.30 | AI186: 19.50 | AJ186: TRUE | AK186: 0.1568 | AL186: 0.51 | AM186: 1.42
A187: P51572 | B187: BCAP31 | C187: BCAP31 BAP31 DXS1357E | D187: B-cell receptor-associated protein 31 (BCR-associated protein 31) (Bap31) (6C6-AG tumor-associated antigen) (Protein CDM) (p28) | E187: 3 | F187: 21.43 | G187: 18.74 | H187: 19.57 | I187: 18.87 | J187: 21.25 | K187: 19.97 | L187: 21.57 | M187: 19.52 | N187: 22.06 | O187: 20.37 | P187: 21.07 | Q187: 20.92 | S187: 0.1205 | T187: 0.95 | U187: 1.93 | X187: 20.41 | Y187: 20.39 | Z187: 18.38 | AA187: 20.30 | AB187: 16.87 | AC187: 19.27 | AD187: 20.52 | AE187: 20.45 | AF187: 20.42 | AG187: 20.13 | AH187: 20.36 | AI187: 20.38 | AJ187: TRUE | AK187: 0.1976 | AL187: 1.11 | AM187: 2.15
A188: Q9Y2V2 | B188: CARHSP1 | C188: CARHSP1 | D188: Calcium-regulated heat-stable protein 1 (Calcium-regulated heat-stable protein of 24 kDa) (CRHSP-24) | E188: 4 | F188: 18.97 | G188: 19.78 | H188: 18.86 | I188: 21.20 | J188: 19.82 | K188: 19.72 | L188: 21.48 | M188: 20.86 | N188: 20.69 | O188: 21.03 | P188: 19.28 | Q188: 20.67 | R188: TRUE | S188: 0.1785 | T188: 0.94 | U188: 1.92 | X188: 20.13 | Y188: 19.24 | Z188: 18.26 | AA188: 20.04 | AB188: 18.55 | AC188: 19.24 | AD188: 20.28 | AE188: 19.04 | AF188: 20.10 | AG188: 20.03 | AH188: 17.53 | AI188: 19.40 | AJ188: TRUE | AK188: 0.7555 | AL188: 0.16 | AM188: 1.11
A189: Q9Y3D6 | B189: FIS1 | C189: FIS1 TTC11 CGI-135 | D189: Mitochondrial fission 1 protein (FIS1 homolog) (hFis1) (Tetratricopeptide repeat protein 11) (TPR repeat protein 11) | E189: 3 | F189: 19.28 | G189: 19.19 | H189: 19.15 | I189: 19.25 | J189: 19.49 | K189: 19.27 | L189: 19.24 | M189: 19.61 | N189: 19.84 | O189: 22.45 | P189: 19.84 | Q189: 20.20 | S189: 0.1853 | T189: 0.93 | U189: 1.90 | X189: 20.73 | Y189: 20.42 | Z189: 21.28 | AA189: 20.81 | AB189: 20.98 | AC189: 20.84 | AD189: 21.13 | AE189: 20.89 | AF189: 20.97 | AG189: 21.31 | AH189: 20.61 | AI189: 20.98 | AJ189: TRUE | AK189: 0.5227 | AL189: 0.14 | AM189: 1.10
A190: Q01105 | B190: SET | C190: SET | D190: Protein SET (HLA-DR-associated protein II) (Inhibitor of granzyme A-activated DNase) (IGAAD) (PHAPII) (Phosphatase 2A inhibitor I2PP2A) (I-2PP2A) (Template-activating factor I) (TAF-I) | E190: 3 | F190: 19.15 | G190: 20.31 | H190: 17.94 | I190: 19.09 | J190: 19.84 | K190: 19.26 | L190: 19.44 | M190: 21.88 | N190: 19.57 | O190: 20.06 | P190: 19.93 | Q190: 20.18 | S190: 0.0455 | T190: 0.91 | U190: 1.88 | X190: 21.27 | Y190: 20.83 | Z190: 22.27 | AA190: 21.91 | AB190: 21.88 | AC190: 21.63 | AD190: 21.79 | AE190: 21.31 | AF190: 21.77 | AG190: 21.86 | AH190: 21.71 | AI190: 21.69 | AJ190: TRUE | AK190: 0.7990 | AL190: 0.05 | AM190: 1.04
A191: O95295 | B191: SNAPIN | C191: SNAPIN BLOC1S7 SNAP25BP SNAPAP | D191: SNARE-associated protein Snapin (Biogenesis of lysosome-related organelles complex 1 subunit 7) (BLOC-1 subunit 7) (Synaptosomal-associated protein 25-binding protein) (SNAP-associated protein) | E191: 4 | F191: 18.57 | G191: 19.08 | H191: 19.91 | I191: 20.66 | J191: 19.14 | K191: 19.47 | L191: 20.55 | M191: 21.05 | N191: 18.61 | O191: 21.07 | P191: 20.56 | Q191: 20.37 | R191: TRUE | S191: 0.2209 | T191: 0.90 | U191: 1.86 | X191: 18.20 | Y191: 20.01 | Z191: 18.53 | AA191: 18.50 | AB191: 18.03 | AC191: 18.65 | AD191: 19.88 | AE191: 17.98 | AF191: 18.84 | AG191: 19.78 | AH191: 18.50 | AI191: 19.00 | AK191: 0.6258 | AL191: 0.34 | AM191: 1.27
A192: Q96AX1 | B192: VPS33A | C192: VPS33A | D192: Vacuolar protein sorting-associated protein 33A (hVPS33A) | E192: 5 | F192: 20.47 | G192: 21.66 | H192: 20.53 | I192: 21.56 | J192: 20.02 | K192: 20.85 | L192: 21.32 | M192: 21.81 | N192: 21.61 | O192: 21.86 | P192: 22.11 | Q192: 21.74 | R192: TRUE | S192: 0.0601 | T192: 0.90 | U192: 1.86 | X192: 19.96 | Y192: 20.17 | Z192: 19.53 | AA192: 20.26 | AB192: 19.97 | AC192: 19.98 | AD192: 20.40 | AE192: 19.91 | AF192: 20.57 | AG192: 20.47 | AH192: 19.55 | AI192: 20.18 | AJ192: TRUE | AK192: 0.4809 | AL192: 0.20 | AM192: 1.15
A193: Q96FZ7 | B193: CHMP6 | C193: CHMP6 VPS20 | D193: Charged multivesicular body protein 6 (Chromatin-modifying protein 6) (Vacuolar protein sorting-associated protein 20) (Vps20) (hVps20) | E193: 3 | F193: 19.80 | G193: 22.06 | H193: 19.41 | I193: 22.08 | J193: 19.54 | K193: 20.58 | L193: 21.16 | M193: 21.84 | N193: 22.24 | O193: 22.09 | P193: 20.05 | Q193: 21.47 | R193: TRUE | S193: 0.1815 | T193: 0.90 | U193: 1.86 | X193: 18.89 | Y193: 18.12 | Z193: 18.20 | AA193: 18.17 | AB193: 19.26 | AC193: 18.53 | AD193: 20.19 | AE193: 20.40 | AF193: 18.97 | AG193: 21.08 | AH193: 20.02 | AI193: 20.13 | AJ193: TRUE | AK193: 0.0200 | AL193: 1.60 | AM193: 3.04 | AN193: TRUE | AO193: TRUE
A194: Q96JJ3 | B194: ELMO2 | C194: ELMO2 CED12A KIAA1834 | D194: Engulfment and cell motility protein 2 (Protein ced-12 homolog A) (hCed-12A) | E194: 7 | F194: 18.93 | G194: 22.48 | H194: 20.09 | I194: 22.42 | J194: 20.28 | K194: 20.84 | L194: 21.35 | M194: 22.42 | N194: 21.67 | O194: 21.88 | P194: 21.35 | Q194: 21.73 | R194: TRUE | S194: 0.1727 | T194: 0.89 | U194: 1.86 | X194: 18.31 | Y194: 20.53 | Z194: 18.58 | AA194: 20.31 | AB194: 20.40 | AC194: 19.62 | AD194: 18.51 | AE194: 20.44 | AF194: 20.22 | AG194: 18.25 | AH194: 20.33 | AI194: 19.55 | AJ194: TRUE | AK194: 0.9056 | AL194: -0.07 | AM194: 0.95
A195: Q9NRX4 | B195: PHPT1 | C195: PHPT1 PHP14 CGI-202 HSPC141 | D195: 14 kDa phosphohistidine phosphatase (EC 3.9.1.3) (Phosphohistidine phosphatase 1) (PHPT1) (Protein histidine phosphatase) (PHP) (Protein janus-A homolog) | E195: 4 | F195: 21.93 | G195: 21.74 | H195: 21.35 | I195: 18.52 | J195: 19.23 | K195: 20.55 | L195: 21.03 | M195: 21.44 | N195: 22.05 | O195: 21.25 | P195: 21.45 | Q195: 21.44 | R195: TRUE | S195: 0.2720 | T195: 0.89 | U195: 1.85 | X195: 18.80 | Y195: 21.53 | Z195: 21.47 | AA195: 20.05 | AB195: 20.95 | AC195: 20.56 | AD195: 20.70 | AE195: 21.38 | AF195: 21.01 | AG195: 20.85 | AH195: 21.12 | AI195: 21.01 | AJ195: TRUE | AK195: 0.3361 | AL195: 0.45 | AM195: 1.37
A196: Q96RT7 | B196: TUBGCP6 | C196: TUBGCP6 GCP6 KIAA1669 | D196: Gamma-tubulin complex component 6 (GCP-6) | E196: 2 | F196: 19.57 | G196: 19.19 | H196: 19.84 | I196: 19.87 | J196: 20.22 | K196: 19.74 | L196: 19.72 | M196: 24.65 | N196: 19.18 | O196: 19.85 | P196: 19.72 | Q196: 20.62 | S196: 0.4838 | T196: 0.89 | U196: 1.85 | X196: 18.68 | Y196: 18.21 | Z196: 22.65 | AA196: 19.77 | AB196: 22.50 | AC196: 20.36 | AD196: 17.54 | AE196: 17.97 | AF196: 22.83 | AG196: 22.30 | AH196: 22.85 | AI196: 20.70 | AJ196: TRUE | AK196: 0.6106 | AL196: 0.34 | AM196: 1.26
A197: O43505 | B197: B4GAT1 | C197: B4GAT1 B3GNT1 B3GNT6 | D197: Beta-1,4-glucuronyltransferase 1 (EC 2.4.1.-) (I-beta-1,3-N-acetylglucosaminyltransferase) (iGnT) (N-acetyllactosaminide beta-1,3-N-acetylglucosaminyltransferase) (Poly-N-acetyllactosamine extension enzyme) (UDP-GlcNAc:betaGal beta-1,3-N-acetylglucosaminyltransferase 1) | E197: 3 | F197: 18.88 | G197: 20.90 | H197: 20.12 | I197: 21.02 | J197: 20.98 | K197: 20.38 | L197: 20.97 | M197: 21.20 | N197: 21.22 | O197: 21.61 | P197: 21.32 | Q197: 21.26 | R197: TRUE | S197: 0.0564 | T197: 0.88 | U197: 1.84 | X197: 20.24 | Y197: 19.80 | Z197: 18.52 | AA197: 20.49 | AB197: 20.28 | AC197: 19.87 | AD197: 20.73 | AE197: 19.67 | AF197: 20.63 | AG197: 20.18 | AH197: 20.02 | AI197: 20.25 | AJ197: TRUE | AK197: 0.4477 | AL197: 0.38 | AM197: 1.30
A198: Q96GA7 | B198: SDSL | C198: SDSL | D198: Serine dehydratase-like (L-serine deaminase) (L-serine dehydratase/L-threonine deaminase) (L-threonine dehydratase) (TDH) (EC 4.3.1.19) (Serine dehydratase 2) (SDH 2) (EC 4.3.1.17) | E198: 3 | F198: 17.94 | G198: 20.64 | H198: 19.11 | I198: 20.56 | J198: 20.47 | K198: 19.74 | L198: 20.70 | M198: 20.57 | N198: 20.88 | O198: 20.84 | P198: 20.11 | Q198: 20.62 | R198: TRUE | S198: 0.2169 | T198: 0.88 | U198: 1.84 | X198: 18.31 | Y198: 19.84 | Z198: 19.36 | AA198: 18.88 | AB198: 19.38 | AC198: 19.15 | AD198: 18.38 | AE198: 19.50 | AF198: 17.17 | AG198: 19.20 | AH198: 19.01 | AI198: 18.65 | AJ198: TRUE | AK198: 0.3198 | AL198: -0.50 | AM198: 0.71
A199: Q8WX93 | B199: PALLD | C199: PALLD KIAA0992 CGI-151 | D199: Palladin (SIH002) (Sarcoma antigen NY-SAR-77) | E199: 4 | F199: 19.28 | G199: 21.12 | H199: 19.09 | I199: 21.02 | J199: 19.16 | K199: 19.93 | L199: 21.39 | M199: 20.26 | N199: 22.43 | O199: 21.16 | P199: 18.77 | Q199: 20.80 | R199: TRUE | S199: 0.3378 | T199: 0.87 | U199: 1.83 | X199: 17.79 | Y199: 18.88 | Z199: 18.05 | AA199: 18.41 | AB199: 18.32 | AC199: 18.29 | AD199: 20.92 | AE199: 17.48 | AF199: 18.36 | AG199: 17.77 | AH199: 18.00 | AI199: 18.51 | AK199: 0.7934 | AL199: 0.22 | AM199: 1.16
A200: P62854 | B200: RPS26 | C200: RPS26 | D200: 40S ribosomal protein S26 (Small ribosomal subunit protein eS26) | E200: 2 | F200: 22.66 | G200: 22.23 | H200: 20.39 | I200: 18.17 | J200: 22.42 | K200: 21.17 | L200: 22.08 | M200: 22.73 | N200: 19.67 | O200: 22.92 | P200: 22.80 | Q200: 22.04 | R200: TRUE | S200: 0.4369 | T200: 0.86 | U200: 1.82 | X200: 21.08 | Y200: 21.42 | Z200: 21.95 | AA200: 21.40 | AB200: 21.55 | AC200: 21.48 | AD200: 21.48 | AE200: 21.50 | AF200: 21.89 | AG200: 21.38 | AH200: 21.36 | AI200: 21.52 | AJ200: TRUE | AK200: 0.7005 | AL200: 0.04 | AM200: 1.03
A201: O96033 | B201: MOCS2 | C201: MOCS2 MOCO1 | D201: Molybdopterin synthase sulfur carrier subunit (MOCO1-A) (Molybdenum cofactor synthesis protein 2 small subunit) (Molybdenum cofactor synthesis protein 2A) (MOCS2A) (Molybdopterin-synthase small subunit) (Sulfur carrier protein MOCS2A) | E201: 3 | F201: 20.62 | G201: 19.32 | H201: 18.28 | I201: 18.49 | J201: 18.55 | K201: 19.05 | L201: 19.75 | M201: 19.62 | N201: 19.84 | O201: 20.17 | P201: 20.19 | Q201: 19.92 | S201: 0.1604 | T201: 0.86 | U201: 1.82 | X201: 17.63 | Y201: 20.39 | Z201: 19.53 | AA201: 18.63 | AB201: 18.28 | AC201: 18.89 | AD201: 19.85 | AE201: 19.66 | AF201: 18.93 | AG201: 18.24 | AH201: 19.26 | AI201: 19.19 | AJ201: TRUE | AK201: 0.6306 | AL201: 0.30 | AM201: 1.23
... 2063 more rows

Sheet Table 2 - Unimputed Data
A1: Supplementary Table 2 - Unimputed data
A2: Unimputed LC-MS dataset for proteins present in plaques and neighboring non-plaque tissue in Down Syndrome (DS) and early onset AD (EOAD). This dataset was used to filter the imputed dataset to contain only those proteins present in at least 3 cases per group.
B4: Down Syndrome Plaque vs Non-Plaque | L4: EOAD Plaque vs Non-Plaque
A5: Uniprot ID | B5: DS_np_01 | C5: DS_np_02 | D5: DS_np_03 | E5: DS_np_04 | F5: DS_np_05 | G5: DS_p_01 | H5: DS_p_02 | I5: DS_p_03 | J5: DS_p_04 | K5: DS_p_05 | L5: eoAD_np_01 | M5: eoAD_np_02 | N5: eoAD_np_03 | O5: eoAD_np_04 | P5: eoAD_np_05 | Q5: eoAD_p_01 | R5: eoAD_p_02 | S5: eoAD_p_03 | T5: eoAD_p_04 | U5: eoAD_p_05
A6: P0DPI2 | B6: 25.71 | C6: 23.94 | D6: 24.85 | E6: 25.27 | F6: 25.34 | G6: 25.52 | H6: 25.33 | I6: 25.34 | J6: 25.55 | K6: 25.48 | L6: 23.83 | M6: 23.63 | N6: 23.56 | O6: 23.87 | P6: 23.66 | Q6: 23.70 | R6: 23.74 | S6: 23.78 | T6: 24.12 | U6: 23.80
A7: A0AVT1 | B7: NA | C7: NA | D7: 21.70 | E7: NA | F7: NA | G7: 20.83 | H7: 21.05 | I7: NA | J7: NA | K7: NA | L7: 20.08 | M7: 20.28 | N7: 20.27 | O7: NA | P7: 20.23 | Q7: 20.04 | R7: 20.06 | S7: NA | T7: 19.72 | U7: 20.01
A8: A0MZ66 | B8: 20.97 | C8: NA | D8: 21.00 | E8: 21.16 | F8: NA | G8: 20.91 | H8: NA | I8: 21.06 | J8: 22.01 | K8: NA | L8: NA | M8: 20.98 | N8: 20.43 | O8: 20.50 | P8: 20.69 | Q8: 20.69 | R8: 21.18 | S8: 20.44 | T8: 20.48 | U8: NA
A9: A5PKW4 | B9: NA | C9: 21.60 | D9: NA | E9: 20.94 | F9: 20.99 | G9: NA | H9: 20.76 | I9: NA | J9: NA | K9: NA | L9: 20.08 | M9: 18.66 | N9: NA | O9: 20.30 | P9: 19.97 | Q9: NA | R9: 19.30 | S9: 19.03 | T9: 19.51 | U9: 19.58
A10: A6NDG6 | B10: NA | C10: NA | D10: NA | E10: NA | F10: 21.66 | G10: NA | H10: NA | I10: 20.88 | J10: NA | K10: 21.48 | L10: 21.48 | M10: NA | N10: 21.28 | O10: NA | P10: 20.11 | Q10: 21.12 | R10: 19.98 | S10: 20.66 | T10: 20.55 | U10: 20.29
A11: A6XGL0 | B11: NA | C11: 20.63 | D11: NA | E11: 20.78 | F11: 20.51 | G11: NA | H11: 20.56 | I11: NA | J11: NA | K11: NA | L11: 19.33 | M11: 20.26 | N11: NA | O11: 19.18 | P11: 18.92 | Q11: NA | R11: 19.26 | S11: NA | T11: 19.14 | U11: 18.78
A12: A8K2U0 | B12: NA | C12: NA | D12: 26.16 | E12: 17.92 | F12: 17.68 | G12: 23.24 | H12: 17.40 | I12: NA | J12: NA | K12: 17.23 | L12: NA | M12: NA | N12: NA | O12: 20.75 | P12: NA | Q12: NA | R12: NA | S12: NA | T12: NA | U12: NA
A13: Q99613 | B13: 22.54 | C13: 21.64 | D13: 21.59 | E13: 21.61 | F13: 21.45 | G13: 22.26 | H13: 21.63 | I13: 21.76 | J13: 21.61 | K13: 20.76 | L13: 20.01 | M13: 20.91 | N13: 20.27 | O13: 20.57 | P13: 20.45 | Q13: 20.08 | R13: 20.79 | S13: 20.64 | T13: 20.79 | U13: 20.13
A14: C9J069 | B14: 22.81 | C14: 22.49 | D14: NA | E14: 23.26 | F14: 21.99 | G14: NA | H14: NA | I14: NA | J14: NA | K14: NA | L14: NA | M14: 21.74 | N14: 21.93 | O14: 22.22 | P14: 21.75 | Q14: 21.88 | R14: 21.53 | S14: NA | T14: 21.51 | U14: 21.87
A15: Q13765 | B15: 20.86 | C15: 21.35 | D15: 21.74 | E15: NA | F15: NA | G15: 20.95 | H15: 20.98 | I15: 21.19 | J15: 21.05 | K15: NA | L15: NA | M15: NA | N15: NA | O15: NA | P15: NA | Q15: NA | R15: NA | S15: NA | T15: 20.38 | U15: NA
A16: O00115 | B16: NA | C16: NA | D16: NA | E16: NA | F16: NA | G16: NA | H16: NA | I16: NA | J16: NA | K16: 20.07 | L16: 19.18 | M16: 19.11 | N16: NA | O16: 19.43 | P16: NA | Q16: NA | R16: 19.08 | S16: NA | T16: NA | U16: 19.25
A17: O00139 | B17: 24.11 | C17: 24.54 | D17: 23.86 | E17: 24.50 | F17: 24.44 | G17: 24.07 | H17: 24.30 | I17: 24.08 | J17: 24.71 | K17: 24.27 | L17: 23.02 | M17: 22.99 | N17: 22.90 | O17: 22.84 | P17: 23.04 | Q17: 22.88 | R17: 22.82 | S17: 22.76 | T17: 22.80 | U17: 22.94
A18: O00142 | B18: 21.43 | C18: 20.67 | D18: NA | E18: 20.97 | F18: 20.52 | G18: 20.77 | H18: 20.44 | I18: 20.46 | J18: 20.57 | K18: NA | L18: NA | M18: NA | N18: NA | O18: 19.74 | P18: NA | Q18: NA | R18: NA | S18: NA | T18: 20.21 | U18: 19.72
A19: O00154 | B19: 25.07 | C19: 24.67 | D19: 24.67 | E19: 24.94 | F19: 25.62 | G19: 24.75 | H19: 25.03 | I19: 24.91 | J19: 24.71 | K19: 25.55 | L19: 24.60 | M19: 24.49 | N19: 24.17 | O19: 24.59 | P19: 24.13 | Q19: 24.59 | R19: 24.25 | S19: 24.36 | T19: 24.69 | U19: 24.51
A20: O00170 | B20: 21.76 | C20: 22.01 | D20: 21.17 | E20: 22.37 | F20: 21.80 | G20: 21.98 | H20: 21.68 | I20: 21.31 | J20: 22.04 | K20: 21.17 | L20: 20.56 | M20: 20.31 | N20: 20.54 | O20: 20.46 | P20: 20.49 | Q20: 19.95 | R20: 20.07 | S20: 20.02 | T20: 20.17 | U20: 20.40
A21: O00182 | B21: NA | C21: NA | D21: 20.06 | E21: NA | F21: NA | G21: 21.38 | H21: 21.68 | I21: 21.69 | J21: 22.22 | K21: NA | L21: NA | M21: NA | N21: NA | O21: NA | P21: NA | Q21: NA | R21: NA | S21: 19.39 | T21: NA | U21: NA
A22: O00186 | B22: NA | C22: NA | D22: NA | E22: NA | F22: NA | G22: NA | H22: NA | I22: 21.39 | J22: NA | K22: NA | L22: 20.21 | M22: 20.41 | N22: 20.44 | O22: 20.05 | P22: 20.36 | Q22: 19.95 | R22: 20.47 | S22: 19.99 | T22: 20.15 | U22: 19.96
A23: O00194 | B23: 22.65 | C23: 23.00 | D23: 21.63 | E23: 22.22 | F23: 22.50 | G23: 22.02 | H23: 22.44 | I23: 21.88 | J23: 21.44 | K23: 22.79 | L23: 21.85 | M23: 20.15 | N23: 20.66 | O23: 21.40 | P23: 21.41 | Q23: 21.72 | R23: 21.48 | S23: 20.89 | T23: 20.92 | U23: 21.98
A24: O00217 | B24: 22.03 | C24: 21.64 | D24: 21.72 | E24: 22.21 | F24: 22.56 | G24: 21.37 | H24: 21.73 | I24: 21.52 | J24: 21.75 | K24: 22.19 | L24: 21.41 | M24: 21.42 | N24: 21.38 | O24: 22.16 | P24: 21.28 | Q24: 21.21 | R24: 21.07 | S24: 21.17 | T24: 22.09 | U24: 21.64
A25: O00231 | B25: 23.13 | C25: 22.82 | D25: 23.26 | E25: 22.85 | F25: 22.94 | G25: 22.78 | H25: 22.96 | I25: 22.98 | J25: 22.89 | K25: 22.64 | L25: 21.52 | M25: 21.97 | N25: 21.82 | O25: 21.94 | P25: 22.01 | Q25: 21.97 | R25: 22.09 | S25: 21.81 | T25: 21.97 | U25: 21.95
A26: O00232 | B26: 21.27 | C26: 21.34 | D26: 21.48 | E26: 21.01 | F26: 21.42 | G26: 21.33 | H26: 21.46 | I26: 21.81 | J26: 21.56 | K26: NA | L26: 20.32 | M26: 20.62 | N26: 20.53 | O26: 20.23 | P26: 20.34 | Q26: 20.48 | R26: 20.63 | S26: 20.20 | T26: 20.56 | U26: 20.28
A27: O00233 | B27: NA | C27: NA | D27: NA | E27: NA | F27: NA | G27: NA | H27: NA | I27: NA | J27: 20.98 | K27: NA | L27: 19.76 | M27: 19.78 | N27: NA | O27: 20.00 | P27: NA | Q27: 19.87 | R27: 19.57 | S27: 19.80 | T27: 19.61 | U27: 19.71
A28: O00264 | B28: 25.21 | C28: 25.60 | D28: 24.60 | E28: 25.47 | F28: 25.36 | G28: 25.07 | H28: 25.36 | I28: 25.25 | J28: 25.19 | K28: 24.93 | L28: 24.19 | M28: 24.02 | N28: 23.90 | O28: 24.41 | P28: 24.27 | Q28: 23.88 | R28: 23.84 | S28: 24.03 | T28: 24.06 | U28: 23.96
A29: O00299 | B29: 21.23 | C29: 21.39 | D29: 22.96 | E29: 20.86 | F29: 20.56 | G29: 22.47 | H29: 22.23 | I29: 22.93 | J29: 21.82 | K29: 21.33 | L29: 20.08 | M29: 21.48 | N29: 19.97 | O29: 19.28 | P29: 19.53 | Q29: 21.38 | R29: 21.69 | S29: 20.67 | T29: 19.61 | U29: 20.32
A30: O00305 | B30: NA | C30: NA | D30: NA | E30: NA | F30: 20.69 | G30: NA | H30: NA | I30: NA | J30: NA | K30: NA | L30: 20.44 | M30: 20.26 | N30: 19.74 | O30: 20.88 | P30: 20.73 | Q30: 20.77 | R30: 20.08 | S30: NA | T30: NA | U30: 20.02
A31: O00330 | B31: 23.27 | C31: 24.14 | D31: 22.94 | E31: 23.94 | F31: 24.30 | G31: 23.17 | H31: 21.91 | I31: 24.35 | J31: 23.80 | K31: 24.09 | L31: 23.03 | M31: 22.74 | N31: 22.78 | O31: 23.48 | P31: 23.00 | Q31: 23.22 | R31: 22.13 | S31: 23.36 | T31: 23.20 | U31: 22.40
A32: O00391 | B32: 21.23 | C32: 21.10 | D32: 21.92 | E32: 21.24 | F32: 21.23 | G32: 21.54 | H32: 21.65 | I32: 22.09 | J32: 22.21 | K32: 22.14 | L32: 20.26 | M32: 20.77 | N32: 19.57 | O32: 20.37 | P32: 20.30 | Q32: NA | R32: NA | S32: NA | T32: 20.33 | U32: 20.39
A33: O00401 | B33: 22.01 | C33: 23.19 | D33: 20.65 | E33: 22.76 | F33: 22.18 | G33: 21.69 | H33: 22.59 | I33: 21.87 | J33: 22.22 | K33: 21.81 | L33: 21.44 | M33: 20.63 | N33: 20.77 | O33: 21.54 | P33: 21.50 | Q33: 21.12 | R33: 20.39 | S33: 20.39 | T33: 21.42 | U33: 21.07
A34: O00408 | B34: 24.50 | C34: 25.21 | D34: 23.96 | E34: 25.05 | F34: 24.86 | G34: 24.47 | H34: 24.93 | I34: 24.99 | J34: 24.84 | K34: 25.15 | L34: 23.56 | M34: 22.77 | N34: 23.06 | O34: 23.44 | P34: 23.65 | Q34: 23.74 | R34: 23.47 | S34: 23.27 | T34: 23.26 | U34: 23.95
A35: O00410 | B35: 22.61 | C35: 22.16 | D35: 21.88 | E35: 21.31 | F35: 22.80 | G35: 22.99 | H35: 22.63 | I35: 21.72 | J35: 22.09 | K35: 22.15 | L35: 21.65 | M35: 22.10 | N35: 21.59 | O35: 21.31 | P35: 21.63 | Q35: 21.75 | R35: 22.03 | S35: 21.26 | T35: 21.76 | U35: 21.88
A36: O00429 | B36: 25.63 | C36: 25.81 | D36: 25.44 | E36: 25.55 | F36: 25.91 | G36: 25.35 | H36: 25.69 | I36: 25.52 | J36: 25.41 | K36: 26.14 | L36: 24.74 | M36: 24.71 | N36: 24.76 | O36: 24.96 | P36: 24.85 | Q36: 24.76 | R36: 24.59 | S36: 24.75 | T36: 25.06 | U36: 24.74
A37: O00442 | B37: NA | C37: NA | D37: NA | E37: NA | F37: 20.54 | G37: NA | H37: NA | I37: 20.58 | J37: NA | K37: NA | L37: 19.99 | M37: NA | N37: NA | O37: NA | P37: NA | Q37: NA | R37: 19.56 | S37: NA | T37: 19.58 | U37: 19.70
A38: O00445 | B38: 21.96 | C38: 22.33 | D38: 21.48 | E38: 22.69 | F38: 21.66 | G38: 22.67 | H38: 23.08 | I38: 23.35 | J38: NA | K38: 22.49 | L38: NA | M38: NA | N38: 19.76 | O38: 20.13 | P38: 20.80 | Q38: 21.71 | R38: 21.01 | S38: NA | T38: 20.28 | U38: 20.79
A39: O00451 | B39: NA | C39: NA | D39: NA | E39: NA | F39: 20.19 | G39: NA | H39: NA | I39: NA | J39: NA | K39: NA | L39: NA | M39: NA | N39: 19.35 | O39: NA | P39: NA | Q39: 18.98 | R39: NA | S39: 19.46 | T39: 20.23 | U39: 18.76
A40: O00468 | B40: 22.84 | C40: 22.75 | D40: 22.28 | E40: 22.72 | F40: 22.67 | G40: 24.17 | H40: 23.99 | I40: 24.30 | J40: 24.03 | K40: 24.51 | L40: 21.96 | M40: 21.72 | N40: 22.37 | O40: 21.88 | P40: 21.03 | Q40: 22.86 | R40: 22.41 | S40: 22.93 | T40: 22.83 | U40: 22.42
A41: O00483 | B41: 23.76 | C41: 24.41 | D41: NA | E41: 23.85 | F41: 22.26 | G41: 22.87 | H41: 23.85 | I41: 23.12 | J41: 23.55 | K41: 21.80 | L41: 21.88 | M41: 22.38 | N41: 22.58 | O41: 22.07 | P41: 22.30 | Q41: 21.81 | R41: 22.16 | S41: 21.83 | T41: 21.86 | U41: 21.98
A42: O00487 | B42: 21.44 | C42: 22.12 | D42: 21.57 | E42: 21.62 | F42: 21.68 | G42: 21.44 | H42: 21.31 | I42: 21.60 | J42: 21.18 | K42: 21.54 | L42: 20.46 | M42: 20.68 | N42: 21.01 | O42: 20.90 | P42: 20.20 | Q42: 20.45 | R42: 20.50 | S42: 20.14 | T42: 20.64 | U42: 20.53
A43: O00499 | B43: 25.14 | C43: 25.20 | D43: 24.27 | E43: 24.60 | F43: 24.89 | G43: 24.74 | H43: 24.67 | I43: 24.83 | J43: 24.27 | K43: 24.65 | L43: 24.05 | M43: 23.87 | N43: 24.30 | O43: 23.76 | P43: 23.93 | Q43: 24.08 | R43: 24.08 | S43: 23.94 | T43: 23.88 | U43: 24.01
A44: O00505 | B44: 21.58 | C44: 21.20 | D44: NA | E44: 21.16 | F44: 21.09 | G44: 21.66 | H44: 21.64 | I44: NA | J44: 21.82 | K44: NA | L44: 20.36 | M44: 20.50 | N44: 19.92 | O44: 19.99 | P44: 21.18 | Q44: 20.07 | R44: 20.50 | S44: 20.13 | T44: 20.13 | U44: 20.62
A45: O00533 | B45: 21.95 | C45: 21.29 | D45: 21.09 | E45: 21.50 | F45: 22.86 | G45: 22.03 | H45: 22.13 | I45: 21.93 | J45: 22.33 | K45: 23.19 | L45: 21.78 | M45: 21.38 | N45: 21.55 | O45: 21.85 | P45: 21.54 | Q45: 22.07 | R45: 21.43 | S45: 21.94 | T45: 21.82 | U45: 21.75
A46: O00534 | B46: 20.64 | C46: 20.26 | D46: 21.95 | E46: 20.97 | F46: 20.82 | G46: 20.59 | H46: 21.00 | I46: 20.78 | J46: NA | K46: 20.27 | L46: NA | M46: 20.36 | N46: 18.44 | O46: NA | P46: NA | Q46: 18.44 | R46: 19.94 | S46: NA | T46: 18.43 | U46: 18.42
A47: O00560 | B47: 21.53 | C47: 21.27 | D47: 21.19 | E47: 21.64 | F47: NA | G47: 21.88 | H47: 21.98 | I47: 21.95 | J47: 22.38 | K47: 21.57 | L47: 20.21 | M47: 20.20 | N47: 19.27 | O47: 19.89 | P47: 20.11 | Q47: 20.31 | R47: 20.17 | S47: 19.26 | T47: 20.32 | U47: 20.58
A48: O00571 | B48: 21.56 | C48: 21.72 | D48: 23.00 | E48: 21.76 | F48: 21.15 | G48: 21.68 | H48: NA | I48: 21.39 | J48: 21.71 | K48: NA | L48: 20.81 | M48: 21.32 | N48: 20.98 | O48: 21.14 | P48: NA | Q48: 20.56 | R48: 20.93 | S48: NA | T48: 20.90 | U48: NA
A49: O00629 | B49: 20.42 | C49: 21.35 | D49: NA | E49: 20.54 | F49: 19.82 | G49: 20.19 | H49: NA | I49: 20.27 | J49: 20.26 | K49: NA | L49: NA | M49: NA | N49: NA | O49: NA | P49: NA | Q49: NA | R49: 18.65 | S49: NA | T49: NA | U49: NA
A50: O00764 | B50: 25.91 | C50: 26.01 | D50: 25.53 | E50: 25.90 | F50: 25.45 | G50: 25.87 | H50: 25.78 | I50: 25.82 | J50: 25.91 | K50: 25.45 | L50: 23.98 | M50: 23.70 | N50: 23.50 | O50: 24.30 | P50: 23.73 | Q50: 24.35 | R50: 24.22 | S50: 23.36 | T50: 23.88 | U50: 24.13
A51: O14490 | B51: 21.47 | C51: 21.20 | D51: 21.46 | E51: 22.16 | F51: 22.05 | G51: 21.29 | H51: 21.46 | I51: NA | J51: NA | K51: NA | L51: 20.85 | M51: 20.36 | N51: 20.02 | O51: 21.06 | P51: 21.26 | Q51: NA | R51: 20.04 | S51: NA | T51: 20.84 | U51: 20.18
A52: O14495 | B52: 21.45 | C52: 21.90 | D52: 21.87 | E52: 21.78 | F52: 21.80 | G52: 21.90 | H52: 21.89 | I52: 21.50 | J52: 22.01 | K52: 21.38 | L52: 20.72 | M52: 20.98 | N52: 20.47 | O52: 20.30 | P52: 20.93 | Q52: 20.75 | R52: 20.56 | S52: 21.03 | T52: 20.65 | U52: 21.03
A53: O14523 | B53: 21.93 | C53: 22.12 | D53: 21.50 | E53: 22.64 | F53: 22.48 | G53: 22.01 | H53: 22.21 | I53: 22.04 | J53: 21.91 | K53: 21.91 | L53: 21.37 | M53: 20.33 | N53: 21.61 | O53: 21.87 | P53: 21.16 | Q53: 20.69 | R53: 21.07 | S53: 21.08 | T53: 21.68 | U53: 20.70
A54: O14525 | B54: 18.96 | C54: NA | D54: NA | E54: 17.95 | F54: 19.07 | G54: NA | H54: NA | I54: NA | J54: NA | K54: NA | L54: NA | M54: NA | N54: NA | O54: NA | P54: NA | Q54: NA | R54: 17.93 | S54: NA | T54: NA | U54: NA
A55: O14531 | B55: 23.39 | C55: 24.63 | D55: 23.56 | E55: 24.27 | F55: 24.27 | G55: 23.84 | H55: 23.97 | I55: 23.98 | J55: 23.89 | K55: 24.30 | L55: 23.22 | M55: 23.14 | N55: 23.27 | O55: 23.66 | P55: 23.22 | Q55: 22.69 | R55: 23.10 | S55: 23.02 | T55: 23.19 | U55: 23.08
A56: O14548 | B56: NA | C56: 22.66 | D56: NA | E56: NA | F56: NA | G56: NA | H56: NA | I56: NA | J56: NA | K56: NA | L56: 21.10 | M56: 20.27 | N56: 20.66 | O56: NA | P56: NA | Q56: 20.18 | R56: 20.26 | S56: 20.00 | T56: 20.42 | U56: 19.89
A57: O14558 | B57: 23.37 | C57: 21.63 | D57: NA | E57: 23.42 | F57: 21.79 | G57: 23.95 | H57: 22.65 | I57: 23.95 | J57: 24.04 | K57: 21.72 | L57: 20.69 | M57: 21.79 | N57: 21.50 | O57: NA | P57: 21.16 | Q57: 21.52 | R57: 22.31 | S57: 21.50 | T57: 20.60 | U57: 22.03
A58: O14576 | B58: 23.40 | C58: 24.07 | D58: 23.06 | E58: 23.57 | F58: 23.67 | G58: 23.26 | H58: 23.76 | I58: 23.29 | J58: 23.54 | K58: 23.51 | L58: 22.62 | M58: 21.85 | N58: 22.32 | O58: 22.56 | P58: 22.77 | Q58: 22.23 | R58: 22.21 | S58: 22.03 | T58: 22.67 | U58: 22.16
A59: O14578 | B59: 23.51 | C59: 23.52 | D59: 22.29 | E59: 23.11 | F59: 23.16 | G59: 22.46 | H59: 22.61 | I59: 22.66 | J59: 22.68 | K59: 22.83 | L59: 21.86 | M59: 21.28 | N59: 22.15 | O59: 22.51 | P59: 22.38 | Q59: 21.36 | R59: 21.68 | S59: 21.59 | T59: 22.35 | U59: 21.95
A60: O14594 | B60: 27.39 | C60: 27.39 | D60: 26.97 | E60: 27.50 | F60: 27.12 | G60: 27.08 | H60: 27.04 | I60: 27.02 | J60: 27.15 | K60: 27.46 | L60: 26.58 | M60: 26.56 | N60: 25.83 | O60: 26.06 | P60: 26.09 | Q60: 26.55 | R60: 25.78 | S60: 25.80 | T60: 26.31 | U60: 26.04
A61: O14617 | B61: 24.27 | C61: 24.29 | D61: 24.28 | E61: 24.12 | F61: 24.19 | G61: 24.20 | H61: 24.16 | I61: 24.13 | J61: 24.04 | K61: 24.29 | L61: 23.55 | M61: 23.26 | N61: 23.12 | O61: 23.41 | P61: 22.79 | Q61: 23.30 | R61: 23.13 | S61: 23.25 | T61: 23.65 | U61: 23.23
A62: O14639 | B62: 24.22 | C62: 24.18 | D62: 23.31 | E62: 24.46 | F62: 23.16 | G62: 24.26 | H62: 24.17 | I62: 24.68 | J62: 24.50 | K62: 23.43 | L62: 22.08 | M62: 22.31 | N62: 22.51 | O62: 22.08 | P62: 23.33 | Q62: 22.27 | R62: 22.55 | S62: 22.89 | T62: 21.78 | U62: 22.62
A63: O14662 | B63: 20.58 | C63: NA | D63: 19.80 | E63: 20.30 | F63: NA | G63: 20.54 | H63: 21.11 | I63: 20.54 | J63: 20.89 | K63: NA | L63: 18.53 | M63: 18.53 | N63: NA | O63: NA | P63: 18.97 | Q63: 19.03 | R63: NA | S63: 19.45 | T63: NA | U63: NA
A64: O14737 | B64: 22.67 | C64: 22.10 | D64: 21.41 | E64: 22.21 | F64: 21.58 | G64: 22.24 | H64: 22.10 | I64: 21.55 | J64: 21.99 | K64: NA | L64: 21.11 | M64: 21.06 | N64: 21.09 | O64: 21.80 | P64: 21.69 | Q64: 21.39 | R64: 20.74 | S64: 21.21 | T64: 21.22 | U64: 21.57
A65: O14744 | B65: 22.19 | C65: 22.84 | D65: 22.26 | E65: 22.52 | F65: 22.36 | G65: 22.01 | H65: 22.51 | I65: 23.39 | J65: 22.88 | K65: 22.77 | L65: 21.27 | M65: 21.51 | N65: 20.97 | O65: NA | P65: 21.22 | Q65: 21.43 | R65: 21.47 | S65: 21.53 | T65: 20.48 | U65: 20.68
A66: O14745 | B66: 24.51 | C66: 25.36 | D66: 23.96 | E66: 25.17 | F66: 23.81 | G66: 25.11 | H66: 25.29 | I66: 25.04 | J66: 25.38 | K66: 23.90 | L66: 23.92 | M66: 24.25 | N66: 23.87 | O66: 23.96 | P66: 24.47 | Q66: 23.77 | R66: 23.58 | S66: 24.22 | T66: 23.82 | U66: 24.25
A67: O14773 | B67: 23.33 | C67: 22.52 | D67: 24.39 | E67: 22.84 | F67: 22.57 | G67: 24.51 | H67: 24.43 | I67: 24.40 | J67: 24.03 | K67: 23.47 | L67: 22.46 | M67: 23.51 | N67: 22.63 | O67: 22.17 | P67: 22.09 | Q67: 23.46 | R67: 23.55 | S67: 23.30 | T67: 22.93 | U67: 22.78
A68: O14775 | B68: 22.52 | C68: 22.40 | D68: 22.20 | E68: 22.44 | F68: 23.02 | G68: 22.07 | H68: 23.05 | I68: 22.43 | J68: NA | K68: 22.51 | L68: 21.54 | M68: 21.11 | N68: 21.96 | O68: 21.76 | P68: 21.46 | Q68: 21.51 | R68: 21.01 | S68: 21.56 | T68: 21.92 | U68: 21.15
A69: O14807 | B69: NA | C69: 21.44 | D69: 20.33 | E69: 20.63 | F69: 20.70 | G69: 20.38 | H69: 20.50 | I69: 20.93 | J69: 20.67 | K69: 20.46 | L69: 20.10 | M69: 19.65 | N69: 19.72 | O69: 19.74 | P69: 20.16 | Q69: 19.55 | R69: 20.05 | S69: 19.65 | T69: 19.58 | U69: 19.85
A70: O14810 | B70: NA | C70: NA | D70: NA | E70: NA | F70: NA | G70: NA | H70: 21.16 | I70: NA | J70: NA | K70: NA | L70: 19.45 | M70: NA | N70: 19.97 | O70: 20.08 | P70: 19.64 | Q70: NA | R70: 19.56 | S70: 20.09 | T70: NA | U70: 19.59
A71: O14818 | B71: 22.59 | C71: 22.17 | D71: 24.02 | E71: 22.27 | F71: 22.90 | G71: 23.25 | H71: 22.46 | I71: 21.37 | J71: 22.36 | K71: 22.98 | L71: 22.13 | M71: 22.01 | N71: 21.96 | O71: 21.87 | P71: 21.96 | Q71: 22.08 | R71: 22.19 | S71: 22.13 | T71: 21.97 | U71: 22.30
A72: O14827 | B72: NA | C72: NA | D72: NA | E72: 21.55 | F72: 20.66 | G72: 20.54 | H72: 21.08 | I72: 21.21 | J72: NA | K72: 21.14 | L72: 19.74 | M72: NA | N72: NA | O72: NA | P72: NA | Q72: NA | R72: 19.47 | S72: NA | T72: NA | U72: 20.11
A73: O14828 | B73: 24.46 | C73: 23.05 | D73: 22.69 | E73: 23.94 | F73: NA | G73: 23.22 | H73: 23.09 | I73: 22.37 | J73: 23.86 | K73: NA | L73: 20.62 | M73: 20.53 | N73: 20.29 | O73: 20.89 | P73: 20.30 | Q73: 20.29 | R73: NA | S73: 20.29 | T73: 20.27 | U73: 20.96
A74: O14880 | B74: 22.70 | C74: NA | D74: NA | E74: NA | F74: 22.03 | G74: 22.35 | H74: 22.60 | I74: NA | J74: NA | K74: 22.41 | L74: 19.99 | M74: NA | N74: 20.69 | O74: 20.95 | P74: 20.78 | Q74: 21.02 | R74: 21.84 | S74: 21.99 | T74: 21.17 | U74: 21.15
A75: O14907 | B75: 19.87 | C75: 20.58 | D75: 20.05 | E75: 20.29 | F75: 19.28 | G75: 19.97 | H75: 20.81 | I75: NA | J75: 20.10 | K75: NA | L75: 19.27 | M75: 20.39 | N75: 18.91 | O75: NA | P75: 19.67 | Q75: 19.44 | R75: 20.40 | S75: 19.00 | T75: 18.62 | U75: NA
A76: O14910 | B76: 24.57 | C76: 25.40 | D76: 24.19 | E76: 24.74 | F76: 25.00 | G76: 24.54 | H76: 24.99 | I76: 25.03 | J76: 24.59 | K76: 24.82 | L76: 24.25 | M76: 23.70 | N76: 24.26 | O76: 24.46 | P76: 24.24 | Q76: 23.73 | R76: 24.01 | S76: 24.09 | T76: 24.00 | U76: 23.71
A77: O14936 | B77: 22.44 | C77: 23.21 | D77: 22.14 | E77: 23.15 | F77: 22.73 | G77: 22.56 | H77: 22.95 | I77: 23.02 | J77: 22.80 | K77: 22.23 | L77: 21.93 | M77: 21.97 | N77: 21.56 | O77: 21.79 | P77: 21.91 | Q77: 21.63 | R77: 22.00 | S77: 21.62 | T77: 21.86 | U77: 21.57
A78: O14949 | B78: 23.86 | C78: 23.20 | D78: 23.17 | E78: 23.81 | F78: 23.65 | G78: 23.24 | H78: 23.44 | I78: 22.66 | J78: 23.35 | K78: 23.24 | L78: 22.54 | M78: 22.48 | N78: 23.29 | O78: 23.04 | P78: 22.66 | Q78: 22.35 | R78: 22.61 | S78: 23.24 | T78: 23.02 | U78: 22.89
A79: P19105 | B79: 23.83 | C79: 24.67 | D79: 23.72 | E79: 24.35 | F79: 24.19 | G79: 24.17 | H79: 24.25 | I79: 24.25 | J79: 24.33 | K79: 23.96 | L79: 23.10 | M79: 23.26 | N79: 23.03 | O79: 23.32 | P79: 23.25 | Q79: 23.14 | R79: 23.35 | S79: 22.84 | T79: 23.23 | U79: 23.31
A80: O14964 | B80: 22.57 | C80: 22.29 | D80: 21.69 | E80: 22.34 | F80: NA | G80: 22.40 | H80: 22.34 | I80: 22.48 | J80: 22.19 | K80: 22.18 | L80: 20.72 | M80: 20.97 | N80: NA | O80: 21.29 | P80: 20.93 | Q80: 20.96 | R80: 21.17 | S80: 21.35 | T80: 21.27 | U80: 20.66
A81: O14976 | B81: NA | C81: NA | D81: NA | E81: NA | F81: NA | G81: NA | H81: NA | I81: NA | J81: 20.36 | K81: NA | L81: 19.21 | M81: 19.39 | N81: 19.21 | O81: 19.56 | P81: 19.39 | Q81: NA | R81: 19.37 | S81: NA | T81: 19.38 | U81: 19.40
A82: O14979 | B82: 21.11 | C82: NA | D82: NA | E82: 21.36 | F82: NA | G82: 21.08 | H82: NA | I82: NA | J82: 20.97 | K82: NA | L82: 20.13 | M82: 20.54 | N82: NA | O82: 20.48 | P82: 20.06 | Q82: 20.30 | R82: 20.04 | S82: 20.26 | T82: 20.53 | U82: 20.19
A83: O14980 | B83: 21.85 | C83: 21.78 | D83: 21.54 | E83: 21.81 | F83: 21.65 | G83: 22.38 | H83: 21.56 | I83: 21.67 | J83: 21.46 | K83: 21.91 | L83: 20.72 | M83: 21.50 | N83: 20.90 | O83: 20.74 | P83: 20.90 | Q83: 20.86 | R83: 21.10 | S83: 20.98 | T83: 20.81 | U83: 20.83
A84: O14994 | B84: 25.17 | C84: 25.21 | D84: 24.18 | E84: 24.84 | F84: 24.71 | G84: 24.67 | H84: 24.53 | I84: 24.24 | J84: 24.23 | K84: 23.97 | L84: 23.56 | M84: 22.37 | N84: 23.81 | O84: 23.94 | P84: 23.79 | Q84: 23.33 | R84: 22.95 | S84: 23.37 | T84: 23.98 | U84: 23.76
A85: O15020 | B85: 26.90 | C85: 27.25 | D85: 26.61 | E85: 27.02 | F85: 26.65 | G85: 26.27 | H85: 26.56 | I85: 26.46 | J85: 26.31 | K85: 26.51 | L85: 26.02 | M85: 25.64 | N85: 25.26 | O85: 25.93 | P85: 26.20 | Q85: 25.57 | R85: 25.37 | S85: 25.18 | T85: 25.60 | U85: 25.42
A86: O15031 | B86: NA | C86: NA | D86: NA | E86: NA | F86: NA | G86: NA | H86: NA | I86: NA | J86: NA | K86: 19.49 | L86: NA | M86: 19.07 | N86: NA | O86: NA | P86: NA | Q86: NA | R86: 19.14 | S86: 19.23 | T86: 19.16 | U86: NA
A87: O15034 | B87: 21.03 | C87: 21.74 | D87: NA | E87: 21.14 | F87: NA | G87: NA | H87: 20.96 | I87: NA | J87: NA | K87: NA | L87: NA | M87: NA | N87: NA | O87: NA | P87: 19.30 | Q87: NA | R87: NA | S87: NA | T87: NA | U87: 19.10
A88: O15061 | B88: 22.29 | C88: 22.47 | D88: 22.65 | E88: 22.09 | F88: NA | G88: 23.08 | H88: 22.67 | I88: 23.52 | J88: 23.24 | K88: 21.44 | L88: 19.92 | M88: 22.45 | N88: 19.36 | O88: 19.56 | P88: 19.64 | Q88: 20.96 | R88: 22.31 | S88: 20.99 | T88: 19.62 | U88: 19.53
A89: O15066 | B89: 21.34 | C89: 21.96 | D89: 20.71 | E89: 22.03 | F89: 20.70 | G89: 21.43 | H89: 21.42 | I89: 21.34 | J89: 21.40 | K89: 20.88 | L89: 19.96 | M89: 20.54 | N89: NA | O89: 20.04 | P89: 20.19 | Q89: 20.15 | R89: 19.96 | S89: 19.86 | T89: NA | U89: 19.87
A90: O15075 | B90: 24.62 | C90: 25.54 | D90: 24.59 | E90: 25.09 | F90: 25.19 | G90: 24.67 | H90: 24.87 | I90: 25.22 | J90: 24.75 | K90: 24.99 | L90: 23.88 | M90: 24.13 | N90: 23.84 | O90: 23.94 | P90: 23.86 | Q90: 23.88 | R90: 24.14 | S90: 23.53 | T90: 23.96 | U90: 23.58
A91: O15079 | B91: 23.57 | C91: 24.32 | D91: NA | E91: 23.99 | F91: 23.72 | G91: 23.39 | H91: 23.55 | I91: 23.10 | J91: 23.65 | K91: 23.57 | L91: 22.98 | M91: 22.17 | N91: 22.42 | O91: 22.55 | P91: 22.11 | Q91: 22.80 | R91: 21.87 | S91: 22.11 | T91: 22.19 | U91: 21.83
A92: O15083 | B92: 21.74 | C92: 21.90 | D92: 21.29 | E92: 22.52 | F92: 22.08 | G92: 21.08 | H92: 21.51 | I92: 21.12 | J92: 22.24 | K92: 21.76 | L92: 21.73 | M92: 21.32 | N92: 21.35 | O92: 21.52 | P92: 21.80 | Q92: 21.50 | R92: 21.09 | S92: 20.94 | T92: 21.25 | U92: 21.19
A93: O15126 | B93: 22.35 | C93: 21.91 | D93: 21.90 | E93: 22.32 | F93: 21.05 | G93: 22.39 | H93: 22.69 | I93: 22.49 | J93: 22.53 | K93: 21.71 | L93: 21.60 | M93: 21.11 | N93: 21.10 | O93: 21.05 | P93: 21.56 | Q93: 21.18 | R93: 21.24 | S93: 21.54 | T93: 20.81 | U93: 21.39
A94: O15143 | B94: NA | C94: 20.86 | D94: NA | E94: 20.80 | F94: NA | G94: 20.94 | H94: 21.25 | I94: 22.09 | J94: 21.87 | K94: NA | L94: 19.02 | M94: 19.11 | N94: NA | O94: NA | P94: 18.76 | Q94: 20.32 | R94: 19.66 | S94: 19.35 | T94: 19.13 | U94: 19.16
A95: O15144 | B95: 24.79 | C95: 24.81 | D95: 25.48 | E95: 24.78 | F95: 24.78 | G95: 24.71 | H95: 25.02 | I95: 24.84 | J95: 24.71 | K95: 25.09 | L95: 24.17 | M95: 24.18 | N95: 23.86 | O95: 23.68 | P95: 23.93 | Q95: 24.20 | R95: 24.06 | S95: 23.85 | T95: 23.89 | U95: 23.98
A96: O15145 | B96: 24.42 | C96: 25.41 | D96: 24.63 | E96: 25.09 | F96: 24.88 | G96: 24.83 | H96: 24.73 | I96: 24.98 | J96: 24.73 | K96: 25.16 | L96: 23.20 | M96: 23.46 | N96: 22.93 | O96: 23.78 | P96: 23.77 | Q96: 23.68 | R96: 23.63 | S96: 23.42 | T96: 23.30 | U96: 23.66
A97: O15173 | B97: 21.89 | C97: 21.81 | D97: 21.77 | E97: 22.44 | F97: 22.01 | G97: 22.05 | H97: 22.28 | I97: 21.81 | J97: 22.39 | K97: 21.62 | L97: 21.14 | M97: 21.19 | N97: 21.38 | O97: 21.26 | P97: 21.16 | Q97: 21.46 | R97: 21.21 | S97: 21.48 | T97: 21.34 | U97: 21.36
A98: O15212 | B98: 21.25 | C98: 20.73 | D98: NA | E98: 22.01 | F98: 20.44 | G98: 22.27 | H98: 22.01 | I98: 21.26 | J98: NA | K98: 21.15 | L98: 20.49 | M98: 20.30 | N98: 19.73 | O98: 20.98 | P98: 20.52 | Q98: 19.96 | R98: 20.05 | S98: 19.70 | T98: 20.53 | U98: NA
A99: O15240 | B99: 24.25 | C99: 23.58 | D99: 23.06 | E99: 24.20 | F99: 22.73 | G99: 25.27 | H99: 23.94 | I99: 24.47 | J99: 25.26 | K99: 23.72 | L99: 21.59 | M99: 21.06 | N99: NA | O99: 22.82 | P99: 21.89 | Q99: 22.89 | R99: 22.10 | S99: 21.65 | T99: 22.95 | U99: 22.45
A100: O15294 | B100: 22.52 | C100: 23.75 | D100: 22.31 | E100: 23.78 | F100: 22.59 | G100: 22.50 | H100: 23.33 | I100: 23.55 | J100: 23.11 | K100: 22.39 | L100: 21.18 | M100: 21.85 | N100: 21.70 | O100: 22.26 | P100: 22.02 | Q100: 20.81 | R100: 21.62 | S100: 21.65 | T100: 21.97 | U100: 21.41
A101: O15394 | B101: 25.98 | C101: 26.20 | D101: 25.52 | E101: 26.06 | F101: 26.16 | G101: 25.57 | H101: 25.78 | I101: 25.94 | J101: 25.42 | K101: 26.10 | L101: 24.92 | M101: 24.38 | N101: 24.40 | O101: 24.29 | P101: 24.96 | Q101: 24.73 | R101: 24.32 | S101: 24.38 | T101: 24.12 | U101: 24.43
A102: O15400 | B102: 24.08 | C102: 24.79 | D102: 23.72 | E102: 24.68 | F102: 23.78 | G102: 24.98 | H102: 25.11 | I102: 24.76 | J102: 25.09 | K102: 24.17 | L102: 22.84 | M102: 22.12 | N102: 22.14 | O102: 22.92 | P102: 23.01 | Q102: 22.93 | R102: 22.96 | S102: 22.76 | T102: 23.22 | U102: 22.99
A103: O15498 | B103: 23.10 | C103: 23.19 | D103: 23.07 | E103: 23.30 | F103: 23.50 | G103: 23.04 | H103: 23.00 | I103: 22.84 | J103: 22.92 | K103: 23.28 | L103: 22.14 | M103: 22.63 | N103: 21.77 | O103: 21.90 | P103: 22.03 | Q103: 22.46 | R103: 22.23 | S103: 21.49 | T103: 21.86 | U103: 22.06
A104: O15511 | B104: NA | C104: 21.97 | D104: 22.61 | E104: NA | F104: NA | G104: 21.83 | H104: NA | I104: NA | J104: NA | K104: NA | L104: 20.77 | M104: 21.71 | N104: 20.30 | O104: NA | P104: 20.64 | Q104: 20.96 | R104: 20.87 | S104: 21.01 | T104: 20.65 | U104: 20.91
A105: O15530 | B105: NA | C105: NA | D105: NA | E105: NA | F105: NA | G105: NA | H105: 20.84 | I105: NA | J105: 20.50 | K105: 20.78 | L105: 19.22 | M105: 19.07 | N105: 19.27 | O105: 19.44 | P105: 19.52 | Q105: 18.97 | R105: NA | S105: 19.10 | T105: 19.54 | U105: 19.49
A106: O15540 | B106: 25.10 | C106: 25.65 | D106: 24.24 | E106: 24.98 | F106: 25.82 | G106: 25.15 | H106: 25.21 | I106: 25.38 | J106: 25.04 | K106: 25.94 | L106: 24.17 | M106: 24.94 | N106: 23.69 | O106: 23.39 | P106: 23.98 | Q106: 24.69 | R106: 24.82 | S106: 23.93 | T106: 23.75 | U106: 24.52
A107: O43143 | B107: NA | C107: NA | D107: NA | E107: NA | F107: NA | G107: NA | H107: 20.32 | I107: NA | J107: NA | K107: NA | L107: 19.88 | M107: 19.88 | N107: 20.04 | O107: 19.69 | P107: 19.30 | Q107: NA | R107: 19.53 | S107: 19.73 | T107: 19.75 | U107: 19.55
A108: O43157 | B108: 21.25 | C108: NA | D108: NA | E108: 20.87 | F108: NA | G108: 21.04 | H108: 20.88 | I108: NA | J108: 21.51 | K108: 20.67 | L108: 19.63 | M108: 20.64 | N108: 19.73 | O108: 19.60 | P108: 19.78 | Q108: 19.86 | R108: 20.64 | S108: 19.89 | T108: 20.19 | U108: 20.33
A109: O43169 | B109: NA | C109: NA | D109: NA | E109: NA | F109: NA | G109: 21.56 | H109: NA | I109: NA | J109: NA | K109: NA | L109: 20.24 | M109: 19.88 | N109: 19.49 | O109: 20.21 | P109: 20.57 | Q109: 20.32 | R109: 20.91 | S109: 20.15 | T109: 19.96 | U109: 21.12
A110: O43175 | B110: 26.62 | C110: 26.55 | D110: 26.55 | E110: 26.39 | F110: 25.30 | G110: 26.69 | H110: 26.47 | I110: 26.51 | J110: 26.32 | K110: 25.22 | L110: 25.16 | M110: 26.46 | N110: 25.32 | O110: 24.67 | P110: 25.57 | Q110: 25.23 | R110: 25.76 | S110: 25.56 | T110: 24.94 | U110: 25.37
A111: O43181 | B111: 22.28 | C111: 21.20 | D111: 21.68 | E111: 22.27 | F111: 23.05 | G111: 21.53 | H111: NA | I111: 21.76 | J111: 22.00 | K111: 22.68 | L111: 21.47 | M111: 21.41 | N111: NA | O111: 21.77 | P111: 21.46 | Q111: 21.60 | R111: 21.44 | S111: 22.07 | T111: 22.29 | U111: 21.84
A112: O43236 | B112: 22.22 | C112: 22.05 | D112: 21.85 | E112: 22.32 | F112: 21.94 | G112: 21.91 | H112: 21.61 | I112: 21.16 | J112: 22.06 | K112: 21.40 | L112: 21.68 | M112: 21.41 | N112: 22.46 | O112: 21.55 | P112: 21.74 | Q112: 21.72 | R112: 21.45 | S112: 22.13 | T112: 21.51 | U112: 21.80
A113: O43237 | B113: 22.17 | C113: 22.39 | D113: 21.82 | E113: 22.60 | F113: 22.23 | G113: 22.34 | H113: 22.59 | I113: 22.13 | J113: 22.35 | K113: 21.96 | L113: 21.40 | M113: 21.80 | N113: 21.23 | O113: 21.12 | P113: 21.79 | Q113: 21.31 | R113: 21.54 | S113: 21.55 | T113: 21.26 | U113: 21.16
A114: O43242 | B114: 22.46 | C114: 22.46 | D114: 22.69 | E114: 22.43 | F114: 22.30 | G114: 22.39 | H114: 22.20 | I114: 22.43 | J114: 22.32 | K114: 22.34 | L114: 20.91 | M114: 21.43 | N114: 20.92 | O114: 20.82 | P114: 20.91 | Q114: 21.20 | R114: 21.38 | S114: 21.13 | T114: 21.27 | U114: 21.24
A115: O43272 | B115: NA | C115: NA | D115: NA | E115: NA | F115: NA | G115: 19.09 | H115: NA | I115: NA | J115: NA | K115: NA | L115: 19.23 | M115: 20.47 | N115: 19.75 | O115: 19.42 | P115: 19.48 | Q115: 19.20 | R115: 20.65 | S115: 19.60 | T115: 20.12 | U115: 20.36
A116: O43295 | B116: 21.85 | C116: 22.73 | D116: 21.53 | E116: 22.12 | F116: 22.17 | G116: 22.03 | H116: NA | I116: NA | J116: NA | K116: 21.89 | L116: 21.45 | M116: 20.67 | N116: 20.97 | O116: 21.35 | P116: 21.83 | Q116: 21.21 | R116: 20.68 | S116: 21.12 | T116: 21.16 | U116: 20.99
A117: O43301 | B117: 26.78 | C117: 27.02 | D117: 26.31 | E117: 26.87 | F117: 27.32 | G117: 25.94 | H117: 26.37 | I117: 26.46 | J117: 26.20 | K117: 26.77 | L117: 25.77 | M117: 25.43 | N117: 25.88 | O117: 25.99 | P117: 25.74 | Q117: 25.45 | R117: 25.56 | S117: 25.56 | T117: 25.71 | U117: 25.39
A118: O43390 | B118: 23.84 | C118: 23.82 | D118: 23.85 | E118: 23.52 | F118: 23.43 | G118: 23.83 | H118: 23.94 | I118: 23.48 | J118: 23.56 | K118: 23.95 | L118: 22.80 | M118: 22.69 | N118: 23.56 | O118: 23.28 | P118: 22.34 | Q118: 22.60 | R118: 22.18 | S118: 23.01 | T118: 23.03 | U118: 22.48
A119: O43396 | B119: 22.42 | C119: NA | D119: 22.29 | E119: NA | F119: 22.14 | G119: 22.24 | H119: 22.14 | I119: 21.67 | J119: 21.61 | K119: 21.94 | L119: 22.03 | M119: 21.87 | N119: 21.93 | O119: 21.34 | P119: 21.59 | Q119: 21.67 | R119: 21.92 | S119: 21.44 | T119: 21.35 | U119: 21.44
A120: O43399 | B120: 21.15 | C120: 21.08 | D120: NA | E120: 21.17 | F120: 21.85 | G120: 20.74 | H120: NA | I120: 20.98 | J120: 21.05 | K120: 20.69 | L120: 20.01 | M120: 20.11 | N120: 19.46 | O120: 20.44 | P120: 20.21 | Q120: 19.57 | R120: 20.01 | S120: 19.41 | T120: 20.16 | U120: 20.11
A121: O43426 | B121: 27.14 | C121: 27.50 | D121: 26.60 | E121: 27.37 | F121: 27.49 | G121: 26.80 | H121: 27.24 | I121: 26.83 | J121: 26.94 | K121: 27.28 | L121: 26.19 | M121: 25.60 | N121: 25.38 | O121: 25.78 | P121: 25.73 | Q121: 25.86 | R121: 25.28 | S121: 25.25 | T121: 25.50 | U121: 25.39
A122: O43488 | B122: 23.92 | C122: 23.67 | D122: 23.57 | E122: 24.21 | F122: 23.69 | G122: 24.27 | H122: 23.95 | I122: 23.86 | J122: 24.20 | K122: 23.63 | L122: 22.82 | M122: 23.77 | N122: 22.77 | O122: 22.31 | P122: 22.99 | Q122: 23.16 | R122: 23.45 | S122: 22.94 | T122: 22.60 | U122: 23.10
A123: O43491 | B123: 25.32 | C123: 25.22 | D123: 24.74 | E123: 25.28 | F123: 24.55 | G123: 25.80 | H123: 25.32 | I123: 25.47 | J123: 25.98 | K123: 24.35 | L123: 23.66 | M123: 24.22 | N123: 23.90 | O123: 23.31 | P123: 24.31 | Q123: 24.01 | R123: 24.59 | S123: 24.14 | T123: 23.60 | U123: 24.27
A124: O43505 | B124: NA | C124: 20.90 | D124: 20.12 | E124: 21.02 | F124: 20.98 | G124: 20.97 | H124: 21.20 | I124: 21.22 | J124: 21.61 | K124: 21.32 | L124: 20.24 | M124: 19.80 | N124: NA | O124: 20.49 | P124: 20.28 | Q124: 20.73 | R124: 19.67 | S124: 20.63 | T124: 20.18 | U124: 20.02
A125: O43566 | B125: 18.97 | C125: 19.93 | D125: NA | E125: 19.54 | F125: 20.86 | G125: NA | H125: 19.26 | I125: NA | J125: 19.06 | K125: 20.75 | L125: NA | M125: NA | N125: NA | O125: NA | P125: 18.82 | Q125: NA | R125: NA | S125: NA | T125: NA | U125: NA
A126: O43581 | B126: 21.26 | C126: NA | D126: NA | E126: 21.70 | F126: 22.02 | G126: 20.35 | H126: 20.33 | I126: 21.73 | J126: 20.58 | K126: 20.91 | L126: 20.91 | M126: 19.38 | N126: 20.41 | O126: 20.62 | P126: NA | Q126: NA | R126: NA | S126: NA | T126: 20.54 | U126: 20.26
A127: O43592 | B127: 21.46 | C127: 21.41 | D127: 20.70 | E127: 21.76 | F127: 21.21 | G127: 21.48 | H127: 21.26 | I127: 21.53 | J127: 21.48 | K127: NA | L127: 20.14 | M127: 20.10 | N127: 19.94 | O127: 19.63 | P127: 20.21 | Q127: 19.94 | R127: 20.07 | S127: NA | T127: 19.55 | U127: 19.93
A128: O43598 | B128: NA | C128: NA | D128: NA | E128: NA | F128: NA | G128: NA | H128: NA | I128: 21.67 | J128: NA | K128: NA | L128: NA | M128: NA | N128: 20.46 | O128: 20.21 | P128: 21.05 | Q128: NA | R128: NA | S128: 20.59 | T128: NA | U128: 20.52
A129: O43615 | B129: 20.92 | C129: 21.45 | D129: 20.90 | E129: 21.96 | F129: 21.18 | G129: 20.90 | H129: 21.10 | I129: 21.13 | J129: 20.79 | K129: 20.56 | L129: 20.26 | M129: 20.40 | N129: 19.89 | O129: 19.95 | P129: 20.05 | Q129: NA | R129: 20.03 | S129: 19.72 | T129: 20.14 | U129: 20.26
A130: O43617 | B130: 21.79 | C130: 22.28 | D130: 21.22 | E130: 22.20 | F130: 22.37 | G130: 21.99 | H130: 22.13 | I130: 21.76 | J130: 21.90 | K130: 21.94 | L130: 20.79 | M130: 20.25 | N130: 20.55 | O130: 20.98 | P130: 20.82 | Q130: 20.58 | R130: 20.57 | S130: 20.38 | T130: 21.09 | U130: 20.95
A131: O43639 | B131: 20.44 | C131: 20.37 | D131: 20.10 | E131: 20.66 | F131: 20.53 | G131: 20.15 | H131: 20.70 | I131: NA | J131: 20.11 | K131: NA | L131: 19.27 | M131: 19.07 | N131: 19.25 | O131: 19.26 | P131: 19.30 | Q131: 19.24 | R131: 19.37 | S131: NA | T131: 19.39 | U131: 19.20
A132: O43674 | B132: 22.80 | C132: NA | D132: 22.12 | E132: 23.16 | F132: 23.27 | G132: 22.62 | H132: NA | I132: 22.90 | J132: 22.14 | K132: 23.39 | L132: 21.81 | M132: 21.95 | N132: 21.95 | O132: 22.23 | P132: NA | Q132: 21.97 | R132: 21.91 | S132: 21.97 | T132: 22.45 | U132: 21.91
A133: O43676 | B133: NA | C133: NA | D133: NA | E133: NA | F133: NA | G133: NA | H133: NA | I133: NA | J133: NA | K133: 22.36 | L133: 22.16 | M133: 21.20 | N133: 21.44 | O133: 21.32 | P133: 20.95 | Q133: 21.24 | R133: 21.05 | S133: 21.06 | T133: 21.11 | U133: 21.05
A134: O43678 | B134: 23.57 | C134: 23.57 | D134: 22.99 | E134: 24.25 | F134: 23.67 | G134: 23.70 | H134: 23.87 | I134: 23.68 | J134: 24.01 | K134: 23.77 | L134: 23.14 | M134: 23.11 | N134: 23.06 | O134: 23.67 | P134: 23.05 | Q134: 22.99 | R134: 22.67 | S134: 23.06 | T134: 23.33 | U134: 22.82
A135: O43681 | B135: 22.85 | C135: 22.44 | D135: 22.67 | E135: NA | F135: 22.92 | G135: 22.72 | H135: 22.57 | I135: 22.24 | J135: 22.85 | K135: NA | L135: 21.59 | M135: 21.66 | N135: 22.16 | O135: 21.90 | P135: 21.59 | Q135: 21.62 | R135: 21.86 | S135: 22.08 | T135: 22.12 | U135: 21.92
A136: O43707 | B136: 25.04 | C136: 24.69 | D136: 26.17 | E136: 24.71 | F136: 24.86 | G136: 24.97 | H136: 24.83 | I136: 24.55 | J136: 24.51 | K136: 24.70 | L136: 23.73 | M136: 23.52 | N136: 23.91 | O136: 24.29 | P136: 23.74 | Q136: 23.74 | R136: 23.84 | S136: 23.61 | T136: 24.23 | U136: 23.85
A137: Q99418 | B137: 20.44 | C137: 18.66 | D137: 19.96 | E137: 19.71 | F137: 20.61 | G137: 20.10 | H137: 20.22 | I137: 19.90 | J137: 19.89 | K137: 20.56 | L137: 19.41 | M137: NA | N137: 19.27 | O137: 19.99 | P137: 19.97 | Q137: 19.75 | R137: 18.90 | S137: NA | T137: 19.97 | U137: 19.42
A138: O43747 | B138: 22.72 | C138: 23.06 | D138: 23.03 | E138: 22.82 | F138: 22.82 | G138: 22.63 | H138: 22.66 | I138: 22.64 | J138: 22.54 | K138: 23.08 | L138: 22.03 | M138: 22.08 | N138: 22.07 | O138: 21.85 | P138: 21.63 | Q138: 21.91 | R138: 21.97 | S138: 22.20 | T138: 21.69 | U138: 21.90
A139: O43752 | B139: NA | C139: 20.78 | D139: NA | E139: 20.98 | F139: NA | G139: NA | H139: 20.45 | I139: 20.68 | J139: 20.57 | K139: NA | L139: NA | M139: NA | N139: NA | O139: NA | P139: NA | Q139: NA | R139: 18.73 | S139: NA | T139: NA | U139: NA
A140: O43759 | B140: 23.94 | C140: 24.88 | D140: 23.63 | E140: 24.71 | F140: 24.50 | G140: 23.91 | H140: 24.76 | I140: 24.54 | J140: 24.53 | K140: 24.38 | L140: 23.42 | M140: 22.94 | N140: 22.91 | O140: 23.56 | P140: 24.09 | Q140: 23.25 | R140: 23.01 | S140: 23.27 | T140: 23.41 | U140: 23.35
A141: O43761 | B141: 25.36 | C141: 26.23 | D141: 25.13 | E141: 25.50 | F141: 26.00 | G141: 24.90 | H141: 25.65 | I141: 25.59 | J141: 25.18 | K141: 26.25 | L141: 24.18 | M141: 23.14 | N141: 24.09 | O141: 24.99 | P141: 24.68 | Q141: 24.45 | R141: 23.62 | S141: 24.36 | T141: 24.61 | U141: 24.07
A142: O43765 | B142: 21.72 | C142: 22.07 | D142: 21.67 | E142: 22.07 | F142: 22.37 | G142: 21.63 | H142: 21.71 | I142: 21.89 | J142: 21.64 | K142: 22.32 | L142: 21.16 | M142: 21.21 | N142: 20.78 | O142: 20.68 | P142: 21.02 | Q142: 20.87 | R142: 20.54 | S142: 20.98 | T142: 20.85 | U142: 20.71
A143: O43776 | B143: 22.67 | C143: 22.11 | D143: 23.03 | E143: 22.57 | F143: 23.22 | G143: 22.18 | H143: 22.16 | I143: 22.68 | J143: 22.46 | K143: 22.20 | L143: 21.88 | M143: 21.97 | N143: 22.25 | O143: 21.62 | P143: 21.26 | Q143: 21.59 | R143: 21.76 | S143: 21.79 | T143: 22.02 | U143: 21.50
A144: O43813 | B144: 25.65 | C144: 25.88 | D144: 25.55 | E144: 25.89 | F144: 25.17 | G144: 25.59 | H144: 25.78 | I144: 25.84 | J144: 25.66 | K144: 25.68 | L144: 24.79 | M144: 24.88 | N144: 24.77 | O144: 24.34 | P144: 24.78 | Q144: 24.80 | R144: 24.81 | S144: 24.62 | T144: 24.35 | U144: 24.72
A145: O43815 | B145: 20.86 | C145: 21.58 | D145: 20.33 | E145: 21.86 | F145: 21.04 | G145: 22.79 | H145: NA | I145: 21.47 | J145: NA | K145: NA | L145: NA | M145: 20.36 | N145: 20.13 | O145: 20.46 | P145: 20.31 | Q145: 20.29 | R145: NA | S145: 20.65 | T145: 20.01 | U145: NA
A146: O43837 | B146: 25.78 | C146: 26.11 | D146: 25.46 | E146: 25.59 | F146: 25.61 | G146: 25.26 | H146: 25.95 | I146: 25.63 | J146: 25.69 | K146: 25.65 | L146: 24.31 | M146: 24.59 | N146: 24.64 | O146: 24.54 | P146: 24.33 | Q146: 24.14 | R146: 24.61 | S146: 24.63 | T146: 24.53 | U146: 24.57
A147: O43852 | B147: 22.55 | C147: 22.88 | D147: 21.73 | E147: 22.86 | F147: 22.10 | G147: 22.24 | H147: 22.32 | I147: 21.93 | J147: 22.29 | K147: 21.68 | L147: NA | M147: NA | N147: NA | O147: NA | P147: NA | Q147: NA | R147: NA | S147: 20.67 | T147: NA | U147: NA
A148: O43865 | B148: 25.63 | C148: 25.96 | D148: 25.31 | E148: 26.01 | F148: 26.04 | G148: 25.76 | H148: 26.27 | I148: 26.49 | J148: 26.28 | K148: 26.14 | L148: 24.57 | M148: 25.12 | N148: 24.91 | O148: 24.58 | P148: 24.48 | Q148: 25.22 | R148: 25.04 | S148: 25.04 | T148: 24.76 | U148: 24.60
A149: O43920 | B149: 23.55 | C149: 24.19 | D149: 22.96 | E149: 23.55 | F149: 22.93 | G149: 23.03 | H149: 23.16 | I149: 22.54 | J149: 23.06 | K149: 22.09 | L149: 21.97 | M149: 22.31 | N149: 22.53 | O149: 22.59 | P149: 21.70 | Q149: 21.74 | R149: 22.30 | S149: 21.36 | T149: 22.27 | U149: 22.24
A150: O60220 | B150: 22.50 | C150: 22.18 | D150: 21.80 | E150: 22.51 | F150: 22.47 | G150: 22.17 | H150: 22.03 | I150: 21.84 | J150: 21.99 | K150: 22.21 | L150: NA | M150: 20.80 | N150: NA | O150: 21.73 | P150: 20.37 | Q150: 21.03 | R150: 20.56 | S150: NA | T150: 21.54 | U150: 21.37
A151: O60256 | B151: 22.78 | C151: 23.19 | D151: 22.32 | E151: 23.05 | F151: 22.23 | G151: 22.55 | H151: 22.85 | I151: 23.24 | J151: 22.68 | K151: 22.80 | L151: 21.42 | M151: 21.57 | N151: 21.48 | O151: 21.51 | P151: 21.75 | Q151: 21.65 | R151: 21.81 | S151: 21.51 | T151: 21.31 | U151: 21.06
A152: O60262 | B152: 25.01 | C152: 24.92 | D152: 24.21 | E152: 25.06 | F152: 25.30 | G152: 25.03 | H152: 24.90 | I152: 24.35 | J152: 25.07 | K152: 24.86 | L152: 24.02 | M152: 23.82 | N152: 23.93 | O152: 23.81 | P152: 23.82 | Q152: 23.21 | R152: 23.32 | S152: 23.95 | T152: 23.65 | U152: 23.71
A153: O60268 | B153: 23.75 | C153: 24.10 | D153: 22.84 | E153: 23.60 | F153: 23.63 | G153: 23.21 | H153: 23.27 | I153: 23.42 | J153: 23.08 | K153: 22.92 | L153: 22.73 | M153: 22.24 | N153: 22.26 | O153: 22.62 | P153: 22.48 | Q153: 22.28 | R153: 22.19 | S153: 21.74 | T153: 22.46 | U153: 22.36
A154: O60282 | B154: 24.21 | C154: 24.61 | D154: 23.71 | E154: 24.36 | F154: 24.09 | G154: 24.07 | H154: 23.96 | I154: 24.30 | J154: 24.19 | K154: 24.17 | L154: 22.50 | M154: 22.34 | N154: 22.67 | O154: 22.78 | P154: 22.37 | Q154: 22.72 | R154: 22.58 | S154: 22.58 | T154: 22.76 | U154: 22.79
A155: O60299 | B155: NA | C155: NA | D155: NA | E155: NA | F155: 21.58 | G155: NA | H155: NA | I155: NA | J155: NA | K155: NA | L155: NA | M155: NA | N155: 20.35 | O155: 20.49 | P155: 19.76 | Q155: NA | R155: 19.84 | S155: NA | T155: 20.34 | U155: 19.99
A156: O60313 | B156: 25.36 | C156: 25.77 | D156: 25.12 | E156: 25.84 | F156: 25.77 | G156: 25.17 | H156: 25.50 | I156: 25.33 | J156: 25.42 | K156: 25.74 | L156: 24.61 | M156: 24.36 | N156: 24.32 | O156: 24.62 | P156: 24.46 | Q156: 24.33 | R156: 24.39 | S156: 24.36 | T156: 24.46 | U156: 24.22
A157: O60331 | B157: 23.25 | C157: 23.58 | D157: 22.59 | E157: 23.28 | F157: 23.59 | G157: 22.14 | H157: 22.88 | I157: 22.81 | J157: 22.60 | K157: 23.31 | L157: 22.01 | M157: 21.44 | N157: 21.91 | O157: 22.09 | P157: 21.90 | Q157: 21.99 | R157: 21.50 | S157: 21.96 | T157: 22.10 | U157: 21.86
A158: O60443 | B158: NA | C158: NA | D158: NA | E158: NA | F158: NA | G158: 21.83 | H158: NA | I158: NA | J158: NA | K158: NA | L158: NA | M158: 19.96 | N158: NA | O158: 19.14 | P158: 19.37 | Q158: NA | R158: 19.31 | S158: NA | T158: NA | U158: NA
A159: O60462 | B159: 21.06 | C159: 21.35 | D159: 21.26 | E159: 21.63 | F159: NA | G159: 20.94 | H159: 21.13 | I159: NA | J159: 22.54 | K159: NA | L159: NA | M159: 20.75 | N159: NA | O159: NA | P159: 20.22 | Q159: 20.02 | R159: NA | S159: NA | T159: NA | U159: 19.72
A160: O60493 | B160: 23.65 | C160: 24.25 | D160: 23.61 | E160: 24.35 | F160: 23.62 | G160: 23.87 | H160: 24.35 | I160: 24.29 | J160: 24.33 | K160: 23.79 | L160: 23.04 | M160: 22.77 | N160: 22.98 | O160: 23.36 | P160: 23.09 | Q160: 22.56 | R160: 22.64 | S160: 23.02 | T160: 22.96 | U160: 22.65
A161: O60502 | B161: 23.50 | C161: 23.45 | D161: 22.97 | E161: 23.26 | F161: 23.59 | G161: 23.23 | H161: 22.87 | I161: 22.85 | J161: 22.76 | K161: 23.43 | L161: 22.35 | M161: 21.83 | N161: 21.89 | O161: 22.22 | P161: 22.02 | Q161: 21.29 | R161: 21.63 | S161: 21.68 | T161: 21.59 | U161: 21.80
A162: O60506 | B162: 20.18 | C162: NA | D162: NA | E162: NA | F162: 19.88 | G162: NA | H162: NA | I162: NA | J162: NA | K162: NA | L162: 19.46 | M162: 19.40 | N162: 19.69 | O162: 19.14 | P162: 19.20 | Q162: 19.33 | R162: 19.54 | S162: 19.94 | T162: 19.63 | U162: 19.97
A163: O60641 | B163: 26.23 | C163: 26.58 | D163: 25.34 | E163: 26.24 | F163: 26.17 | G163: 25.62 | H163: 26.11 | I163: 25.72 | J163: 25.81 | K163: 26.68 | L163: 25.45 | M163: 25.06 | N163: 25.14 | O163: 25.18 | P163: 25.25 | Q163: 25.46 | R163: 25.15 | S163: 25.27 | T163: 25.23 | U163: 25.13
A164: O60645 | B164: NA | C164: NA | D164: NA | E164: NA | F164: NA | G164: 22.00 | H164: NA | I164: NA | J164: NA | K164: NA | L164: 19.80 | M164: 19.67 | N164: NA | O164: NA | P164: 19.66 | Q164: NA | R164: NA | S164: 19.53 | T164: 19.42 | U164: 19.62
A165: O60664 | B165: 20.83 | C165: 20.55 | D165: 20.38 | E165: 21.03 | F165: 20.73 | G165: 20.53 | H165: 20.57 | I165: 20.66 | J165: 21.17 | K165: NA | L165: NA | M165: NA | N165: NA | O165: NA | P165: NA | Q165: NA | R165: NA | S165: NA | T165: NA | U165: 19.67
A166: O60716 | B166: 21.62 | C166: 21.93 | D166: 21.48 | E166: 21.87 | F166: 21.46 | G166: 21.52 | H166: 21.96 | I166: 21.74 | J166: 21.95 | K166: NA | L166: 19.85 | M166: 20.03 | N166: 20.14 | O166: 20.40 | P166: 20.00 | Q166: 19.92 | R166: 20.36 | S166: 19.89 | T166: 20.36 | U166: 20.11
A167: O60749 | B167: 22.47 | C167: 22.74 | D167: 21.84 | E167: 22.25 | F167: 21.21 | G167: 22.24 | H167: 22.07 | I167: 22.50 | J167: 22.35 | K167: 21.63 | L167: 20.88 | M167: 20.60 | N167: 21.36 | O167: 21.04 | P167: 20.53 | Q167: 20.79 | R167: 20.96 | S167: 20.63 | T167: 20.81 | U167: 20.51
A168: O60763 | B168: 23.23 | C168: 23.60 | D168: 23.06 | E168: 23.30 | F168: 23.35 | G168: 22.90 | H168: 23.37 | I168: 23.28 | J168: 23.34 | K168: 23.32 | L168: 21.99 | M168: 22.05 | N168: 22.28 | O168: 22.25 | P168: 22.25 | Q168: 21.78 | R168: 21.82 | S168: 22.36 | T168: 22.17 | U168: 21.85
A169: O60784 | B169: 23.03 | C169: 23.10 | D169: 22.66 | E169: 23.56 | F169: 23.39 | G169: 23.77 | H169: 23.96 | I169: 23.79 | J169: 24.07 | K169: 24.16 | L169: 21.99 | M169: 21.50 | N169: 21.90 | O169: 22.15 | P169: 22.07 | Q169: 22.47 | R169: 21.88 | S169: 22.64 | T169: 22.07 | U169: 22.45
A170: Q99880 | B170: 23.41 | C170: 24.47 | D170: 24.26 | E170: 23.84 | F170: 23.90 | G170: 24.65 | H170: 24.21 | I170: 24.02 | J170: 24.17 | K170: 24.19 | L170: 24.39 | M170: 23.33 | N170: 24.28 | O170: 23.64 | P170: 23.06 | Q170: 23.86 | R170: 22.88 | S170: 24.27 | T170: 22.84 | U170: 22.89
A171: O60825 | B171: NA | C171: 22.46 | D171: NA | E171: 21.94 | F171: NA | G171: NA | H171: 22.51 | I171: NA | J171: NA | K171: NA | L171: 21.68 | M171: 21.91 | N171: 20.65 | O171: 20.94 | P171: 21.03 | Q171: 20.84 | R171: 21.47 | S171: 20.99 | T171: 20.77 | U171: 20.81
A172: O60826 | B172: NA | C172: 20.68 | D172: NA | E172: NA | F172: NA | G172: NA | H172: 21.09 | I172: NA | J172: NA | K172: NA | L172: 19.53 | M172: NA | N172: NA | O172: NA | P172: NA | Q172: 19.62 | R172: 19.80 | S172: 19.69 | T172: NA | U172: 19.69
A173: O60831 | B173: 21.78 | C173: NA | D173: 21.52 | E173: 21.66 | F173: NA | G173: 21.73 | H173: 22.28 | I173: NA | J173: 22.41 | K173: NA | L173: 20.59 | M173: 20.96 | N173: NA | O173: 21.24 | P173: 21.39 | Q173: NA | R173: 20.96 | S173: NA | T173: 21.08 | U173: 20.79
A174: O60861 | B174: 21.23 | C174: 21.50 | D174: 21.12 | E174: 21.04 | F174: 22.34 | G174: NA | H174: 21.25 | I174: 21.93 | J174: 21.15 | K174: 21.82 | L174: 21.36 | M174: 20.12 | N174: 21.67 | O174: 21.64 | P174: 20.88 | Q174: 20.77 | R174: 20.39 | S174: 21.41 | T174: 21.62 | U174: 20.41
A175: O60869 | B175: 21.64 | C175: 21.67 | D175: NA | E175: 22.04 | F175: 20.54 | G175: 21.46 | H175: 22.03 | I175: NA | J175: 21.25 | K175: 20.43 | L175: 20.28 | M175: NA | N175: 20.72 | O175: 20.20 | P175: 20.87 | Q175: 20.14 | R175: 19.95 | S175: NA | T175: 20.35 | U175: 21.16
A176: O60883 | B176: 22.91 | C176: 23.33 | D176: NA | E176: 23.41 | F176: 22.70 | G176: 22.92 | H176: 23.12 | I176: 23.60 | J176: 23.85 | K176: 22.93 | L176: 22.03 | M176: 22.52 | N176: 21.86 | O176: 22.09 | P176: 21.52 | Q176: 22.37 | R176: 22.43 | S176: 22.52 | T176: 22.46 | U176: 22.42
A177: O60884 | B177: 21.97 | C177: 22.81 | D177: 22.17 | E177: 22.35 | F177: 22.44 | G177: 22.19 | H177: 21.83 | I177: 22.65 | J177: 21.82 | K177: 22.47 | L177: 21.53 | M177: 21.27 | N177: 21.35 | O177: 21.41 | P177: 21.31 | Q177: 21.11 | R177: 21.00 | S177: 21.20 | T177: 20.88 | U177: 21.20
A178: O60888 | B178: NA | C178: NA | D178: 24.82 | E178: NA | F178: NA | G178: NA | H178: NA | I178: NA | J178: NA | K178: NA | L178: NA | M178: NA | N178: 20.42 | O178: 20.93 | P178: 21.57 | Q178: NA | R178: NA | S178: NA | T178: 21.20 | U178: 21.26
A179: O60925 | B179: 22.43 | C179: 22.51 | D179: 21.93 | E179: 22.66 | F179: 22.22 | G179: 22.33 | H179: 22.10 | I179: 21.94 | J179: 21.98 | K179: 22.03 | L179: 21.48 | M179: 20.77 | N179: 21.61 | O179: 21.47 | P179: 21.57 | Q179: 21.30 | R179: 20.95 | S179: 21.19 | T179: 21.36 | U179: 21.26
A180: O60939 | B180: 20.88 | C180: 20.87 | D180: NA | E180: 22.26 | F180: NA | G180: 20.52 | H180: 20.85 | I180: NA | J180: 20.89 | K180: NA | L180: NA | M180: NA | N180: NA | O180: 19.04 | P180: NA | Q180: NA | R180: NA | S180: NA | T180: NA | U180: NA
A181: O75044 | B181: 21.56 | C181: 21.80 | D181: NA | E181: 22.16 | F181: NA | G181: 21.48 | H181: 22.20 | I181: 21.89 | J181: 22.23 | K181: NA | L181: NA | M181: NA | N181: 19.42 | O181: 20.23 | P181: NA | Q181: 19.71 | R181: NA | S181: NA | T181: NA | U181: NA
A182: O75061 | B182: 24.84 | C182: 24.88 | D182: 24.25 | E182: 25.09 | F182: 25.25 | G182: 24.22 | H182: 24.64 | I182: 24.54 | J182: 24.67 | K182: 24.85 | L182: 24.25 | M182: 24.04 | N182: 23.73 | O182: 24.18 | P182: 23.77 | Q182: 23.71 | R182: 23.65 | S182: 23.27 | T182: 24.05 | U182: 23.84
A183: O75077 | B183: NA | C183: 21.71 | D183: NA | E183: 21.62 | F183: 21.52 | G183: 20.95 | H183: 21.72 | I183: 21.13 | J183: 21.77 | K183: 22.13 | L183: 21.03 | M183: 19.94 | N183: 21.98 | O183: 21.65 | P183: 20.68 | Q183: 20.70 | R183: 20.75 | S183: 21.77 | T183: 21.46 | U183: 20.78
A184: O75083 | B184: 25.57 | C184: 25.32 | D184: 25.54 | E184: 25.72 | F184: 25.65 | G184: 25.67 | H184: 25.63 | I184: 25.51 | J184: 25.41 | K184: 25.27 | L184: 24.44 | M184: 25.24 | N184: 24.05 | O184: 24.14 | P184: 24.53 | Q184: 24.47 | R184: 25.03 | S184: 24.17 | T184: 24.18 | U184: 24.51
A185: O75093 | B185: NA | C185: NA | D185: NA | E185: NA | F185: NA | G185: 20.62 | H185: NA | I185: 20.62 | J185: 21.01 | K185: NA | L185: NA | M185: NA | N185: NA | O185: NA | P185: NA | Q185: NA | R185: NA | S185: NA | T185: NA | U185: 16.73
A186: O75110 | B186: 23.23 | C186: 23.20 | D186: 22.39 | E186: 23.09 | F186: 23.23 | G186: 24.34 | H186: 24.19 | I186: 24.10 | J186: 24.55 | K186: 23.89 | L186: 21.86 | M186: 21.57 | N186: 21.69 | O186: 21.88 | P186: 21.95 | Q186: 22.95 | R186: 22.43 | S186: 22.68 | T186: 22.29 | U186: 22.63
A187: O75116 | B187: 23.86 | C187: 24.25 | D187: 23.48 | E187: 24.17 | F187: 23.97 | G187: 23.79 | H187: 23.99 | I187: 23.80 | J187: 23.89 | K187: 23.71 | L187: 22.91 | M187: 23.43 | N187: 23.08 | O187: 23.34 | P187: 23.14 | Q187: 22.86 | R187: 22.85 | S187: 22.64 | T187: 23.06 | U187: 22.66
A188: O75122 | B188: 24.09 | C188: 24.31 | D188: 23.45 | E188: 24.30 | F188: 23.43 | G188: 23.72 | H188: 24.09 | I188: 24.02 | J188: 23.90 | K188: 23.36 | L188: 22.66 | M188: 22.32 | N188: 22.58 | O188: 22.70 | P188: 22.69 | Q188: 22.52 | R188: 22.39 | S188: 22.48 | T188: 22.50 | U188: 22.64
A189: O75131 | B189: 22.54 | C189: 22.15 | D189: 23.87 | E189: 22.25 | F189: 22.41 | G189: 22.65 | H189: 22.09 | I189: 22.81 | J189: 21.78 | K189: 22.23 | L189: 20.75 | M189: 21.78 | N189: 20.73 | O189: 20.59 | P189: 21.22 | Q189: 21.04 | R189: 21.48 | S189: 20.95 | T189: 20.46 | U189: 21.12
A190: O75145 | B190: 23.97 | C190: 24.39 | D190: 23.54 | E190: 24.49 | F190: 24.13 | G190: 23.44 | H190: 24.01 | I190: 23.81 | J190: 23.84 | K190: 24.23 | L190: 22.74 | M190: 22.24 | N190: 22.94 | O190: 23.29 | P190: 22.87 | Q190: 22.54 | R190: 22.49 | S190: 22.60 | T190: 23.09 | U190: 22.82
A191: O75146 | B191: 21.43 | C191: 21.73 | D191: 21.87 | E191: 21.64 | F191: 21.21 | G191: 21.12 | H191: 21.63 | I191: 20.73 | J191: 21.69 | K191: 20.98 | L191: 19.81 | M191: 20.14 | N191: 20.13 | O191: 20.17 | P191: 20.52 | Q191: 19.90 | R191: 20.33 | S191: 20.05 | T191: 20.04 | U191: 20.07
A192: O75190 | B192: 20.39 | C192: 20.99 | D192: NA | E192: 20.76 | F192: NA | G192: NA | H192: NA | I192: NA | J192: NA | K192: 20.73 | L192: 21.56 | M192: 20.94 | N192: NA | O192: 21.05 | P192: NA | Q192: NA | R192: NA | S192: 21.13 | T192: NA | U192: 20.85
A193: O75223 | B193: 21.85 | C193: 21.35 | D193: 26.24 | E193: 21.45 | F193: 22.96 | G193: 23.49 | H193: NA | I193: 20.72 | J193: 21.69 | K193: 21.93 | L193: 22.00 | M193: 20.43 | N193: 21.09 | O193: 22.12 | P193: 20.46 | Q193: 21.29 | R193: 19.79 | S193: 20.21 | T193: 20.98 | U193: 20.17
A194: O75251 | B194: 22.49 | C194: 22.18 | D194: 21.79 | E194: 22.31 | F194: 21.53 | G194: 21.82 | H194: 22.25 | I194: 21.48 | J194: 21.79 | K194: 21.21 | L194: 20.39 | M194: 20.71 | N194: 20.49 | O194: 21.09 | P194: 20.86 | Q194: 20.56 | R194: 21.59 | S194: 20.11 | T194: 21.37 | U194: 21.01
A195: O75306 | B195: 24.66 | C195: 24.05 | D195: 24.04 | E195: 24.37 | F195: 24.91 | G195: 23.83 | H195: 24.34 | I195: 23.90 | J195: 24.50 | K195: 24.78 | L195: 23.13 | M195: 23.76 | N195: 23.80 | O195: 23.90 | P195: 23.47 | Q195: 23.50 | R195: 23.43 | S195: 23.87 | T195: 24.06 | U195: 23.46
A196: O75323 | B196: 24.77 | C196: 25.28 | D196: 24.45 | E196: 25.00 | F196: 25.05 | G196: 24.28 | H196: 25.20 | I196: 25.67 | J196: 24.74 | K196: 25.41 | L196: 24.46 | M196: 24.31 | N196: 24.14 | O196: 24.53 | P196: 24.36 | Q196: 24.02 | R196: 24.26 | S196: 24.52 | T196: 24.37 | U196: 24.04
A197: O75334 | B197: 22.44 | C197: 22.74 | D197: 21.83 | E197: 22.79 | F197: 22.63 | G197: 21.92 | H197: 22.23 | I197: 22.14 | J197: 22.17 | K197: 22.18 | L197: 21.32 | M197: 21.34 | N197: 21.16 | O197: 21.68 | P197: 21.81 | Q197: 20.75 | R197: 21.13 | S197: 20.94 | T197: 21.33 | U197: 21.42
A198: O75335 | B198: NA | C198: NA | D198: NA | E198: NA | F198: NA | G198: NA | H198: NA | I198: NA | J198: 19.03 | K198: NA | L198: 18.77 | M198: NA | N198: NA | O198: 19.58 | P198: 18.81 | Q198: 18.42 | R198: NA | S198: NA | T198: NA | U198: 18.29
A199: O75340 | B199: 22.50 | C199: 21.10 | D199: 23.08 | E199: 22.14 | F199: 22.19 | G199: 22.87 | H199: 22.71 | I199: 21.45 | J199: 22.52 | K199: 21.56 | L199: 21.64 | M199: 21.92 | N199: 21.45 | O199: 21.44 | P199: 21.63 | Q199: 21.65 | R199: 21.83 | S199: 21.39 | T199: 21.77 | U199: 21.79
A200: O75347 | B200: 23.84 | C200: 23.02 | D200: 22.77 | E200: 23.61 | F200: 23.82 | G200: 23.93 | H200: 23.97 | I200: 23.31 | J200: 23.51 | K200: 24.32 | L200: 23.32 | M200: 23.05 | N200: 23.06 | O200: 22.81 | P200: 23.04 | Q200: 23.59 | R200: 22.99 | S200: 23.31 | T200: 22.54 | U200: 22.79
A201: O75348 | B201: 20.73 | C201: 20.98 | D201: NA | E201: 20.88 | F201: NA | G201: 20.92 | H201: NA | I201: 21.04 | J201: 20.98 | K201: NA | L201: NA | M201: NA | N201: NA | O201: NA | P201: NA | Q201: NA | R201: NA | S201: NA | T201: NA | U201: 19.47
... 2063 more rows

Sheet Table 3 - Enriched in EOAD & DS
A1: Supplementary Table 3 - Proteins enriched in plaques in both EOAD and DS (used to generate Figures 2 and 4)
A2: Proteins commonly enriched in plaques in DS and EOAD. Proteomic data obtained from Supplementary Table 1. “Novel plaque protein” highlights proteins that have not been identified in previous proteomic or immunohistochemistry studies as plaque proteins based on systematic literature review. “STRING GO classifications” highlight the proteins within the most highly enriched protein pathways identified using the program STRING. FDR (false discovery rate) shows the enrichment of each of these pathways.
F4: Down Syndrome Plaque vs Non-Plaque | X4: EOAD Plaque vs Non-Plaque | AP4: Novel Plaque Protein | AQ4: STRING GO classifications
A5: Uniprot ID | B5: Majority Gene ID | C5: All Gene IDs | D5: Name | E5: Peptides | F5: DS_np_01 | G5: DS_np_02 | H5: DS_np_03 | I5: DS_np_04 | J5: DS_np_05 | K5: Average intensity in DS_NP | L5: DS_p_01 | M5: DS_p_02 | N5: DS_p_03 | O5: DS_p_04 | P5: DS_p_05 | Q5: Average intensity in DS_P | R5: In at least 3 cases/group | S5: pValue_DS | T5: Difference_DS | U5: Fold change_DS | V5: Significant_DS | W5: Significantly enriched in DS plaques | X5: eoAD_np_01 | Y5: eoAD_np_02 | Z5: eoAD_np_03 | AA5: eoAD_np_04 | AB5: eoAD_np_05 | AC5: Average intensity in EOAD_NP | AD5: eoAD_p_01 | AE5: eoAD_p_02 | AF5: eoAD_p_03 | AG5: eoAD_p_04 | AH5: eoAD_p_05 | AI5: Average intensity in EOAD_P | AJ5: In at least 3 cases/group | AK5: pValue_eoAD | AL5: Difference_eoAD | AM5: Fold change_EOAD | AN5: Significant_eoAD | AO5: Significantly enriched in EOAD plaques | AQ5: Vesicle (FDR: 4.32E-09) | AR5: Extracellular Region (FDR: 3.34E-08) | AS5: Endosome (FDR: 5.06E-06) | AT5: Lysosome (FDR: 2.40E-04) | AU5: Synapse (FDR: 1.90E-03)
A6: Q9BXS0 | B6: COL25A1 | C6: COL25A1 | D6: Collagen alpha-1(XXV) chain (Alzheimer disease amyloid-associated protein) (AMY) (CLAC-P) [Cleaved into: Collagen-like Alzheimer amyloid plaque component (CLAC)] | E6: 2 | F6: 20.30 | G6: 19.02 | H6: 20.18 | I6: 19.95 | J6: 19.83 | K6: =AVERAGE(F6:J6) -> 19.86 | L6: 26.15 | M6: 26.86 | N6: 27.28 | O6: 26.87 | P6: 26.23 | Q6: =AVERAGE(L6:P6) -> 26.68 | R6: TRUE | S6: 0.0000 | T6: 6.82 | U6: =2^T6 -> 113.07 | V6: TRUE | W6: TRUE | X6: 19.74 | Y6: 17.35 | Z6: 19.88 | AA6: 17.22 | AB6: 17.89 | AC6: =AVERAGE(X6:AB6) -> 18.42 | AD6: 25.36 | AE6: 25.13 | AF6: 25.34 | AG6: 25.13 | AH6: 24.64 | AI6: =AVERAGE(AD6:AH6) -> 25.12 | AJ6: TRUE | AK6: 0.0002 | AL6: 6.70 | AM6: =2^AL6 -> 104.28 | AN6: TRUE | AO6: TRUE | AR6: TRUE
A7: P21741 | B7: MDK | C7: MDK MK1 NEGF2 | D7: Midkine (MK) (Amphiregulin-associated protein) (ARAP) (Midgestation and kidney protein) (Neurite outgrowth-promoting factor 2) (Neurite outgrowth-promoting protein) | E7: 7 | F7: 18.86 | G7: 20.65 | H7: 18.78 | I7: 20.62 | J7: 17.97 | K7: 19.38 | L7: 26.33 | M7: 25.80 | N7: 26.23 | O7: 25.89 | P7: 23.31 | Q7: 25.51 | R7: TRUE | S7: 0.0003 | T7: 6.14 | U7: 70.40 | V7: TRUE | W7: TRUE | X7: 17.96 | Y7: 17.99 | Z7: 19.31 | AA7: 18.26 | AB7: 18.38 | AC7: 18.38 | AD7: 23.83 | AE7: 22.71 | AF7: 24.04 | AG7: 22.79 | AH7: 23.40 | AI7: 23.35 | AJ7: TRUE | AK7: 0.0000 | AL7: 4.97 | AM7: 31.41 | AN7: TRUE | AO7: TRUE | AR7: TRUE
A8: Q9H4F8 | B8: SMOC1 | C8: SMOC1 | D8: SPARC-related modular calcium-binding protein 1 (Secreted modular calcium-binding protein 1) (SMOC-1) | E8: 16 | F8: 21.60 | G8: 19.70 | H8: 19.19 | I8: 21.03 | J8: 21.01 | K8: 20.51 | L8: 27.43 | M8: 25.85 | N8: 26.66 | O8: 26.66 | P8: 25.33 | Q8: 26.38 | R8: TRUE | S8: 0.0003 | T8: 5.88 | U8: 58.75 | V8: TRUE | W8: TRUE | X8: 20.72 | Y8: 21.12 | Z8: 19.73 | AA8: 21.54 | AB8: 20.88 | AC8: 20.80 | AD8: 25.37 | AE8: 24.12 | AF8: 24.23 | AG8: 24.01 | AH8: 24.72 | AI8: 24.49 | AJ8: TRUE | AK8: 0.0009 | AL8: 3.69 | AM8: 12.95 | AN8: TRUE | AO8: TRUE | AR8: TRUE
A9: O95631 | B9: NTN1 | C9: NTN1 NTN1L | D9: Netrin-1 (Epididymis tissue protein Li 131P) | E9: 13 | F9: 19.33 | G9: 19.20 | H9: 19.10 | I9: 19.01 | J9: 19.31 | K9: 19.19 | L9: 26.21 | M9: 24.55 | N9: 25.65 | O9: 26.23 | P9: 22.68 | Q9: 25.07 | R9: TRUE | S9: 0.0011 | T9: 5.88 | U9: 58.74 | V9: TRUE | W9: TRUE | X9: 17.92 | Y9: 17.44 | Z9: 18.34 | AA9: 18.07 | AB9: 17.56 | AC9: 17.87 | AD9: 24.04 | AE9: 23.33 | AF9: 23.34 | AG9: 21.94 | AH9: 22.32 | AI9: 22.99 | AJ9: TRUE | AK9: 0.0002 | AL9: 5.12 | AM9: 34.88 | AN9: TRUE | AO9: TRUE | AR9: TRUE
A10: Q92743 | B10: HTRA1 | C10: HTRA1 HTRA PRSS11 | D10: Serine protease HTRA1 (EC 3.4.21.-) (High-temperature requirement A serine peptidase 1) (L56) (Serine protease 11) | E10: 15 | F10: 20.44 | G10: 19.75 | H10: 19.10 | I10: 19.77 | J10: 19.92 | K10: 19.80 | L10: 25.27 | M10: 25.12 | N10: 25.43 | O10: 25.09 | P10: 25.17 | Q10: 25.21 | R10: TRUE | S10: 0.0000 | T10: 5.42 | U10: 42.76 | V10: TRUE | W10: TRUE | X10: 18.88 | Y10: 16.93 | Z10: 19.62 | AA10: 18.98 | AB10: 19.49 | AC10: 18.78 | AD10: 24.29 | AE10: 22.29 | AF10: 24.53 | AG10: 21.95 | AH10: 22.07 | AI10: 23.03 | AJ10: TRUE | AK10: 0.0022 | AL10: 4.25 | AM10: 18.99 | AN10: TRUE | AO10: TRUE | AR10: TRUE
A11: Q9NRN5 | B11: OLFML3 | C11: OLFML3 PSEC0035 PSEC0173 PSEC0244 UNQ663/PRO1294 | D11: Olfactomedin-like protein 3 (HNOEL-iso) (hOLF44) | E11: 10 | F11: 19.18 | G11: 19.45 | H11: 19.64 | I11: 20.29 | J11: 19.66 | K11: 19.64 | L11: 24.32 | M11: 23.89 | N11: 24.20 | O11: 24.23 | P11: 22.76 | Q11: 23.88 | R11: TRUE | S11: 0.0002 | T11: 4.24 | U11: 18.85 | V11: TRUE | W11: TRUE | X11: 17.37 | Y11: 18.35 | Z11: 18.51 | AA11: 17.90 | AB11: 17.36 | AC11: 17.90 | AD11: 22.54 | AE11: 21.56 | AF11: 22.64 | AG11: 22.02 | AH11: 22.05 | AI11: 22.16 | AJ11: TRUE | AK11: 0.0002 | AL11: 4.26 | AM11: 19.20 | AN11: TRUE | AO11: TRUE
A12: Q14956 | B12: GPNMB | C12: GPNMB HGFIN NMB UNQ1725/PRO9925 | D12: Transmembrane glycoprotein NMB (Hematopoietic growth factor inducible neurokinin-1 type) | E12: 2 | F12: 19.55 | G12: 18.55 | H12: 19.08 | I12: 19.00 | J12: 19.54 | K12: 19.14 | L12: 24.74 | M12: 23.82 | N12: 20.46 | O12: 23.99 | P12: 23.45 | Q12: 23.29 | R12: TRUE | S12: 0.0048 | T12: 4.15 | U12: 17.77 | V12: TRUE | W12: TRUE | X12: 18.61 | Y12: 19.56 | Z12: 18.95 | AA12: 18.69 | AB12: 19.06 | AC12: 18.97 | AD12: 23.33 | AE12: 23.19 | AF12: 21.28 | AG12: 19.36 | AH12: 22.55 | AI12: 21.94 | AJ12: TRUE | AK12: 0.0126 | AL12: 2.97 | AM12: 7.81 | AN12: TRUE | AO12: TRUE | AQ12: TRUE
A13: P02649 | B13: APOE | C13: APOE | D13: Apolipoprotein E (Apo-E) | E13: 25 | F13: 26.81 | G13: 27.49 | H13: 26.47 | I13: 26.98 | J13: 26.18 | K13: 26.79 | L13: 29.87 | M13: 31.54 | N13: 31.49 | O13: 31.01 | P13: 30.54 | Q13: 30.89 | R13: TRUE | S13: 0.0002 | T13: 4.10 | U13: 17.18 | V13: TRUE | W13: TRUE | X13: 24.39 | Y13: 25.01 | Z13: 24.78 | AA13: 24.40 | AB13: 25.12 | AC13: 24.74 | AD13: 28.47 | AE13: 27.86 | AF13: 28.52 | AG13: 28.25 | AH13: 27.53 | AI13: 28.12 | AJ13: TRUE | AK13: 0.0005 | AL13: 3.38 | AM13: 10.44 | AN13: TRUE | AO13: TRUE | AQ13: TRUE | AR13: TRUE | AS13: TRUE
A14: Q9HCB6 | B14: SPON1 | C14: SPON1 KIAA0762 VSGP | D14: Spondin-1 (F-spondin) (Vascular smooth muscle cell growth-promoting factor) | E14: 15 | F14: 21.47 | G14: 20.91 | H14: 21.12 | I14: 21.57 | J14: 20.38 | K14: 21.09 | L14: 26.00 | M14: 24.81 | N14: 24.89 | O14: 25.89 | P14: 24.08 | Q14: 25.13 | R14: TRUE | S14: 0.0000 | T14: 4.05 | U14: 16.52 | V14: TRUE | W14: TRUE | X14: 17.90 | Y14: 20.34 | Z14: 19.03 | AA14: 18.26 | AB14: 21.13 | AC14: 19.33 | AD14: 23.12 | AE14: 21.44 | AF14: 22.30 | AG14: 21.46 | AH14: 22.24 | AI14: 22.11 | AJ14: TRUE | AK14: 0.0229 | AL14: 2.78 | AM14: 6.88 | AN14: TRUE | AO14: TRUE
A15: P02743 | B15: APCS | C15: APCS PTX2 | D15: Serum amyloid P-component (SAP) (9.5S alpha-1-glycoprotein) [Cleaved into: Serum amyloid P-component(1-203)] | E15: 6 | F15: 18.36 | G15: 20.83 | H15: 18.26 | I15: 19.43 | J15: 19.56 | K15: 19.29 | L15: 23.12 | M15: 22.71 | N15: 23.38 | O15: 22.34 | P15: 22.06 | Q15: 22.72 | R15: TRUE | S15: 0.0057 | T15: 3.44 | U15: 10.84 | V15: TRUE | W15: TRUE | X15: 19.50 | Y15: 17.87 | Z15: 18.09 | AA15: 19.14 | AB15: 19.12 | AC15: 18.75 | AD15: 21.43 | AE15: 21.49 | AF15: 20.80 | AG15: 20.88 | AH15: 20.66 | AI15: 21.05 | AJ15: TRUE | AK15: 0.0038 | AL15: 2.31 | AM15: 4.94 | AN15: TRUE | AO15: TRUE | AR15: TRUE
A16: P0C0L4 | B16: C4A | C16: C4A CO4 CPAMD2 | D16: Complement C4-A (Acidic complement C4) (C3 and PZP-like alpha-2-macroglobulin domain-containing protein 2) [Cleaved into: Complement C4 beta chain; Complement C4-A alpha chain; C4a anaphylatoxin; C4b-A; C4d-A; Complement C4 gamma chain] | E16: 45 | F16: 24.83 | G16: 25.75 | H16: 24.67 | I16: 25.14 | J16: 21.40 | K16: 24.36 | L16: 27.64 | M16: 28.39 | N16: 28.40 | O16: 27.47 | P16: 26.53 | Q16: 27.69 | R16: TRUE | S16: 0.0028 | T16: 3.33 | U16: 10.05 | V16: TRUE | W16: TRUE | X16: 22.22 | Y16: 24.90 | Z16: 22.97 | AA16: 20.91 | AB16: 24.18 | AC16: 23.03 | AD16: 25.74 | AE16: 26.96 | AF16: 25.62 | AG16: 24.93 | AH16: 26.49 | AI16: 25.95 | AJ16: TRUE | AK16: 0.0014 | AL16: 2.91 | AM16: 7.53 | AN16: TRUE | AO16: TRUE | AR16: TRUE | AU16: TRUE
A17: P51797 | B17: CLCN6 | C17: CLCN6 KIAA0046 | D17: Chloride transport protein 6 (Chloride channel protein 6) (ClC-6) | E17: 7 | F17: 18.95 | G17: 19.65 | H17: 18.88 | I17: 20.15 | J17: 20.12 | K17: 19.55 | L17: 22.79 | M17: 22.80 | N17: 22.65 | O17: 23.17 | P17: 22.72 | Q17: 22.82 | R17: TRUE | S17: 0.0002 | T17: 3.27 | U17: 9.67 | V17: TRUE | W17: TRUE | X17: 18.99 | Y17: 18.45 | Z17: 18.63 | AA17: 19.55 | AB17: 18.81 | AC17: 18.89 | AD17: 21.66 | AE17: 20.71 | AF17: 18.42 | AG17: 20.78 | AH17: 20.30 | AI17: 20.37 | AJ17: TRUE | AK17: 0.0400 | AL17: 1.49 | AM17: 2.80 | AN17: TRUE | AO17: TRUE | AQ17: TRUE | AS17: TRUE
A18: P35052 | B18: GPC1 | C18: GPC1 | D18: Glypican-1 [Cleaved into: Secreted glypican-1] | E18: 13 | F18: 21.15 | G18: 21.15 | H18: 20.43 | I18: 21.22 | J18: 19.03 | K18: 20.60 | L18: 23.55 | M18: 24.05 | N18: 23.61 | O18: 23.49 | P18: 23.75 | Q18: 23.69 | R18: TRUE | S18: 0.0021 | T18: 3.09 | U18: 8.53 | V18: TRUE | W18: TRUE | X18: 20.36 | Y18: 20.30 | Z18: 17.59 | AA18: 20.40 | AB18: 20.65 | AC18: 19.86 | AD18: 23.34 | AE18: 22.12 | AF18: 22.81 | AG18: 23.34 | AH18: 22.21 | AI18: 22.76 | AJ18: TRUE | AK18: 0.0109 | AL18: 2.90 | AM18: 7.47 | AN18: TRUE | AO18: TRUE | AQ18: TRUE | AR18: TRUE | AS18: TRUE | AT18: TRUE
A19: P02747 | B19: C1QC | C19: C1QC C1QG | D19: Complement C1q subcomponent subunit C | E19: 4 | F19: 22.53 | G19: 19.17 | H19: 23.43 | I19: 23.35 | J19: 19.24 | K19: 21.55 | L19: 23.96 | M19: 24.78 | N19: 26.00 | O19: 24.70 | P19: 23.62 | Q19: 24.61 | R19: TRUE | S19: 0.0217 | T19: 3.07 | U19: 8.38 | V19: TRUE | W19: TRUE | X19: 20.79 | Y19: 22.61 | Z19: 21.05 | AA19: 21.43 | AB19: 21.60 | AC19: 21.50 | AD19: 22.76 | AE19: 23.61 | AF19: 22.90 | AG19: 22.94 | AH19: 22.39 | AI19: 22.92 | AJ19: TRUE | AK19: 0.0036 | AL19: 1.42 | AM19: 2.68 | AN19: TRUE | AO19: TRUE | AR19: TRUE
A20: O94985 | B20: CLSTN1 | C20: CLSTN1 CS1 KIAA0911 | D20: Calsyntenin-1 (Alcadein-alpha) (Alc-alpha) (Alzheimer-related cadherin-like protein) (Non-classical cadherin XB31alpha) [Cleaved into: Soluble Alc-alpha (SAlc-alpha); CTF1-alpha (C-terminal fragment 1-alpha)] | E20: 12 | F20: 22.34 | G20: 22.75 | H20: 19.80 | I20: 18.51 | J20: 23.49 | K20: 21.38 | L20: 24.48 | M20: 24.45 | N20: 24.02 | O20: 24.78 | P20: 24.26 | Q20: 24.40 | R20: TRUE | S20: 0.0378 | T20: 3.02 | U20: 8.12 | V20: TRUE | W20: TRUE | X20: 21.70 | Y20: 20.48 | Z20: 21.24 | AA20: 20.24 | AB20: 21.27 | AC20: 20.99 | AD20: 23.76 | AE20: 21.54 | AF20: 23.92 | AG20: 24.49 | AH20: 23.32 | AI20: 23.41 | AJ20: TRUE | AK20: 0.0100 | AL20: 2.42 | AM20: 5.35 | AN20: TRUE | AO20: TRUE | AR20: TRUE | AU20: TRUE
A21: Q9UIK5 | B21: TMEFF2 | C21: TMEFF2 HPP1 TENB2 TPEF UNQ178/PRO204 | D21: Tomoregulin-2 (TR-2) (Hyperplastic polyposis protein 1) (Transmembrane protein with EGF-like and two follistatin-like domains) | E21: 2 | F21: 19.02 | G21: 18.41 | H21: 20.39 | I21: 19.38 | J21: 19.75 | K21: 19.39 | L21: 22.46 | M21: 21.77 | N21: 22.14 | O21: 22.46 | P21: 22.05 | Q21: 22.18 | R21: TRUE | S21: 0.0011 | T21: 2.78 | U21: 6.89 | V21: TRUE | W21: TRUE | X21: 17.78 | Y21: 18.11 | Z21: 17.45 | AA21: 18.83 | AB21: 18.74 | AC21: 18.18 | AD21: 21.22 | AE21: 19.83 | AF21: 20.66 | AG21: 20.22 | AH21: 20.30 | AI21: 20.45 | AJ21: TRUE | AK21: 0.0066 | AL21: 2.27 | AM21: 4.81 | AN21: TRUE | AO21: TRUE | AR21: TRUE
A22: P05067 | B22: APP | C22: APP A4 AD1 | D22: Amyloid-beta precursor protein (APP) (ABPP) (APPI) (Alzheimer disease amyloid protein) (Amyloid precursor protein) (Amyloid-beta A4 protein) (Cerebral vascular amyloid peptide) (CVAP) (PreA4) (Protease nexin-II) (PN-II) [Cleaved into: N-APP; Soluble APP-alpha (S-APP-alpha); Soluble APP-beta (S-APP-beta); C99 (Beta-secretase C-terminal fragment) (Beta-CTF); Amyloid-beta protein 42 (Abeta42) (Beta-APP42); Amyloid-beta protein 40 (Abeta40) (Beta-APP40); C83 (Alpha-secretase C-terminal fragment) (Alpha-CTF); P3(42); P3(40); C80; Gamma-secretase C-terminal fragment 59 (Amyloid intracellular domain 59) (AICD-59) (AID(59)) (Gamma-CTF(59)); Gamma-secretase C-terminal fragment 57 (Amyloid intracellular domain 57) (AICD-57) (AID(57)) (Gamma-CTF(57)); Gamma-secretase C-terminal fragment 50 (Amyloid intracellular domain 50) (AICD-50) (AID(50)) (Gamma-CTF(50)); C31] | E22: 16 | F22: 26.99 | G22: 27.32 | H22: 25.14 | I22: 27.50 | J22: 27.17 | K22: 26.82 | L22: 29.43 | M22: 29.19 | N22: 28.97 | O22: 29.65 | P22: 29.70 | Q22: 29.39 | R22: TRUE | S22: 0.0016 | T22: 2.56 | U22: 5.90 | V22: TRUE | W22: TRUE | X22: 27.39 | Y22: 26.89 | Z22: 27.20 | AA22: 26.02 | AB22: 27.17 | AC22: 26.93 | AD22: 29.31 | AE22: 27.87 | AF22: 28.57 | AG22: 28.27 | AH22: 28.01 | AI22: 28.40 | AJ22: TRUE | AK22: 0.0055 | AL22: 1.47 | AM22: 2.78 | AN22: TRUE | AO22: TRUE | AQ22: TRUE | AR22: TRUE | AS22: TRUE | AU22: TRUE
A23: Q59EK9 | B23: RUNDC3A | C23: RUNDC3A RAP2IP RPIP8 | D23: RUN domain-containing protein 3A (Rap2-interacting protein 8) (RPIP-8) | E23: 4 | F23: 19.26 | G23: 19.13 | H23: 18.67 | I23: 19.19 | J23: 19.11 | K23: 19.07 | L23: 22.14 | M23: 21.91 | N23: 20.94 | O23: 21.66 | P23: 21.14 | Q23: 21.56 | R23: TRUE | S23: 0.0001 | T23: 2.49 | U23: 5.61 | V23: TRUE | W23: TRUE | X23: 18.52 | Y23: 18.48 | Z23: 18.36 | AA23: 18.44 | AB23: 18.46 | AC23: 18.45 | AD23: 20.48 | AE23: 19.32 | AF23: 19.85 | AG23: 19.28 | AH23: 19.17 | AI23: 19.62 | AJ23: TRUE | AK23: 0.0084 | AL23: 1.17 | AM23: 2.25 | AN23: TRUE | AO23: TRUE | AP23: TRUE
A24: Q5TH69 | B24: ARFGEF3 | C24: ARFGEF3 BIG3 C6orf92 KIAA1244 | D24: Brefeldin A-inhibited guanine nucleotide-exchange protein 3 (ARFGEF family member 3) | E24: 20 | F24: 22.15 | G24: 22.15 | H24: 21.56 | I24: 21.88 | J24: 21.65 | K24: 21.88 | L24: 24.43 | M24: 24.19 | N24: 24.20 | O24: 24.76 | P24: 23.71 | Q24: 24.26 | R24: TRUE | S24: 0.0001 | T24: 2.38 | U24: 5.21 | V24: TRUE | W24: TRUE | X24: 20.51 | Y24: 20.53 | Z24: 20.98 | AA24: 20.78 | AB24: 21.24 | AC24: 20.81 | AD24: 23.20 | AE24: 22.23 | AF24: 22.10 | AG24: 22.32 | AH24: 22.48 | AI24: 22.47 | AJ24: TRUE | AK24: 0.0040 | AL24: 1.66 | AM24: 3.16 | AN24: TRUE | AO24: TRUE | AP24: TRUE | AQ24: TRUE
A25: Q00604 | B25: NDP | C25: NDP EVR2 | D25: Norrin (Norrie disease protein) (X-linked exudative vitreoretinopathy 2 protein) | E25: 2 | F25: 19.30 | G25: 19.05 | H25: 18.86 | I25: 19.89 | J25: 19.59 | K25: 19.34 | L25: 21.23 | M25: 21.79 | N25: 22.09 | O25: 21.87 | P25: 20.78 | Q25: 21.55 | R25: TRUE | S25: 0.0033 | T25: 2.21 | U25: 4.63 | V25: TRUE | W25: TRUE | X25: 18.86 | Y25: 18.31 | Z25: 19.48 | AA25: 18.50 | AB25: 19.40 | AC25: 18.91 | AD25: 20.94 | AE25: 19.90 | AF25: 21.24 | AG25: 19.54 | AH25: 20.67 | AI25: 20.46 | AJ25: TRUE | AK25: 0.0010 | AL25: 1.55 | AM25: 2.93 | AN25: TRUE | AO25: TRUE | AR25: TRUE
A26: P02746 | B26: C1QB | C26: C1QB | D26: Complement C1q subcomponent subunit B | E26: 6 | F26: 21.30 | G26: 22.23 | H26: 22.79 | I26: 21.44 | J26: 21.05 | K26: 21.76 | L26: 23.86 | M26: 24.06 | N26: 25.76 | O26: 23.29 | P26: 22.44 | Q26: 23.88 | R26: TRUE | S26: 0.0017 | T26: 2.12 | U26: 4.34 | V26: TRUE | W26: TRUE | X26: 20.26 | Y26: 21.45 | Z26: 17.90 | AA26: 19.65 | AB26: 20.47 | AC26: 19.95 | AD26: 21.53 | AE26: 22.39 | AF26: 21.22 | AG26: 21.88 | AH26: 21.30 | AI26: 21.67 | AJ26: TRUE | AK26: 0.0217 | AL26: 1.72 | AM26: 3.30 | AN26: TRUE | AO26: TRUE | AR26: TRUE
A27: P07093 | B27: SERPINE2 | C27: SERPINE2 PI7 PN1 | D27: Glia-derived nexin (GDN) (Peptidase inhibitor 7) (PI-7) (Protease nexin 1) (PN-1) (Protease nexin I) (Serpin E2) | E27: 4 | F27: 19.63 | G27: 20.69 | H27: 19.75 | I27: 19.58 | J27: 20.74 | K27: 20.08 | L27: 22.12 | M27: 22.25 | N27: 21.98 | O27: 22.14 | P27: 22.36 | Q27: 22.17 | R27: TRUE | S27: 0.0006 | T27: 2.09 | U27: 4.26 | V27: TRUE | W27: TRUE | X27: 17.90 | Y27: 19.00 | Z27: 20.13 | AA27: 19.06 | AB27: 18.94 | AC27: 19.00 | AD27: 20.30 | AE27: 19.25 | AF27: 20.90 | AG27: 20.33 | AH27: 19.61 | AI27: 20.08 | AJ27: TRUE | AK27: 0.0444 | AL27: 1.07 | AM27: 2.10 | AN27: TRUE | AO27: TRUE | AQ27: TRUE | AR27: TRUE | AU27: TRUE
A28: P51809 | B28: VAMP7 | C28: VAMP7 SYBL1 | D28: Vesicle-associated membrane protein 7 (VAMP-7) (Synaptobrevin-like protein 1) (Tetanus-insensitive VAMP) (Ti-VAMP) | E28: 3 | F28: 20.87 | G28: 19.26 | H28: 20.77 | I28: 21.03 | J28: 18.56 | K28: 20.10 | L28: 21.96 | M28: 22.01 | N28: 22.20 | O28: 22.42 | P28: 21.85 | Q28: 22.09 | R28: TRUE | S28: 0.0100 | T28: 1.99 | U28: 3.97 | V28: TRUE | W28: TRUE | X28: 18.85 | Y28: 19.56 | Z28: 18.95 | AA28: 17.81 | AB28: 18.02 | AC28: 18.64 | AD28: 20.76 | AE28: 19.96 | AF28: 20.54 | AG28: 20.01 | AH28: 19.84 | AI28: 20.22 | AJ28: TRUE | AK28: 0.0070 | AL28: 1.59 | AM28: 3.00 | AN28: TRUE | AO28: TRUE | AP28: TRUE | AQ28: TRUE | AS28: TRUE | AT28: TRUE | AU28: TRUE
A29: P10909 | B29: CLU | C29: CLU APOJ CLI KUB1 AAG4 | D29: Clusterin (Aging-associated gene 4 protein) (Apolipoprotein J) (Apo-J) (Complement cytolysis inhibitor) (CLI) (Complement-associated protein SP-40,40) (Ku70-binding protein 1) (NA1/NA2) (Sulfated glycoprotein 2) (SGP-2) (Testosterone-repressed prostate message 2) (TRPM-2) [Cleaved into: Clusterin beta chain (ApoJalpha) (Complement cytolysis inhibitor a chain); Clusterin alpha chain (ApoJbeta) (Complement cytolysis inhibitor b chain)] | E29: 16 | F29: 26.13 | G29: 25.86 | H29: 25.55 | I29: 25.74 | J29: 26.12 | K29: 25.88 | L29: 27.79 | M29: 27.72 | N29: 28.00 | O29: 27.70 | P29: 28.15 | Q29: 27.87 | R29: TRUE | S29: 0.0001 | T29: 1.99 | U29: 3.97 | V29: TRUE | W29: TRUE | X29: 24.78 | Y29: 24.76 | Z29: 24.84 | AA29: 24.30 | AB29: 24.94 | AC29: 24.72 | AD29: 26.80 | AE29: 25.63 | AF29: 27.11 | AG29: 25.97 | AH29: 26.38 | AI29: 26.38 | AJ29: TRUE | AK29: 0.0024 | AL29: 1.66 | AM29: 3.15 | AN29: TRUE | AO29: TRUE | AQ29: TRUE | AR29: TRUE
A30: Q99435 | B30: NELL2 | C30: NELL2 NRP2 | D30: Protein kinase C-binding protein NELL2 (NEL-like protein 2) (Nel-related protein 2) | E30: 6 | F30: 21.73 | G30: 18.65 | H30: 20.43 | I30: 20.32 | J30: 20.04 | K30: 20.23 | L30: 21.77 | M30: 22.25 | N30: 22.25 | O30: 22.63 | P30: 22.00 | Q30: 22.18 | R30: TRUE | S30: 0.0269 | T30: 1.95 | U30: 3.85 | V30: TRUE | W30: TRUE | X30: 19.72 | Y30: 19.53 | Z30: 18.49 | AA30: 19.17 | AB30: 19.40 | AC30: 19.26 | AD30: 21.41 | AE30: 19.88 | AF30: 19.93 | AG30: 19.69 | AH30: 19.76 | AI30: 20.14 | AJ30: TRUE | AK30: 0.0385 | AL30: 0.87 | AM30: 1.83 | AN30: TRUE | AO30: TRUE | AP30: TRUE | AR30: TRUE
A31: P41222 | B31: PTGDS | C31: PTGDS PDS | D31: Prostaglandin-H2 D-isomerase (EC 5.3.99.2) (Beta-trace protein) (Cerebrin-28) (Glutathione-independent PGD synthase) (Lipocalin-type prostaglandin-D synthase) (Prostaglandin-D2 synthase) (PGD2 synthase) (PGDS) (PGDS2) | E31: 3 | F31: 22.84 | G31: 23.05 | H31: 23.00 | I31: 23.57 | J31: 23.01 | K31: 23.10 | L31: 24.45 | M31: 24.79 | N31: 25.29 | O31: 24.87 | P31: 23.98 | Q31: 24.68 | R31: TRUE | S31: 0.0021 | T31: 1.58 | U31: 2.99 | V31: TRUE | W31: TRUE | X31: 22.22 | Y31: 22.50 | Z31: 22.39 | AA31: 22.02 | AB31: 21.95 | AC31: 22.22 | AD31: 23.68 | AE31: 23.14 | AF31: 23.74 | AG31: 23.04 | AH31: 23.22 | AI31: 23.36 | AJ31: TRUE | AK31: 0.0014 | AL31: 1.15 | AM31: 2.21 | AN31: TRUE | AO31: TRUE | AR31: TRUE
A32: Q9NVJ2 | B32: ARL8B | C32: ARL8B ARL10C GIE1 | D32: ADP-ribosylation factor-like protein 8B (ADP-ribosylation factor-like protein 10C) (Novel small G protein indispensable for equal chromosome segregation 1) | E32: 6 | F32: 23.34 | G32: 24.33 | H32: 23.39 | I32: 24.02 | J32: 24.18 | K32: 23.85 | L32: 25.46 | M32: 25.28 | N32: 25.38 | O32: 25.46 | P32: 25.44 | Q32: 25.41 | R32: TRUE | S32: 0.0021 | T32: 1.55 | U32: 2.94 | V32: TRUE | W32: TRUE | X32: 22.75 | Y32: 22.49 | Z32: 22.48 | AA32: 22.60 | AB32: 22.62 | AC32: 22.59 | AD32: 24.10 | AE32: 23.62 | AF32: 23.77 | AG32: 23.54 | AH32: 23.62 | AI32: 23.73 | AJ32: TRUE | AK32: 0.0001 | AL32: 1.14 | AM32: 2.21 | AN32: TRUE | AO32: TRUE | AQ32: TRUE | AS32: TRUE | AT32: TRUE
A33: P01024 | B33: C3 | C33: C3 CPAMD1 | D33: Complement C3 (C3 and PZP-like alpha-2-macroglobulin domain-containing protein 1) [Cleaved into: Complement C3 beta chain; C3-beta-c (C3bc); Complement C3 alpha chain; C3a anaphylatoxin; Acylation stimulating protein (ASP) (C3adesArg); Complement C3b alpha' chain; Complement C3c alpha' chain fragment 1; Complement C3dg fragment; Complement C3g fragment; Complement C3d fragment; Complement C3f fragment; Complement C3c alpha' chain fragment 2] | E33: 56 | F33: 26.01 | G33: 26.33 | H33: 25.88 | I33: 26.33 | J33: 25.92 | K33: 26.09 | L33: 27.45 | M33: 27.73 | N33: 27.98 | O33: 27.62 | P33: 27.46 | Q33: 27.65 | R33: TRUE | S33: 0.0004 | T33: 1.55 | U33: 2.94 | V33: TRUE | W33: TRUE | X33: 25.01 | Y33: 25.37 | Z33: 24.72 | AA33: 24.79 | AB33: 25.22 | AC33: 25.02 | AD33: 26.87 | AE33: 26.35 | AF33: 26.32 | AG33: 25.75 | AH33: 26.37 | AI33: 26.33 | AJ33: TRUE | AK33: 0.0019 | AL33: 1.31 | AM33: 2.48 | AN33: TRUE | AO33: TRUE | AQ33: TRUE | AR33: TRUE | AT33: TRUE
A34: O00468 | B34: AGRN | C34: AGRN AGRIN | D34: Agrin [Cleaved into: Agrin N-terminal 110 kDa subunit; Agrin C-terminal 110 kDa subunit; Agrin C-terminal 90 kDa fragment (C90); Agrin C-terminal 22 kDa fragment (C22)] | E34: 16 | F34: 22.84 | G34: 22.75 | H34: 22.28 | I34: 22.72 | J34: 22.67 | K34: 22.65 | L34: 24.17 | M34: 23.99 | N34: 24.30 | O34: 24.03 | P34: 24.51 | Q34: 24.20 | R34: TRUE | S34: 0.0006 | T34: 1.55 | U34: 2.93 | V34: TRUE | W34: TRUE | X34: 21.96 | Y34: 21.72 | Z34: 22.37 | AA34: 21.88 | AB34: 21.03 | AC34: 21.79 | AD34: 22.86 | AE34: 22.41 | AF34: 22.93 | AG34: 22.83 | AH34: 22.42 | AI34: 22.69 | AJ34: TRUE | AK34: 0.0031 | AL34: 0.90 | AM34: 1.86 | AN34: TRUE | AO34: TRUE | AR34: TRUE | AT34: TRUE | AU34: TRUE
A35: Q6IAA8 | B35: LAMTOR1 | C35: LAMTOR1 C11orf59 PDRO PP7157 | D35: Ragulator complex protein LAMTOR1 (Late endosomal/lysosomal adaptor and MAPK and MTOR activator 1) (Lipid raft adaptor protein p18) (Protein associated with DRMs and endosomes) (p27Kip1-releasing factor from RhoA) (p27RF-Rho) | E35: 4 | F35: 20.79 | G35: 19.63 | H35: 20.35 | I35: 20.56 | J35: 20.31 | K35: 20.33 | L35: 22.46 | M35: 21.35 | N35: 21.24 | O35: 22.41 | P35: 21.73 | Q35: 21.84 | R35: TRUE | S35: 0.0009 | T35: 1.51 | U35: 2.85 | V35: TRUE | W35: TRUE | X35: 18.64 | Y35: 19.19 | Z35: 18.73 | AA35: 18.93 | AB35: 19.15 | AC35: 18.93 | AD35: 21.01 | AE35: 20.65 | AF35: 20.28 | AG35: 19.53 | AH35: 20.18 | AI35: 20.33 | AJ35: TRUE | AK35: 0.0089 | AL35: 1.40 | AM35: 2.64 | AN35: TRUE | AO35: TRUE | AP35: TRUE | AQ35: TRUE | AS35: TRUE | AT35: TRUE
A36: Q9ULB1 | B36: NRXN1 | C36: NRXN1 KIAA0578 | D36: Neurexin-1 (Neurexin I-alpha) (Neurexin-1-alpha) | E36: 17 | F36: 23.37 | G36: 23.48 | H36: 22.74 | I36: 23.67 | J36: 23.94 | K36: 23.44 | L36: 25.18 | M36: 24.69 | N36: 24.87 | O36: 24.63 | P36: 25.22 | Q36: 24.92 | R36: TRUE | S36: 0.0023 | T36: 1.48 | U36: 2.78 | V36: TRUE | W36: TRUE | X36: 22.64 | Y36: 21.81 | Z36: 22.79 | AA36: 23.08 | AB36: 22.58 | AC36: 22.58 | AD36: 24.48 | AE36: 23.12 | AF36: 24.51 | AG36: 24.46 | AH36: 24.10 | AI36: 24.13 | AJ36: TRUE | AK36: 0.0001 | AL36: 1.55 | AM36: 2.94 | AN36: TRUE | AO36: TRUE | AQ36: TRUE | AU36: TRUE
A37: P15311 | B37: EZR | C37: EZR VIL2 | D37: Ezrin (Cytovillin) (Villin-2) (p81) | E37: 27 | F37: 25.22 | G37: 24.73 | H37: 25.20 | I37: 25.53 | J37: 24.48 | K37: 25.03 | L37: 26.73 | M37: 26.96 | N37: 26.10 | O37: 27.12 | P37: 25.19 | Q37: 26.42 | R37: TRUE | S37: 0.0069 | T37: 1.39 | U37: 2.62 | V37: TRUE | W37: TRUE | X37: 24.00 | Y37: 24.97 | Z37: 23.67 | AA37: 23.56 | AB37: 24.50 | AC37: 24.14 | AD37: 25.05 | AE37: 25.70 | AF37: 24.54 | AG37: 24.49 | AH37: 24.56 | AI37: 24.87 | AJ37: TRUE | AK37: 0.0143 | AL37: 0.73 | AM37: 1.66 | AN37: TRUE | AO37: TRUE | AP37: TRUE | AQ37: TRUE | AS37: TRUE
A38: P26038 | B38: MSN | C38: MSN | D38: Moesin (Membrane-organizing extension spike protein) | E38: 41 | F38: 26.28 | G38: 26.40 | H38: 26.34 | I38: 26.30 | J38: 25.82 | K38: 26.23 | L38: 27.87 | M38: 27.57 | N38: 28.20 | O38: 27.90 | P38: 26.50 | Q38: 27.61 | R38: TRUE | S38: 0.0026 | T38: 1.38 | U38: 2.60 | V38: TRUE | W38: TRUE | X38: 24.99 | Y38: 26.24 | Z38: 24.91 | AA38: 24.42 | AB38: 25.29 | AC38: 25.17 | AD38: 26.66 | AE38: 27.88 | AF38: 25.83 | AG38: 25.30 | AH38: 25.61 | AI38: 26.26 | AJ38: TRUE | AK38: 0.0132 | AL38: 1.09 | AM38: 2.12 | AN38: TRUE | AO38: TRUE
A39: Q9P2S2 | B39: NRXN2 | C39: NRXN2 KIAA0921 | D39: Neurexin-2 (Neurexin II-alpha) (Neurexin-2-alpha) | E39: 7 | F39: 19.91 | G39: 18.98 | H39: 20.14 | I39: 20.48 | J39: 21.28 | K39: 20.16 | L39: 21.55 | M39: 21.37 | N39: 21.12 | O39: 21.54 | P39: 21.83 | Q39: 21.48 | R39: TRUE | S39: 0.0142 | T39: 1.32 | U39: 2.50 | V39: TRUE | W39: TRUE | X39: 19.92 | Y39: 19.58 | Z39: 19.08 | AA39: 19.86 | AB39: 19.38 | AC39: 19.56 | AD39: 20.70 | AE39: 19.55 | AF39: 20.43 | AG39: 21.27 | AH39: 20.60 | AI39: 20.51 | AJ39: TRUE | AK39: 0.0237 | AL39: 0.95 | AM39: 1.93 | AN39: TRUE | AO39: TRUE | AP39: TRUE | AU39: TRUE
A40: Q9UNK0 | B40: STX8 | C40: STX8 | D40: Syntaxin-8 | E40: 5 | F40: 20.54 | G40: 19.54 | H40: 20.26 | I40: 20.80 | J40: 19.98 | K40: 20.22 | L40: 22.00 | M40: 21.58 | N40: 20.96 | O40: 21.85 | P40: 21.00 | Q40: 21.48 | R40: TRUE | S40: 0.0055 | T40: 1.25 | U40: 2.38 | V40: TRUE | W40: TRUE | X40: 17.52 | Y40: 17.43 | Z40: 17.41 | AA40: 19.00 | AB40: 17.85 | AC40: 17.84 | AD40: 19.84 | AE40: 19.28 | AF40: 19.56 | AG40: 19.59 | AH40: 19.26 | AI40: 19.51 | AJ40: TRUE | AK40: 0.0057 | AL40: 1.66 | AM40: 3.17 | AN40: TRUE | AO40: TRUE | AP40: TRUE | AQ40: TRUE | AS40: TRUE | AT40: TRUE
A41: O75110 | B41: ATP9A | C41: ATP9A ATPIIA KIAA0611 | D41: Probable phospholipid-transporting ATPase IIA (EC 7.6.2.1) (ATPase class II type 9A) | E41: 10 | F41: 23.23 | G41: 23.20 | H41: 22.39 | I41: 23.09 | J41: 23.23 | K41: 23.03 | L41: 24.34 | M41: 24.19 | N41: 24.10 | O41: 24.55 | P41: 23.89 | Q41: 24.21 | R41: TRUE | S41: 0.0029 | T41: 1.18 | U41: 2.27 | V41: TRUE | W41: TRUE | X41: 21.86 | Y41: 21.57 | Z41: 21.69 | AA41: 21.88 | AB41: 21.95 | AC41: 21.79 | AD41: 22.95 | AE41: 22.43 | AF41: 22.68 | AG41: 22.29 | AH41: 22.63 | AI41: 22.60 | AJ41: TRUE | AK41: 0.0026 | AL41: 0.81 | AM41: 1.75 | AN41: TRUE | AO41: TRUE | AP41: TRUE | AQ41: TRUE | AS41: TRUE
A42: Q9HB90 | B42: RRAGC | C42: RRAGC | D42: Ras-related GTP-binding protein C (Rag C) (RagC) (GTPase-interacting protein 2) (TIB929) | E42: 3 | F42: 19.89 | G42: 19.58 | H42: 19.53 | I42: 19.74 | J42: 19.96 | K42: 19.74 | L42: 21.15 | M42: 20.61 | N42: 20.52 | O42: 20.79 | P42: 21.25 | Q42: 20.87 | R42: TRUE | S42: 0.0001 | T42: 1.13 | U42: 2.18 | V42: TRUE | W42: TRUE | X42: 18.76 | Y42: 18.79 | Z42: 18.75 | AA42: 18.89 | AB42: 18.55 | AC42: 18.75 | AD42: 19.84 | AE42: 19.35 | AF42: 19.74 | AG42: 19.91 | AH42: 19.49 | AI42: 19.67 | AJ42: TRUE | AK42: 0.0005 | AL42: 0.92 | AM42: 1.89 | AN42: TRUE | AO42: TRUE | AP42: TRUE | AQ42: TRUE | AS42: TRUE | AT42: TRUE
A43: Q9NQ79 | B43: CRTAC1 | C43: CRTAC1 ASPIC1 CEP68 | D43: Cartilage acidic protein 1 (68 kDa chondrocyte-expressed protein) (CEP-68) (ASPIC) | E43: 6 | F43: 21.41 | G43: 21.23 | H43: 21.00 | I43: 21.23 | J43: 21.66 | K43: 21.31 | L43: 21.97 | M43: 21.94 | N43: 23.07 | O43: 22.19 | P43: 22.96 | Q43: 22.42 | R43: TRUE | S43: 0.0143 | T43: 1.12 | U43: 2.17 | V43: TRUE | W43: TRUE | X43: 21.00 | Y43: 18.63 | Z43: 21.91 | AA43: 21.04 | AB43: 20.77 | AC43: 20.67 | AD43: 22.05 | AE43: 20.88 | AF43: 22.47 | AG43: 21.81 | AH43: 21.37 | AI43: 21.72 | AJ43: TRUE | AK43: 0.0283 | AL43: 1.05 | AM43: 2.06 | AN43: TRUE | AO43: TRUE | AP43: TRUE
A44: Q07954 | B44: LRP1 | C44: LRP1 A2MR APR | D44: Prolow-density lipoprotein receptor-related protein 1 (LRP-1) (Alpha-2-macroglobulin receptor) (A2MR) (Apolipoprotein E receptor) (APOER) (CD antigen CD91) [Cleaved into: Low-density lipoprotein receptor-related protein 1 85 kDa subunit (LRP-85); Low-density lipoprotein receptor-related protein 1 515 kDa subunit (LRP-515); Low-density lipoprotein receptor-related protein 1 intracellular domain (LRPICD)] | E44: 42 | F44: 24.41 | G44: 24.58 | H44: 23.97 | I44: 24.27 | J44: 23.99 | K44: 24.24 | L44: 25.17 | M44: 25.24 | N44: 25.60 | O44: 25.84 | P44: 24.66 | Q44: 25.30 | R44: TRUE | S44: 0.0089 | T44: 1.06 | U44: 2.08 | V44: TRUE | W44: TRUE | X44: 22.81 | Y44: 22.91 | Z44: 23.25 | AA44: 23.29 | AB44: 23.23 | AC44: 23.10 | AD44: 24.05 | AE44: 23.62 | AF44: 24.04 | AG44: 23.72 | AH44: 24.14 | AI44: 23.91 | AJ44: TRUE | AK44: 0.0035 | AL44: 0.81 | AM44: 1.76 | AN44: TRUE | AO44: TRUE | AQ44: TRUE | AS44: TRUE
A45: P16870 | B45: CPE | C45: CPE | D45: Carboxypeptidase E (CPE) (EC 3.4.17.10) (Carboxypeptidase H) (CPH) (Enkephalin convertase) (Prohormone-processing carboxypeptidase) | E45: 11 | F45: 23.96 | G45: 24.46 | H45: 22.62 | I45: 24.66 | J45: 24.07 | K45: 23.96 | L45: 24.94 | M45: 25.04 | N45: 25.00 | O45: 25.58 | P45: 24.48 | Q45: 25.01 | R45: TRUE | S45: 0.0388 | T45: 1.05 | U45: 2.07 | V45: TRUE | W45: TRUE | X45: 22.73 | Y45: 22.35 | Z45: 22.38 | AA45: 22.40 | AB45: 22.94 | AC45: 22.56 | AD45: 23.66 | AE45: 23.03 | AF45: 23.22 | AG45: 23.10 | AH45: 23.20 | AI45: 23.24 | AJ45: TRUE | AK45: 0.0041 | AL45: 0.68 | AM45: 1.60 | AN45: TRUE | AO45: TRUE | AQ45: TRUE | AR45: TRUE | AU45: TRUE
A46: O14773 | B46: TPP1 | C46: TPP1 CLN2 GIG1 UNQ267/PRO304 | D46: Tripeptidyl-peptidase 1 (TPP-1) (EC 3.4.14.9) (Cell growth-inhibiting gene 1 protein) (Lysosomal pepstatin-insensitive protease) (LPIC) (Tripeptidyl aminopeptidase) (Tripeptidyl-peptidase I) (TPP-I) | E46: 4 | F46: 23.33 | G46: 22.52 | H46: 24.39 | I46: 22.84 | J46: 22.57 | K46: 23.13 | L46: 24.51 | M46: 24.43 | N46: 24.40 | O46: 24.03 | P46: 23.47 | Q46: 24.17 | R46: TRUE | S46: 0.0271 | T46: 1.04 | U46: 2.06 | V46: TRUE | W46: TRUE | X46: 22.46 | Y46: 23.51 | Z46: 22.63 | AA46: 22.17 | AB46: 22.09 | AC46: 22.57 | AD46: 23.46 | AE46: 23.55 | AF46: 23.30 | AG46: 22.93 | AH46: 22.78 | AI46: 23.21 | AJ46: TRUE | AK46: 0.0165 | AL46: 0.63 | AM46: 1.55 | AN46: TRUE | AO46: TRUE | AP46: TRUE | AQ46: TRUE | AT46: TRUE
A47: Q8IV08 | B47: PLD3 | C47: PLD3 | D47: 5'-3' exonuclease PLD3 (EC 3.1.16.1) (Choline phosphatase 3) (HindIII K4L homolog) (Hu-K4) (Phosphatidylcholine-hydrolyzing phospholipase D3) (Phospholipase D3) (PLD 3) | E47: 6 | F47: 22.11 | G47: 22.13 | H47: 22.47 | I47: 21.87 | J47: 21.49 | K47: 22.02 | L47: 23.69 | M47: 23.06 | N47: 22.75 | O47: 23.21 | P47: 22.29 | Q47: 23.00 | R47: TRUE | S47: 0.0124 | T47: 0.98 | U47: 1.97 | V47: TRUE | W47: TRUE | X47: 20.58 | Y47: 20.46 | Z47: 20.78 | AA47: 20.93 | AB47: 20.74 | AC47: 20.70 | AD47: 22.02 | AE47: 21.54 | AF47: 21.41 | AG47: 21.63 | AH47: 21.77 | AI47: 21.67 | AJ47: TRUE | AK47: 0.0026 | AL47: 0.98 | AM47: 1.97 | AN47: TRUE | AO47: TRUE
A48: Q86Y82 | B48: STX12 | C48: STX12 | D48: Syntaxin-12 | E48: 10 | F48: 23.69 | G48: 23.20 | H48: 23.65 | I48: 23.80 | J48: 23.54 | K48: 23.57 | L48: 24.80 | M48: 24.64 | N48: 24.39 | O48: 24.78 | P48: 24.15 | Q48: 24.55 | R48: TRUE | S48: 0.0026 | T48: 0.98 | U48: 1.97 | V48: TRUE | W48: TRUE | X48: 22.16 | Y48: 22.29 | Z48: 22.12 | AA48: 22.44 | AB48: 22.56 | AC48: 22.31 | AD48: 23.18 | AE48: 22.52 | AF48: 23.10 | AG48: 22.86 | AH48: 22.84 | AI48: 22.90 | AJ48: TRUE | AK48: 0.0269 | AL48: 0.59 | AM48: 1.51 | AN48: TRUE | AO48: TRUE | AP48: TRUE | AQ48: TRUE | AS48: TRUE
A49: P40121 | B49: CAPG | C49: CAPG AFCP MCP | D49: Macrophage-capping protein (Actin regulatory protein CAP-G) | E49: 9 | F49: 22.98 | G49: 23.65 | H49: 24.28 | I49: 23.22 | J49: 21.83 | K49: 23.20 | L49: 24.08 | M49: 24.80 | N49: 25.06 | O49: 24.54 | P49: 22.14 | Q49: 24.13 | R49: TRUE | S49: 0.0065 | T49: 0.93 | U49: 1.91 | V49: TRUE | W49: TRUE | X49: 21.25 | Y49: 23.35 | Z49: 20.87 | AA49: 20.37 | AB49: 21.59 | AC49: 21.48 | AD49: 23.32 | AE49: 23.51 | AF49: 22.65 | AG49: 21.36 | AH49: 22.35 | AI49: 22.64 | AJ49: TRUE | AK49: 0.0290 | AL49: 1.16 | AM49: 2.23 | AN49: TRUE | AO49: TRUE | AP49: TRUE | AQ49: TRUE
A50: Q9UBP4 | B50: DKK3 | C50: DKK3 REIC UNQ258/PRO295 | D50: Dickkopf-related protein 3 (Dickkopf-3) (Dkk-3) (hDkk-3) | E50: 11 | F50: 23.63 | G50: 23.78 | H50: 23.01 | I50: 24.08 | J50: 23.39 | K50: 23.58 | L50: 24.82 | M50: 24.36 | N50: 24.25 | O50: 24.56 | P50: 24.17 | Q50: 24.43 | R50: TRUE | S50: 0.0052 | T50: 0.86 | U50: 1.81 | V50: TRUE | W50: TRUE | X50: 22.22 | Y50: 22.30 | Z50: 21.89 | AA50: 21.49 | AB50: 22.23 | AC50: 22.03 | AD50: 23.73 | AE50: 22.60 | AF50: 23.08 | AG50: 22.93 | AH50: 23.11 | AI50: 23.09 | AJ50: TRUE | AK50: 0.0084 | AL50: 1.06 | AM50: 2.09 | AN50: TRUE | AO50: TRUE | AR50: TRUE
A51: P08670 | B51: VIM | C51: VIM | D51: Vimentin | E51: 53 | F51: 29.47 | G51: 28.96 | H51: 29.67 | I51: 29.19 | J51: 27.28 | K51: 28.91 | L51: 30.49 | M51: 29.62 | N51: 30.45 | O51: 30.45 | P51: 27.77 | Q51: 29.76 | R51: TRUE | S51: 0.0034 | T51: 0.84 | U51: 1.80 | V51: TRUE | W51: TRUE | X51: 26.95 | Y51: 28.74 | Z51: 27.34 | AA51: 26.70 | AB51: 27.01 | AC51: 27.35 | AD51: 28.10 | AE51: 29.15 | AF51: 27.89 | AG51: 27.40 | AH51: 27.87 | AI51: 28.08 | AJ51: TRUE | AK51: 0.0044 | AL51: 0.73 | AM51: 1.66 | AN51: TRUE | AO51: TRUE | AQ51: TRUE
A52: Q15818 | B52: NPTX1 | C52: NPTX1 | D52: Neuronal pentraxin-1 (NP1) (Neuronal pentraxin I) (NP-I) | E52: 14 | F52: 25.11 | G52: 25.15 | H52: 24.29 | I52: 25.41 | J52: 23.99 | K52: 24.79 | L52: 25.63 | M52: 25.42 | N52: 25.66 | O52: 26.09 | P52: 24.95 | Q52: 25.55 | R52: TRUE | S52: 0.0163 | T52: 0.76 | U52: 1.69 | V52: TRUE | W52: TRUE | X52: 23.35 | Y52: 22.67 | Z52: 22.85 | AA52: 23.35 | AB52: 23.64 | AC52: 23.17 | AD52: 23.91 | AE52: 23.54 | AF52: 23.61 | AG52: 23.69 | AH52: 24.35 | AI52: 23.82 | AJ52: TRUE | AK52: 0.0022 | AL52: 0.65 | AM52: 1.57 | AN52: TRUE | AO52: TRUE | AQ52: TRUE
A53: O00299 | B53: CLIC1 | C53: CLIC1 G6 NCC27 | D53: Chloride intracellular channel protein 1 (Chloride channel ABP) (Nuclear chloride ion channel 27) (NCC27) (Regulatory nuclear chloride ion channel protein) (hRNCC) | E53: 7 | F53: 21.23 | G53: 21.39 | H53: 22.96 | I53: 20.86 | J53: 20.56 | K53: 21.40 | L53: 22.47 | M53: 22.23 | N53: 22.93 | O53: 21.82 | P53: 21.33 | Q53: 22.15 | R53: TRUE | S53: 0.0236 | T53: 0.75 | U53: 1.69 | V53: TRUE | W53: TRUE | X53: 20.08 | Y53: 21.48 | Z53: 19.97 | AA53: 19.28 | AB53: 19.53 | AC53: 20.07 | AD53: 21.38 | AE53: 21.69 | AF53: 20.67 | AG53: 19.61 | AH53: 20.32 | AI53: 20.73 | AJ53: TRUE | AK53: 0.0258 | AL53: 0.67 | AM53: 1.59 | AN53: TRUE | AO53: TRUE | AP53: TRUE | AQ53: TRUE | AR53: TRUE

Sheet Table 4 - Enriched in EOAD only
A1: Supplementary Table 4 - Proteins uniquely enriched in plaques in EOAD
A2: Proteins uniquely enriched in plaques in EOAD, but not in DS. Proteomic data obtained from Supplementary Table 1.
F4: Down Syndrome Plaque vs Non-Plaque | X4: EOAD Plaque vs Non-Plaque | AP4: STRING GO classifications
A5: Uniprot ID | B5: Majority Gene ID | C5: All Gene IDs | D5: Name | E5: Peptides | F5: DS_np_01 | G5: DS_np_02 | H5: DS_np_03 | I5: DS_np_04 | J5: DS_np_05 | K5: Average intensity in DS_NP | L5: DS_p_01 | M5: DS_p_02 | N5: DS_p_03 | O5: DS_p_04 | P5: DS_p_05 | Q5: Average intensity in DS_P | R5: In at least 3 cases/group | S5: pValue_DS | T5: Difference_DS | U5: Fold change_DS | V5: Significant_DS | W5: Significantly enriched in DS plaques | X5: eoAD_np_01 | Y5: eoAD_np_02 | Z5: eoAD_np_03 | AA5: eoAD_np_04 | AB5: eoAD_np_05 | AC5: Average intensity in EOAD_NP | AD5: eoAD_p_01 | AE5: eoAD_p_02 | AF5: eoAD_p_03 | AG5: eoAD_p_04 | AH5: eoAD_p_05 | AI5: Average intensity in EOAD_P | AJ5: In at least 3 cases/group | AK5: pValue_eoAD | AL5: Difference_eoAD | AM5: Fold change_EOAD | AN5: Significant_eoAD | AO5: Significantly enriched in EOAD plaques | AP5: Lysosome (FDR: 1.17E-05)
A6: Q92563 | B6: SPOCK2 | C6: SPOCK2 KIAA0275 TICN2 UNQ269/PRO306 | D6: Testican-2 (SPARC/osteonectin, CWCV, and Kazal-like domains proteoglycan 2) | E6: 4 | F6: 19.09 | G6: 18.92 | H6: 21.65 | I6: 20.54 | J6: 19.62 | K6: =AVERAGE(F6:J6) -> 19.96 | L6: 23.43 | M6: 23.72 | N6: 24.17 | O6: 18.69 | P6: 23.77 | Q6: =AVERAGE(L6:P6) -> 22.75 | R6: TRUE | S6: 0.0846 | T6: 2.79 | U6: =2^T6 -> 6.93 | X6: 17.56 | Y6: 18.02 | Z6: 18.35 | AA6: 20.57 | AB6: 18.69 | AC6: =AVERAGE(X6:AB6) -> 18.64 | AD6: 22.84 | AE6: 21.47 | AF6: 23.17 | AG6: 21.30 | AH6: 21.76 | AI6: =AVERAGE(AD6:AH6) -> 22.11 | AJ6: TRUE | AK6: 0.0123 | AL6: 3.47 | AM6: =2^AL6 -> 11.07 | AN6: TRUE | AO6: TRUE
A7: P02792 | B7: FTL | C7: FTL | D7: Ferritin light chain (Ferritin L subunit) | E7: 6 | F7: 26.31 | G7: 21.78 | H7: 25.62 | I7: 23.93 | J7: 25.46 | K7: 24.62 | L7: 26.80 | M7: 26.18 | N7: 26.10 | O7: 26.28 | P7: 25.73 | Q7: 26.22 | R7: TRUE | S7: 0.1150 | T7: 1.60 | U7: 3.03 | X7: 24.25 | Y7: 25.63 | Z7: 25.30 | AA7: 24.54 | AB7: 24.51 | AC7: 24.85 | AD7: 26.69 | AE7: 26.44 | AF7: 26.30 | AG7: 25.15 | AH7: 26.00 | AI7: 26.12 | AJ7: TRUE | AK7: 0.0177 | AL7: 1.27 | AM7: 2.41 | AN7: TRUE | AO7: TRUE | AP7: TRUE
A8: Q9UM22 | B8: EPDR1 | C8: EPDR1 MERP1 UCC1 | D8: Mammalian ependymin-related protein 1 (MERP-1) (Upregulated in colorectal cancer gene 1 protein) | E8: 3 | F8: 22.21 | G8: 19.09 | H8: 21.58 | I8: 22.79 | J8: 22.49 | K8: 21.63 | L8: 24.10 | M8: 22.50 | N8: 20.73 | O8: 23.57 | P8: 25.18 | Q8: 23.22 | R8: TRUE | S8: 0.1017 | T8: 1.58 | U8: 3.00 | X8: 22.16 | Y8: 21.29 | Z8: 22.09 | AA8: 18.07 | AB8: 18.86 | AC8: 20.50 | AD8: 23.78 | AE8: 22.56 | AF8: 23.31 | AG8: 22.48 | AH8: 22.57 | AI8: 22.94 | AJ8: TRUE | AK8: 0.0218 | AL8: 2.45 | AM8: 5.45 | AN8: TRUE | AO8: TRUE | AP8: TRUE
A9: Q13510 | B9: ASAH1 | C9: ASAH1 ASAH HSD-33 HSD33 | D9: Acid ceramidase (AC) (ACDase) (Acid CDase) (EC 3.5.1.23) (Acylsphingosine deacylase) (N-acylethanolamine hydrolase ASAH1) (EC 3.5.1.-) (N-acylsphingosine amidohydrolase) (Putative 32 kDa heart protein) (PHP32) [Cleaved into: Acid ceramidase subunit alpha; Acid ceramidase subunit beta] | E9: 8 | F9: 21.57 | G9: 21.83 | H9: 24.26 | I9: 21.74 | J9: 21.84 | K9: 22.25 | L9: 24.11 | M9: 23.86 | N9: 22.82 | O9: 23.90 | P9: 22.94 | Q9: 23.53 | R9: TRUE | S9: 0.1510 | T9: 1.28 | U9: 2.42 | X9: 21.79 | Y9: 21.78 | Z9: 21.44 | AA9: 20.91 | AB9: 20.95 | AC9: 21.37 | AD9: 22.50 | AE9: 22.46 | AF9: 22.21 | AG9: 21.50 | AH9: 21.83 | AI9: 22.10 | AJ9: TRUE | AK9: 0.0001 | AL9: 0.73 | AM9: 1.66 | AN9: TRUE | AO9: TRUE | AP9: TRUE
A10: Q96QE2 | B10: SLC2A13 | C10: SLC2A13 | D10: Proton myo-inositol cotransporter (H(+)-myo-inositol cotransporter) (Hmit) (H(+)-myo-inositol symporter) (Solute carrier family 2 member 13) | E10: 4 | F10: 21.17 | G10: 21.79 | H10: 19.12 | I10: 21.72 | J10: 20.97 | K10: 20.95 | L10: 22.30 | M10: 22.46 | N10: 22.14 | O10: 21.87 | P10: 21.58 | Q10: 22.07 | R10: TRUE | S10: 0.0894 | T10: 1.11 | U10: 2.17 | X10: 19.89 | Y10: 19.59 | Z10: 19.19 | AA10: 18.59 | AB10: 19.79 | AC10: 19.41 | AD10: 20.48 | AE10: 20.70 | AF10: 20.70 | AG10: 20.21 | AH10: 19.85 | AI10: 20.39 | AJ10: TRUE | AK10: 0.0286 | AL10: 0.98 | AM10: 1.97 | AN10: TRUE | AO10: TRUE
A11: P13796 | B11: LCP1 | C11: LCP1 PLS2 | D11: Plastin-2 (L-plastin) (LC64P) (Lymphocyte cytosolic protein 1) (LCP-1) | E11: 7 | F11: 20.01 | G11: 19.36 | H11: 21.59 | I11: 20.30 | J11: 20.39 | K11: 20.33 | L11: 21.83 | M11: 21.20 | N11: 21.12 | O11: 21.37 | P11: 21.45 | Q11: 21.39 | R11: TRUE | S11: 0.0645 | T11: 1.07 | U11: 2.09 | X11: 18.67 | Y11: 19.67 | Z11: 18.55 | AA11: 19.03 | AB11: 19.34 | AC11: 19.05 | AD11: 19.91 | AE11: 19.98 | AF11: 20.47 | AG11: 19.81 | AH11: 20.10 | AI11: 20.05 | AJ11: TRUE | AK11: 0.0209 | AL11: 1.00 | AM11: 2.00 | AN11: TRUE | AO11: TRUE
A12: P01903 | B12: HLA-DRA | C12: HLA-DRA HLA-DRA1 | D12: HLA class II histocompatibility antigen, DR alpha chain (MHC class II antigen DRA) | E12: 3 | F12: 18.76 | G12: 20.25 | H12: 19.38 | I12: 18.89 | J12: 19.22 | K12: 19.30 | L12: 20.86 | M12: 20.57 | N12: 19.68 | O12: 20.98 | P12: 19.46 | Q12: 20.31 | R12: TRUE | S12: 0.0859 | T12: 1.01 | U12: 2.01 | X12: 17.61 | Y12: 18.30 | Z12: 18.42 | AA12: 18.73 | AB12: 18.46 | AC12: 18.31 | AD12: 19.13 | AE12: 18.64 | AF12: 18.97 | AG12: 19.76 | AH12: 19.06 | AI12: 19.11 | AJ12: TRUE | AK12: 0.0186 | AL12: 0.81 | AM12: 1.75 | AN12: TRUE | AO12: TRUE | AP12: TRUE
A13: Q14515 | B13: SPARCL1 | C13: SPARCL1 | D13: SPARC-like protein 1 (High endothelial venule protein) (Hevin) (MAST 9) | E13: 4 | F13: 21.68 | G13: 19.25 | H13: 20.27 | I13: 20.38 | J13: 21.10 | K13: 20.54 | L13: 22.64 | M13: 21.69 | N13: 19.76 | O13: 21.73 | P13: 21.72 | Q13: 21.51 | R13: TRUE | S13: 0.1136 | T13: 0.97 | U13: 1.96 | X13: 19.54 | Y13: 19.76 | Z13: 20.66 | AA13: 20.68 | AB13: 20.11 | AC13: 20.15 | AD13: 21.05 | AE13: 20.04 | AF13: 21.57 | AG13: 21.10 | AH13: 21.35 | AI13: 21.02 | AJ13: TRUE | AK13: 0.0199 | AL13: 0.87 | AM13: 1.83 | AN13: TRUE | AO13: TRUE
A14: P07339 | B14: CTSD | C14: CTSD CPSD | D14: Cathepsin D (EC 3.4.23.5) [Cleaved into: Cathepsin D light chain; Cathepsin D heavy chain] | E14: 15 | F14: 25.45 | G14: 25.42 | H14: 27.84 | I14: 25.37 | J14: 25.38 | K14: 25.89 | L14: 27.15 | M14: 26.91 | N14: 26.76 | O14: 27.22 | P14: 26.20 | Q14: 26.85 | R14: TRUE | S14: 0.1506 | T14: 0.96 | U14: 1.94 | X14: 24.70 | Y14: 24.85 | Z14: 24.47 | AA14: 24.54 | AB14: 24.22 | AC14: 24.56 | AD14: 26.04 | AE14: 25.68 | AF14: 25.58 | AG14: 24.98 | AH14: 25.29 | AI14: 25.51 | AJ14: TRUE | AK14: 0.0033 | AL14: 0.96 | AM14: 1.94 | AN14: TRUE | AO14: TRUE | AP14: TRUE
A15: Q96FZ7 | B15: CHMP6 | C15: CHMP6 VPS20 | D15: Charged multivesicular body protein 6 (Chromatin-modifying protein 6) (Vacuolar protein sorting-associated protein 20) (Vps20) (hVps20) | E15: 3 | F15: 19.80 | G15: 22.06 | H15: 19.41 | I15: 22.08 | J15: 19.54 | K15: 20.58 | L15: 21.16 | M15: 21.84 | N15: 22.24 | O15: 22.09 | P15: 20.05 | Q15: 21.47 | R15: TRUE | S15: 0.1815 | T15: 0.90 | U15: 1.86 | X15: 18.89 | Y15: 18.12 | Z15: 18.20 | AA15: 18.17 | AB15: 19.26 | AC15: 18.53 | AD15: 20.19 | AE15: 20.40 | AF15: 18.97 | AG15: 21.08 | AH15: 20.02 | AI15: 20.13 | AJ15: TRUE | AK15: 0.0200 | AL15: 1.60 | AM15: 3.04 | AN15: TRUE | AO15: TRUE
A16: P01011 | B16: SERPINA3 | C16: SERPINA3 AACT GIG24 GIG25 | D16: Alpha-1-antichymotrypsin (ACT) (Cell growth-inhibiting gene 24/25 protein) (Serpin A3) [Cleaved into: Alpha-1-antichymotrypsin His-Pro-less] | E16: 6 | F16: 22.94 | G16: 23.24 | H16: 25.50 | I16: 23.36 | J16: 23.38 | K16: 23.68 | L16: 24.47 | M16: 24.12 | N16: 24.40 | O16: 24.29 | P16: 24.46 | Q16: 24.35 | R16: TRUE | S16: 0.2178 | T16: 0.66 | U16: 1.58 | X16: 21.43 | Y16: 22.60 | Z16: 21.69 | AA16: 21.10 | AB16: 22.52 | AC16: 21.87 | AD16: 23.15 | AE16: 23.29 | AF16: 22.60 | AG16: 22.00 | AH16: 22.84 | AI16: 22.78 | AJ16: TRUE | AK16: 0.0165 | AL16: 0.91 | AM16: 1.88 | AN16: TRUE | AO16: TRUE | AP16: TRUE
A17: Q92542 | B17: NCSTN | C17: NCSTN KIAA0253 UNQ1874/PRO4317 | D17: Nicastrin | E17: 3 | F17: 21.21 | G17: 21.01 | H17: 21.92 | I17: 20.90 | J17: 21.36 | K17: 21.28 | L17: 21.84 | M17: 21.60 | N17: 21.45 | O17: 21.66 | P17: 22.18 | Q17: 21.75 | R17: TRUE | S17: 0.1246 | T17: 0.46 | U17: 1.38 | X17: 19.93 | Y17: 19.86 | Z17: 20.07 | AA17: 19.66 | AB17: 19.99 | AC17: 19.90 | AD17: 21.12 | AE17: 20.41 | AF17: 20.92 | AG17: 20.59 | AH17: 20.43 | AI17: 20.69 | AJ17: TRUE | AK17: 0.0041 | AL17: 0.79 | AM17: 1.73 | AN17: TRUE | AO17: TRUE | AP17: TRUE
A18: P08294 | B18: SOD3 | C18: SOD3 | D18: Extracellular superoxide dismutase [Cu-Zn] (EC-SOD) (EC 1.15.1.1) | E18: 3 | F18: 22.46 | G18: 21.71 | H18: 21.20 | I18: 20.99 | J18: 21.10 | K18: 21.49 | L18: 22.93 | M18: 19.30 | N18: 23.03 | O18: 21.61 | P18: 22.72 | Q18: 21.92 | R18: TRUE | S18: 0.6044 | T18: 0.43 | U18: 1.34 | X18: 21.02 | Y18: 19.86 | Z18: 20.23 | AA18: 20.49 | AB18: 20.46 | AC18: 20.41 | AD18: 22.48 | AE18: 21.16 | AF18: 21.49 | AG18: 21.74 | AH18: 21.99 | AI18: 21.77 | AJ18: TRUE | AK18: 0.0000 | AL18: 1.36 | AM18: 2.57 | AN18: TRUE | AO18: TRUE
A19: P43007 | B19: SLC1A4 | C19: SLC1A4 ASCT1 SATT | D19: Neutral amino acid transporter A (Alanine/serine/cysteine/threonine transporter 1) (ASCT-1) (SATT) (Solute carrier family 1 member 4) | E19: 4 | F19: 22.36 | G19: 21.78 | H19: 22.08 | I19: 21.36 | J19: 22.66 | K19: 22.05 | L19: 22.25 | M19: 22.65 | N19: 22.06 | O19: 22.36 | P19: 23.01 | Q19: 22.47 | R19: TRUE | S19: 0.1363 | T19: 0.42 | U19: 1.34 | X19: 21.12 | Y19: 21.71 | Z19: 21.25 | AA19: 21.10 | AB19: 22.12 | AC19: 21.46 | AD19: 22.20 | AE19: 22.18 | AF19: 21.95 | AG19: 22.24 | AH19: 22.34 | AI19: 22.18 | AJ19: TRUE | AK19: 0.0144 | AL19: 0.72 | AM19: 1.65 | AN19: TRUE | AO19: TRUE
A20: P0DOX5 | B20: NA | C20: NA | D20: Immunoglobulin gamma-1 heavy chain (Immunoglobulin gamma-1 heavy chain NIE) | E20: 12 | F20: 24.05 | G20: 25.54 | H20: 27.18 | I20: 25.42 | J20: 25.66 | K20: 25.57 | L20: 25.77 | M20: 25.87 | N20: 26.27 | O20: 25.79 | P20: 26.00 | Q20: 25.94 | R20: TRUE | S20: 0.4227 | T20: 0.37 | U20: 1.29 | X20: 23.18 | Y20: 24.27 | Z20: 23.93 | AA20: 24.11 | AB20: 23.67 | AC20: 23.83 | AD20: 24.02 | AE20: 24.55 | AF20: 24.73 | AG20: 24.88 | AH20: 25.46 | AI20: 24.73 | AJ20: TRUE | AK20: 0.0218 | AL20: 0.90 | AM20: 1.86 | AN20: TRUE | AO20: TRUE
A21: P23297 | B21: S100A1 | C21: S100A1 S100A | D21: Protein S100-A1 (S-100 protein alpha chain) (S-100 protein subunit alpha) (S100 calcium-binding protein A1) | E21: 3 | F21: 20.37 | G21: 19.73 | H21: 19.73 | I21: 19.02 | J21: 19.70 | K21: 19.71 | L21: 21.69 | M21: 19.19 | N21: 19.69 | O21: 18.12 | P21: 20.13 | Q21: 19.77 | S21: 0.8926 | T21: 0.06 | U21: 1.04 | X21: 19.02 | Y21: 22.37 | Z21: 20.41 | AA21: 18.17 | AB21: 21.57 | AC21: 20.31 | AD21: 21.68 | AE21: 23.05 | AF21: 21.10 | AG21: 21.12 | AH21: 22.53 | AI21: 21.90 | AJ21: TRUE | AK21: 0.0341 | AL21: 1.59 | AM21: 3.01 | AN21: TRUE | AO21: TRUE
A22: Q9Y6R1 | B22: SLC4A4 | C22: SLC4A4 NBC NBC1 NBCE1 | D22: Electrogenic sodium bicarbonate cotransporter 1 (Sodium bicarbonate cotransporter) (Na(+)/HCO3(-) cotransporter) (Solute carrier family 4 member 4) (kNBC1) | E22: 6 | F22: 23.24 | G22: 23.44 | H22: 22.63 | I22: 23.23 | J22: 23.29 | K22: 23.16 | L22: 22.57 | M22: 23.23 | N22: 23.33 | O22: 23.34 | P22: 23.47 | Q22: 23.19 | R22: TRUE | S22: 0.9232 | T22: 0.02 | U22: 1.02 | X22: 21.08 | Y22: 21.81 | Z22: 21.85 | AA22: 21.93 | AB22: 22.26 | AC22: 21.78 | AD22: 22.43 | AE22: 22.17 | AF22: 22.78 | AG22: 22.26 | AH22: 22.60 | AI22: 22.45 | AJ22: TRUE | AK22: 0.0333 | AL22: 0.66 | AM22: 1.58 | AN22: TRUE | AO22: TRUE
A23: O15031 | B23: PLXNB2 | C23: PLXNB2 KIAA0315 | D23: Plexin-B2 (MM1) | E23: 2 | F23: 20.42 | G23: 19.37 | H23: 19.91 | I23: 19.10 | J23: 19.67 | K23: 19.69 | L23: 19.61 | M23: 19.74 | N23: 19.91 | O23: 19.77 | P23: 19.49 | Q23: 19.70 | S23: 0.9707 | T23: 0.01 | U23: 1.01 | X23: 17.96 | Y23: 19.07 | Z23: 18.07 | AA23: 17.00 | AB23: 17.43 | AC23: 17.91 | AD23: 18.95 | AE23: 19.14 | AF23: 19.23 | AG23: 19.16 | AH23: 18.78 | AI23: 19.05 | AJ23: TRUE | AK23: 0.0267 | AL23: 1.15 | AM23: 2.22 | AN23: TRUE | AO23: TRUE
A24: P31431 | B24: SDC4 | C24: SDC4 | D24: Syndecan-4 (SYND4) (Amphiglycan) (Ryudocan core protein) | E24: 3 | F24: 19.31 | G24: 19.78 | H24: 19.95 | I24: 19.97 | J24: 19.53 | K24: 19.71 | L24: 19.97 | M24: 18.67 | N24: 19.47 | O24: 19.72 | P24: 20.72 | Q24: 19.71 | S24: 0.9989 | T24: -0.00 | U24: 1.00 | X24: 19.11 | Y24: 17.72 | Z24: 19.35 | AA24: 17.70 | AB24: 19.41 | AC24: 18.66 | AD24: 21.27 | AE24: 19.85 | AF24: 20.13 | AG24: 19.37 | AH24: 19.70 | AI24: 20.07 | AJ24: TRUE | AK24: 0.0195 | AL24: 1.41 | AM24: 2.65 | AN24: TRUE | AO24: TRUE | AP24: TRUE
A25: Q9HAP6 | B25: LIN7B | C25: LIN7B MALS2 VELI2 UNQ3116/PRO10200 | D25: Protein lin-7 homolog B (Lin-7B) (hLin7B) (Mammalian lin-seven protein 2) (MALS-2) (Vertebrate lin-7 homolog 2) (Veli-2) (hVeli2) | E25: 4 | F25: 20.68 | G25: 20.63 | H25: 19.36 | I25: 19.79 | J25: 20.89 | K25: 20.27 | L25: 19.46 | M25: 21.12 | N25: 19.68 | O25: 18.89 | P25: 21.84 | Q25: 20.20 | R25: TRUE | S25: 0.8719 | T25: -0.07 | U25: 0.95 | X25: 19.47 | Y25: 18.65 | Z25: 18.45 | AA25: 18.22 | AB25: 18.07 | AC25: 18.57 | AD25: 19.58 | AE25: 19.46 | AF25: 19.82 | AG25: 19.76 | AH25: 19.36 | AI25: 19.59 | AJ25: TRUE | AK25: 0.0171 | AL25: 1.02 | AM25: 2.03 | AN25: TRUE | AO25: TRUE

Sheet Table 5 - Enriched in DS only
A1: Supplementary Table 5 - Proteins uniquely enriched in DS plaques
A2: Proteins uniquely enriched in plaques in DS, but not in EOAD. Proteomic data obtained from Supplementary Table 1.
F4: Down Syndrome Plaque vs Non-Plaque | X4: EOAD Plaque vs Non-Plaque | AP4: STRING GO classifications
A5: Uniprot ID | B5: Majority Gene ID | C5: All Gene IDs | D5: Name | E5: Peptides | F5: DS_np_01 | G5: DS_np_02 | H5: DS_np_03 | I5: DS_np_04 | J5: DS_np_05 | K5: Average intensity in DS_NP | L5: DS_p_01 | M5: DS_p_02 | N5: DS_p_03 | O5: DS_p_04 | P5: DS_p_05 | Q5: Average intensity in DS_P | R5: In at least 3 cases/group | S5: pValue_DS | T5: Difference_DS | U5: Fold change_DS | V5: Significant_DS | W5: Significantly enriched in DS plaques | X5: eoAD_np_01 | Y5: eoAD_np_02 | Z5: eoAD_np_03 | AA5: eoAD_np_04 | AB5: eoAD_np_05 | AC5: Average intensity in EOAD_NP | AD5: eoAD_p_01 | AE5: eoAD_p_02 | AF5: eoAD_p_03 | AG5: eoAD_p_04 | AH5: eoAD_p_05 | AI5: Average intensity in EOAD_P | AJ5: In at least 3 cases/group | AK5: pValue_eoAD | AL5: Difference_eoAD | AM5: Fold change_EOAD | AN5: Significant_eoAD | AO5: Significantly enriched in EOAD plaques | AP5: Lysosome (FDR: 1.80E-11) | AQ5: Endosome (FDR: 1.47E-08) | AR5: Cytoplasmic Vesicle (FDR: 1.55E-09)
A6: P13760 | B6: NA | C6: NA | D6: NA | E6: 7 | F6: 21.56 | G6: 21.82 | H6: 21.54 | I6: 21.80 | J6: 20.05 | K6: =AVERAGE(F6:J6) -> 21.35 | L6: 23.73 | M6: 23.69 | N6: 22.94 | O6: 24.50 | P6: 22.80 | Q6: =AVERAGE(L6:P6) -> 23.53 | R6: TRUE | S6: 0.0010 | T6: 2.18 | U6: =2^T6 -> 4.53 | V6: TRUE | W6: TRUE | X6: 18.50 | Y6: 18.59 | Z6: 19.21 | AA6: 18.25 | AB6: 17.86 | AC6: =AVERAGE(X6:AB6) -> 18.48 | AD6: 18.03 | AE6: 21.02 | AF6: 20.87 | AG6: 18.28 | AH6: 20.91 | AI6: =AVERAGE(AD6:AH6) -> 19.82 | AJ6: TRUE | AK6: 0.1191 | AL6: 1.34 | AM6: =2^AL6 -> 2.53
A7: Q8N8S7 | B7: ENAH | C7: ENAH MENA | D7: Protein enabled homolog | E7: 6 | F7: 22.60 | G7: 22.44 | H7: 19.87 | I7: 22.58 | J7: 18.60 | K7: 21.22 | L7: 23.70 | M7: 23.71 | N7: 23.61 | O7: 23.61 | P7: 23.09 | Q7: 23.54 | R7: TRUE | S7: 0.0347 | T7: 2.33 | U7: 5.01 | V7: TRUE | W7: TRUE | X7: 17.90 | Y7: 21.46 | Z7: 20.50 | AA7: 20.10 | AB7: 21.21 | AC7: 20.23 | AD7: 22.60 | AE7: 22.83 | AF7: 20.70 | AG7: 20.39 | AH7: 21.22 | AI7: 21.55 | AJ7: TRUE | AK7: 0.2100 | AL7: 1.31 | AM7: 2.49
A8: O15240 | B8: VGF | C8: VGF | D8: Neurosecretory protein VGF [Cleaved into: Neuroendocrine regulatory peptide-1 (NERP-1); Neuroendocrine regulatory peptide-2 (NERP-2); VGF-derived peptide TLQP-21; VGF-derived peptide TLQP-62; Antimicrobial peptide VGF[554-577]] | E8: 12 | F8: 24.25 | G8: 23.58 | H8: 23.06 | I8: 24.20 | J8: 22.73 | K8: 23.56 | L8: 25.27 | M8: 23.94 | N8: 24.47 | O8: 25.26 | P8: 23.72 | Q8: 24.53 | R8: TRUE | S8: 0.0048 | T8: 0.97 | U8: 1.96 | V8: TRUE | W8: TRUE | X8: 21.59 | Y8: 21.06 | Z8: 18.13 | AA8: 22.82 | AB8: 21.89 | AC8: 21.10 | AD8: 22.89 | AE8: 22.10 | AF8: 21.65 | AG8: 22.95 | AH8: 22.45 | AI8: 22.41 | AJ8: TRUE | AK8: 0.0894 | AL8: 1.31 | AM8: 2.48 | AR8: TRUE
A9: Q15582 | B9: TGFBI | C9: TGFBI BIGH3 | D9: Transforming growth factor-beta-induced protein ig-h3 (Beta ig-h3) (Kerato-epithelin) (RGD-containing collagen-associated protein) (RGD-CAP) | E9: 5 | F9: 19.28 | G9: 18.86 | H9: 20.60 | I9: 20.30 | J9: 20.18 | K9: 19.84 | L9: 22.00 | M9: 22.73 | N9: 23.14 | O9: 22.96 | P9: 21.84 | Q9: 22.53 | R9: TRUE | S9: 0.0016 | T9: 2.69 | U9: 6.46 | V9: TRUE | W9: TRUE | X9: 17.80 | Y9: 20.01 | Z9: 19.28 | AA9: 18.68 | AB9: 17.79 | AC9: 18.71 | AD9: 17.33 | AE9: 20.80 | AF9: 20.25 | AG9: 20.62 | AH9: 20.34 | AI9: 19.87 | AJ9: TRUE | AK9: 0.0896 | AL9: 1.16 | AM9: 2.23
A10: P05230 | B10: FGF1 | C10: FGF1 FGFA | D10: Fibroblast growth factor 1 (FGF-1) (Acidic fibroblast growth factor) (aFGF) (Endothelial cell growth factor) (ECGF) (Heparin-binding growth factor 1) (HBGF-1) | E10: 4 | F10: 21.81 | G10: 21.14 | H10: 21.49 | I10: 20.71 | J10: 21.64 | K10: 21.36 | L10: 22.12 | M10: 21.68 | N10: 22.05 | O10: 21.65 | P10: 22.95 | Q10: 22.09 | R10: TRUE | S10: 0.0143 | T10: 0.73 | U10: 1.66 | V10: TRUE | W10: TRUE | X10: 20.03 | Y10: 21.73 | Z10: 20.23 | AA10: 19.14 | AB10: 17.81 | AC10: 19.79 | AD10: 21.70 | AE10: 21.78 | AF10: 22.01 | AG10: 18.63 | AH10: 20.08 | AI10: 20.84 | AJ10: TRUE | AK10: 0.1234 | AL10: 1.05 | AM10: 2.07
A11: Q9UEU0 | B11: VTI1B | C11: VTI1B VTI1 VTI1L VTI1L1 VTI2 | D11: Vesicle transport through interaction with t-SNAREs homolog 1B (Vesicle transport v-SNARE protein Vti1-like 1) (Vti1-rp1) | E11: 7 | F11: 21.32 | G11: 21.40 | H11: 19.16 | I11: 21.98 | J11: 19.63 | K11: 20.70 | L11: 22.98 | M11: 22.81 | N11: 22.32 | O11: 23.52 | P11: 22.09 | Q11: 22.74 | R11: TRUE | S11: 0.0036 | T11: 2.04 | U11: 4.12 | V11: TRUE | W11: TRUE | X11: 20.39 | Y11: 17.79 | Z11: 20.46 | AA11: 20.72 | AB11: 18.91 | AC11: 19.65 | AD11: 20.93 | AE11: 20.03 | AF11: 20.88 | AG11: 20.87 | AH11: 20.50 | AI11: 20.64 | AJ11: TRUE | AK11: 0.0670 | AL11: 0.99 | AM11: 1.98 | AP11: TRUE | AQ11: TRUE | AR11: TRUE
A12: Q9BXY4 | B12: RSPO3 | C12: RSPO3 PWTSR THSD2 | D12: R-spondin-3 (Protein with TSP type-1 repeat) (hPWTSR) (Roof plate-specific spondin-3) (hRspo3) (Thrombospondin type-1 domain-containing protein 2) | E12: 2 | F12: 18.05 | G12: 19.79 | H12: 19.24 | I12: 20.71 | J12: 19.13 | K12: 19.38 | L12: 22.37 | M12: 21.70 | N12: 22.58 | O12: 22.57 | P12: 21.13 | Q12: 22.07 | R12: TRUE | S12: 0.0055 | T12: 2.69 | U12: 6.44 | V12: TRUE | W12: TRUE | X12: 18.06 | Y12: 18.73 | Z12: 19.20 | AA12: 17.35 | AB12: 18.28 | AC12: 18.32 | AD12: 21.54 | AE12: 19.93 | AF12: 17.11 | AG12: 19.07 | AH12: 18.62 | AI12: 19.25 | AJ12: TRUE | AK12: 0.3662 | AL12: 0.93 | AM12: 1.91
A13: Q9Y3Z3 | B13: SAMHD1 | C13: SAMHD1 MOP5 | D13: Deoxynucleoside triphosphate triphosphohydrolase SAMHD1 (dNTPase) (EC 3.1.5.-) (Dendritic cell-derived IFNG-induced protein) (DCIP) (Monocyte protein 5) (MOP-5) (SAM domain and HD domain-containing protein 1) (hSAMHD1) | E13: 4 | F13: 18.10 | G13: 20.88 | H13: 20.42 | I13: 20.88 | J13: 18.99 | K13: 19.85 | L13: 21.68 | M13: 22.00 | N13: 22.31 | O13: 22.23 | P13: 19.52 | Q13: 21.55 | R13: TRUE | S13: 0.0310 | T13: 1.69 | U13: 3.23 | V13: TRUE | W13: TRUE | X13: 17.70 | Y13: 19.76 | Z13: 19.27 | AA13: 18.56 | AB13: 17.78 | AC13: 18.62 | AD13: 20.01 | AE13: 20.42 | AF13: 19.74 | AG13: 18.55 | AH13: 18.38 | AI13: 19.42 | AJ13: TRUE | AK13: 0.1105 | AL13: 0.80 | AM13: 1.75
A14: P07602 | B14: PSAP | C14: PSAP GLBA SAP1 | D14: Prosaposin (Proactivator polypeptide) [Cleaved into: Saposin-A (Protein A); Saposin-B-Val; Saposin-B (Cerebroside sulfate activator) (CSAct) (Dispersin) (Sphingolipid activator protein 1) (SAP-1) (Sulfatide/GM1 activator); Saposin-C (A1 activator) (Co-beta-glucosidase) (Glucosylceramidase activator) (Sphingolipid activator protein 2) (SAP-2); Saposin-D (Component C) (Protein C)] | E14: 8 | F14: 24.31 | G14: 25.02 | H14: 24.71 | I14: 24.58 | J14: 24.15 | K14: 24.55 | L14: 25.81 | M14: 25.63 | N14: 25.64 | O14: 25.77 | P14: 25.70 | Q14: 25.71 | R14: TRUE | S14: 0.0028 | T14: 1.16 | U14: 2.23 | V14: TRUE | W14: TRUE | X14: 24.04 | Y14: 24.38 | Z14: 24.17 | AA14: 23.90 | AB14: 22.22 | AC14: 23.74 | AD14: 25.12 | AE14: 24.57 | AF14: 24.54 | AG14: 24.26 | AH14: 24.06 | AI14: 24.51 | AJ14: TRUE | AK14: 0.0660 | AL14: 0.77 | AM14: 1.71 | AP14: TRUE | AR14: TRUE
A15: Q13938 | B15: CAPS | C15: CAPS | D15: Calcyphosin (Calcyphosine) | E15: 7 | F15: 22.03 | G15: 21.71 | H15: 23.40 | I15: 22.18 | J15: 20.41 | K15: 21.95 | L15: 22.67 | M15: 22.09 | N15: 23.85 | O15: 23.28 | P15: 21.37 | Q15: 22.65 | R15: TRUE | S15: 0.0074 | T15: 0.71 | U15: 1.63 | V15: TRUE | W15: TRUE | X15: 20.16 | Y15: 23.87 | Z15: 19.17 | AA15: 17.42 | AB15: 19.17 | AC15: 19.96 | AD15: 20.96 | AE15: 23.36 | AF15: 19.80 | AG15: 19.97 | AH15: 19.53 | AI15: 20.72 | AJ15: TRUE | AK15: 0.2001 | AL15: 0.77 | AM15: 1.70
A16: Q96DA2 | B16: RAB39B | C16: RAB39B | D16: Ras-related protein Rab-39B | E16: 4 | F16: 21.52 | G16: 21.30 | H16: 20.80 | I16: 21.99 | J16: 21.85 | K16: 21.49 | L16: 22.05 | M16: 22.05 | N16: 22.30 | O16: 22.61 | P16: 22.61 | Q16: 22.32 | R16: TRUE | S16: 0.0082 | T16: 0.83 | U16: 1.78 | V16: TRUE | W16: TRUE | X16: 20.48 | Y16: 18.93 | Z16: 20.76 | AA16: 20.52 | AB16: 20.65 | AC16: 20.27 | AD16: 21.54 | AE16: 20.81 | AF16: 21.35 | AG16: 20.72 | AH16: 20.51 | AI16: 20.99 | AJ16: TRUE | AK16: 0.1115 | AL16: 0.72 | AM16: 1.64 | AR16: TRUE
A17: Q7Z3C6 | B17: ATG9A | C17: ATG9A APG9L1 | D17: Autophagy-related protein 9A (APG9-like 1) (mATG9) | E17: 6 | F17: 20.41 | G17: 21.00 | H17: 18.71 | I17: 21.19 | J17: 20.88 | K17: 20.44 | L17: 22.82 | M17: 22.36 | N17: 22.23 | O17: 23.01 | P17: 22.68 | Q17: 22.62 | R17: TRUE | S17: 0.0043 | T17: 2.18 | U17: 4.54 | V17: TRUE | W17: TRUE | X17: 19.10 | Y17: 18.37 | Z17: 18.07 | AA17: 18.92 | AB17: 19.57 | AC17: 18.80 | AD17: 20.54 | AE17: 18.80 | AF17: 19.36 | AG17: 19.24 | AH17: 19.65 | AI17: 19.52 | AJ17: TRUE | AK17: 0.0601 | AL17: 0.71 | AM17: 1.64 | AQ17: TRUE | AR17: TRUE
A18: Q9Y4C0 | B18: NRXN3 | C18: NRXN3 C14orf60 KIAA0743 | D18: Neurexin-3 (Neurexin III-alpha) (Neurexin-3-alpha) | E18: 15 | F18: 22.07 | G18: 22.11 | H18: 21.46 | I18: 22.53 | J18: 22.57 | K18: 22.15 | L18: 23.17 | M18: 22.72 | N18: 22.33 | O18: 22.53 | P18: 23.23 | Q18: 22.80 | R18: TRUE | S18: 0.0233 | T18: 0.65 | U18: 1.57 | V18: TRUE | W18: TRUE | X18: 21.04 | Y18: 21.30 | Z18: 21.32 | AA18: 21.25 | AB18: 21.46 | AC18: 21.27 | AD18: 22.56 | AE18: 20.84 | AF18: 22.20 | AG18: 22.55 | AH18: 21.79 | AI18: 21.99 | AJ18: TRUE | AK18: 0.1181 | AL18: 0.71 | AM18: 1.64
A19: Q9Y6U3 | B19: SCIN | C19: SCIN KIAA1905 | D19: Adseverin (Scinderin) | E19: 10 | F19: 19.55 | G19: 21.61 | H19: 21.94 | I19: 21.63 | J19: 18.90 | K19: 20.73 | L19: 21.93 | M19: 23.44 | N19: 24.29 | O19: 24.23 | P19: 18.48 | Q19: 22.47 | R19: TRUE | S19: 0.0347 | T19: 1.75 | U19: 3.36 | V19: TRUE | W19: TRUE | X19: 18.52 | Y19: 21.07 | Z19: 18.20 | AA19: 17.81 | AB19: 18.23 | AC19: 18.77 | AD19: 20.78 | AE19: 21.09 | AF19: 18.85 | AG19: 18.70 | AH19: 17.62 | AI19: 19.41 | AK19: 0.2548 | AL19: 0.64 | AM19: 1.56
A20: P50897 | B20: PPT1 | C20: PPT1 CLN1 PPT | D20: Palmitoyl-protein thioesterase 1 (PPT-1) (EC 3.1.2.22) (Palmitoyl-protein hydrolase 1) | E20: 5 | F20: 21.71 | G20: 21.60 | H20: 21.36 | I20: 22.22 | J20: 21.74 | K20: 21.72 | L20: 23.34 | M20: 23.40 | N20: 23.23 | O20: 23.33 | P20: 22.20 | Q20: 23.10 | R20: TRUE | S20: 0.0065 | T20: 1.38 | U20: 2.59 | V20: TRUE | W20: TRUE | X20: 21.58 | Y20: 22.18 | Z20: 21.37 | AA20: 21.79 | AB20: 21.21 | AC20: 21.63 | AD20: 22.50 | AE20: 22.23 | AF20: 22.51 | AG20: 21.94 | AH20: 21.74 | AI20: 22.19 | AJ20: TRUE | AK20: 0.0580 | AL20: 0.56 | AM20: 1.47 | AP20: TRUE | AR20: TRUE
A21: Q9H0E2 | B21: TOLLIP | C21: TOLLIP | D21: Toll-interacting protein | E21: 13 | F21: 24.19 | G21: 23.87 | H21: 24.17 | I21: 23.69 | J21: 23.93 | K21: 23.97 | L21: 24.83 | M21: 24.86 | N21: 24.24 | O21: 24.94 | P21: 24.39 | Q21: 24.66 | R21: TRUE | S21: 0.0289 | T21: 0.68 | U21: 1.61 | V21: TRUE | W21: TRUE | X21: 22.68 | Y21: 21.93 | Z21: 22.79 | AA21: 23.55 | AB21: 23.22 | AC21: 22.83 | AD21: 23.42 | AE21: 22.92 | AF21: 23.73 | AG21: 23.58 | AH21: 23.24 | AI21: 23.38 | AJ21: TRUE | AK21: 0.0673 | AL21: 0.54 | AM21: 1.46 | AP21: TRUE | AR21: TRUE
A22: P35241 | B22: RDX | C22: RDX | D22: Radixin | E22: 29 | F22: 23.87 | G22: 23.62 | H22: 23.54 | I22: 23.74 | J22: 23.38 | K22: 23.63 | L22: 24.77 | M22: 24.42 | N22: 24.88 | O22: 24.49 | P22: 23.89 | Q22: 24.49 | R22: TRUE | S22: 0.0032 | T22: 0.86 | U22: 1.82 | V22: TRUE | W22: TRUE | X22: 22.79 | Y22: 23.56 | Z22: 22.96 | AA22: 22.06 | AB22: 22.50 | AC22: 22.77 | AD22: 23.88 | AE22: 25.13 | AF22: 22.48 | AG22: 22.53 | AH22: 22.42 | AI22: 23.29 | AJ22: TRUE | AK22: 0.2407 | AL22: 0.52 | AM22: 1.43
A23: Q92581 | B23: SLC9A6 | C23: SLC9A6 KIAA0267 NHE6 | D23: Sodium/hydrogen exchanger 6 (Na(+)/H(+) exchanger 6) (NHE-6) (Solute carrier family 9 member 6) | E23: 5 | F23: 21.23 | G23: 22.24 | H23: 20.98 | I23: 22.07 | J23: 20.78 | K23: 21.46 | L23: 22.86 | M23: 22.74 | N23: 22.33 | O23: 23.10 | P23: 22.71 | Q23: 22.75 | R23: TRUE | S23: 0.0065 | T23: 1.29 | U23: 2.44 | V23: TRUE | W23: TRUE | X23: 20.51 | Y23: 20.23 | Z23: 20.25 | AA23: 20.29 | AB23: 20.74 | AC23: 20.40 | AD23: 20.96 | AE23: 20.95 | AF23: 20.87 | AG23: 20.86 | AH23: 20.95 | AI23: 20.92 | AJ23: TRUE | AK23: 0.0041 | AL23: 0.51 | AM23: 1.43 | AQ23: TRUE | AR23: TRUE
A24: Q9Y2J8 | B24: PADI2 | C24: PADI2 KIAA0994 PAD2 PDI2 | D24: Protein-arginine deiminase type-2 (EC 3.5.3.15) (PAD-H19) (Peptidylarginine deiminase II) (Protein-arginine deiminase type II) | E24: 14 | F24: 24.62 | G24: 24.41 | H24: 24.92 | I24: 24.52 | J24: 23.67 | K24: 24.43 | L24: 25.26 | M24: 25.14 | N24: 25.56 | O24: 25.32 | P24: 24.18 | Q24: 25.09 | R24: TRUE | S24: 0.0002 | T24: 0.67 | U24: 1.59 | V24: TRUE | W24: TRUE | X24: 23.48 | Y24: 25.04 | Z24: 23.43 | AA24: 22.77 | AB24: 23.51 | AC24: 23.65 | AD24: 24.23 | AE24: 25.05 | AF24: 23.78 | AG24: 23.70 | AH24: 23.96 | AI24: 24.15 | AJ24: TRUE | AK24: 0.0361 | AL24: 0.50 | AM24: 1.41 | AP24: TRUE | AR24: TRUE
A25: O15061 | B25: SYNM | C25: SYNM DMN KIAA0353 SYN | D25: Synemin (Desmuslin) | E25: 12 | F25: 22.29 | G25: 22.47 | H25: 22.65 | I25: 22.09 | J25: 19.79 | K25: 21.86 | L25: 23.08 | M25: 22.67 | N25: 23.52 | O25: 23.24 | P25: 21.44 | Q25: 22.79 | R25: TRUE | S25: 0.0173 | T25: 0.93 | U25: 1.91 | V25: TRUE | W25: TRUE | X25: 19.92 | Y25: 22.45 | Z25: 19.36 | AA25: 19.56 | AB25: 19.64 | AC25: 20.19 | AD25: 20.96 | AE25: 22.31 | AF25: 20.99 | AG25: 19.62 | AH25: 19.53 | AI25: 20.68 | AJ25: TRUE | AK25: 0.2373 | AL25: 0.50 | AM25: 1.41
A26: Q9BT88 | B26: SYT11 | C26: SYT11 KIAA0080 | D26: Synaptotagmin-11 (Synaptotagmin XI) (SytXI) | E26: 4 | F26: 19.43 | G26: 20.02 | H26: 20.10 | I26: 19.79 | J26: 20.28 | K26: 19.92 | L26: 21.48 | M26: 21.99 | N26: 21.55 | O26: 21.76 | P26: 21.76 | Q26: 21.71 | R26: TRUE | S26: 0.0002 | T26: 1.79 | U26: 3.45 | V26: TRUE | W26: TRUE | X26: 19.20 | Y26: 17.66 | Z26: 18.20 | AA26: 17.65 | AB26: 18.57 | AC26: 18.26 | AD26: 18.56 | AE26: 17.76 | AF26: 20.36 | AG26: 18.55 | AH26: 18.34 | AI26: 18.72 | AK26: 0.4048 | AL26: 0.46 | AM26: 1.38 | AP26: TRUE | AQ26: TRUE | AR26: TRUE
A27: P0C0L5 | B27: C4B | C27: C4B CO4 CPAMD3; C4B_2 | D27: Complement C4-B (Basic complement C4) (C3 and PZP-like alpha-2-macroglobulin domain-containing protein 3) [Cleaved into: Complement C4 beta chain; Complement C4-B alpha chain; C4a anaphylatoxin; C4b-B; C4d-B; Complement C4 gamma chain] | E27: 45 | F27: 19.66 | G27: 21.98 | H27: 19.43 | I27: 19.75 | J27: 20.54 | K27: 20.27 | L27: 23.31 | M27: 25.36 | N27: 23.75 | O27: 23.24 | P27: 19.62 | Q27: 23.06 | R27: TRUE | S27: 0.0416 | T27: 2.78 | U27: 6.88 | V27: TRUE | W27: TRUE | X27: 18.26 | Y27: 17.64 | Z27: 19.09 | AA27: 18.55 | AB27: 17.82 | AC27: 18.27 | AD27: 20.86 | AE27: 18.54 | AF27: 17.89 | AG27: 18.53 | AH27: 17.82 | AI27: 18.73 | AK27: 0.5089 | AL27: 0.46 | AM27: 1.37
A28: Q86UX7 | B28: FERMT3 | C28: FERMT3 KIND3 MIG2B URP2 | D28: Fermitin family homolog 3 (Kindlin-3) (MIG2-like protein) (Unc-112-related protein 2) | E28: 3 | F28: 19.25 | G28: 20.22 | H28: 20.67 | I28: 19.76 | J28: 19.64 | K28: 19.91 | L28: 20.70 | M28: 20.82 | N28: 21.41 | O28: 21.86 | P28: 20.73 | Q28: 21.10 | R28: TRUE | S28: 0.0116 | T28: 1.19 | U28: 2.29 | V28: TRUE | W28: TRUE | X28: 17.94 | Y28: 18.70 | Z28: 18.22 | AA28: 18.56 | AB28: 18.58 | AC28: 18.40 | AD28: 18.65 | AE28: 18.08 | AF28: 19.39 | AG28: 19.34 | AH28: 18.80 | AI28: 18.85 | AK28: 0.2123 | AL28: 0.45 | AM28: 1.37 | AR28: TRUE
A29: Q06481 | B29: APLP2 | C29: APLP2 APPL2 | D29: Amyloid-like protein 2 (APLP-2) (APPH) (Amyloid protein homolog) (CDEI box-binding protein) (CDEBP) | E29: 4 | F29: 19.66 | G29: 19.53 | H29: 19.04 | I29: 19.61 | J29: 19.28 | K29: 19.42 | L29: 21.69 | M29: 21.62 | N29: 21.15 | O29: 22.01 | P29: 20.90 | Q29: 21.48 | R29: TRUE | S29: 0.0001 | T29: 2.05 | U29: 4.15 | V29: TRUE | W29: TRUE | X29: 17.95 | Y29: 18.32 | Z29: 17.91 | AA29: 18.71 | AB29: 19.39 | AC29: 18.46 | AD29: 18.54 | AE29: 18.99 | AF29: 19.76 | AG29: 18.75 | AH29: 18.41 | AI29: 18.89 | AK29: 0.4000 | AL29: 0.43 | AM29: 1.35 | AR29: TRUE
A30: P15559 | B30: NQO1 | C30: NQO1 DIA4 NMOR1 | D30: NAD(P)H dehydrogenase [quinone] 1 (EC 1.6.5.2) (Azoreductase) (DT-diaphorase) (DTD) (Menadione reductase) (NAD(P)H:quinone oxidoreductase 1) (Phylloquinone reductase) (Quinone reductase 1) (QR1) | E30: 6 | F30: 23.74 | G30: 21.76 | H30: 21.88 | I30: 22.09 | J30: 22.47 | K30: 22.39 | L30: 24.00 | M30: 22.63 | N30: 22.78 | O30: 22.83 | P30: 22.74 | Q30: 23.00 | R30: TRUE | S30: 0.0128 | T30: 0.61 | U30: 1.52 | V30: TRUE | W30: TRUE | X30: 20.81 | Y30: 23.32 | Z30: 21.06 | AA30: 21.93 | AB30: 17.10 | AC30: 20.84 | AD30: 21.48 | AE30: 23.42 | AF30: 21.72 | AG30: 21.98 | AH30: 17.78 | AI30: 21.28 | AJ30: TRUE | AK30: 0.0423 | AL30: 0.43 | AM30: 1.35
A31: Q96BM9 | B31: ARL8A | C31: ARL8A ARL10B GIE2 | D31: ADP-ribosylation factor-like protein 8A (ADP-ribosylation factor-like protein 10B) (Novel small G protein indispensable for equal chromosome segregation 2) | E31: 6 | F31: 22.18 | G31: 22.32 | H31: 21.87 | I31: 22.29 | J31: 22.75 | K31: 22.28 | L31: 23.66 | M31: 23.35 | N31: 23.25 | O31: 23.31 | P31: 23.02 | Q31: 23.32 | R31: TRUE | S31: 0.0085 | T31: 1.04 | U31: 2.05 | V31: TRUE | W31: TRUE | X31: 21.18 | Y31: 21.34 | Z31: 21.25 | AA31: 20.86 | AB31: 21.29 | AC31: 21.19 | AD31: 21.53 | AE31: 21.87 | AF31: 21.69 | AG31: 21.27 | AH31: 21.68 | AI31: 21.61 | AJ31: TRUE | AK31: 0.0002 | AL31: 0.42 | AM31: 1.34 | AP31: TRUE | AQ31: TRUE | AR31: TRUE
A32: P06703 | B32: S100A6 | C32: S100A6 CACY | D32: Protein S100-A6 (Calcyclin) (Growth factor-inducible protein 2A9) (MLN 4) (Prolactin receptor-associated protein) (PRA) (S100 calcium-binding protein A6) | E32: 3 | F32: 24.89 | G32: 25.08 | H32: 24.65 | I32: 24.51 | J32: 18.30 | K32: 23.49 | L32: 25.44 | M32: 25.22 | N32: 25.84 | O32: 25.32 | P32: 20.28 | Q32: 24.42 | R32: TRUE | S32: 0.0410 | T32: 0.93 | U32: 1.91 | V32: TRUE | W32: TRUE | X32: 24.06 | Y32: 24.86 | Z32: 22.47 | AA32: 21.59 | AB32: 20.23 | AC32: 22.64 | AD32: 24.05 | AE32: 24.91 | AF32: 23.22 | AG32: 19.68 | AH32: 23.31 | AI32: 23.03 | AJ32: TRUE | AK32: 0.6502 | AL32: 0.39 | AM32: 1.31
A33: O60784 | B33: TOM1 | C33: TOM1 | D33: Target of Myb protein 1 | E33: 8 | F33: 23.03 | G33: 23.10 | H33: 22.66 | I33: 23.56 | J33: 23.39 | K33: 23.15 | L33: 23.77 | M33: 23.96 | N33: 23.79 | O33: 24.07 | P33: 24.16 | Q33: 23.95 | R33: TRUE | S33: 0.0013 | T33: 0.80 | U33: 1.74 | V33: TRUE | W33: TRUE | X33: 21.99 | Y33: 21.50 | Z33: 21.90 | AA33: 22.15 | AB33: 22.07 | AC33: 21.92 | AD33: 22.47 | AE33: 21.88 | AF33: 22.64 | AG33: 22.07 | AH33: 22.45 | AI33: 22.30 | AJ33: TRUE | AK33: 0.0466 | AL33: 0.38 | AM33: 1.30 | AP33: TRUE | AQ33: TRUE | AR33: TRUE
A34: O15400 | B34: STX7 | C34: STX7 | D34: Syntaxin-7 | E34: 9 | F34: 24.08 | G34: 24.79 | H34: 23.72 | I34: 24.68 | J34: 23.78 | K34: 24.21 | L34: 24.98 | M34: 25.11 | N34: 24.76 | O34: 25.09 | P34: 24.17 | Q34: 24.82 | R34: TRUE | S34: 0.0142 | T34: 0.62 | U34: 1.53 | V34: TRUE | W34: TRUE | X34: 22.84 | Y34: 22.12 | Z34: 22.14 | AA34: 22.92 | AB34: 23.01 | AC34: 22.61 | AD34: 22.93 | AE34: 22.96 | AF34: 22.76 | AG34: 23.22 | AH34: 22.99 | AI34: 22.97 | AJ34: TRUE | AK34: 0.0846 | AL34: 0.37 | AM34: 1.29 | AP34: TRUE | AQ34: TRUE | AR34: TRUE
A35: Q14108 | B35: SCARB2 | C35: SCARB2 CD36L2 LIMP2 LIMPII | D35: Lysosome membrane protein 2 (85 kDa lysosomal membrane sialoglycoprotein) (LGP85) (CD36 antigen-like 2) (Lysosome membrane protein II) (LIMP II) (Scavenger receptor class B member 2) (CD antigen CD36) | E35: 6 | F35: 22.27 | G35: 22.05 | H35: 22.71 | I35: 22.51 | J35: 22.32 | K35: 22.37 | L35: 23.34 | M35: 22.98 | N35: 23.23 | O35: 23.61 | P35: 23.23 | Q35: 23.28 | R35: TRUE | S35: 0.0009 | T35: 0.91 | U35: 1.88 | V35: TRUE | W35: TRUE | X35: 21.64 | Y35: 21.89 | Z35: 22.25 | AA35: 21.93 | AB35: 21.27 | AC35: 21.80 | AD35: 22.08 | AE35: 21.80 | AF35: 22.80 | AG35: 22.45 | AH35: 21.62 | AI35: 22.15 | AJ35: TRUE | AK35: 0.0385 | AL35: 0.35 | AM35: 1.28 | AP35: TRUE | AQ35: TRUE | AR35: TRUE
A36: P14136 | B36: GFAP | C36: GFAP | D36: Glial fibrillary acidic protein (GFAP) | E36: 65 | F36: 34.47 | G36: 34.02 | H36: 34.40 | I36: 34.18 | J36: 30.55 | K36: 33.52 | L36: 34.95 | M36: 34.61 | N36: 34.81 | O36: 35.33 | P36: 30.97 | Q36: 34.13 | R36: TRUE | S36: 0.0118 | T36: 0.61 | U36: 1.52 | V36: TRUE | W36: TRUE | X36: 31.75 | Y36: 34.56 | Z36: 31.34 | AA36: 30.12 | AB36: 32.47 | AC36: 32.05 | AD36: 32.63 | AE36: 33.97 | AF36: 32.37 | AG36: 31.06 | AH36: 31.94 | AI36: 32.39 | AJ36: TRUE | AK36: 0.4067 | AL36: 0.34 | AM36: 1.27 | AP36: TRUE
A37: Q9P253 | B37: VPS18 | C37: VPS18 KIAA1475 | D37: Vacuolar protein sorting-associated protein 18 homolog (hVPS18) | E37: 9 | F37: 21.53 | G37: 21.23 | H37: 21.14 | I37: 21.56 | J37: 21.29 | K37: 21.35 | L37: 21.91 | M37: 22.05 | N37: 21.92 | O37: 22.41 | P37: 22.00 | Q37: 22.06 | R37: TRUE | S37: 0.0011 | T37: 0.71 | U37: 1.63 | V37: TRUE | W37: TRUE | X37: 20.24 | Y37: 20.35 | Z37: 20.10 | AA37: 20.52 | AB37: 19.96 | AC37: 20.23 | AD37: 20.63 | AE37: 20.59 | AF37: 20.42 | AG37: 20.70 | AH37: 20.51 | AI37: 20.57 | AJ37: TRUE | AK37: 0.0061 | AL37: 0.33 | AM37: 1.26 | AP37: TRUE | AQ37: TRUE | AR37: TRUE
A38: Q9UBI6 | B38: GNG12 | C38: GNG12 | D38: Guanine nucleotide-binding protein G(I)/G(S)/G(O) subunit gamma-12 | E38: 5 | F38: 23.40 | G38: 22.75 | H38: 23.49 | I38: 23.08 | J38: 22.27 | K38: =AVERAGE(F38:J38) -> 23.00 | L38: 24.29 | M38: 23.47 | N38: 24.17 | O38: 23.85 | P38: 22.56 | Q38: =AVERAGE(L38:P38) -> 23.67 | R38: TRUE | S38: 0.0026 | T38: 0.67 | U38: =2^T38 -> 1.59 | V38: TRUE | W38: TRUE | X38: 21.12 | Y38: 23.28 | Z38: 20.64 | AA38: 20.40 | AB38: 21.72 | AC38: =AVERAGE(X38:AB38) -> 21.43 | AD38: 21.49 | AE38: 23.13 | AF38: 21.36 | AG38: 21.17 | AH38: 21.67 | AI38: =AVERAGE(AD38:AH38) -> 21.76 | AJ38: TRUE | AK38: 0.1581 | AL38: 0.33 | AM38: =2^AL38 -> 1.26
A39: Q9H270 | B39: VPS11 | C39: VPS11 RNF108 PP3476 | D39: Vacuolar protein sorting-associated protein 11 homolog (hVPS11) (RING finger protein 108) | E39: 4 | F39: 20.05 | G39: 20.65 | H39: 20.42 | I39: 21.04 | J39: 20.28 | K39: 20.49 | L39: 20.91 | M39: 21.34 | N39: 20.73 | O39: 21.74 | P39: 20.84 | Q39: 21.11 | R39: TRUE | S39: 0.0024 | T39: 0.62 | U39: 1.54 | V39: TRUE | W39: TRUE | X39: 19.28 | Y39: 19.42 | Z39: 19.48 | AA39: 19.64 | AB39: 19.43 | AC39: 19.45 | AD39: 19.71 | AE39: 19.76 | AF39: 20.24 | AG39: 19.82 | AH39: 19.34 | AI39: 19.77 | AJ39: TRUE | AK39: 0.0833 | AL39: 0.32 | AM39: 1.25 | AP39: TRUE | AQ39: TRUE | AR39: TRUE
A40: P39060 | B40: COL18A1 | C40: COL18A1 | D40: Collagen alpha-1(XVIII) chain [Cleaved into: Endostatin; Non-collagenous domain 1 (NC1)] | E40: 6 | F40: 21.43 | G40: 20.98 | H40: 21.47 | I40: 20.88 | J40: 21.26 | K40: 21.20 | L40: 22.13 | M40: 22.35 | N40: 23.06 | O40: 21.97 | P40: 22.20 | Q40: 22.34 | R40: TRUE | S40: 0.0020 | T40: 1.14 | U40: 2.20 | V40: TRUE | W40: TRUE | X40: 19.61 | Y40: 20.42 | Z40: 17.89 | AA40: 19.81 | AB40: 19.23 | AC40: 19.39 | AD40: 18.27 | AE40: 20.22 | AF40: 19.85 | AG40: 20.47 | AH40: 19.63 | AI40: 19.69 | AJ40: TRUE | AK40: 0.6113 | AL40: 0.30 | AM40: 1.23
A41: P51178 | B41: PLCD1 | C41: PLCD1 | D41: 1-phosphatidylinositol 4,5-bisphosphate phosphodiesterase delta-1 (EC 3.1.4.11) (Phosphoinositide phospholipase C-delta-1) (Phospholipase C-III) (PLC-III) (Phospholipase C-delta-1) (PLC-delta-1) | E41: 18 | F41: 23.96 | G41: 23.52 | H41: 23.70 | I41: 23.20 | J41: 21.87 | K41: 23.25 | L41: 24.58 | M41: 23.94 | N41: 24.28 | O41: 24.52 | P41: 22.24 | Q41: 23.91 | R41: TRUE | S41: 0.0177 | T41: 0.66 | U41: 1.58 | V41: TRUE | W41: TRUE | X41: 21.97 | Y41: 23.64 | Z41: 22.06 | AA41: 21.65 | AB41: 22.49 | AC41: 22.36 | AD41: 22.81 | AE41: 23.41 | AF41: 22.45 | AG41: 22.07 | AH41: 22.53 | AI41: 22.66 | AJ41: TRUE | AK41: 0.1831 | AL41: 0.29 | AM41: 1.23
A42: P51798 | B42: CLCN7 | C42: CLCN7 | D42: H(+)/Cl(-) exchange transporter 7 (Chloride channel 7 alpha subunit) (Chloride channel protein 7) (ClC-7) | E42: 6 | F42: 20.26 | G42: 20.92 | H42: 21.08 | I42: 20.72 | J42: 21.02 | K42: 20.80 | L42: 22.71 | M42: 22.40 | N42: 22.36 | O42: 23.68 | P42: 21.61 | Q42: 22.55 | R42: TRUE | S42: 0.0145 | T42: 1.75 | U42: 3.36 | V42: TRUE | W42: TRUE | X42: 18.66 | Y42: 17.91 | Z42: 18.75 | AA42: 17.52 | AB42: 19.01 | AC42: 18.37 | AD42: 17.53 | AE42: 18.36 | AF42: 21.05 | AG42: 17.62 | AH42: 18.68 | AI42: 18.65 | AK42: 0.6538 | AL42: 0.28 | AM42: 1.21 | AR42: TRUE
A43: O94806 | B43: PRKD3 | C43: PRKD3 EPK2 PRKCN | D43: Serine/threonine-protein kinase D3 (EC 2.7.11.13) (Protein kinase C nu type) (Protein kinase EPK2) (nPKC-nu) | E43: 2 | F43: 23.25 | G43: 22.43 | H43: 22.57 | I43: 22.88 | J43: 22.63 | K43: 22.75 | L43: 23.45 | M43: 23.22 | N43: 23.85 | O43: 23.85 | P43: 23.06 | Q43: 23.49 | R43: TRUE | S43: 0.0181 | T43: 0.74 | U43: 1.66 | V43: TRUE | W43: TRUE | X43: 22.01 | Y43: 22.42 | Z43: 22.46 | AA43: 22.11 | AB43: 22.47 | AC43: 22.29 | AD43: 23.05 | AE43: 22.47 | AF43: 22.57 | AG43: 22.47 | AH43: 22.08 | AI43: 22.53 | AJ43: TRUE | AK43: 0.3762 | AL43: 0.23 | AM43: 1.18
A44: Q86T03 | B44: PIP4P1 | C44: PIP4P1 C14orf9 TMEM55B | D44: Type 1 phosphatidylinositol 4,5-bisphosphate 4-phosphatase (Type 1 PtdIns-4,5-P2 4-Ptase) (EC 3.1.3.78) (PtdIns-4,5-P2 4-Ptase I) (Transmembrane protein 55B) | E44: 3 | F44: 20.16 | G44: 20.02 | H44: 18.84 | I44: 20.24 | J44: 19.77 | K44: 19.81 | L44: 21.33 | M44: 20.98 | N44: 21.21 | O44: 21.45 | P44: 20.84 | Q44: 21.16 | R44: TRUE | S44: 0.0062 | T44: 1.36 | U44: 2.56 | V44: TRUE | W44: TRUE | X44: 18.24 | Y44: 18.34 | Z44: 19.25 | AA44: 17.65 | AB44: 18.85 | AC44: 18.47 | AD44: 19.90 | AE44: 18.66 | AF44: 17.58 | AG44: 18.61 | AH44: 18.74 | AI44: 18.70 | AK44: 0.7023 | AL44: 0.23 | AM44: 1.17 | AP44: TRUE | AQ44: TRUE | AR44: TRUE
A45: P16144 | B45: ITGB4 | C45: ITGB4 | D45: Integrin beta-4 (GP150) (CD antigen CD104) | E45: 10 | F45: 20.58 | G45: 20.51 | H45: 20.78 | I45: 20.64 | J45: 18.81 | K45: 20.26 | L45: 21.05 | M45: 20.72 | N45: 21.74 | O45: 21.67 | P45: 19.59 | Q45: 20.96 | R45: TRUE | S45: 0.0107 | T45: 0.69 | U45: 1.61 | V45: TRUE | W45: TRUE | X45: 18.49 | Y45: 21.11 | Z45: 18.49 | AA45: 18.25 | AB45: 18.51 | AC45: 18.97 | AD45: 19.21 | AE45: 20.90 | AF45: 18.81 | AG45: 18.40 | AH45: 18.68 | AI45: 19.20 | AJ45: TRUE | AK45: 0.2025 | AL45: 0.23 | AM45: 1.17
A46: Q9BTU6 | B46: PI4K2A | C46: PI4K2A | D46: Phosphatidylinositol 4-kinase type 2-alpha (EC 2.7.1.67) (Phosphatidylinositol 4-kinase type II-alpha) | E46: 5 | F46: 19.69 | G46: 19.71 | H46: 20.13 | I46: 19.65 | J46: 20.17 | K46: 19.87 | L46: 21.51 | M46: 20.48 | N46: 20.54 | O46: 21.37 | P46: 20.90 | Q46: 20.96 | R46: TRUE | S46: 0.0191 | T46: 1.09 | U46: 2.12 | V46: TRUE | W46: TRUE | X46: 19.02 | Y46: 18.27 | Z46: 19.05 | AA46: 17.87 | AB46: 18.97 | AC46: 18.64 | AD46: 19.05 | AE46: 19.23 | AF46: 17.99 | AG46: 18.38 | AH46: 19.35 | AI46: 18.80 | AK46: 0.6555 | AL46: 0.16 | AM46: 1.12 | AQ46: TRUE | AR46: TRUE
A47: Q7L523 | B47: RRAGA | C47: RRAGA | D47: Ras-related GTP-binding protein A (Rag A) (RagA) (Adenovirus E3 14.7 kDa-interacting protein 1) (FIP-1) | E47: 3 | F47: 19.17 | G47: 20.50 | H47: 20.00 | I47: 21.05 | J47: 21.19 | K47: 20.38 | L47: 22.07 | M47: 22.17 | N47: 22.04 | O47: 22.85 | P47: 22.17 | Q47: 22.26 | R47: TRUE | S47: 0.0038 | T47: 1.87 | U47: 3.67 | V47: TRUE | W47: TRUE | X47: 18.06 | Y47: 20.00 | Z47: 19.18 | AA47: 19.31 | AB47: 19.05 | AC47: 19.12 | AD47: 20.81 | AE47: 19.97 | AF47: 19.54 | AG47: 17.65 | AH47: 18.37 | AI47: 19.27 | AK47: 0.8512 | AL47: 0.15 | AM47: 1.11 | AP47: TRUE | AQ47: TRUE | AR47: TRUE
A48: P05107 | B48: ITGB2 | C48: ITGB2 CD18 MFI7 | D48: Integrin beta-2 (Cell surface adhesion glycoproteins LFA-1/CR3/p150,95 subunit beta) (Complement receptor C3 subunit beta) (CD antigen CD18) | E48: 5 | F48: 20.01 | G48: 20.18 | H48: 20.15 | I48: 20.59 | J48: 19.80 | K48: 20.15 | L48: 22.50 | M48: 22.49 | N48: 23.01 | O48: 23.11 | P48: 19.99 | Q48: 22.22 | R48: TRUE | S48: 0.0126 | T48: 2.07 | U48: 4.21 | V48: TRUE | W48: TRUE | X48: 17.66 | Y48: 19.26 | Z48: 18.12 | AA48: 18.21 | AB48: 18.72 | AC48: 18.39 | AD48: 19.59 | AE48: 18.95 | AF48: 18.08 | AG48: 18.24 | AH48: 17.68 | AI48: 18.51 | AK48: 0.8300 | AL48: 0.11 | AM48: 1.08 | AR48: TRUE
A49: Q15631 | B49: TSN | C49: TSN | D49: Translin (EC 3.1.-.-) (Component 3 of promoter of RISC) (C3PO) | E49: 3 | F49: 18.31 | G49: 20.71 | H49: 19.27 | I49: 21.01 | J49: 20.60 | K49: 19.98 | L49: 21.30 | M49: 21.82 | N49: 21.18 | O49: 21.21 | P49: 21.44 | Q49: 21.39 | R49: TRUE | S49: 0.0428 | T49: 1.41 | U49: 2.66 | V49: TRUE | W49: TRUE | X49: 20.39 | Y49: 21.55 | Z49: 20.58 | AA49: 20.63 | AB49: 20.36 | AC49: 20.70 | AD49: 21.13 | AE49: 20.88 | AF49: 21.09 | AG49: 20.53 | AH49: 20.21 | AI49: 20.77 | AJ49: TRUE | AK49: 0.8125 | AL49: 0.06 | AM49: 1.05
A50: Q9Y6W5 | B50: WASF2 | C50: WASF2 WAVE2 | D50: Wiskott-Aldrich syndrome protein family member 2 (WASP family protein member 2) (Protein WAVE-2) (Verprolin homology domain-containing protein 2) | E50: 2 | F50: 19.95 | G50: 20.54 | H50: 19.24 | I50: 20.13 | J50: 18.80 | K50: 19.73 | L50: 21.17 | M50: 20.37 | N50: 20.27 | O50: 21.37 | P50: 19.83 | Q50: 20.60 | R50: TRUE | S50: 0.0300 | T50: 0.87 | U50: 1.83 | V50: TRUE | W50: TRUE | X50: 18.00 | Y50: 18.08 | Z50: 18.16 | AA50: 19.06 | AB50: 18.35 | AC50: 18.33 | AD50: 18.69 | AE50: 18.55 | AF50: 18.39 | AG50: 17.99 | AH50: 18.10 | AI50: 18.35 | AJ50: TRUE | AK50: 0.9641 | AL50: 0.01 | AM50: 1.01 | AQ50: TRUE | AR50: TRUE
A51: O00182 | B51: LGALS9 | C51: LGALS9 | D51: Galectin-9 (Gal-9) (Ecalectin) (Tumor antigen HOM-HD-21) | E51: 3 | F51: 19.48 | G51: 20.58 | H51: 20.06 | I51: 19.85 | J51: 18.47 | K51: 19.69 | L51: 21.38 | M51: 21.68 | N51: 21.69 | O51: 22.22 | P51: 19.44 | Q51: 21.28 | R51: TRUE | S51: 0.0035 | T51: 1.59 | U51: 3.02 | V51: TRUE | W51: TRUE | X51: 20.02 | Y51: 18.99 | Z51: 19.10 | AA51: 17.75 | AB51: 17.78 | AC51: 18.73 | AD51: 17.73 | AE51: 17.87 | AF51: 19.39 | AG51: 18.83 | AH51: 19.60 | AI51: 18.69 | AK51: 0.9573 | AL51: -0.04 | AM51: 0.97
A52: P51693 | B52: APLP1 | C52: APLP1 | D52: Amyloid-like protein 1 (APLP) (APLP-1) [Cleaved into: C30] | E52: 7 | F52: 19.68 | G52: 20.00 | H52: 21.35 | I52: 21.10 | J52: 21.05 | K52: 20.64 | L52: 23.68 | M52: 22.03 | N52: 22.38 | O52: 23.38 | P52: 22.73 | Q52: 22.84 | R52: TRUE | S52: 0.0112 | T52: 2.20 | U52: 4.60 | V52: TRUE | W52: TRUE | X52: 18.45 | Y52: 18.86 | Z52: 18.76 | AA52: 19.91 | AB52: 19.36 | AC52: 19.07 | AD52: 17.53 | AE52: 18.68 | AF52: 21.09 | AG52: 20.20 | AH52: 17.58 | AI52: 19.02 | AK52: 0.9447 | AL52: -0.05 | AM52: 0.97
A53: Q9BQT9 | B53: CLSTN3 | C53: CLSTN3 CS3 KIAA0726 | D53: Calsyntenin-3 (Alcadein-beta) (Alc-beta) | E53: 6 | F53: 18.91 | G53: 19.68 | H53: 20.06 | I53: 19.81 | J53: 18.85 | K53: 19.46 | L53: 21.52 | M53: 20.73 | N53: 20.48 | O53: 22.12 | P53: 19.61 | Q53: 20.89 | R53: TRUE | S53: 0.0304 | T53: 1.43 | U53: 2.69 | V53: TRUE | W53: TRUE | X53: 16.40 | Y53: 19.30 | Z53: 17.59 | AA53: 18.92 | AB53: 19.02 | AC53: 18.24 | AD53: 19.55 | AE53: 17.16 | AF53: 16.96 | AG53: 18.49 | AH53: 18.72 | AI53: 18.18 | AK53: 0.9423 | AL53: -0.07 | AM53: 0.95
A54: Q9NRX5 | B54: SERINC1 | C54: SERINC1 KIAA1253 TDE1L TDE2 UNQ396/PRO732 | D54: Serine incorporator 1 (Tumor differentially expressed protein 1-like) (Tumor differentially expressed protein 2) | E54: 2 | F54: 19.74 | G54: 20.94 | H54: 18.61 | I54: 18.92 | J54: 19.86 | K54: 19.61 | L54: 20.98 | M54: 21.06 | N54: 20.83 | O54: 21.39 | P54: 20.60 | Q54: 20.97 | R54: TRUE | S54: 0.0369 | T54: 1.36 | U54: 2.57 | V54: TRUE | W54: TRUE | X54: 17.50 | Y54: 18.29 | Z54: 19.52 | AA54: 19.38 | AB54: 17.33 | AC54: 18.40 | AD54: 17.91 | AE54: 18.72 | AF54: 18.65 | AG54: 17.47 | AH54: 18.92 | AI54: 18.33 | AK54: 0.9155 | AL54: -0.07 | AM54: 0.95
A55: Q99878 | B55: H2AC14 | C55: H2AC14 H2AFE HIST1H2AJ | D55: Histone H2A type 1-J (Histone H2A/e) | E55: 6 | F55: 24.20 | G55: 23.75 | H55: 24.37 | I55: 24.07 | J55: 22.96 | K55: 23.87 | L55: 25.01 | M55: 24.58 | N55: 24.83 | O55: 24.94 | P55: 22.94 | Q55: 24.46 | R55: TRUE | S55: 0.0250 | T55: 0.59 | U55: 1.51 | V55: TRUE | W55: TRUE | X55: 22.90 | Y55: 24.21 | Z55: 22.98 | AA55: 22.58 | AB55: 22.50 | AC55: 23.03 | AD55: 23.23 | AE55: 23.12 | AF55: 22.96 | AG55: 22.62 | AH55: 22.90 | AI55: 22.96 | AJ55: TRUE | AK55: 0.8085 | AL55: -0.07 | AM55: 0.95
A56: P17948 | B56: FLT1 | C56: FLT1 FLT FRT VEGFR1 | D56: Vascular endothelial growth factor receptor 1 (VEGFR-1) (EC 2.7.10.1) (Fms-like tyrosine kinase 1) (FLT-1) (Tyrosine-protein kinase FRT) (Tyrosine-protein kinase receptor FLT) (FLT) (Vascular permeability factor receptor) | E56: 4 | F56: 20.42 | G56: 19.60 | H56: 19.68 | I56: 19.14 | J56: 20.52 | K56: 19.87 | L56: 21.25 | M56: 20.21 | N56: 21.05 | O56: 20.75 | P56: 20.44 | Q56: 20.74 | R56: TRUE | S56: 0.0432 | T56: 0.87 | U56: 1.83 | V56: TRUE | W56: TRUE | X56: 18.93 | Y56: 19.15 | Z56: 18.92 | AA56: 19.01 | AB56: 18.51 | AC56: 18.90 | AD56: 18.09 | AE56: 19.28 | AF56: 18.74 | AG56: 18.89 | AH56: 19.08 | AI56: 18.81 | AJ56: TRUE | AK56: 0.7207 | AL56: -0.09 | AM56: 0.94 | AQ56: TRUE | AR56: TRUE
A57: Q9NUM4 | B57: TMEM106B | C57: TMEM106B | D57: Transmembrane protein 106B | E57: 2 | F57: 18.88 | G57: 20.10 | H57: 19.45 | I57: 19.09 | J57: 18.59 | K57: 19.22 | L57: 20.05 | M57: 20.68 | N57: 19.58 | O57: 20.39 | P57: 20.44 | Q57: 20.23 | R57: TRUE | S57: 0.0278 | T57: 1.01 | U57: 2.01 | V57: TRUE | W57: TRUE | X57: 18.14 | Y57: 18.07 | Z57: 19.60 | AA57: 17.87 | AB57: 18.86 | AC57: 18.51 | AD57: 18.19 | AE57: 17.57 | AF57: 18.21 | AG57: 18.49 | AH57: 19.61 | AI57: 18.41 | AK57: 0.8198 | AL57: -0.10 | AM57: 0.94 | AP57: TRUE | AQ57: TRUE | AR57: TRUE
A58: P08603 | B58: CFH | C58: CFH HF HF1 HF2 | D58: Complement factor H (H factor 1) | E58: 4 | F58: 19.69 | G58: 21.00 | H58: 19.87 | I58: 18.84 | J58: 19.29 | K58: 19.74 | L58: 21.35 | M58: 21.38 | N58: 23.02 | O58: 21.06 | P58: 20.96 | Q58: 21.55 | R58: TRUE | S58: 0.0158 | T58: 1.81 | U58: 3.52 | V58: TRUE | W58: TRUE | X58: 20.35 | Y58: 19.81 | Z58: 17.74 | AA58: 17.82 | AB58: 18.03 | AC58: 18.75 | AD58: 18.52 | AE58: 18.06 | AF58: 18.28 | AG58: 17.34 | AH58: 20.75 | AI58: 18.59 | AK58: 0.8575 | AL58: -0.16 | AM58: 0.89
A59: Q9NQX7 | B59: ITM2C | C59: ITM2C BRI3 hucep-14 NPD018 PSEC0047 | D59: Integral membrane protein 2C (Cerebral protein 14) (Transmembrane protein BRI3) [Cleaved into: CT-BRI3] | E59: 4 | F59: 21.14 | G59: 18.60 | H59: 20.55 | I59: 19.56 | J59: 18.47 | K59: 19.67 | L59: 22.02 | M59: 21.41 | N59: 21.33 | O59: 22.01 | P59: 19.09 | Q59: 21.17 | R59: TRUE | S59: 0.0315 | T59: 1.51 | U59: 2.84 | V59: TRUE | W59: TRUE | X59: 18.32 | Y59: 17.11 | Z59: 18.89 | AA59: 18.44 | AB59: 18.84 | AC59: 18.32 | AD59: 18.37 | AE59: 17.27 | AF59: 17.25 | AG59: 18.34 | AH59: 19.49 | AI59: 18.14 | AK59: 0.6734 | AL59: -0.18 | AM59: 0.89 | AP59: TRUE
A60: Q8TAT6 | B60: NPLOC4 | C60: NPLOC4 KIAA1499 NPL4 | D60: Nuclear protein localization protein 4 homolog (Protein NPL4) | E60: 3 | F60: 20.24 | G60: 20.24 | H60: 19.31 | I60: 19.65 | J60: 18.53 | K60: 19.59 | L60: 20.38 | M60: 20.45 | N60: 20.08 | O60: 20.40 | P60: 19.67 | Q60: 20.20 | R60: TRUE | S60: 0.0315 | T60: 0.60 | U60: 1.52 | V60: TRUE | W60: TRUE | X60: 18.96 | Y60: 17.81 | Z60: 19.16 | AA60: 19.64 | AB60: 19.89 | AC60: 19.09 | AD60: 19.96 | AE60: 16.52 | AF60: 18.36 | AG60: 19.75 | AH60: 19.85 | AI60: 18.89 | AK60: 0.6299 | AL60: -0.21 | AM60: 0.87
A61: Q9H3N1 | B61: TMX1 | C61: TMX1 TMX TXNDC TXNDC1 PSEC0085 UNQ235/PRO268 | D61: Thioredoxin-related transmembrane protein 1 (Thioredoxin domain-containing protein 1) (Transmembrane Trx-related protein) | E61: 2 | F61: 18.82 | G61: 19.53 | H61: 19.80 | I61: 21.46 | J61: 18.35 | K61: 19.59 | L61: 19.10 | M61: 21.49 | N61: 21.53 | O61: 21.77 | P61: 20.16 | Q61: 20.81 | R61: TRUE | S61: 0.0323 | T61: 1.22 | U61: 2.33 | V61: TRUE | W61: TRUE | X61: 19.95 | Y61: 20.10 | Z61: 18.73 | AA61: 18.84 | AB61: 19.78 | AC61: 19.48 | AD61: 19.89 | AE61: 20.38 | AF61: 18.45 | AG61: 18.95 | AH61: 18.46 | AI61: 19.23 | AJ61: TRUE | AK61: 0.4179 | AL61: -0.25 | AM61: 0.84
A62: P11117 | B62: ACP2 | C62: ACP2 | D62: Lysosomal acid phosphatase (LAP) (EC 3.1.3.2) | E62: 4 | F62: 20.03 | G62: 19.97 | H62: 19.56 | I62: 19.13 | J62: 19.87 | K62: 19.71 | L62: 22.25 | M62: 21.80 | N62: 21.49 | O62: 22.25 | P62: 21.34 | Q62: 21.83 | R62: TRUE | S62: 0.0016 | T62: 2.12 | U62: 4.33 | V62: TRUE | W62: TRUE | X62: 19.10 | Y62: 18.19 | Z62: 18.99 | AA62: 18.69 | AB62: 19.69 | AC62: 18.93 | AD62: 18.17 | AE62: 17.78 | AF62: 18.36 | AG62: 19.15 | AH62: 19.36 | AI62: 18.57 | AK62: 0.1871 | AL62: -0.37 | AM62: 0.78 | AP62: TRUE
A63: P02647 | B63: APOA1 | C63: APOA1 | D63: Apolipoprotein A-I (Apo-AI) (ApoA-I) (Apolipoprotein A1) [Cleaved into: Proapolipoprotein A-I (ProapoA-I); Truncated apolipoprotein A-I (Apolipoprotein A-I(1-242))] | E63: 8 | F63: 21.38 | G63: 20.98 | H63: 20.75 | I63: 21.79 | J63: 20.02 | K63: 20.98 | L63: 22.96 | M63: 21.15 | N63: 22.52 | O63: 22.51 | P63: 20.68 | Q63: 21.97 | R63: TRUE | S63: 0.0314 | T63: 0.98 | U63: 1.98 | V63: TRUE | W63: TRUE | X63: 20.57 | Y63: 17.24 | Z63: 20.46 | AA63: 20.29 | AB63: 20.49 | AC63: 19.81 | AD63: 18.42 | AE63: 17.42 | AF63: 20.66 | AG63: 20.15 | AH63: 20.43 | AI63: 19.41 | AJ63: TRUE | AK63: 0.4228 | AL63: -0.40 | AM63: 0.76 | AQ63: TRUE | AR63: TRUE
A64: P12111 | B64: COL6A3 | C64: COL6A3 | D64: Collagen alpha-3(VI) chain | E64: 7 | F64: 19.25 | G64: 19.92 | H64: 21.78 | I64: 19.74 | J64: 19.32 | K64: 20.00 | L64: 21.45 | M64: 21.99 | N64: 22.03 | O64: 22.20 | P64: 20.44 | Q64: 21.62 | R64: TRUE | S64: 0.0167 | T64: 1.62 | U64: 3.07 | V64: TRUE | W64: TRUE | X64: 21.00 | Y64: 20.75 | Z64: 21.01 | AA64: 21.23 | AB64: 19.08 | AC64: 20.61 | AD64: 18.83 | AE64: 21.12 | AF64: 18.59 | AG64: 21.36 | AH64: 20.69 | AI64: 20.12 | AJ64: TRUE | AK64: 0.5572 | AL64: -0.50 | AM64: 0.71

Sheet Table 6 - Chr21 proteins
A1: Supplementary Table 6 - Chromosome 21 proteins identified in our proteomic analysis
A2: Proteins identified in our study with genes on chromosome 21.
F4: Down Syndrome Plaque vs Non-Plaque | X4: EOAD Plaque vs Non-Plaque
A5: Uniprot ID | B5: Majority Gene ID | C5: All Gene IDs | D5: Name | E5: Peptides | F5: DS_np_01 | G5: DS_np_02 | H5: DS_np_03 | I5: DS_np_04 | J5: DS_np_05 | K5: Average intensity in DS_NP | L5: DS_p_01 | M5: DS_p_02 | N5: DS_p_03 | O5: DS_p_04 | P5: DS_p_05 | Q5: Average intensity in DS_P | R5: In at least 3 cases/group | S5: pValue_DS | T5: Difference_DS | U5: Fold change_DS | V5: Significant_DS | W5: Significantly enriched in DS plaques | X5: eoAD_np_01 | Y5: eoAD_np_02 | Z5: eoAD_np_03 | AA5: eoAD_np_04 | AB5: eoAD_np_05 | AC5: Average intensity in EOAD_NP | AD5: eoAD_p_01 | AE5: eoAD_p_02 | AF5: eoAD_p_03 | AG5: eoAD_p_04 | AH5: eoAD_p_05 | AI5: Average intensity in EOAD_P | AJ5: In at least 3 cases/group | AK5: pValue_eoAD | AL5: Difference_eoAD | AM5: Fold change_EOAD | AN5: Significant_eoAD | AO5: Significantly enriched in EOAD plaques | AP5: Chr21 protein
A6: P05067 | B6: APP | C6: APP A4 AD1 | D6: Amyloid-beta precursor protein (APP) (ABPP) (APPI) (Alzheimer disease amyloid protein) (Amyloid precursor protein) (Amyloid-beta A4 protein) (Cerebral vascular amyloid peptide) (CVAP) (PreA4) (Protease nexin-II) (PN-II) [Cleaved into: N-APP; Soluble APP-alpha (S-APP-alpha); Soluble APP-beta (S-APP-beta); C99 (Beta-secretase C-terminal fragment) (Beta-CTF); Amyloid-beta protein 42 (Abeta42) (Beta-APP42); Amyloid-beta protein 40 (Abeta40) (Beta-APP40); C83 (Alpha-secretase C-terminal fragment) (Alpha-CTF); P3(42); P3(40); C80; Gamma-secretase C-terminal fragment 59 (Amyloid intracellular domain 59) (AICD-59) (AID(59)) (Gamma-CTF(59)); Gamma-secretase C-terminal fragment 57 (Amyloid intracellular domain 57) (AICD-57) (AID(57)) (Gamma-CTF(57)); Gamma-secretase C-terminal fragment 50 (Amyloid intracellular domain 50) (AICD-50) (AID(50)) (Gamma-CTF(50)); C31] | E6: 16 | F6: 26.99 | G6: 27.32 | H6: 25.14 | I6: 27.50 | J6: 27.17 | K6: =AVERAGE(F6:J6) -> 26.82 | L6: 29.43 | M6: 29.19 | N6: 28.97 | O6: 29.65 | P6: 29.70 | Q6: =AVERAGE(L6:P6) -> 29.39 | R6: TRUE | S6: 0.0016 | T6: 2.56 | U6: =2^T6 -> 5.90 | V6: TRUE | W6: TRUE | X6: 27.39 | Y6: 26.89 | Z6: 27.20 | AA6: 26.02 | AB6: 27.17 | AC6: =AVERAGE(X6:AB6) -> 26.93 | AD6: 29.31 | AE6: 27.87 | AF6: 28.57 | AG6: 28.27 | AH6: 28.01 | AI6: =AVERAGE(AD6:AH6) -> 28.40 | AJ6: TRUE | AK6: 0.0055 | AL6: 1.47 | AM6: =2^AL6 -> 2.78 | AN6: TRUE | AO6: TRUE | AP6: TRUE
A7: P05107 | B7: ITGB2 | C7: ITGB2 CD18 MFI7 | D7: Integrin beta-2 (Cell surface adhesion glycoproteins LFA-1/CR3/p150,95 subunit beta) (Complement receptor C3 subunit beta) (CD antigen CD18) | E7: 5 | F7: 20.01 | G7: 20.18 | H7: 20.15 | I7: 20.59 | J7: 19.80 | K7: 20.15 | L7: 22.50 | M7: 22.49 | N7: 23.01 | O7: 23.11 | P7: 19.99 | Q7: 22.22 | R7: TRUE | S7: 0.0126 | T7: 2.07 | U7: 4.21 | V7: TRUE | W7: TRUE | X7: 17.66 | Y7: 19.26 | Z7: 18.12 | AA7: 18.21 | AB7: 18.72 | AC7: 18.39 | AD7: 19.59 | AE7: 18.95 | AF7: 18.08 | AG7: 18.24 | AH7: 17.68 | AI7: 18.51 | AK7: 0.8300 | AL7: 0.11 | AM7: 1.08 | AP7: TRUE
A8: P39060 | B8: COL18A1 | C8: COL18A1 | D8: Collagen alpha-1(XVIII) chain [Cleaved into: Endostatin; Non-collagenous domain 1 (NC1)] | E8: 6 | F8: 21.43 | G8: 20.98 | H8: 21.47 | I8: 20.88 | J8: 21.26 | K8: 21.20 | L8: 22.13 | M8: 22.35 | N8: 23.06 | O8: 21.97 | P8: 22.20 | Q8: 22.34 | R8: TRUE | S8: 0.0020 | T8: 1.14 | U8: 2.20 | V8: TRUE | W8: TRUE | X8: 19.61 | Y8: 20.42 | Z8: 17.89 | AA8: 19.81 | AB8: 19.23 | AC8: 19.39 | AD8: 18.27 | AE8: 20.22 | AF8: 19.85 | AG8: 20.47 | AH8: 19.63 | AI8: 19.69 | AJ8: TRUE | AK8: 0.6113 | AL8: 0.30 | AM8: 1.23 | AP8: TRUE
A9: P04271 | B9: S100B | C9: S100B | D9: Protein S100-B (S-100 protein beta chain) (S-100 protein subunit beta) (S100 calcium-binding protein B) | E9: 1 | F9: 24.49 | G9: 19.82 | H9: 23.96 | I9: 23.09 | J9: 23.34 | K9: 22.94 | L9: 24.72 | M9: 23.73 | N9: 23.39 | O9: 24.77 | P9: 22.85 | Q9: 23.89 | R9: TRUE | S9: 0.3215 | T9: 0.95 | U9: 1.93 | X9: 21.76 | Y9: 24.71 | Z9: 21.38 | AA9: 20.92 | AB9: 22.28 | AC9: 22.21 | AD9: 22.76 | AE9: 24.22 | AF9: 22.22 | AG9: 21.68 | AH9: 22.93 | AI9: 22.76 | AJ9: TRUE | AK9: 0.1075 | AL9: 0.55 | AM9: 1.46 | AP9: TRUE
A10: P48539 | B10: PCP4 | C10: PCP4 PEP19 | D10: Calmodulin regulator protein PCP4 (Brain-specific polypeptide PEP-19) (Purkinje cell protein 4) | E10: 2 | F10: 22.07 | G10: 22.08 | H10: 18.25 | I10: 23.88 | J10: 19.88 | K10: 21.23 | L10: 21.96 | M10: 21.99 | N10: 21.89 | O10: 22.29 | P10: 22.11 | Q10: 22.05 | R10: TRUE | S10: 0.4309 | T10: 0.82 | U10: 1.76 | X10: 17.85 | Y10: 18.65 | Z10: 19.33 | AA10: 17.79 | AB10: 19.13 | AC10: 18.55 | AD10: 18.66 | AE10: 17.62 | AF10: 19.45 | AG10: 17.84 | AH10: 20.66 | AI10: 18.85 | AK10: 0.5281 | AL10: 0.29 | AM10: 1.23 | AP10: TRUE
A11: P0DPI2 | B11: GATD3A | C11: GATD3A C21orf33 | D11: Glutamine amidotransferase-like class 1 domain-containing protein 3A, mitochondrial | E11: 9 | F11: 25.71 | G11: 23.94 | H11: 24.85 | I11: 25.27 | J11: 25.34 | K11: 25.02 | L11: 25.52 | M11: 25.33 | N11: 25.34 | O11: 25.55 | P11: 25.48 | Q11: 25.45 | R11: TRUE | S11: 0.1860 | T11: 0.42 | U11: 1.34 | X11: 23.83 | Y11: 23.63 | Z11: 23.56 | AA11: 23.87 | AB11: 23.66 | AC11: 23.71 | AD11: 23.70 | AE11: 23.74 | AF11: 23.78 | AG11: 24.12 | AH11: 23.80 | AI11: 23.83 | AJ11: TRUE | AK11: 0.1502 | AL11: 0.12 | AM11: 1.09 | AP11: TRUE
A12: P04080 | B12: CSTB | C12: CSTB CST6 STFB | D12: Cystatin-B (CPI-B) (Liver thiol proteinase inhibitor) (Stefin-B) | E12: 5 | F12: 24.10 | G12: 24.10 | H12: 23.99 | I12: 24.02 | J12: 23.65 | K12: 23.97 | L12: 25.33 | M12: 24.43 | N12: 24.11 | O12: 23.78 | P12: 24.19 | Q12: 24.37 | R12: TRUE | S12: 0.1814 | T12: 0.39 | U12: 1.31 | X12: 23.25 | Y12: 23.75 | Z12: 22.91 | AA12: 23.20 | AB12: 23.08 | AC12: 23.24 | AD12: 23.84 | AE12: 23.44 | AF12: 23.11 | AG12: 22.64 | AH12: 23.33 | AI12: 23.27 | AJ12: TRUE | AK12: 0.8730 | AL12: 0.04 | AM12: 1.02 | AP12: TRUE
A13: P00441 | B13: SOD1 | C13: SOD1 | D13: Superoxide dismutase [Cu-Zn] (EC 1.15.1.1) (Superoxide dismutase 1) (hSod1) | E13: 9 | F13: 24.77 | G13: 24.63 | H13: 24.71 | I13: 24.36 | J13: 26.53 | K13: 25.00 | L13: 25.11 | M13: 24.92 | N13: 25.14 | O13: 24.83 | P13: 26.60 | Q13: 25.32 | R13: TRUE | S13: 0.0103 | T13: 0.32 | U13: 1.25 | X13: 24.82 | Y13: 24.04 | Z13: 24.83 | AA13: 23.97 | AB13: 23.80 | AC13: 24.29 | AD13: 25.27 | AE13: 24.41 | AF13: 25.06 | AG13: 24.18 | AH13: 23.98 | AI13: 24.58 | AJ13: TRUE | AK13: 0.0052 | AL13: 0.29 | AM13: 1.22 | AP13: TRUE
A14: P20591 | B14: MX1 | C14: MX1 | D14: Interferon-induced GTP-binding protein Mx1 (Interferon-induced protein p78) (IFI-78K) (Interferon-regulated resistance GTP-binding protein MxA) (Myxoma resistance protein 1) (Myxovirus resistance protein 1) [Cleaved into: Interferon-induced GTP-binding protein Mx1, N-terminally processed] | E14: 8 | F14: 21.55 | G14: 19.85 | H14: 22.95 | I14: 20.39 | J14: 19.57 | K14: 20.86 | L14: 21.68 | M14: 19.56 | N14: 22.83 | O14: 21.74 | P14: 19.64 | Q14: 21.09 | R14: TRUE | S14: 0.4768 | T14: 0.23 | U14: 1.17 | X14: 17.81 | Y14: 18.32 | Z14: 18.51 | AA14: 18.30 | AB14: 17.54 | AC14: 18.09 | AD14: 19.54 | AE14: 18.38 | AF14: 18.45 | AG14: 17.88 | AH14: 17.53 | AI14: 18.36 | AK14: 0.5245 | AL14: 0.26 | AM14: 1.20 | AP14: TRUE
A15: P0DN79 | B15: CBSL | C15: CBSL | D15: Cystathionine beta-synthase-like protein (EC 4.2.1.22) (Beta-thionase) (Serine sulfhydrase) | E15: 4 | F15: 22.06 | G15: 23.08 | H15: 22.47 | I15: 22.19 | J15: 22.82 | K15: 22.52 | L15: 22.08 | M15: 22.69 | N15: 22.50 | O15: 23.52 | P15: 22.83 | Q15: 22.72 | R15: TRUE | S15: 0.5304 | T15: 0.20 | U15: 1.15 | X15: 21.44 | Y15: 21.77 | Z15: 21.07 | AA15: 20.27 | AB15: 21.08 | AC15: 21.13 | AD15: 20.88 | AE15: 21.36 | AF15: 18.58 | AG15: 20.28 | AH15: 20.54 | AI15: 20.33 | AJ15: TRUE | AK15: 0.1407 | AL15: -0.80 | AM15: 0.57 | AP15: TRUE
A16: P78310 | B16: CXADR | C16: CXADR CAR | D16: Coxsackievirus and adenovirus receptor (CAR) (hCAR) (CVB3-binding protein) (Coxsackievirus B-adenovirus receptor) (HCVADR) | E16: 4 | F16: 21.64 | G16: 22.60 | H16: 19.33 | I16: 22.20 | J16: 22.10 | K16: 21.57 | L16: 20.36 | M16: 22.08 | N16: 22.16 | O16: 22.40 | P16: 21.56 | Q16: 21.71 | R16: TRUE | S16: 0.8578 | T16: 0.14 | U16: 1.10 | X16: 20.58 | Y16: 19.75 | Z16: 19.04 | AA16: 19.84 | AB16: 18.37 | AC16: 19.52 | AD16: 18.06 | AE16: 19.75 | AF16: 18.10 | AG16: 18.78 | AH16: 17.90 | AI16: 18.52 | AK16: 0.0774 | AL16: -1.00 | AM16: 0.50 | AP16: TRUE
A17: P53805 | B17: RCAN1 | C17: RCAN1 ADAPT78 CSP1 DSC1 DSCR1 | D17: Calcipressin-1 (Adapt78) (Down syndrome critical region protein 1) (Myocyte-enriched calcineurin-interacting protein 1) (MCIP1) (Regulator of calcineurin 1) | E17: 2 | F17: 19.51 | G17: 19.60 | H17: 20.41 | I17: 20.56 | J17: 19.02 | K17: 19.82 | L17: 19.67 | M17: 19.79 | N17: 19.84 | O17: 20.03 | P17: 19.92 | Q17: 19.85 | R17: TRUE | S17: 0.9144 | T17: 0.03 | U17: 1.02 | X17: 17.96 | Y17: 18.40 | Z17: 18.40 | AA17: 18.59 | AB17: 17.72 | AC17: 18.21 | AD17: 19.26 | AE17: 18.45 | AF17: 17.94 | AG17: 18.71 | AH17: 20.27 | AI17: 18.93 | AK17: 0.2583 | AL17: 0.71 | AM17: 1.64 | AP17: TRUE
A18: O00764 | B18: PDXK | C18: PDXK C21orf124 C21orf97 PKH PNK PRED79 | D18: Pyridoxal kinase (EC 2.7.1.35) (Pyridoxine kinase) | E18: 12 | F18: 25.91 | G18: 26.01 | H18: 25.53 | I18: 25.90 | J18: 25.45 | K18: 25.76 | L18: 25.87 | M18: 25.78 | N18: 25.82 | O18: 25.91 | P18: 25.45 | Q18: 25.77 | R18: TRUE | S18: 0.9489 | T18: 0.01 | U18: 1.00 | X18: 23.98 | Y18: 23.70 | Z18: 23.50 | AA18: 24.30 | AB18: 23.73 | AC18: 23.84 | AD18: 24.35 | AE18: 24.22 | AF18: 23.36 | AG18: 23.88 | AH18: 24.13 | AI18: 23.99 | AJ18: TRUE | AK18: 0.4764 | AL18: 0.14 | AM18: 1.10 | AP18: TRUE
A19: P17858 | B19: PFKL | C19: PFKL | D19: ATP-dependent 6-phosphofructokinase, liver type (ATP-PFK) (PFK-L) (EC 2.7.1.11) (6-phosphofructokinase type B) (Phosphofructo-1-kinase isozyme B) (PFK-B) (Phosphohexokinase) | E19: 21 | F19: 25.07 | G19: 24.98 | H19: 24.78 | I19: 24.85 | J19: 25.28 | K19: 24.99 | L19: 25.12 | M19: 25.05 | N19: 24.80 | O19: 25.04 | P19: 24.59 | Q19: 24.92 | R19: TRUE | S19: 0.6673 | T19: -0.07 | U19: 0.95 | X19: 23.03 | Y19: 23.68 | Z19: 23.03 | AA19: 23.30 | AB19: 23.55 | AC19: 23.32 | AD19: 23.51 | AE19: 23.71 | AF19: 23.09 | AG19: 23.53 | AH19: 23.39 | AI19: 23.44 | AJ19: TRUE | AK19: 0.3038 | AL19: 0.13 | AM19: 1.09 | AP19: TRUE
A20: P16152 | B20: CBR1 | C20: CBR1 CBR CRN SDR21C1 | D20: Carbonyl reductase [NADPH] 1 (EC 1.1.1.184) (15-hydroxyprostaglandin dehydrogenase [NADP(+)]) (EC 1.1.1.197) (NADPH-dependent carbonyl reductase 1) (Prostaglandin 9-ketoreductase) (Prostaglandin-E(2) 9-reductase) (EC 1.1.1.189) (Short chain dehydrogenase/reductase family 21C member 1) | E20: 15 | F20: 27.65 | G20: 27.02 | H20: 27.67 | I20: 27.20 | J20: 27.17 | K20: 27.34 | L20: 27.58 | M20: 27.20 | N20: 27.04 | O20: 27.13 | P20: 27.13 | Q20: 27.22 | R20: TRUE | S20: 0.4089 | T20: -0.12 | U20: 0.92 | X20: 25.36 | Y20: 26.55 | Z20: 25.80 | AA20: 24.86 | AB20: 25.72 | AC20: 25.66 | AD20: 25.73 | AE20: 26.21 | AF20: 25.62 | AG20: 25.24 | AH20: 25.83 | AI20: 25.72 | AJ20: TRUE | AK20: 0.6776 | AL20: 0.06 | AM20: 1.05 | AP20: TRUE
A21: P18859 | B21: ATP5PF | C21: ATP5PF ATP5A ATP5J ATPM | D21: ATP synthase-coupling factor 6, mitochondrial (ATPase subunit F6) (ATP synthase peripheral stalk subunit F6) | E21: 6 | F21: 24.24 | G21: 24.73 | H21: 23.19 | I21: 24.76 | J21: 23.14 | K21: 24.01 | L21: 23.99 | M21: 24.37 | N21: 23.67 | O21: 24.08 | P21: 23.11 | Q21: 23.84 | R21: TRUE | S21: 0.4278 | T21: -0.17 | U21: 0.89 | X21: 23.94 | Y21: 24.14 | Z21: 23.67 | AA21: 23.61 | AB21: 23.92 | AC21: 23.86 | AD21: 23.78 | AE21: 23.57 | AF21: 23.16 | AG21: 23.52 | AH21: 23.37 | AI21: 23.48 | AJ21: TRUE | AK21: 0.0225 | AL21: -0.37 | AM21: 0.77 | AP21: TRUE
A22: O43426 | B22: SYNJ1 | C22: SYNJ1 KIAA0910 | D22: Synaptojanin-1 (EC 3.1.3.36) (Synaptic inositol 1,4,5-trisphosphate 5-phosphatase 1) | E22: 42 | F22: 27.14 | G22: 27.50 | H22: 26.60 | I22: 27.37 | J22: 27.49 | K22: 27.22 | L22: 26.80 | M22: 27.24 | N22: 26.83 | O22: 26.94 | P22: 27.28 | Q22: 27.02 | R22: TRUE | S22: 0.1543 | T22: -0.20 | U22: 0.87 | X22: 26.19 | Y22: 25.60 | Z22: 25.38 | AA22: 25.78 | AB22: 25.73 | AC22: 25.73 | AD22: 25.86 | AE22: 25.28 | AF22: 25.25 | AG22: 25.50 | AH22: 25.39 | AI22: 25.45 | AJ22: TRUE | AK22: 0.0019 | AL22: -0.28 | AM22: 0.82 | AP22: TRUE
A23: P48047 | B23: ATP5PO | C23: ATP5PO ATP5O ATPO | D23: ATP synthase subunit O, mitochondrial (ATP synthase peripheral stalk subunit OSCP) (Oligomycin sensitivity conferral protein) (OSCP) | E23: 12 | F23: 26.99 | G23: 27.15 | H23: 26.19 | I23: 26.94 | J23: 27.17 | K23: 26.89 | L23: 26.46 | M23: 26.69 | N23: 26.63 | O23: 26.66 | P23: 26.95 | Q23: 26.68 | R23: TRUE | S23: 0.2875 | T23: -0.21 | U23: 0.86 | X23: 26.12 | Y23: 26.20 | Z23: 26.17 | AA23: 26.12 | AB23: 26.03 | AC23: 26.13 | AD23: 26.16 | AE23: 25.60 | AF23: 26.01 | AG23: 26.07 | AH23: 25.86 | AI23: 25.94 | AJ23: TRUE | AK23: 0.1600 | AL23: -0.19 | AM23: 0.88 | AP23: TRUE
A24: O15394 | B24: NCAM2 | C24: NCAM2 NCAM21 | D24: Neural cell adhesion molecule 2 (N-CAM-2) (NCAM-2) | E24: 25 | F24: 25.98 | G24: 26.20 | H24: 25.52 | I24: 26.06 | J24: 26.16 | K24: 25.98 | L24: 25.57 | M24: 25.78 | N24: 25.94 | O24: 25.42 | P24: 26.10 | Q24: 25.76 | R24: TRUE | S24: 0.2958 | T24: -0.22 | U24: 0.86 | X24: 24.92 | Y24: 24.38 | Z24: 24.40 | AA24: 24.29 | AB24: 24.96 | AC24: 24.59 | AD24: 24.73 | AE24: 24.32 | AF24: 24.38 | AG24: 24.12 | AH24: 24.43 | AI24: 24.39 | AJ24: TRUE | AK24: 0.0934 | AL24: -0.20 | AM24: 0.87 | AP24: TRUE
A25: P50990 | B25: CCT8 | C25: CCT8 C21orf112 CCTQ KIAA0002 | D25: T-complex protein 1 subunit theta (TCP-1-theta) (CCT-theta) (Chaperonin containing T-complex polypeptide 1 subunit 8) (Renal carcinoma antigen NY-REN-15) | E25: 22 | F25: 26.06 | G25: 26.24 | H25: 25.86 | I25: 26.08 | J25: 26.26 | K25: 26.10 | L25: 25.60 | M25: 25.87 | N25: 25.77 | O25: 25.71 | P25: 26.00 | Q25: 25.79 | R25: TRUE | S25: 0.0080 | T25: -0.31 | U25: 0.81 | X25: 24.91 | Y25: 24.79 | Z25: 24.89 | AA25: 24.69 | AB25: 24.58 | AC25: 24.77 | AD25: 24.75 | AE25: 24.85 | AF25: 24.65 | AG25: 24.76 | AH25: 24.75 | AI25: 24.75 | AJ25: TRUE | AK25: 0.8107 | AL25: -0.02 | AM25: 0.99 | AP25: TRUE
A26: P22102 | B26: GART | C26: GART PGFT PRGS | D26: Trifunctional purine biosynthetic protein adenosine-3 [Includes: Phosphoribosylamine--glycine ligase (EC 6.3.4.13) (Glycinamide ribonucleotide synthetase) (GARS) (Phosphoribosylglycinamide synthetase); Phosphoribosylformylglycinamidine cyclo-ligase (EC 6.3.3.1) (AIR synthase) (AIRS) (Phosphoribosyl-aminoimidazole synthetase); Phosphoribosylglycinamide formyltransferase (EC 2.1.2.2) (5'-phosphoribosylglycinamide transformylase) (GAR transformylase) (GART)] | E26: 5 | F26: 22.57 | G26: 22.29 | H26: 23.07 | I26: 22.09 | J26: 21.00 | K26: 22.21 | L26: 22.16 | M26: 21.89 | N26: 21.88 | O26: 21.76 | P26: 21.42 | Q26: 21.82 | R26: TRUE | S26: 0.2030 | T26: -0.39 | U26: 0.77 | X26: 18.62 | Y26: 19.76 | Z26: 18.10 | AA26: 18.62 | AB26: 19.56 | AC26: 18.93 | AD26: 18.03 | AE26: 18.05 | AF26: 18.64 | AG26: 18.89 | AH26: 18.87 | AI26: 18.49 | AK26: 0.3354 | AL26: -0.44 | AM26: 0.74 | AP26: TRUE
A27: O75828 | B27: CBR3 | C27: CBR3 | D27: Carbonyl reductase [NADPH] 3 (EC 1.1.1.184) (NADPH-dependent carbonyl reductase 3) (Short chain dehydrogenase/reductase family 21C member 2) | E27: 8 | F27: 25.36 | G27: 25.33 | H27: 25.18 | I27: 24.89 | J27: 25.09 | K27: 25.17 | L27: 25.34 | M27: 24.98 | N27: 25.62 | O27: 25.04 | P27: 19.34 | Q27: 24.06 | R27: TRUE | S27: 0.3978 | T27: -1.10 | U27: 0.46 | X27: 17.51 | Y27: 19.79 | Z27: 18.71 | AA27: 17.98 | AB27: 18.66 | AC27: 18.53 | AD27: 17.68 | AE27: 23.99 | AF27: 19.07 | AG27: 23.34 | AH27: 23.56 | AI27: 21.53 | AJ27: TRUE | AK27: 0.0567 | AL27: 3.00 | AM27: 7.99 | AP27: TRUE

Sheet Table 7 - DS vs EOAD
A1: Supplementary Table 7 - DS vs EOAD plaque protein differences
A2: Analysis performed using the imputed LC-MS dataset of proteins present in plaques and neighboring non-plaque tissue in Down Syndrome (DS) and early onset AD (EOAD) (Supplementary Table 1). Raw intensity values were generated from Log2 Transformed LFQ Intensities and are shown here as "LFQ Intensity" values. p:np (LFQ intensity) values show the ratio for each protein in plaques:non-plaque, which is the protein abundance in plaques normalized against background levels in non-plaque tissue for each sample. plaque:non-plaque ratios were then used to perform the "DS vs EOAD plaque proteins analysis" to identify proteins that were significantly different between DS and EOAD plaques. "t-test (DS p:np vs eoAD p:np)" show the p-values after unpaired t-test. Significance was determined by p<0.05 and fold change >1.5.
F4: Down Syndrome Plaque vs Non-Plaque | AN4: EOAD Plaque vs Non-Plaque | BV4: Comparison with Previous datasets | BY4: DS vs EOAD plaque proteins analysis
A5: Uniprot ID | B5: Majority Gene ID | C5: All Gene IDs | D5: Name | E5: Peptides | F5: DS_np_01 (Log2 Transformed LFQ Intensity) | G5: DS_np_02 (Log2 Transformed LFQ Intensity) | H5: DS_np_03 (Log2 Transformed LFQ Intensity) | I5: DS_np_04 (Log2 Transformed LFQ Intensity) | J5: DS_np_05 (Log2 Transformed LFQ Intensity) | K5: DS_np_01 (LFQ intensity) | L5: DS_np_02 (LFQ intensity) | M5: DS_np_03 (LFQ intensity) | N5: DS_np_04 (LFQ intensity) | O5: DS_np_05 (LFQ intensity) | P5: Average intensity in DS_NP (LFQ Intensity) | Q5: DS_p_01 (Log2 Transformed LFQ Intensity) | R5: DS_p_02 (Log2 Transformed LFQ Intensity) | S5: DS_p_03 (Log2 Transformed LFQ Intensity) | T5: DS_p_04 (Log2 Transformed LFQ Intensity) | U5: DS_p_05 (Log2 Transformed LFQ Intensity) | V5: DS_p_01 (LFQ intensity) | W5: DS_p_02 (LFQ intensity) | X5: DS_p_03 (LFQ intensity) | Y5: DS_p_04 (LFQ intensity) | Z5: DS_p_05 (LFQ intensity) | AA5: Average intensity in DS_P (LFQ Intensity) | AB5: DS_01_p:np (LFQ Intensity) | AC5: DS_02_p:np (LFQ Intensity) | AD5: DS_03_p:np (LFQ Intensity) | AE5: DS_04_p:np (LFQ Intensity) | AF5: DS_05_p:np (LFQ Intensity) | AG5: Average DS p:np (LFQ Intensity) | AH5: In at least 3 cases/group | AI5: pValue_DS | AJ5: Difference_DS | AK5: Fold change_DS | AL5: Significant_DS | AM5: Significantly enriched in DS plaques | AN5: eoAD_np_01 (Log2 Transformed LFQ Intensity) | AO5: eoAD_np_02 (Log2 Transformed LFQ Intensity) | AP5: eoAD_np_03 (Log2 Transformed LFQ Intensity) | AQ5: eoAD_np_04 (Log2 Transformed LFQ Intensity) | AR5: eoAD_np_05 (Log2 Transformed LFQ Intensity) | AS5: eoAD_np_01 (LFQ intensity) | AT5: eoAD_np_02 (LFQ intensity) | AU5: eoAD_np_03 (LFQ intensity) | AV5: eoAD_np_04 (LFQ intensity) | AW5: eoAD_np_05 (LFQ intensity) | AX5: Average intensity in EOAD_NP (LFQ Intensity) | AY5: eoAD_p_01 (Log2 Transformed LFQ Intensity) | AZ5: eoAD_p_02 (Log2 Transformed LFQ Intensity) | BA5: eoAD_p_03 (Log2 Transformed LFQ Intensity) | BB5: eoAD_p_04 (Log2 Transformed LFQ Intensity) | BC5: eoAD_p_05 (Log2 Transformed LFQ Intensity) | BD5: eoAD_p_01 (LFQ intensity) | BE5: eoAD_p_02 (LFQ intensity) | BF5: eoAD_p_03 (LFQ intensity) | BG5: eoAD_p_04 (LFQ intensity) | BH5: eoAD_p_05 (LFQ intensity) | BI5: Average intensity in EOAD_P (LFQ Intensity) | BJ5: eoAD_01_p:np (LFQ Intensity) | BK5: eoAD_02_p:np (LFQ Intensity) | BL5: eoAD_03_p:np (LFQ Intensity) | BM5: eoAD_04_p:np (LFQ Intensity) | BN5: eoAD_05_p:np (LFQ Intensity) | BO5: Average eoAD p:np (LFQ Intensity) | BP5: In at least 3 cases/group | BQ5: pValue_eoAD | BR5: Difference_eoAD | BS5: Fold change_EOAD | BT5: Significant_eoAD | BU5: Significantly enriched in EOAD plaques | BV5: Enriched in LOAD plaques vs non-plaques (Xiong 2019) | BW5: Enriched in PCL plaques vs non-plaques (Xiong 2019) | BX5: Correlated with Aβ (Bai 2020) | BY5: t test (DS p:np vs eoAD p:np) | BZ5: p<0.05 for DS vs EOAD for p:np | CA5: Fold change DS p:np vs EOAD p:np | CB5: Direction of change in DS plaques vs eoAD plaques | CC5: Fold change > 1.5 | CD5: SIGNIFICANT p value <0.05 and fold change >1.5
A6: Q9H6U6 | B6: BCAS3 | C6: BCAS3 | D6: Breast carcinoma-amplified sequence 3 (GAOB1) | E6: 4 | F6: 20.91 | G6: 21.92 | H6: 20.48 | I6: 21.14 | J6: 20.68 | K6: =2^F6 -> 1967799.27 | L6: 3972499.48 | M6: 1462258.40 | N6: 2313398.69 | O6: 1678800.01 | P6: =AVERAGE(K6:O6) -> 2278951.17 | Q6: 19.26 | R6: 20.88 | S6: 19.11 | T6: 19.26 | U6: 20.60 | V6: =2^Q6 -> 628276.34 | W6: 1929098.82 | X6: 565543.95 | Y6: 626202.37 | Z6: 1591699.55 | AA6: =AVERAGE(V6:Z6) -> 1068164.21 | AB6: =V6/K6 -> 0.32 | AC6: 0.49 | AD6: 0.39 | AE6: 0.27 | AF6: 0.95 | AG6: =AVERAGE(AB6:AF6) -> 0.48 | AH6: TRUE | AI6: 0.0187 | AJ6: -1.20 | AK6: =2^AJ6 -> 0.43 | AL6: TRUE | AN6: 17.37 | AO6: 19.28 | AP6: 19.32 | AQ6: 18.20 | AR6: 17.26 | AS6: =2^AN6 -> 169508.76 | AT6: 635720.15 | AU6: 654999.63 | AV6: 300459.24 | AW6: 157411.47 | AX6: =AVERAGE(AS6:AW6) -> 383619.85 | AY6: 19.44 | AZ6: 19.61 | BA6: 19.36 | BB6: 19.75 | BC6: 19.27 | BD6: =2^AY6 -> 709471.01 | BE6: 798250.24 | BF6: 674660.40 | BG6: 883690.38 | BH6: 632629.73 | BI6: =AVERAGE(BD6:BH6) -> 739740.35 | BJ6: =BD6/AS6 -> 4.19 | BK6: 1.26 | BL6: 1.03 | BM6: 2.94 | BN6: 4.02 | BO6: =AVERAGE(BJ6:BN6) -> 2.69 | BP6: TRUE | BQ6: 0.0479 | BR6: 1.20 | BS6: =2^BR6 -> 2.30 | BY6: =TTEST(AB6:AF6,BJ6:BN6,2,3) -> 0.02844111431 | BZ6: TRUE | CA6: =AG6/BO6 -> 0.1794665675 | CB6: Decreased | CC6: TRUE | CD6: TRUE
A7: Q9BX67 | B7: JAM3 | C7: JAM3 UNQ859/PRO1868 | D7: Junctional adhesion molecule C (JAM-C) (JAM-2) (Junctional adhesion molecule 3) (JAM-3) [Cleaved into: Soluble form of JAM-C (sJAM-C)] | E7: 3 | F7: 22.21 | G7: 21.58 | H7: 23.44 | I7: 23.05 | J7: 22.48 | K7: 4844698.28 | L7: 3138799.38 | M7: 11357000.19 | N7: 8700297.42 | O7: 5855997.31 | P7: 6779358.52 | Q7: 21.93 | R7: 20.79 | S7: 21.69 | T7: 21.80 | U7: 19.18 | V7: 3996901.09 | W7: 1808800.69 | X7: 3376500.99 | Y7: 3650502.25 | Z7: 593186.93 | AA7: 2685178.39 | AB7: 0.83 | AC7: 0.58 | AD7: 0.30 | AE7: 0.42 | AF7: 0.10 | AG7: 0.44 | AH7: TRUE | AI7: 0.0464 | AJ7: -1.48 | AK7: 0.36 | AN7: 21.32 | AO7: 18.39 | AP7: 18.08 | AQ7: 19.07 | AR7: 18.95 | AS7: 2615599.70 | AT7: 343575.21 | AU7: 277230.90 | AV7: 551920.33 | AW7: 506092.43 | AX7: 858883.71 | AY7: 20.91 | AZ7: 20.37 | BA7: 18.26 | BB7: 20.24 | BC7: 20.26 | BD7: 1976400.60 | BE7: 1350900.47 | BF7: 314389.12 | BG7: 1240400.36 | BH7: 1259599.80 | BI7: 1228338.07 | BJ7: 0.76 | BK7: 3.93 | BL7: 1.13 | BM7: 2.25 | BN7: 2.49 | BO7: 2.11 | BP7: TRUE | BQ7: 0.1167 | BR7: 0.85 | BS7: 1.80 | BY7: 0.03910545976 | BZ7: TRUE | CA7: =AG7/BO7 -> 0.2102191907 | CB7: Decreased | CC7: TRUE | CD7: TRUE
A8: P49441 | B8: INPP1 | C8: INPP1 | D8: Inositol polyphosphate 1-phosphatase (IPP) (IPPase) (EC 3.1.3.57) | E8: 3 | F8: 19.43 | G8: 20.60 | H8: 19.72 | I8: 20.20 | J8: 21.47 | K8: 707791.21 | L8: 1588390.77 | M8: 864929.66 | N8: 1204483.83 | O8: 2904299.87 | P8: 1453979.07 | Q8: 18.84 | R8: 18.53 | S8: 19.46 | T8: 19.85 | U8: 18.75 | V8: 468674.35 | W8: 379709.45 | X8: 723424.66 | Y8: 947729.91 | Z8: 442054.37 | AA8: 592318.55 | AB8: 0.66 | AC8: 0.24 | AD8: 0.84 | AE8: 0.79 | AF8: 0.15 | AG8: 0.54 | AI8: 0.0756 | AJ8: -1.20 | AK8: 0.44 | AN8: 18.28 | AO8: 19.74 | AP8: 18.65 | AQ8: 17.91 | AR8: 17.95 | AS8: 317211.06 | AT8: 878440.50 | AU8: 411789.75 | AV8: 246200.05 | AW8: 253425.87 | AX8: 421413.44 | AY8: 19.07 | AZ8: 19.67 | BA8: 18.95 | BB8: 19.39 | BC8: 19.25 | BD8: 551812.35 | BE8: 831840.25 | BF8: 506764.64 | BG8: 685579.67 | BH8: 623379.87 | BI8: 639875.35 | BJ8: 1.74 | BK8: 0.95 | BL8: 1.23 | BM8: 2.78 | BN8: 2.46 | BO8: 1.83 | BP8: TRUE | BQ8: 0.0609 | BR8: 0.76 | BS8: 1.69 | BY8: 0.01707747318 | BZ8: TRUE | CA8: 0.2921596907 | CB8: Decreased | CC8: TRUE | CD8: TRUE
A9: Q9NRG7 | B9: SDR39U1 | C9: SDR39U1 C14orf124 HCDI | D9: Epimerase family protein SDR39U1 (EC 1.1.1.-) (Short-chain dehydrogenase/reductase family 39U member 1) | E9: 4 | F9: 21.68 | G9: 19.46 | H9: 22.03 | I9: 21.88 | J9: 22.40 | K9: 3358301.46 | L9: 720867.90 | M9: 4274902.54 | N9: 3855699.05 | O9: 5530597.73 | P9: 3548073.74 | Q9: 20.05 | R9: 18.48 | S9: 20.56 | T9: 21.76 | U9: 19.77 | V9: 1082768.40 | W9: 364936.36 | X9: 1540661.57 | Y9: 3560699.11 | Z9: 895577.67 | AA9: 1488928.62 | AB9: 0.32 | AC9: 0.51 | AD9: 0.36 | AE9: 0.92 | AF9: 0.16 | AG9: 0.45 | AH9: TRUE | AI9: 0.0294 | AJ9: -1.37 | AK9: 0.39 | AL9: TRUE | AN9: 20.88 | AO9: 21.25 | AP9: 20.26 | AQ9: 21.46 | AR9: 20.67 | AS9: 1931198.96 | AT9: 2490300.78 | AU9: 1259100.31 | AV9: 2889699.75 | AW9: 1665399.19 | AX9: 2047139.80 | AY9: 20.82 | AZ9: 21.56 | BA9: 21.51 | BB9: 21.62 | BC9: 20.85 | BD9: 1849300.45 | BE9: 3088799.36 | BF9: 2992600.07 | BG9: 3221601.50 | BH9: 1891099.50 | BI9: 2608680.18 | BJ9: 0.96 | BK9: 1.24 | BL9: 2.38 | BM9: 1.11 | BN9: 1.14 | BO9: 1.37 | BP9: TRUE | BQ9: 0.1829 | BR9: 0.37 | BS9: 1.29 | BY9: 0.01989730106 | BZ9: TRUE | CA9: 0.3332531521 | CB9: Decreased | CC9: TRUE | CD9: TRUE
A10: Q8TBF2 | B10: PRXL2B | C10: PRXL2B C1orf93 FAM213B | D10: Prostamide/prostaglandin F synthase (Prostamide/PG F synthase) (Prostamide/PGF synthase) (EC 1.11.1.20) (Peroxiredoxin-like 2B) (Protein FAM213B) | E10: 4 | F10: 20.85 | G10: 20.46 | H10: 20.65 | I10: 19.92 | J10: 19.64 | K10: 1892715.30 | L10: 1438645.54 | M10: 1643600.18 | N10: 994950.28 | O10: 816897.36 | P10: 1357361.73 | Q10: 19.38 | R10: 19.61 | S10: 19.64 | T10: 20.12 | U10: 18.92 | V10: 681662.62 | W10: 798515.18 | X10: 817131.76 | Y10: 1142436.08 | Z10: 496320.25 | AA10: 787213.18 | AB10: 0.36 | AC10: 0.56 | AD10: 0.50 | AE10: 1.15 | AF10: 0.61 | AG10: 0.63 | AI10: 0.0482 | AJ10: -0.77 | AK10: 0.59 | AN10: 19.69 | AO10: 19.73 | AP10: 18.65 | AQ10: 19.44 | AR10: 18.37 | AS10: 847949.47 | AT10: 871549.43 | AU10: 410324.07 | AV10: 713279.98 | AW10: 339769.54 | AX10: 636574.50 | AY10: 19.87 | AZ10: 19.99 | BA10: 20.14 | BB10: 19.69 | BC10: 19.91 | BD10: 959060.03 | BE10: 1043500.62 | BF10: 1154076.61 | BG10: 845809.85 | BH10: 983519.87 | BI10: 997193.40 | BJ10: 1.13 | BK10: 1.20 | BL10: 2.81 | BM10: 1.19 | BN10: 2.89 | BO10: 1.84 | BP10: TRUE | BQ10: 0.0782 | BR10: 0.74 | BS10: 1.67 | BY10: 0.03978644583 | BZ10: TRUE | CA10: 0.3435660172 | CB10: Decreased | CC10: TRUE | CD10: TRUE
A11: Q9NXU5 | B11: ARL15 | C11: ARL15 ARFRP2 | D11: ADP-ribosylation factor-like protein 15 (ADP-ribosylation factor-related protein 2) (ARF-related protein 2) | E11: 2 | F11: 20.39 | G11: 20.15 | H11: 20.51 | I11: 20.14 | J11: 20.66 | K11: 1371177.46 | L11: 1164500.19 | M11: 1490463.84 | N11: 1152500.04 | O11: 1656100.71 | P11: 1366948.45 | Q11: 19.30 | R11: 19.56 | S11: 20.17 | T11: 19.72 | U11: 20.10 | V11: 647029.75 | W11: 771977.32 | X11: 1178706.95 | Y11: 866282.33 | Z11: 1120800.40 | AA11: 916959.35 | AB11: 0.47 | AC11: 0.66 | AD11: 0.79 | AE11: 0.75 | AF11: 0.68 | AG11: 0.67 | AH11: TRUE | AI11: 0.0101 | AJ11: -0.60 | AK11: 0.66 | AL11: TRUE | AN11: 17.88 | AO11: 18.36 | AP11: 17.97 | AQ11: 18.87 | AR11: 18.54 | AS11: 241967.34 | AT11: 336996.78 | AU11: 255953.26 | AV11: 480668.08 | AW11: 380512.49 | AX11: 339219.59 | AY11: 18.66 | AZ11: 17.95 | BA11: 18.69 | BB11: 19.21 | BC11: 19.07 | BD11: 415254.20 | BE11: 253857.78 | BF11: 421637.64 | BG11: 605787.47 | BH11: 548780.00 | BI11: 449063.42 | BJ11: 1.72 | BK11: 0.75 | BL11: 1.65 | BM11: 1.26 | BN11: 1.44 | BO11: 1.36 | BQ11: 0.1428 | BR11: 0.39 | BS11: 1.31 | BY11: 0.01318547362 | BZ11: TRUE | CA11: 0.4918491704 | CB11: Decreased | CC11: TRUE | CD11: TRUE
A12: Q9UF11 | B12: PLEKHB1 | C12: PLEKHB1 EVT1 KPL1 PHR1 PHRET1 | D12: Pleckstrin homology domain-containing family B member 1 (PH domain-containing family B member 1) (Evectin-1) (PH domain-containing protein in retina 1) (PHRET1) (Pleckstrin homology domain retinal protein 1) | E12: 4 | F12: 21.66 | G12: 21.00 | H12: 22.46 | I12: 22.20 | J12: 20.88 | K12: 3310200.84 | L12: 2093318.25 | M12: 5754102.90 | N12: 4824500.56 | O12: 1930300.44 | P12: 3582484.60 | Q12: 20.40 | R12: 18.19 | S12: 20.98 | T12: 21.73 | U12: 19.15 | V12: 1380165.64 | W12: 298855.95 | X12: 2063101.27 | Y12: 3470998.16 | Z12: 582402.53 | AA12: 1559104.71 | AB12: 0.42 | AC12: 0.14 | AD12: 0.36 | AE12: 0.72 | AF12: 0.30 | AG12: 0.39 | AH12: TRUE | AI12: 0.0148 | AJ12: -1.55 | AK12: 0.34 | AL12: TRUE | AN12: 20.18 | AO12: 21.52 | AP12: 21.00 | AQ12: 19.19 | AR12: 20.63 | AS12: 1191200.44 | AT12: 3005998.77 | AU12: 2100601.15 | AV12: 597049.27 | AW12: 1621700.53 | AX12: 1703310.03 | AY12: 20.31 | AZ12: 20.59 | BA12: 20.94 | BB12: 18.07 | BC12: 20.46 | BD12: 1299300.12 | BE12: 1576399.23 | BF12: 2008600.75 | BG12: 274427.73 | BH12: 1444899.55 | BI12: 1320725.48 | BJ12: 1.09 | BK12: 0.52 | BL12: 0.96 | BM12: 0.46 | BN12: 0.89 | BO12: 0.78 | BP12: TRUE | BQ12: 0.1581 | BR12: -0.43 | BS12: 0.74 | BY12: 0.03656355396 | BZ12: TRUE | CA12: 0.4944999582 | CB12: Decreased | CC12: TRUE | CD12: TRUE
